Workbook

Sheet Instructions
A1: ='DNSP Inputs O & M'!$A$3 -> Powercor
A3: Instructions
A5: This model is to be used for the setting of Public Lighting Tariffs for the Regulatory Period 2016 to 2020 based on forecast inflation rates and Real Pre Tax WACC.
A7: Distributor data input fields are shaded | C7: and located in tabs "DNSP Inputs General" , "DNSP Inputs O & M" and "DNSP Inputs Capex"
A8: NOTE : All Distributor data input fields have been populated with test data in this model.
A12: This model will also to be used for the annual Public Lighting Tariff Approvals in the Regulatory Period 2016 to 2020 based on actual inflation rates and Real Pre Tax WACC.
H70: =G70 -> 0 | I70: =H70 -> 0 | J70: =I70 -> 0 | K70: =J70 -> 0 | L70: =K70 -> 0

Sheet DNSP Inputs General
A1: ='DNSP Inputs O & M'!$A$3 -> Powercor
D2: 2009 | E2: 2010 | F2: 2011 | G2: 2012 | H2: 2013 | I2: 2014 | J2: 2015 | K2: 2016 | L2: 2017 | M2: 2018 | N2: 2019 | O2: 2020
A3: Capital Expenditue | D3: Nominal $ - Actual | J3: Real 2015 $ - Forecast
A4: (Net of customer contributions)
A6: Poles and Brackets | D6: 216473.8747 | E6: 1063986.649 | F6: 735187.596 | G6: 1695675.389 | H6: 2267621.471 | I6: 3028236.092 | J6: 4439699.161 | K6: ='Capex 2016-2020'!B22 -> 799858.9873 | L6: ='Capex 2016-2020'!C22 -> 804037.9032 | M6: ='Capex 2016-2020'!D22 -> 808087.1246 | N6: ='Capex 2016-2020'!E22 -> 812195.2818 | O6: ='Capex 2016-2020'!F22 -> 816387.6951
A8: Existing Lights
A9: Luminaires | D9: 622405.6845 | E9: 540539.0458 | F9: 437172.5959 | G9: 389009.3207 | H9: 487489.2078 | I9: 811892.1229 | J9: 1346500.554 | K9: ='Capex 2016-2020'!B12-'Capex 2016-2020'!B29 -> -58967.25366 | L9: ='Capex 2016-2020'!C12-'Capex 2016-2020'!C29 -> -74351.75532 | M9: ='Capex 2016-2020'!D12-'Capex 2016-2020'!D29 -> 358938.8293 | N9: ='Capex 2016-2020'!E12-'Capex 2016-2020'!E29 -> 413566.7564 | O9: ='Capex 2016-2020'!F12-'Capex 2016-2020'!F29 -> 462220.9081
A11: Energy Efficient Lights
A12: Luminaires and Ballasts | D12: 243489.8142 | E12: 211462.9656 | F12: 171025.2281 | G12: 152183.3904 | H12: 190709.4675 | I12: 317618.343 | J12: 526761.2074 | K12: ='Capex 2016-2020'!B17 -> 57273.59334 | L12: ='Capex 2016-2020'!C17 -> 74065.51426 | M12: ='Capex 2016-2020'!D17 -> 80016.0177 | N12: ='Capex 2016-2020'!E17 -> 85899.34862 | O12: ='Capex 2016-2020'!F17 -> 91647.40431
A14: Total Net Capex | D14: =SUM(D6,D9,D12) -> 1082369.373 | E14: =SUM(E6,E9,E12) -> 1815988.66 | F14: 1343385.42 | G14: 2236868.1 | H14: 2945820.147 | I14: 4157746.558 | J14: 6312960.923 | K14: 798165.327 | L14: 803751.6621 | M14: 1247041.972 | N14: 1311661.387 | O14: 1370256.008
F17: 2011 | G17: 2012 | H17: 2013 | I17: 2014 | J17: 2015 | K17: 2016 | L17: 2017 | M17: 2018 | N17: 2019 | O17: 2020
A18: Operating and Maintenance Expenditure | F18: Nominal $ - Actual | J18: Real 2015 $ - Forecast
A20: Total O & M | F20: 7601585.57 | G20: 7887657.121 | H20: 6534655.772 | I20: 6930542.029 | J20: 7240658.699 | K20: ='Cashflow Summary'!K83 -> 7077332.583 | L20: ='Cashflow Summary'!L83 -> 7213806.581 | M20: ='Cashflow Summary'!M83 -> 7368005.129 | N20: ='Cashflow Summary'!N83 -> 7550903.122 | O20: ='Cashflow Summary'!O83 -> 7767132.872
A24: WACC
A25: Regulatoy Period | K25: 2016 | L25: 2017 | M25: 2018 | N25: 2019 | O25: 2020
A26: Real Pre Tax WACC | K26: 0.05568104031 | L26: 0.05568104031 | M26: 0.05568104031 | N26: 0.05568104031 | O26: 0.05568104031
A29: CPI Index | B29: CPI Index | C29: Actual CPI | D29: F'cast CPI
A30: 2014-09-30 | B30: 106.4
A31: 2015-09-30 | C31: =IF(B31="","",B31/B30-1) ->  | D31: 0.026
A32: 2016-09-30 | D32: 0.026
A33: 2017-09-30 | D33: 0.026
A34: 2018-09-30 | D34: 0.026
A35: 2019-09-30 | D35: 0.026
A38: Number Of Lights | E38: =J$2 -> 2015 | F38: =F$2 -> 2011 | G38: 2012 | H38: 2013 | I38: 2014 | J38: 2015 | K38: 2016 | L38: 2017 | M38: 2018 | N38: 2019 | O38: 2020 | Q38: 2004
E39: Actual Prices | F39: Actual Volumes | J39: Forecast Volumes | Q39: Assumed
A40: Existing Lights | B40: Reference Light | D40: Price Factor
A41: Mercury vapour 80 watt | B41: Mercury vapour 80 watt | D41: 1 | E41: 53.01279618 | I41: 88974 | J41: 70160 | K41: 59941.9068 | L41: 48894.15606 | M41: 44004.74045 | N41: 39604.26641 | O41: 35643.83977 | Q41: 104390.7174
A42: Sodium high pressure 150 watt | B42: Sodium high pressure 150 watt | D42: 1 | E42: 87.39393168 | I42: 27857 | J42: 28254 | K42: 29515.68715 | L42: 30833.71516 | M42: 32210.59992 | N42: 33648.96971 | O42: 35151.57015 | Q42: 24111.39996
A43: Sodium high pressure 250 watt | B43: Sodium high pressure 250 watt | D43: 1 | E43: 90.26732099 | I43: 12943 | J43: 13118 | K43: 13562.77041 | L43: 14022.62092 | M43: 14498.06283 | N43: 14989.62475 | O43: 15497.85326 | Q43: 11247.31247
A44: Flourescent 20 watt | B44: Mercury vapour 80 watt | D44: 2.12 | E44: 147.3755734 | I44: 0 | J44: 0 | K44: 0 | L44: 0 | M44: 0 | N44: 0 | O44: 0 | Q44: 69.94195746
A45: Flourescent 40 watt | B45: Mercury vapour 80 watt | D45: 2.12 | E45: 147.3755734 | I45: 0 | J45: 0 | K45: 0 | L45: 0 | M45: 0 | N45: 0 | O45: 0 | Q45: 27.47314182
A46: Mercury vapour 50 watt | B46: Mercury vapour 80 watt | D46: 1.39 | E46: 73.68778669 | I46: 306 | J46: 217 | K46: 203.491793 | L46: 190.8244691 | M46: 178.9456837 | N46: 167.8063503 | O46: 157.3604382 | Q46: 449.2839822
A47: Mercury vapour 125 watt | B47: Mercury vapour 80 watt | D47: 1.35 | E47: 71.56727484 | I47: 1170 | J47: 1023 | K47: 1062.132931 | L47: 1102.762818 | M47: 1144.946924 | N47: 1188.744704 | O47: 1234.217885 | Q47: 1385.360893
A48: Mercury vapour 250 watt | B48: Sodium high pressure 250 watt | D48: 0.76 | E48: 68.60316396 | I48: 287 | J48: 280 | K48: 215.2676162 | L48: 165.5005236 | M48: 127.23894 | N48: 97.82294036 | O48: 75.20753994 | Q48: 973.7763717
A49: Mercury vapour 400 watt | B49: Sodium high pressure 250 watt | D49: 0.88 | E49: 79.43524248 | I49: 102 | J49: 93 | K49: 82.82147975 | L49: 73.75696245 | M49: 65.68452443 | N49: 58.49558613 | O49: 52.09345164 | Q49: 179.2766767
A50: Mercury vapour 700 watt | B50: Sodium high pressure 250 watt | D50: 1.33 | E50: 120.0555369 | I50: 0 | J50: 0 | K50: 0 | L50: 0 | M50: 0 | N50: 0 | O50: 0 | Q50: 4.274939867
A51: Sodium low pressure 90 watt | B51: Sodium high pressure 150 watt | D51: 1.35 | E51: 117.9818078 | I51: 2 | J51: 0 | K51: 0 | L51: 0 | M51: 0 | N51: 0 | O51: 0 | Q51: 1
A52: Sodium low pressure 180 watt | B52: Sodium high pressure 150 watt | D52: 1.35 | E52: 117.2832143 | I52: 0 | J52: 0 | K52: 0 | L52: 0 | M52: 0 | N52: 0 | O52: 0 | Q52: 0
A53: Sodium high pressure 400 watt | B53: Sodium high pressure 250 watt | D53: 1.33 | E53: 120.0555369 | I53: 774 | J53: 760 | K53: 762.6136777 | L53: 765.236344 | M53: 767.8680297 | N53: 770.5087659 | O53: 773.1585838 | Q53: 779.0705455
A54: Incandescent 100 watt | B54: Mercury vapour 80 watt | D54: 2.78 | E54: 147.3755734 | I54: 0 | J54: 0 | K54: 0 | L54: 0 | M54: 0 | N54: 0 | O54: 0 | Q54: 13
A55: Incandescent 150 watt | B55: Mercury vapour 80 watt | D55: 2.78 | E55: 147.3755734 | I55: 0 | J55: 0 | K55: 0 | L55: 0 | M55: 0 | N55: 0 | O55: 0 | Q55: 4.326748711
A56: Metal halide 250 watt | B56: Sodium high pressure 250 watt | D56: 1.33 | E56: 120.0555369 | I56: 366 | J56: 356 | K56: 363.12 | L56: 370.3824 | M56: 377.790048 | N56: 385.345849 | O56: 393.0527659 | Q56: 332.4095706
A57: Metal halide 400 watt | B57: Sodium high pressure 250 watt | D57: 1.33 | E57: 120.0555369 | I57: 0 | J57: 0 | K57: 0 | L57: 0 | M57: 0 | N57: 0 | O57: 0 | Q57: 20
A58: Metal halide 70 watt | B58: Mercury vapour 80 watt | D58: 2.12 | E58: 191.9219234 | I58: 7 | J58: 8 | K58: 8.16 | L58: 8.3232 | M58: 8.489664 | N58: 8.65945728 | O58: 8.832646426 | Q58: 0
A59: Metal halide 150 watt | B59: Sodium high pressure 150 watt | D59: 1.33 | E59: 152.9761672 | I59: 47 | J59: 50 | K59: 51 | L59: 52.02 | M59: 53.0604 | N59: 54.121608 | O59: 55.20404016 | Q59: 0
A60: Total Existing Lights | I60: =SUM(I41:I59) -> 132835 | J60: 114319 | K60: 105768.9719 | L60: 96479.29885 | M60: 93437.42742 | N60: 90974.36614 | O60: 89042.39053
A62: Energy Efficient Lights | B62: Reference Light | D62: Price Factor
A63: T5 2X14W | B63: T5 2X14W | D63: 1 | E63: 33.60818013 | I63: 10327 | J63: 10665 | K63: 10451.7 | L63: 10242.666 | M63: 10037.81268 | N63: 9837.056426 | O63: 9640.315298
A64: T5 2X24W | B64: T5 2X14W | D64: 0.9837858113 | E64: 33.06325076 | I64: 819 | J64: 1480 | K64: 1450.4 | L64: 1421.392 | M64: 1392.96416 | N64: 1365.104877 | O64: 1337.802779
A65: CF32 | B65: T5 2X14W | D65: 0.9612856452 | E65: 32.30706113 | I65: 3092 | J65: 3089 | K65: 3027.22 | L65: 2966.6756 | M65: 2907.342088 | N65: 2849.195246 | O65: 2792.211341
A66: CF42 | B66: T5 2X14W | D66: 0.9612856452 | E66: 32.30706113 | I66: 4139 | J66: 4515 | K66: 4424.7 | L66: 4336.206 | M66: 4249.48188 | N66: 4164.492242 | O66: 4081.202398
A67: Category P LED 18 Watt | B67: Category P LED 18 Watt | D67: 1 | E67: 17.82195409 | I67: 8017 | J67: 26847 | K67: 37065.3752 | L67: 52924.43853 | M67: 57158.39362 | N67: 61731.06511 | O67: 66669.55031
A68: Category P LED 47 Watt | B68: Category P LED 18 Watt | D68: 1 | E68: 17.82195409 | I68: 0 | J68: 0 | K68: 0 | L68: 0 | M68: 0 | N68: 0 | O68: 0
A71: Total Energy Efficient Lights | I71: =SUM(I63:I70) -> 26394 | J71: 46596 | K71: 56419.3952 | L71: 71891.37813 | M71: 75745.99442 | N71: 79946.9139 | O71: 84521.08213
A73: Total Number of Lights | I73: =SUM(I60,I71) -> 159229 | J73: 160915 | K73: 162188.3671 | L73: 168370.677 | M73: 169183.4218 | N73: 170921.28 | O73: 173563.4727

Sheet DNSP Inputs O & M
A1: Public Lighting Cost Build-up Model
A3: Powercor | C3: O & M Data Inputs
C5: Real 2015 $
A7: Input parameters | C7: 2015 | D7: 2016 | E7: 2017 | F7: 2018 | G7: 2019 | H7: 2020
A9: Inputs - all lamps
A11: Material premium for rural areas | C11: 0.05 | D11: 0.05 | E11: 0.05 | F11: 0.05 | G11: 0.05 | H11: 0.05
A12: Labour rate (per hour) | C12: 121.4914353 | D12: 123.7674125 | E12: 125.8521179 | F12: 127.9719375 | G12: 130.1274628 | H12: 132.3192952
A13: Labour rate for night patrols (per hour) | C13: 142.6766892 | D13: 145.3495434 | E13: 147.7977724 | F13: 150.2872388 | G13: 152.8186371 | H13: 155.3926736
A14: Elevated platform vehicle (per hour) - urban MV,urban T5 | C14: 76.9531112 | D14: 77.69564122 | E14: 79.36920231 | F14: 80.74617287 | G14: 82.13129241 | H14: 83.56418727
A15: Elevated platform vehicle (per hour) - rural MV, rural T5, S-HP | C15: 57.00342251 | D15: 57.55345553 | E15: 58.79315472 | F15: 59.81315292 | G15: 60.83918751 | H15: 61.90061193
A16: Patrol vehicle (per hour) | C16: 42.50060677 | D16: 42.91070035 | E16: 43.83499516 | F16: 44.59548533 | G16: 45.36047611 | H16: 46.15185284
A17: Number of hours in a day | C17: 8 | D17: 8 | E17: 8 | F17: 8 | G17: 8 | H17: 8
A18: Overheads and 7% margin (see ACS model) | C18: 0.31358336 | D18: 0.31358336 | E18: 0.31358336 | F18: 0.31358336 | G18: 0.31358336 | H18: 0.31358336
A22: Inputs - MV80
A24: Depreciation period | B24: years | C24: 20 | D24: 20 | E24: 20 | F24: 20 | G24: 20 | H24: 20
A25: Lamps - bulk change | B25: years | C25: 4 | D25: 4 | E25: 4 | F25: 4 | G25: 4 | H25: 4
A26: PE cells - bulk change | B26: years | C26: 8 | D26: 8 | E26: 8 | F26: 8 | G26: 8 | H26: 8
A27: Proportion of lamps that fail between bulk change | C27: 0.15 | D27: 0.1554544767 | E27: 0.1554544767 | F27: 0.1554544767 | G27: 0.1554544767 | H27: 0.1554544767
A28: Unit cost - lamp | C28: 5.711379906 | D28: 5.711379906 | E28: 5.711379906 | F28: 5.711379906 | G28: 5.711379906 | H28: 5.711379906
A29: Unit cost - PE cell | C29: 23.05797796 | D29: 23.05797796 | E29: 23.05797796 | F29: 23.05797796 | G29: 23.05797796 | H29: 23.05797796
A30: Unit cost - luminaire | C30: 198.1486398 | D30: 198.1486398 | E30: 198.1486398 | F30: 198.1486398 | G30: 198.1486398 | H30: 198.1486398
A31: Unit cost - miscellaneous materials (bulk lamp) | C31: 1.249754903 | D31: 1.249754903 | E31: 1.249754903 | F31: 1.249754903 | G31: 1.249754903 | H31: 1.249754903
A32: Unit cost - miscellaneous materials (repair) | C32: 12.49754903 | D32: 12.49754903 | E32: 12.49754903 | F32: 12.49754903 | G32: 12.49754903 | H32: 12.49754903
A33: Number of men in crew | C33: 2 | D33: 2 | E33: 2 | F33: 2 | G33: 2 | H33: 2
A34: Number of bulk lamp changes in 1 day - urban | C34: 86.4 | D34: 86.4 | E34: 86.4 | F34: 86.4 | G34: 86.4 | H34: 86.4
A35: Number of bulk lamp changes in 1 day - rural | C35: 72 | D35: 72 | E35: 72 | F35: 72 | G35: 72 | H35: 72
A36: Number of bulk lamp changes in 1 day - remote | C36: 60 | D36: 60 | E36: 60 | F36: 60 | G36: 60 | H36: 60
A37: Number of repairs in 1 day - urban | C37: 28.8 | D37: 28.8 | E37: 28.8 | F37: 28.8 | G37: 28.8 | H37: 28.8
A38: Number of repairs in 1 day - rural | C38: 24 | D38: 24 | E38: 24 | F38: 24 | G38: 24 | H38: 24
A39: Number of repairs in 1 day - remote | C39: 19.2 | D39: 19.2 | E39: 19.2 | F39: 19.2 | G39: 19.2 | H39: 19.2
A40: % of repairs - lamps | C40: 0.6 | D40: 0.6 | E40: 0.6 | F40: 0.6 | G40: 0.6 | H40: 0.6
A41: % of repairs - PE cells | C41: 0.5 | D41: 0.5 | E41: 0.5 | F41: 0.5 | G41: 0.5 | H41: 0.5
A42: % of repairs - luminaires | C42: 0.15 | D42: 0.15 | E42: 0.15 | F42: 0.15 | G42: 0.15 | H42: 0.15
A43: % of repairs - other | C43: 0.1 | D43: 0.1 | E43: 0.1 | F43: 0.1 | G43: 0.1 | H43: 0.1
A45: Other Maintenance and Repair costs
A46: Traffic control costs | C46: 41383.95145 | D46: 38589.46892 | E46: 36745.47845 | F46: 36378.61696 | G46: 35953.95138 | H46: 35486.85623
A47: Other costs : Describe……………………………………. | C47: 0 | D47: 0 | E47: 0 | F47: 0 | G47: 0 | H47: 0
C48: =SUM(C46:C47) -> 41383.95145 | D48: 38589.46892 | E48: 36745.47845 | F48: 36378.61696 | G48: 35953.95138 | H48: 35486.85623
A49: Number of Lights | C49: ='DNSP Inputs General'!J41 -> 70160 | D49: ='DNSP Inputs General'!K41 -> 59941.9068 | E49: ='DNSP Inputs General'!L41 -> 48894.15606 | F49: ='DNSP Inputs General'!M41 -> 44004.74045 | G49: ='DNSP Inputs General'!N41 -> 39604.26641 | H49: ='DNSP Inputs General'!O41 -> 35643.83977
A50: Unit Cost | C50: =IF(C49=0,0,C48/C49) -> 0.5898510754 | D50: 0.6437811371 | E50: 0.7515310912 | F50: 0.8266976827 | G50: 0.9078302578 | H50: 0.9955957736
A52: Location of selected public lighting assets within distributors' areas (%)
A53: Urban | C53: 0.7537060972 | D53: 0.7537060972 | E53: 0.7537060972 | F53: 0.7537060972 | G53: 0.7537060972 | H53: 0.7537060972
A54: Rural | C54: 0.1885136274 | D54: 0.1885136274 | E54: 0.1885136274 | F54: 0.1885136274 | G54: 0.1885136274 | H54: 0.1885136274
A55: Remote | C55: 0.05778027536 | D55: 0.05778027536 | E55: 0.05778027536 | F55: 0.05778027536 | G55: 0.05778027536 | H55: 0.05778027536
A59: Inputs - S-HP150
A61: Depreciation period | B61: years | C61: 20 | D61: 20 | E61: 20 | F61: 20 | G61: 20 | H61: 20
A62: Number of patrols per year | C62: 3 | D62: 3 | E62: 3 | F62: 3 | G62: 3 | H62: 3
A63: Lamps - frequency of replacement | B63: years | C63: 5 | D63: 5 | E63: 5 | F63: 5 | G63: 5 | H63: 5
A64: PE cells - frequency of replacement | B64: years | C64: 10 | D64: 10 | E64: 10 | F64: 10 | G64: 10 | H64: 10
A65: Unit cost - lamp | C65: 41.30439954 | D65: 41.30439954 | E65: 41.30439954 | F65: 41.30439954 | G65: 41.30439954 | H65: 41.30439954
A66: Unit cost - PE cell | C66: 22.43310051 | D66: 22.43310051 | E66: 22.43310051 | F66: 22.43310051 | G66: 22.43310051 | H66: 22.43310051
A67: Unit cost - miscellaneous materials | C67: 2.499509806 | D67: 2.499509806 | E67: 2.499509806 | F67: 2.499509806 | G67: 2.499509806 | H67: 2.499509806
A68: Number of men in crew - road patrols | C68: 2 | D68: 2 | E68: 2 | F68: 2 | G68: 2 | H68: 2
A69: Number of men in crew - repairs | C69: 2 | D69: 2 | E69: 2 | F69: 2 | G69: 2 | H69: 2
A70: Number of lamps patrolled in 1 day - urban | C70: 3000 | D70: 3000 | E70: 3000 | F70: 3000 | G70: 3000 | H70: 3000
A71: Number of lamps patrolled in 1 day - rural | C71: 2000 | D71: 2000 | E71: 2000 | F71: 2000 | G71: 2000 | H71: 2000
A72: Number of lamps patrolled in 1 day - remote | C72: 1000 | D72: 1000 | E72: 1000 | F72: 1000 | G72: 1000 | H72: 1000
A73: Number of repairs in 1 day - urban | C73: 19.2 | D73: 19.2 | E73: 19.2 | F73: 19.2 | G73: 19.2 | H73: 19.2
A74: Number of repairs in 1 day - rural | C74: 15.36 | D74: 15.36 | E74: 15.36 | F74: 15.36 | G74: 15.36 | H74: 15.36
A75: Number of repairs in 1 day - remote | C75: 11.52 | D75: 11.52 | E75: 11.52 | F75: 11.52 | G75: 11.52 | H75: 11.52
A77: Other Maintenance and Repair costs
A78: Traffic control costs | C78: 59879.50265 | D78: 62814.60679 | E78: 64767.70168 | F78: 68020.85327 | G78: 71108.11847 | H78: 74041.61862
A79: Other costs : Describe……………………………………. | C79: 0 | D79: 0 | E79: 0 | F79: 0 | G79: 0 | H79: 0
C80: =SUM(C78:C79) -> 59879.50265 | D80: 62814.60679 | E80: 64767.70168 | F80: 68020.85327 | G80: 71108.11847 | H80: 74041.61862
A81: Number of Lights | C81: ='DNSP Inputs General'!J42 -> 28254 | D81: ='DNSP Inputs General'!K42 -> 29515.68715 | E81: ='DNSP Inputs General'!L42 -> 30833.71516 | F81: ='DNSP Inputs General'!M42 -> 32210.59992 | G81: ='DNSP Inputs General'!N42 -> 33648.96971 | H81: ='DNSP Inputs General'!O42 -> 35151.57015
A82: Unit Cost | C82: =IF(C81=0,0,C80/C81) -> 2.119328331 | D82: 2.128177009 | E82: 2.100548096 | F82: 2.111753691 | G82: 2.113233156 | H82: 2.106353096
A84: Location of selected public lighting assets within distributors' areas (%)
A85: Urban | C85: 0.7849450786 | D85: 0.7849450786 | E85: 0.7849450786 | F85: 0.7849450786 | G85: 0.7849450786 | H85: 0.7849450786
A86: Rural | C86: 0.185117381 | D86: 0.185117381 | E86: 0.185117381 | F86: 0.185117381 | G86: 0.185117381 | H86: 0.185117381
A87: Remote | C87: 0.02993754038 | D87: 0.02993754038 | E87: 0.02993754038 | F87: 0.02993754038 | G87: 0.02993754038 | H87: 0.02993754038
A91: Inputs - S-HP250
A93: Depreciation period | B93: years | C93: 20 | D93: 20 | E93: 20 | F93: 20 | G93: 20 | H93: 20
A94: Number of patrols per year | C94: 3 | D94: 3 | E94: 3 | F94: 3 | G94: 3 | H94: 3
A95: Lamps - frequency of replacement | B95: years | C95: 5 | D95: 5 | E95: 5 | F95: 5 | G95: 5 | H95: 5
A96: PE cells - frequency of replacement | B96: years | C96: 10 | D96: 10 | E96: 10 | F96: 10 | G96: 10 | H96: 10
A97: Unit cost - lamp | C97: 41.30439954 | D97: 41.30439954 | E97: 41.30439954 | F97: 41.30439954 | G97: 41.30439954 | H97: 41.30439954
A98: Unit cost - PE cell | C98: 22.43310051 | D98: 22.43310051 | E98: 22.43310051 | F98: 22.43310051 | G98: 22.43310051 | H98: 22.43310051
A99: Unit cost - miscellaneous materials | C99: 2.499509806 | D99: 2.499509806 | E99: 2.499509806 | F99: 2.499509806 | G99: 2.499509806 | H99: 2.499509806
A100: Number of men in crew - road patrols | C100: 2 | D100: 2 | E100: 2 | F100: 2 | G100: 2 | H100: 2
A101: Number of men in crew - repairs | C101: 2 | D101: 2 | E101: 2 | F101: 2 | G101: 2 | H101: 2
A102: Number of lamps patrolled in 1 day - urban | C102: 3000 | D102: 3000 | E102: 3000 | F102: 3000 | G102: 3000 | H102: 3000
A103: Number of lamps patrolled in 1 day - rural | C103: 2000 | D103: 2000 | E103: 2000 | F103: 2000 | G103: 2000 | H103: 2000
A104: Number of lamps patrolled in 1 day - remote | C104: 1000 | D104: 1000 | E104: 1000 | F104: 1000 | G104: 1000 | H104: 1000
A105: Number of repairs in 1 day - urban | C105: 19.2 | D105: 19.2 | E105: 19.2 | F105: 19.2 | G105: 19.2 | H105: 19.2
A106: Number of repairs in 1 day - rural | C106: 15.36 | D106: 15.36 | E106: 15.36 | F106: 15.36 | G106: 15.36 | H106: 15.36
A107: Number of repairs in 1 day - remote | C107: 11.52 | D107: 11.52 | E107: 11.52 | F107: 11.52 | G107: 11.52 | H107: 11.52
A109: Other Maintenance and Repair costs
A110: Traffic control costs | C110: 27535.09743 | D110: 28587.54785 | E110: 29173.09935 | F110: 30323.12712 | G110: 31373.20767 | H110: 32331.32232
A111: Other costs : Describe……………………………………. | C111: 0 | D111: 0 | E111: 0 | F111: 0 | G111: 0 | H111: 0
C112: =SUM(C110:C111) -> 27535.09743 | D112: 28587.54785 | E112: 29173.09935 | F112: 30323.12712 | G112: 31373.20767 | H112: 32331.32232
A113: Number of Lights | C113: ='DNSP Inputs General'!J43 -> 13118 | D113: ='DNSP Inputs General'!K43 -> 13562.77041 | E113: ='DNSP Inputs General'!L43 -> 14022.62092 | F113: ='DNSP Inputs General'!M43 -> 14498.06283 | G113: ='DNSP Inputs General'!N43 -> 14989.62475 | H113: ='DNSP Inputs General'!O43 -> 15497.85326
A114: Unit Cost | C114: =IF(C113=0,0,C112/C113) -> 2.099031669 | D114: 2.107795603 | E114: 2.080431291 | F114: 2.091529571 | G114: 2.092994867 | H114: 2.086180697
A116: Location of selected public lighting assets within distributors' areas (%)
A117: Urban | C117: 0.7724111283 | D117: 0.7724111283 | E117: 0.7724111283 | F117: 0.7724111283 | G117: 0.7724111283 | H117: 0.7724111283
A118: Rural | C118: 0.2045595054 | D118: 0.2045595054 | E118: 0.2045595054 | F118: 0.2045595054 | G118: 0.2045595054 | H118: 0.2045595054
A119: Remote | C119: 0.02302936631 | D119: 0.02302936631 | E119: 0.02302936631 | F119: 0.02302936631 | G119: 0.02302936631 | H119: 0.02302936631
A123: Dedicated street lighting poles
A125: Period of inspection | B125: years | C125: 5 | D125: 5 | E125: 5 | F125: 5 | G125: 5 | H125: 5
A126: Pole inspection rate | B126: per day | C126: 72 | D126: 72 | E126: 72 | F126: 72 | G126: 72 | H126: 72
A127: Depreciation of dedicated street lighting pole & bracket | B127: years | C127: 35 | D127: 35 | E127: 35 | F127: 35 | G127: 35 | H127: 35
A128: Proportion of lights on dedicated poles | C128: 1 | D128: 1 | E128: 1 | F128: 1 | G128: 1 | H128: 1
A132: Other direct costs
A133: Call centre
A134: Number of calls | C134: 4000 | D134: 6293.617407 | E134: 6399.625424 | F134: 6507.419013 | G134: 6617.028248 | H134: 6728.483712
A135: Average cost per call $ | C135: 10 | D135: 15.81990815 | E135: 16.08637448 | F135: 16.35732909 | G135: 16.63284759 | H135: 16.91300685
A136: Total call centre costs | C136: =C134*C135 -> 40000 | D136: 99564.4493 | E136: 102946.7711 | F136: 106443.9943 | G136: 110060.0224 | H136: 113798.8911
A138: GIS and other | C138: 114907.8332 | D138: 117060.4756 | E138: 119032.2111 | F138: 121037.158 | G138: 123075.8757 | H138: 125148.9331
A139: Complaints handling | C139: 34472.34997 | D139: 35118.14268 | E139: 35709.66334 | F139: 36311.14741 | G139: 36922.76272 | H139: 37544.67992
A140: Accounts Manager | C140: 134023.0269 | D140: 136533.7664 | E140: 138833.5049 | F140: 141171.9795 | G140: 143549.8428 | H140: 145967.7582
A143: ENERGY EFFICIENT LIGHTS
A145: Inputs - T5 (2 X 14W)
A147: Depreciation period | B147: years | C147: 20 | D147: 20 | E147: 20 | F147: 20 | G147: 20 | H147: 20
A148: Lamps - bulk change | B148: years | C148: 4 | D148: 4 | E148: 4 | F148: 4 | G148: 4 | H148: 4
A149: PE cells - bulk change | B149: years | C149: 8 | D149: 8 | E149: 8 | F149: 8 | G149: 8 | H149: 8
A150: Ballast unit life | B150: years | C150: 20 | D150: 20 | E150: 20 | F150: 20 | G150: 20 | H150: 20
A151: Proportion of luminaires that fail between bulk change | C151: 0.114 | D151: 0.114 | E151: 0.114 | F151: 0.114 | G151: 0.114 | H151: 0.114
A152: Unit cost - lamp | C152: 9.998039223 | D152: 9.998039223 | E152: 9.998039223 | F152: 9.998039223 | G152: 9.998039223 | H152: 9.998039223
A153: Unit cost - PE cell | C153: 16.87169119 | D153: 16.87169119 | E153: 16.87169119 | F153: 16.87169119 | G153: 16.87169119 | H153: 16.87169119
A154: Unit cost - luminaire | C154: 301.4158875 | D154: 301.4158875 | E154: 301.4158875 | F154: 301.4158875 | G154: 301.4158875 | H154: 301.4158875
A155: Unit cost - miscellaneous materials (bulk lamp) | C155: 1.249754903 | D155: 1.249754903 | E155: 1.249754903 | F155: 1.249754903 | G155: 1.249754903 | H155: 1.249754903
A156: Unit cost - miscellaneous materials (repair) | C156: 12.49754903 | D156: 12.49754903 | E156: 12.49754903 | F156: 12.49754903 | G156: 12.49754903 | H156: 12.49754903
A157: Number of men in crew | C157: 2 | D157: 2 | E157: 2 | F157: 2 | G157: 2 | H157: 2
A158: Number of bulk lamp changes in 1 day - urban | C158: 73.92 | D158: 73.92 | E158: 73.92 | F158: 73.92 | G158: 73.92 | H158: 73.92
A159: Number of bulk lamp changes in 1 day - rural | C159: 61.44 | D159: 61.44 | E159: 61.44 | F159: 61.44 | G159: 61.44 | H159: 61.44
A160: Number of bulk lamp changes in 1 day - remote | C160: 48.96 | D160: 48.96 | E160: 48.96 | F160: 48.96 | G160: 48.96 | H160: 48.96
A161: Number of repairs in 1 day - urban | C161: 24.96 | D161: 24.96 | E161: 24.96 | F161: 24.96 | G161: 24.96 | H161: 24.96
A162: Number of repairs in 1 day - rural | C162: 20.16 | D162: 20.16 | E162: 20.16 | F162: 20.16 | G162: 20.16 | H162: 20.16
A163: Number of repairs in 1 day - remote | C163: 16.32 | D163: 16.32 | E163: 16.32 | F163: 16.32 | G163: 16.32 | H163: 16.32
A164: % of repairs - lamps | C164: 0.6 | D164: 0.6 | E164: 0.6 | F164: 0.6 | G164: 0.6 | H164: 0.6
A165: % of repairs - PE cells | C165: 0.5 | D165: 0.5 | E165: 0.5 | F165: 0.5 | G165: 0.5 | H165: 0.5
A166: % of repairs - luminaires | C166: 0.15 | D166: 0.15 | E166: 0.15 | F166: 0.15 | G166: 0.15 | H166: 0.15
A167: % of repairs - other | C167: 0.1 | D167: 0.1 | E167: 0.1 | F167: 0.1 | G167: 0.1 | H167: 0.1
A169: Other Maintenance and Repair costs
A170: Traffic control costs | C170: 10508.3789 | D170: 10320.55554 | E170: 9939.047767 | F170: 9771.881225 | G170: 9561.8903 | H170: 9318.724134
A171: Other costs : Describe……………………………………. | C171: 0 | D171: 0 | E171: 0 | F171: 0 | G171: 0 | H171: 0
C172: =SUM(C170:C171) -> 10508.3789 | D172: 10320.55554 | E172: 9939.047767 | F172: 9771.881225 | G172: 9561.8903 | H172: 9318.724134
A173: Number of Lights | C173: ='DNSP Inputs General'!J63 -> 10665 | D173: ='DNSP Inputs General'!K63 -> 10451.7 | E173: ='DNSP Inputs General'!L63 -> 10242.666 | F173: ='DNSP Inputs General'!M63 -> 10037.81268 | G173: ='DNSP Inputs General'!N63 -> 9837.056426 | H173: ='DNSP Inputs General'!O63 -> 9640.315298
A174: Unit Cost | C174: =IF(C173=0,0,C172/C173) -> 0.9853144774 | D174: 0.9874523321 | E174: 0.9703574994 | F174: 0.9735070315 | G174: 0.972027595 | H174: 0.9666410118
A176: Location of selected public lighting assets within distributors' areas (%)
A177: Urban | C177: 0.7798005229 | D177: 0.7798005229 | E177: 0.7798005229 | F177: 0.7798005229 | G177: 0.7798005229 | H177: 0.7798005229
A178: Rural | C178: 0.2198121429 | D178: 0.2198121429 | E178: 0.2198121429 | F178: 0.2198121429 | G178: 0.2198121429 | H178: 0.2198121429
A179: Remote | C179: 0.0003873341726 | D179: 0.0003873341726 | E179: 0.0003873341726 | F179: 0.0003873341726 | G179: 0.0003873341726 | H179: 0.0003873341726
A181: Option for "0.8" factor
A182: Switch ( 1 = On; 0 = Off ) | B182: 1
A183: Factor | B183: 0.8
A185: Inputs - Category P LED
A187: Depreciation period | B187: years | C187: 20 | D187: 20 | E187: 20 | F187: 20 | G187: 20 | H187: 20
A188: Lamps - bulk change | B188: years | C188: 20 | D188: 20 | E188: 20 | F188: 20 | G188: 20 | H188: 20
A189: PE cells - bulk change | B189: years | C189: 8 | D189: 8 | E189: 8 | F189: 8 | G189: 8 | H189: 8
A190: Ballast unit life | B190: years | C190: 20 | D190: 20 | E190: 20 | F190: 20 | G190: 20 | H190: 20
A191: Proportion of luminaires that fail between bulk change | C191: 0.114 | D191: 0.114 | E191: 0.114 | F191: 0.114 | G191: 0.114 | H191: 0.114
A192: Unit cost - lamp | C192: 0 | D192: 0 | E192: 0 | F192: 0 | G192: 0 | H192: 0 | I192: Not applicable for LED
A193: Unit cost - PE cell | C193: 16.87169119 | D193: 16.87169119 | E193: 16.87169119 | F193: 16.87169119 | G193: 16.87169119 | H193: 16.87169119
A194: Unit cost - luminaire | C194: 352.7287516 | D194: 352.7287516 | E194: 352.7287516 | F194: 352.7287516 | G194: 352.7287516 | H194: 352.7287516
A195: Unit cost - miscellaneous materials (bulk lamp) | C195: 0 | D195: 0 | E195: 0 | F195: 0 | G195: 0 | H195: 0
A196: Unit cost - miscellaneous materials (repair) | C196: 12.49754903 | D196: 12.49754903 | E196: 12.49754903 | F196: 12.49754903 | G196: 12.49754903 | H196: 12.49754903
A197: Number of men in crew | C197: 2 | D197: 2 | E197: 2 | F197: 2 | G197: 2 | H197: 2
A198: Number of bulk lamp changes in 1 day - urban | C198: 73.92 | D198: 73.92 | E198: 73.92 | F198: 73.92 | G198: 73.92 | H198: 73.92
A199: Number of bulk lamp changes in 1 day - rural | C199: 61.44 | D199: 61.44 | E199: 61.44 | F199: 61.44 | G199: 61.44 | H199: 61.44
A200: Number of bulk lamp changes in 1 day - remote | C200: 48.96 | D200: 48.96 | E200: 48.96 | F200: 48.96 | G200: 48.96 | H200: 48.96
A201: Number of repairs in 1 day - urban | C201: 24.96 | D201: 24.96 | E201: 24.96 | F201: 24.96 | G201: 24.96 | H201: 24.96
A202: Number of repairs in 1 day - rural | C202: 20.16 | D202: 20.16 | E202: 20.16 | F202: 20.16 | G202: 20.16 | H202: 20.16
A203: Number of repairs in 1 day - remote | C203: 16.32 | D203: 16.32 | E203: 16.32 | F203: 16.32 | G203: 16.32 | H203: 16.32
A204: % of repairs - lamps | C204: 0.6 | D204: 0.6 | E204: 0.6 | F204: 0.6 | G204: 0.6 | H204: 0.6
A205: % of repairs - PE cells | C205: 0.5 | D205: 0.5 | E205: 0.5 | F205: 0.5 | G205: 0.5 | H205: 0.5
A206: % of repairs - luminaires | C206: 0.15 | D206: 0.15 | E206: 0.15 | F206: 0.15 | G206: 0.15 | H206: 0.15
A207: % of repairs - other | C207: 0.1 | D207: 0.1 | E207: 0.1 | F207: 0.1 | G207: 0.1 | H207: 0.1
A209: Other Maintenance and Repair costs
A210: Traffic control costs | C210: 1000.897526 | D210: 2033.005834 | E210: 2004.680886 | F210: 3496.531493 | G210: 3469.877328 | H210: 3381.6357
A211: Other costs : Describe……………………………………. | C211: 0 | D211: 0 | E211: 0 | F211: 0 | G211: 0 | H211: 0
C212: =SUM(C210:C211) -> 1000.897526 | D212: 2033.005834 | E212: 2004.680886 | F212: 3496.531493 | G212: 3469.877328 | H212: 3381.6357
A213: Number of Lights | C213: ='DNSP Inputs General'!J67 -> 26847 | D213: ='DNSP Inputs General'!K67 -> 37065.3752 | E213: ='DNSP Inputs General'!L67 -> 52924.43853 | F213: ='DNSP Inputs General'!M67 -> 57158.39362 | G213: ='DNSP Inputs General'!N67 -> 61731.06511 | H213: ='DNSP Inputs General'!O67 -> 66669.55031
A214: Unit Cost | C214: =IF(C213=0,0,C212/C213) -> 0.03728154081 | D214: 0.05484919073 | E214: 0.03787817012 | F214: 0.06117266899 | G214: 0.05620958139 | H214: 0.05072234152
A216: Location of selected public lighting assets within distributors' areas (%)
A217: Urban | C217: 0.284894599 | D217: 0.284894599 | E217: 0.284894599 | F217: 0.284894599 | G217: 0.284894599 | H217: 0.284894599
A218: Rural | C218: 0.6372707996 | D218: 0.6372707996 | E218: 0.6372707996 | F218: 0.6372707996 | G218: 0.6372707996 | H218: 0.6372707996
A219: Remote | C219: 0.07783460147 | D219: 0.07783460147 | E219: 0.07783460147 | F219: 0.07783460147 | G219: 0.07783460147 | H219: 0.07783460147
A221: Option for "0.8" factor
A222: Switch ( 1 = On; 0 = Off ) | B222: 1
A223: Factor | B223: 0.9

Sheet DNSP Inputs Capex
A1: Public Lighting Cost Build-up Model
A3: ='DNSP Inputs O & M'!$A$3 -> Powercor | C3: Capex Data Inputs
C5: Real 2015 $
A7: Input parameters | C7: 2015 | D7: 2016 | E7: 2017 | F7: 2018 | G7: 2019 | H7: 2020
A9: Inputs - all lamps
A11: Material premium for rural areas | C11: 0.05 | D11: 0.05 | E11: 0.05 | F11: 0.05 | G11: 0.05 | H11: 0.05
A12: Labour rate (per hour) | C12: 121.4914353 | D12: 123.7674125 | E12: 125.8521179 | F12: 127.9719375 | G12: 130.1274628 | H12: 132.3192952
A13: Elevated platform vehicle (per hour) - urban MV,urban T5 | C13: 76.9531112 | D13: 77.69564122 | E13: 79.36920231 | F13: 80.74617287 | G13: 82.13129241 | H13: 83.56418727
A14: Elevated platform vehicle (per hour) - rural MV, rural T5, S-HP | C14: 57.00342251 | D14: 57.55345553 | E14: 58.79315472 | F14: 59.81315292 | G14: 60.83918751 | H14: 61.90061193
A15: Number of hours in a day | C15: 8 | D15: 8 | E15: 8 | F15: 8 | G15: 8 | H15: 8
A19: Inputs - MV80
A21: Unit cost - luminaire | C21: 198.1486398 | D21: 198.1486398 | E21: 198.1486398 | F21: 198.1486398 | G21: 198.1486398 | H21: 198.1486398
A22: Unit cost - miscellaneous materials (bulk lamp) | C22: 1.249754903 | D22: 1.249754903 | E22: 1.249754903 | F22: 1.249754903 | G22: 1.249754903 | H22: 1.249754903
A23: Number of men in crew | C23: 2 | D23: 2 | E23: 2 | F23: 2 | G23: 2 | H23: 2
A24: Number of luminaires replaced per day - urban | C24: 15.36 | D24: 15.36 | E24: 15.36 | F24: 15.36 | G24: 15.36 | H24: 15.36
A25: Number of luminaires replaced per day - rural | C25: 12.48 | D25: 12.48 | E25: 12.48 | F25: 12.48 | G25: 12.48 | H25: 12.48
A26: Number of luminaires replaced per day - remote | C26: 9.6 | D26: 9.6 | E26: 9.6 | F26: 9.6 | G26: 9.6 | H26: 9.6
A28: Other Capex unit costs Describe :……………………… | C28: 0 | D28: 0 | E28: 0 | F28: 0 | G28: 0 | H28: 0
A30: Forecast Quantities to be replaced
A31: Number of luminaires replaced per year - urban | D31: 100.6344087 | E31: 78.71547455 | F31: 71.39201605 | G31: 64.2693202 | H31: 57.43871001
A32: Number of luminaires replaced per year - rural | D32: 25.17023214 | E32: 19.6879655 | F32: 17.85625453 | G32: 16.07475742 | H32: 14.36631549
A33: Number of luminaires replaced per year - remote | D33: 7.71478945 | E33: 6.034450048 | F33: 5.47302239 | G33: 4.926985508 | H33: 4.403340364
A35: MV80 Lights replaced with T5 Energy Efficient Lights
A36: Number of Lights MV80 replaced with Energy Efficient Lights per year | D36: 10218.0932 | E36: 11047.75074 | F36: 4889.415606 | G36: 4400.474045 | H36: 3960.426641
A40: Inputs - S-HP150
A42: Unit cost - luminaire | C42: 234.50401 | D42: 234.50401 | E42: 234.50401 | F42: 234.50401 | G42: 234.50401 | H42: 234.50401
A43: Unit cost - miscellaneous materials | C43: 2.499509806 | D43: 2.499509806 | E43: 2.499509806 | F43: 2.499509806 | G43: 2.499509806 | H43: 2.499509806
A44: Number of men in crew - repairs | C44: 2 | D44: 2 | E44: 2 | F44: 2 | G44: 2 | H44: 2
A45: Number of luminaires replaced per day - urban | C45: 15.36 | D45: 15.36 | E45: 15.36 | F45: 15.36 | G45: 15.36 | H45: 15.36
A46: Number of luminaires replaced per day - rural | C46: 12.48 | D46: 12.48 | E46: 12.48 | F46: 12.48 | G46: 12.48 | H46: 12.48
A47: Number of luminaires replaced per day - remote | C47: 9.6 | D47: 9.6 | E47: 9.6 | F47: 9.6 | G47: 9.6 | H47: 9.6
A49: Other Capex unit costs Describe :……………………… | C49: 0 | D49: 0 | E49: 0 | F49: 0 | G49: 0 | H49: 0
A51: Forecast Quantities to be replaced
A52: Number of luminaires replaced per year - urban | D52: 792.5425785 | E52: 795.1185929 | F52: 797.6846407 | G52: 800.2406431 | H52: 802.786523
A53: Number of luminaires replaced per year - rural | D53: 186.909136 | E53: 187.5166499 | F53: 188.1218133 | G53: 188.7246077 | H53: 189.3250148
A54: Number of luminaires replaced per day - remote | D54: 30.22730647 | E54: 30.32555478 | F54: 30.42342298 | G54: 30.52090805 | H54: 30.61800705
A58: Inputs - S-HP250
A60: Unit cost - luminaire | C60: 238.0033237 | D60: 238.0033237 | E60: 238.0033237 | F60: 238.0033237 | G60: 238.0033237 | H60: 238.0033237
A61: Unit cost - miscellaneous materials | C61: 2.499509806 | D61: 2.499509806 | E61: 2.499509806 | F61: 2.499509806 | G61: 2.499509806 | H61: 2.499509806
A62: Number of men in crew - repairs | C62: 2 | D62: 2 | E62: 2 | F62: 2 | G62: 2 | H62: 2
A63: Number of luminaires replaced per day - urban | C63: 15.36 | D63: 15.36 | E63: 15.36 | F63: 15.36 | G63: 15.36 | H63: 15.36
A64: Number of luminaires replaced per day - rural | C64: 12.48 | D64: 12.48 | E64: 12.48 | F64: 12.48 | G64: 12.48 | H64: 12.48
A65: Number of luminaires replaced per day - remote | C65: 9.6 | D65: 9.6 | E65: 9.6 | F65: 9.6 | G65: 9.6 | H65: 9.6
A67: Other Capex unit costs Describe :……………………… | C67: 0 | D67: 0 | E67: 0 | F67: 0 | G67: 0 | H67: 0
A69: Forecast Quantities to be replaced
A70: Number of luminaires replaced per year - urban | D70: 358.3664681 | E70: 370.5170095 | F70: 383.0795192 | G70: 396.0679653 | H70: 409.4967892
A71: Number of luminaires replaced per year - rural | D71: 94.90705763 | E71: 98.12491486 | F71: 101.4518747 | G71: 104.8916362 | H71: 108.4480241
A72: Number of luminaires replaced per day - remote | D72: 10.68466308 | E72: 11.04693035 | F72: 11.42148041 | G72: 11.80872973 | H72: 12.20910887
A76: Dedicated street lighting poles
A78: Cost of pole & bracket | C78: 1598.251629 | D78: 1598.251629 | E78: 1598.251629 | F78: 1598.251629 | G78: 1598.251629 | H78: 1598.251629
A79: Number of poles & brackets replaced per day | C79: 3.84 | D79: 3.84 | E79: 3.84 | F79: 3.84 | G79: 3.84 | H79: 3.84
A80: Cost of bracket on non-dedicated poles | C80: 48.47299616 | D80: 48.47299616 | E80: 48.47299616 | F80: 48.47299616 | G80: 48.47299616 | H80: 48.47299616
A81: Number of brackets replaced per day | C81: 19.2 | D81: 19.2 | E81: 19.2 | F81: 19.2 | G81: 19.2 | H81: 19.2
A83: Other poles & brackets Capex unit costs Describe :………………… | C83: 0 | D83: 0 | E83: 0 | F83: 0 | G83: 0 | H83: 0
A86: Forecast Quantities to be replaced
A87: Number of poles & brackets replaced per year - urban | D87: 101.1444851 | E87: 101.1444851 | F87: 101.1444851 | G87: 101.1444851 | H87: 101.1444851
A88: Number of poles & brackets replaced per year - rural | D88: 240.3972324 | E88: 240.3972324 | F88: 240.3972324 | G88: 240.3972324 | H88: 240.3972324
A89: Number of poles & brackets replaced per year - remote | D89: 10.45828246 | E89: 10.45828246 | F89: 10.45828246 | G89: 10.45828246 | H89: 10.45828246
A91: Brackets on non-dedicated poles :
A92: Number of brackets replaced per year - urban | D92: 20 | E92: 20 | F92: 20 | G92: 20 | H92: 20
A93: Number of brackets replaced per year - rural | D93: 30 | E93: 30 | F93: 30 | G93: 30 | H93: 30
A94: Number of brackets replaced per year - remote | D94: 2 | E94: 2 | F94: 2 | G94: 2 | H94: 2
A98: Luminaire Replacents - Other Light types (excluding Energy Efficient Lights)
A99: Number of luminaires replaced per year | D99: 1713 | E99: 1713 | F99: 1713 | G99: 1713 | H99: 1713
A100: Forecast Capex | D100: 1436304 | E100: 1436304 | F100: 1436304 | G100: 1436304 | H100: 1436304
A104: Inputs - T5 (2 X 14W)
A106: Unit cost - luminaire | C106: 301.4158875 | D106: 301.4158875 | E106: 301.4158875 | F106: 301.4158875 | G106: 301.4158875 | H106: 301.4158875
A107: Unit cost - miscellaneous materials | C107: 1.249754903 | D107: 1.249754903 | E107: 1.249754903 | F107: 1.249754903 | G107: 1.249754903 | H107: 1.249754903
A108: Number of men in crew - repairs | C108: 2 | D108: 2 | E108: 2 | F108: 2 | G108: 2 | H108: 2
A109: Number of luminaires replaced per day - urban | C109: 15.36 | D109: 15.36 | E109: 15.36 | F109: 15.36 | G109: 15.36 | H109: 15.36
A110: Number of luminaires replaced per day - rural | C110: 12.48 | D110: 12.48 | E110: 12.48 | F110: 12.48 | G110: 12.48 | H110: 12.48
A111: Number of luminaires replaced per day - remote | C111: 9.6 | D111: 9.6 | E111: 9.6 | F111: 9.6 | G111: 9.6 | H111: 9.6
A113: Other Capex unit costs Describe :……………………… | C113: 0 | D113: 0 | E113: 0 | F113: 0 | G113: 0 | H113: 0
A115: Forecast Quantities to be replaced
A116: Number of luminaires replaced per year - urban | D116: 18.15450342 | E116: 17.06073229 | F116: 16.84886935 | G116: 16.51613367 | H116: 16.0728513
A117: Number of luminaires replaced per year - rural | D117: 5.117437323 | E117: 4.809122352 | F117: 4.749401892 | G117: 4.655609515 | H117: 4.53065596
A118: Number of luminaires replaced per day - remote | D118: 0.009017510702 | E118: 0.008474224409 | F118: 0.008368990118 | G118: 0.008203717207 | H118: 0.007983534732
A122: Inputs - Category P LED
A124: Unit cost - luminaire | C124: 352.7287516 | D124: 352.7287516 | E124: 352.7287516 | F124: 352.7287516 | G124: 352.7287516 | H124: 352.7287516
A125: Unit cost - miscellaneous materials | C125: 0 | D125: 0 | E125: 0 | F125: 0 | G125: 0 | H125: 0
A126: Number of men in crew - repairs | C126: 2 | D126: 2 | E126: 2 | F126: 2 | G126: 2 | H126: 2
A127: Number of luminaires replaced per day - urban | C127: 15.36 | D127: 15.36 | E127: 15.36 | F127: 15.36 | G127: 15.36 | H127: 15.36
A128: Number of luminaires replaced per day - rural | C128: 12.48 | D128: 12.48 | E128: 12.48 | F128: 12.48 | G128: 12.48 | H128: 12.48
A129: Number of luminaires replaced per day - remote | C129: 9.6 | D129: 9.6 | E129: 9.6 | F129: 9.6 | G129: 9.6 | H129: 9.6
A131: Other Capex unit costs Describe :……………………… | C131: 0 | D131: 0 | E131: 0 | F131: 0 | G131: 0 | H131: 0
A133: Forecast Quantities to be replaced
A134: Number of luminaires replaced per year - urban | D134: 23.52158229 | E134: 32.20635757 | F134: 35.05196624 | G134: 37.8658483 | H134: 40.60971188
A135: Number of luminaires replaced per year - rural | D135: 52.61460768 | E135: 72.04127882 | F135: 78.40652167 | G135: 84.7007964 | H135: 90.83844921
A136: Number of luminaires replaced per day - remote | D136: 6.426211625 | E136: 8.798934818 | F136: 9.576369059 | G136: 10.34513544 | H136: 11.09477242

Sheet Total RAB
A1: ='DNSP Inputs O & M'!$A$3 -> Powercor | E1: Check | F1: =SUM(B144) -> 7.636845112e-08
A3: Total Public Lighting RAB
A4: Historical cost ($)
B6: Life (years) | C6: 2005 | D6: 2006 | E6: 2007 | F6: 2008 | G6: 2009 | H6: 2010 | I6: 2011 | J6: 2012 | K6: 2013 | L6: 2014 | M6: 2015 | N6: 2016 | O6: 2017 | P6: 2018 | Q6: 2019 | R6: 2020
A8: Capital Expenditue (Nominal $)
A9: (Net of customer contributions)
A11: Poles and Brackets | B11: 35 | C11: 591600 | D11: 171600 | E11: 70000 | F11: 182400 | G11: ='DNSP Inputs General'!D6 -> 216473.8747 | H11: ='DNSP Inputs General'!E6 -> 1063986.649 | I11: ='DNSP Inputs General'!F6 -> 735187.596 | J11: ='DNSP Inputs General'!G6 -> 1695675.389 | K11: ='DNSP Inputs General'!H6 -> 2267621.471 | L11: ='DNSP Inputs General'!I6 -> 3028236.092 | M11: ='DNSP Inputs General'!J6*M$20 -> 4439699.161 | N11: ='DNSP Inputs General'!K6*N$20 -> 820655.321 | O11: ='DNSP Inputs General'!L6*O$20 -> 846391.4038 | P11: ='DNSP Inputs General'!M6*P$20 -> 872770.9239 | Q11: ='DNSP Inputs General'!N6*Q$20 -> 900015.3269 | R11: ='DNSP Inputs General'!O6*R$20 -> 928182.2396
A13: Existing Lights
A14: Luminaires | B14: ='DNSP Inputs O & M'!$C$24 -> 20 | C14: 2366400 | D14: 686400 | E14: 280000 | F14: 729600 | G14: ='DNSP Inputs General'!D9 -> 622405.6845 | H14: ='DNSP Inputs General'!E9 -> 540539.0458 | I14: ='DNSP Inputs General'!F9 -> 437172.5959 | J14: ='DNSP Inputs General'!G9 -> 389009.3207 | K14: ='DNSP Inputs General'!H9 -> 487489.2078 | L14: ='DNSP Inputs General'!I9 -> 811892.1229 | M14: ='DNSP Inputs General'!J9*M$20 -> 1346500.554 | N14: ='DNSP Inputs General'!K9*N$20 -> -60500.40226 | O14: ='DNSP Inputs General'!L9*O$20 -> -78268.30838 | P14: ='DNSP Inputs General'!M9*P$20 -> 387670.2946 | Q14: ='DNSP Inputs General'!N9*Q$20 -> 458284.3902 | R14: ='DNSP Inputs General'!O9*R$20 -> 525516.541
A16: Energy Efficient Lights
A17: Luminaires and Ballasts | B17: ='DNSP Inputs O & M'!$C$147 -> 20 | G17: ='DNSP Inputs General'!D12 -> 243489.8142 | H17: ='DNSP Inputs General'!E12 -> 211462.9656 | I17: ='DNSP Inputs General'!F12 -> 171025.2281 | J17: ='DNSP Inputs General'!G12 -> 152183.3904 | K17: ='DNSP Inputs General'!H12 -> 190709.4675 | L17: ='DNSP Inputs General'!I12 -> 317618.343 | M17: ='DNSP Inputs General'!J12*M$20 -> 526761.2074 | N17: ='DNSP Inputs General'!K12*N$20 -> 58762.70677 | O17: ='DNSP Inputs General'!L12*O$20 -> 77966.98929 | P17: ='DNSP Inputs General'!M12*P$20 -> 86420.94593 | Q17: ='DNSP Inputs General'!N12*Q$20 -> 95187.36695 | R17: ='DNSP Inputs General'!O12*R$20 -> 104197.4218
A20: CPI Index | M20: 1 | N20: =M20*(1+WACC!E$6) -> 1.026 | O20: =N20*(1+WACC!F$6) -> 1.052676 | P20: =O20*(1+WACC!G$6) -> 1.080045576 | Q20: =P20*(1+WACC!H$6) -> 1.108126761 | R20: =Q20*(1+WACC!I$6) -> 1.136938057
A23: Depreciation | C23: =$C$6 -> 2005 | D23: =$D$6 -> 2006 | E23: =$E$6 -> 2007 | F23: =$F$6 -> 2008 | G23: =G$6 -> 2009 | H23: =H$6 -> 2010 | I23: 2011 | J23: 2012 | K23: 2013 | L23: 2014 | M23: 2015 | N23: 2016 | O23: 2017 | P23: 2018 | Q23: 2019 | R23: 2020
A24: =$A$11 -> Poles and Brackets
A25: RAB 2001-04 | C25: ='RAB 2001 to 2004'!F113 -> 132156.4067 | D25: ='RAB 2001 to 2004'!G113 -> 132156.4067 | E25: ='RAB 2001 to 2004'!H113 -> 132156.4067 | F25: ='RAB 2001 to 2004'!I113 -> 132156.4067 | G25: ='RAB 2001 to 2004'!J113 -> 132156.4067 | H25: ='RAB 2001 to 2004'!K113 -> 132156.4067 | I25: ='RAB 2001 to 2004'!L113 -> 132156.4067 | J25: ='RAB 2001 to 2004'!M113 -> 132156.4067 | K25: ='RAB 2001 to 2004'!N113 -> 132156.4067 | L25: ='RAB 2001 to 2004'!O113 -> 132156.4067 | M25: ='RAB 2001 to 2004'!P113 -> 132156.4067 | N25: ='RAB 2001 to 2004'!Q113 -> 132156.4067 | O25: ='RAB 2001 to 2004'!R113 -> 132156.4067 | P25: ='RAB 2001 to 2004'!S113 -> 132156.4067 | Q25: ='RAB 2001 to 2004'!T113 -> 132156.4067 | R25: ='RAB 2001 to 2004'!U113 -> 132156.4067
A26: Depn Capex 2005 | C26: =C$11/$B$11/2 -> 8451.428571 | D26: =C26*2 -> 16902.85714 | E26: =D26 -> 16902.85714 | F26: =E26 -> 16902.85714 | G26: =F26 -> 16902.85714 | H26: 16902.85714 | I26: 16902.85714 | J26: 16902.85714 | K26: 16902.85714 | L26: 16902.85714 | M26: 16902.85714 | N26: 16902.85714 | O26: 16902.85714 | P26: 16902.85714 | Q26: 16902.85714 | R26: 16902.85714
A27: Depn Capex 2006 | D27: =D$11/$B$11/2 -> 2451.428571 | E27: =D27*2 -> 4902.857143 | F27: =E27 -> 4902.857143 | G27: 4902.857143 | H27: 4902.857143 | I27: 4902.857143 | J27: 4902.857143 | K27: 4902.857143 | L27: 4902.857143 | M27: 4902.857143 | N27: 4902.857143 | O27: 4902.857143 | P27: 4902.857143 | Q27: 4902.857143 | R27: 4902.857143
A28: Depn Capex 2007 | E28: =E$11/$B$11/2 -> 1000 | F28: =E28*2 -> 2000 | G28: =F28 -> 2000 | H28: 2000 | I28: 2000 | J28: 2000 | K28: 2000 | L28: 2000 | M28: 2000 | N28: 2000 | O28: 2000 | P28: 2000 | Q28: 2000 | R28: 2000
A29: Depn Capex 2008 | F29: =F$11/$B$11/2 -> 2605.714286 | G29: =F29*2 -> 5211.428571 | H29: 5211.428571 | I29: 5211.428571 | J29: 5211.428571 | K29: 5211.428571 | L29: 5211.428571 | M29: 5211.428571 | N29: 5211.428571 | O29: 5211.428571 | P29: 5211.428571 | Q29: 5211.428571 | R29: 5211.428571
A30: Depn Capex 2009 | G30: =G$11/$B$11/2 -> 3092.483924 | H30: =G30*2 -> 6184.967848 | I30: =H30 -> 6184.967848 | J30: =I30 -> 6184.967848 | K30: =J30 -> 6184.967848 | L30: =K30 -> 6184.967848 | M30: =L30 -> 6184.967848 | N30: 6184.967848 | O30: 6184.967848 | P30: 6184.967848 | Q30: 6184.967848 | R30: 6184.967848
A31: Depn Capex 2010 | H31: =H$11/$B$11/2 -> 15199.80927 | I31: =H31*2 -> 30399.61853 | J31: =I31 -> 30399.61853 | K31: =J31 -> 30399.61853 | L31: =K31 -> 30399.61853 | M31: =L31 -> 30399.61853 | N31: 30399.61853 | O31: 30399.61853 | P31: 30399.61853 | Q31: 30399.61853 | R31: 30399.61853
A32: Depn Capex 2011 | I32: =I$11/$B$11/2 -> 10502.67994 | J32: =I32*2 -> 21005.35989 | K32: =J32 -> 21005.35989 | L32: =K32 -> 21005.35989 | M32: =L32 -> 21005.35989 | N32: 21005.35989 | O32: 21005.35989 | P32: 21005.35989 | Q32: 21005.35989 | R32: 21005.35989
A33: Depn Capex 2012 | J33: =J$11/$B$11/2 -> 24223.93413 | K33: =J33*2 -> 48447.86825 | L33: =K33 -> 48447.86825 | M33: =L33 -> 48447.86825 | N33: 48447.86825 | O33: 48447.86825 | P33: 48447.86825 | Q33: 48447.86825 | R33: 48447.86825
A34: Depn Capex 2013 | K34: =K$11/$B$11/2 -> 32394.59245 | L34: =K34*2 -> 64789.1849 | M34: =L34 -> 64789.1849 | N34: 64789.1849 | O34: 64789.1849 | P34: 64789.1849 | Q34: 64789.1849 | R34: 64789.1849
A35: Depn Capex 2014 | L35: =L$11/$B$11/2 -> 43260.5156 | M35: =L35*2 -> 86521.0312 | N35: 86521.0312 | O35: 86521.0312 | P35: 86521.0312 | Q35: 86521.0312 | R35: 86521.0312
A36: Depn Capex 2015 | M36: =M$11/$B$11/2 -> 63424.27373 | N36: =M36*2 -> 126848.5475 | O36: 126848.5475 | P36: 126848.5475 | Q36: 126848.5475 | R36: 126848.5475
A37: Depn Capex 2016 | N37: =N$11/$B$11/2 -> 11723.64744 | O37: =N37*2 -> 23447.29488 | P37: 23447.29488 | Q37: 23447.29488 | R37: 23447.29488
A38: Depn Capex 2017 | O38: =O$11/$B$11/2 -> 12091.30577 | P38: =O38*2 -> 24182.61154 | Q38: 24182.61154 | R38: 24182.61154
A39: Depn Capex 2018 | P39: =P$11/$B$11/2 -> 12468.15606 | Q39: =P39*2 -> 24936.31211 | R39: 24936.31211
A40: Depn Capex 2019 | Q40: =Q$11/$B$11/2 -> 12857.36181 | R40: =Q40*2 -> 25714.72363
A41: Depn Capex 2020 | R41: =R$11/$B$11/2 -> 13259.74628
A42: Total Depreciation | C42: =SUM(C25:C41) -> 140607.8352 | D42: =SUM(D25:D41) -> 151510.6924 | E42: 154962.1209 | F42: 158567.8352 | G42: 164266.0334 | H42: 182558.3266 | I42: 208260.8158 | J42: 242987.4299 | K42: 299605.9565 | L42: 375261.0645 | M42: 481945.8539 | N42: 557093.775 | O42: 580908.7282 | P42: 605468.1901 | Q42: 630793.7079 | R42: 656910.816
A44: =$A$13 -> Existing Lights
A45: =$A$14 -> Luminaires
A46: =A25 -> RAB 2001-04 | C46: ='RAB 2001 to 2004'!F77 -> 333555.3231 | D46: ='RAB 2001 to 2004'!G77 -> 333555.3231 | E46: ='RAB 2001 to 2004'!H77 -> 333555.3231 | F46: ='RAB 2001 to 2004'!I77 -> 333555.3231 | G46: ='RAB 2001 to 2004'!J77 -> 333555.3231 | H46: ='RAB 2001 to 2004'!K77 -> 333555.3231 | I46: ='RAB 2001 to 2004'!L77 -> 333555.3231 | J46: ='RAB 2001 to 2004'!M77 -> 333555.3231 | K46: ='RAB 2001 to 2004'!N77 -> 333555.3231 | L46: ='RAB 2001 to 2004'!O77 -> 333555.3231 | M46: ='RAB 2001 to 2004'!P77 -> 333555.3231 | N46: ='RAB 2001 to 2004'!Q77 -> 333555.3231 | O46: ='RAB 2001 to 2004'!R77 -> 333555.3231 | P46: ='RAB 2001 to 2004'!S77 -> 333555.3231 | Q46: ='RAB 2001 to 2004'!T77 -> 333555.3231 | R46: ='RAB 2001 to 2004'!U77 -> 333555.3231
A47: =A26 -> Depn Capex 2005 | C47: =C$14/$B$14/2 -> 59160 | D47: =C47*2 -> 118320 | E47: =D47 -> 118320 | F47: 118320 | G47: 118320 | H47: 118320 | I47: 118320 | J47: 118320 | K47: 118320 | L47: 118320 | M47: 118320 | N47: =M47 -> 118320 | O47: =N47 -> 118320 | P47: =O47 -> 118320 | Q47: =P47 -> 118320 | R47: =Q47 -> 118320
A48: =A27 -> Depn Capex 2006 | D48: =D$14/$B$14/2 -> 17160 | E48: =D48*2 -> 34320 | F48: =E48 -> 34320 | G48: 34320 | H48: 34320 | I48: 34320 | J48: 34320 | K48: 34320 | L48: 34320 | M48: 34320 | N48: 34320 | O48: 34320 | P48: 34320 | Q48: 34320 | R48: 34320
A49: Depn Capex 2007 | E49: =E$14/$B$14/2 -> 7000 | F49: =E49*2 -> 14000 | G49: =F49 -> 14000 | H49: 14000 | I49: 14000 | J49: 14000 | K49: 14000 | L49: 14000 | M49: 14000 | N49: 14000 | O49: 14000 | P49: 14000 | Q49: 14000 | R49: 14000
A50: Depn Capex 2008 | F50: =F$14/$B$14/2 -> 18240 | G50: =F50*2 -> 36480 | H50: =G50 -> 36480 | I50: 36480 | J50: 36480 | K50: 36480 | L50: 36480 | M50: 36480 | N50: 36480 | O50: 36480 | P50: 36480 | Q50: 36480 | R50: 36480
A51: Depn Capex 2009 | G51: =G$14/$B$14/2 -> 15560.14211 | H51: =G51*2 -> 31120.28422 | I51: =H51 -> 31120.28422 | J51: =I51 -> 31120.28422 | K51: =J51 -> 31120.28422 | L51: =K51 -> 31120.28422 | M51: =L51 -> 31120.28422 | N51: 31120.28422 | O51: 31120.28422 | P51: 31120.28422 | Q51: 31120.28422 | R51: 31120.28422
A52: Depn Capex 2010 | H52: =H$14/$B$14/2 -> 13513.47615 | I52: =H52*2 -> 27026.95229 | J52: =I52 -> 27026.95229 | K52: =J52 -> 27026.95229 | L52: =K52 -> 27026.95229 | M52: =L52 -> 27026.95229 | N52: 27026.95229 | O52: 27026.95229 | P52: 27026.95229 | Q52: 27026.95229 | R52: 27026.95229
A53: Depn Capex 2011 | I53: =I$14/$B$14/2 -> 10929.3149 | J53: =I53*2 -> 21858.62979 | K53: =J53 -> 21858.62979 | L53: =K53 -> 21858.62979 | M53: =L53 -> 21858.62979 | N53: 21858.62979 | O53: 21858.62979 | P53: 21858.62979 | Q53: 21858.62979 | R53: 21858.62979
A54: Depn Capex 2012 | J54: =J$14/$B$14/2 -> 9725.233018 | K54: =J54*2 -> 19450.46604 | L54: =K54 -> 19450.46604 | M54: =L54 -> 19450.46604 | N54: 19450.46604 | O54: 19450.46604 | P54: 19450.46604 | Q54: 19450.46604 | R54: 19450.46604
A55: Depn Capex 2013 | K55: =K$14/$B$14/2 -> 12187.2302 | L55: =K55*2 -> 24374.46039 | M55: =L55 -> 24374.46039 | N55: 24374.46039 | O55: 24374.46039 | P55: 24374.46039 | Q55: 24374.46039 | R55: 24374.46039
A56: Depn Capex 2014 | L56: =L$14/$B$14/2 -> 20297.30307 | M56: =L56*2 -> 40594.60615 | N56: 40594.60615 | O56: =N56 -> 40594.60615 | P56: =O56 -> 40594.60615 | Q56: =P56 -> 40594.60615 | R56: =Q56 -> 40594.60615
A57: Depn Capex 2015 | M57: =M$14/$B$14/2 -> 33662.51386 | N57: =M57*2 -> 67325.02772 | O57: 67325.02772 | P57: 67325.02772 | Q57: 67325.02772 | R57: 67325.02772
A58: Depn Capex 2016 | N58: =N$14/$B$14/2 -> -1512.510057 | O58: =N58*2 -> -3025.020113 | P58: =O58 -> -3025.020113 | Q58: -3025.020113 | R58: -3025.020113
A59: Depn Capex 2017 | O59: =O$14/$B$14/2 -> -1956.70771 | P59: =O59*2 -> -3913.415419 | Q59: -3913.415419 | R59: -3913.415419
A60: Depn Capex 2018 | P60: =P$14/$B$14/2 -> 9691.757366 | Q60: =P60*2 -> 19383.51473 | R60: 19383.51473
A61: Depn Capex 2019 | Q61: =Q$14/$B$14/2 -> 11457.10976 | R61: =Q61*2 -> 22914.21951
A62: Depn Capex 2020 | R62: =R$14/$B$14/2 -> 13137.91353
A63: Total Depreciation | C63: =SUM(C46:C62) -> 392715.3231 | D63: 469035.3231 | E63: 493195.3231 | F63: 518435.3231 | G63: 552235.4652 | H63: 581309.0835 | I63: 605751.8745 | J63: 626406.4224 | K63: 648318.8856 | L63: 680803.4189 | M63: 734763.2358 | N63: =SUM(N46:N62) -> 766913.2396 | O63: 763444.0219 | P63: 771179.0715 | Q63: 792327.9387 | R63: 816922.9619
A65: =$A$16 -> Energy Efficient Lights
A66: =$A$17 -> Luminaires and Ballasts
A67: =A46 -> RAB 2001-04
A68: =A47 -> Depn Capex 2005
A69: =A48 -> Depn Capex 2006
A70: Depn Capex 2007
A71: Depn Capex 2008
A72: Depn Capex 2009 | G72: =G$17/$B$17/2 -> 6087.245356 | H72: =G72*2 -> 12174.49071 | I72: =H72 -> 12174.49071 | J72: =I72 -> 12174.49071 | K72: =J72 -> 12174.49071 | L72: =K72 -> 12174.49071 | M72: =L72 -> 12174.49071 | N72: =M72 -> 12174.49071 | O72: 12174.49071 | P72: 12174.49071 | Q72: 12174.49071 | R72: 12174.49071
A73: Depn Capex 2010 | H73: =H$17/$B$17/2 -> 5286.57414 | I73: =H73*2 -> 10573.14828 | J73: =I73 -> 10573.14828 | K73: =J73 -> 10573.14828 | L73: =K73 -> 10573.14828 | M73: =L73 -> 10573.14828 | N73: =M73 -> 10573.14828 | O73: 10573.14828 | P73: 10573.14828 | Q73: 10573.14828 | R73: 10573.14828
A74: Depn Capex 2011 | I74: =I$17/$B$17/2 -> 4275.630703 | J74: =I74*2 -> 8551.261405 | K74: =J74 -> 8551.261405 | L74: =K74 -> 8551.261405 | M74: =L74 -> 8551.261405 | N74: =M74 -> 8551.261405 | O74: 8551.261405 | P74: 8551.261405 | Q74: 8551.261405 | R74: 8551.261405
A75: Depn Capex 2012 | J75: =J$17/$B$17/2 -> 3804.584759 | K75: =J75*2 -> 7609.169518 | L75: =K75 -> 7609.169518 | M75: =L75 -> 7609.169518 | N75: =M75 -> 7609.169518 | O75: 7609.169518 | P75: 7609.169518 | Q75: 7609.169518 | R75: 7609.169518
A76: Depn Capex 2013 | K76: =K$17/$B$17/2 -> 4767.736688 | L76: =K76*2 -> 9535.473375 | M76: =L76 -> 9535.473375 | N76: =M76 -> 9535.473375 | O76: 9535.473375 | P76: 9535.473375 | Q76: 9535.473375 | R76: 9535.473375
A77: Depn Capex 2014 | L77: =L$17/$B$17/2 -> 7940.458576 | M77: =L77*2 -> 15880.91715 | N77: 15880.91715 | O77: =N77 -> 15880.91715 | P77: 15880.91715 | Q77: 15880.91715 | R77: 15880.91715
A78: Depn Capex 2015 | M78: =M$17/$B$17/2 -> 13169.03019 | N78: =M78*2 -> 26338.06037 | O78: =N78 -> 26338.06037 | P78: 26338.06037 | Q78: 26338.06037 | R78: 26338.06037
A79: Depn Capex 2016 | N79: =N$17/$B$17/2 -> 1469.067669 | O79: =N79*2 -> 2938.135339 | P79: =O79 -> 2938.135339 | Q79: 2938.135339 | R79: 2938.135339
A80: Depn Capex 2017 | O80: =O$17/$B$17/2 -> 1949.174732 | P80: =O80*2 -> 3898.349465 | Q80: 3898.349465 | R80: 3898.349465
A81: Depn Capex 2018 | P81: =P$17/$B$17/2 -> 2160.523648 | Q81: =P81*2 -> 4321.047296 | R81: 4321.047296
A82: Depn Capex 2019 | Q82: =Q$17/$B$17/2 -> 2379.684174 | R82: =Q82*2 -> 4759.368348
A83: Depn Capex 2020 | R83: =R$17/$B$17/2 -> 2604.935544
A84: Total Depreciation | C84: =SUM(C67:C83) -> 0 | D84: =SUM(D67:D83) -> 0 | E84: =SUM(E67:E83) -> 0 | F84: =SUM(F67:F83) -> 0 | G84: =SUM(G67:G83) -> 6087.245356 | H84: =SUM(H67:H83) -> 17461.06485 | I84: =SUM(I67:I83) -> 27023.26969 | J84: =SUM(J67:J83) -> 35103.48516 | K84: =SUM(K67:K83) -> 43675.8066 | L84: =SUM(L67:L83) -> 56384.00187 | M84: =SUM(M67:M83) -> 77493.49063 | N84: =SUM(N67:N83) -> 92131.58848 | O84: =SUM(O67:O83) -> 95549.83088 | P84: =SUM(P67:P83) -> 99659.52926 | Q84: =SUM(Q67:Q83) -> 104199.7371 | R84: =SUM(R67:R83) -> 109184.3568
A87: Nominal pre tax WACC | N87: =WACC!E$8 -> 0.08312874735 | O87: =WACC!F$8 -> 0.08312874735 | P87: =WACC!G$8 -> 0.08312874735 | Q87: =WACC!H$8 -> 0.08312874735 | R87: =WACC!I$8 -> 0.08312874735
A90: =$A$11 -> Poles and Brackets
A91: RAB | C91: =C$6 -> 2005 | D91: =D$6 -> 2006 | E91: 2007 | F91: 2008 | G91: 2009 | H91: 2010 | I91: 2011 | J91: 2012 | K91: 2013 | L91: 2014 | M91: 2015 | N91: 2016 | O91: 2017 | P91: 2018 | Q91: 2019 | R91: 2020
A92: Opening RAB | C92: ='RAB 2001 to 2004'!E113 -> 4361161.42 | D92: =C95 -> 4812153.585 | E92: 4832242.892 | F92: 4747280.771 | G92: 4771112.936 | H92: 4823320.777 | I92: 5704749.099 | J92: 6231675.879 | K92: 7684363.838 | L92: 9652379.353 | M92: 12305354.38 | N92: =M95 -> 16263107.69 | O92: =N95 -> 16526669.23 | P92: =O95 -> 16792151.91 | Q92: =P95 -> 17059454.64 | R92: =Q95 -> 17328676.26
A93: Additional Capex | C93: =C$11 -> 591600 | D93: 171600 | E93: 70000 | F93: 182400 | G93: 216473.8747 | H93: 1063986.649 | I93: 735187.596 | J93: 1695675.389 | K93: 2267621.471 | L93: 3028236.092 | M93: 4439699.161 | N93: 820655.321 | O93: 846391.4038 | P93: 872770.9239 | Q93: 900015.3269 | R93: 928182.2396
A94: Depreciation | C94: =C$42 -> 140607.8352 | D94: 151510.6924 | E94: 154962.1209 | F94: 158567.8352 | G94: 164266.0334 | H94: 182558.3266 | I94: 208260.8158 | J94: 242987.4299 | K94: 299605.9565 | L94: 375261.0645 | M94: 481945.8539 | N94: 557093.775 | O94: 580908.7282 | P94: 605468.1901 | Q94: 630793.7079 | R94: 656910.816
A95: Closing RAB | C95: =C92+C93-C94 -> 4812153.585 | D95: 4832242.892 | E95: 4747280.771 | F95: 4771112.936 | G95: 4823320.777 | H95: 5704749.099 | I95: 6231675.879 | J95: 7684363.838 | K95: 9652379.353 | L95: 12305354.38 | M95: 16263107.69 | N95: =N92+N93-N94 -> 16526669.23 | O95: 16792151.91 | P95: 17059454.64 | Q95: 17328676.26 | R95: 17599947.69
A96: Average RAB | C96: =SUM(C92,C95)/2 -> 4586657.502 | D96: 4822198.238 | E96: 4789761.832 | F96: 4759196.854 | G96: =SUM(G92,G95)/2 -> 4797216.857 | H96: 5264034.938 | I96: 5968212.489 | J96: 6958019.859 | K96: 8668371.596 | L96: 10978866.87 | M96: 14284231.03 | N96: 16394888.46 | O96: 16659410.57 | P96: 16925803.28 | Q96: 17194065.45 | R96: 17464311.97
A98: Total Value to be recovered by change in unit rates | N98: =N$6 -> 2016 | O98: 2017 | P98: 2018 | Q98: 2019 | R98: 2020
A99: Depreciation | N99: =N94 -> 557093.775 | O99: =O94 -> 580908.7282 | P99: =P94 -> 605468.1901 | Q99: =Q94 -> 630793.7079 | R99: =R94 -> 656910.816
A100: ROA | N100: =N$87*N96 -> 1362886.541 | O100: =O$87*O96 -> 1384875.932 | P100: 1407020.824 | Q100: 1429321.123 | R100: 1451786.378
N101: =SUM(N99:N100) -> 1919980.316 | O101: 1965784.661 | P101: 2012489.014 | Q101: 2060114.831 | R101: 2108697.194
A104: =$A$13 -> Existing Lights
A105: =$A$14 -> Luminaires
A106: RAB | C106: =$C$6 -> 2005 | D106: =$D$6 -> 2006 | E106: =$E$6 -> 2007 | F106: =$F$6 -> 2008 | G106: =G$6 -> 2009 | H106: =H$6 -> 2010 | I106: 2011 | J106: 2012 | K106: 2013 | L106: 2014 | M106: 2015 | N106: 2016 | O106: 2017 | P106: 2018 | Q106: 2019 | R106: 2020
A107: Opening RAB | C107: ='RAB 2001 to 2004'!E77 -> 6003995.816 | D107: =C110 -> 7977680.493 | E107: 8195045.17 | F107: 7981849.847 | G107: 8193014.523 | H107: 8263184.743 | I107: 8222414.705 | J107: 8053835.426 | K107: 7816438.325 | L107: 7655608.647 | M107: 7786697.351 | N107: =M110 -> 8398434.669 | O107: =N110 -> 7571021.028 | P107: =O110 -> 6729308.697 | Q107: =P110 -> 6345799.92 | R107: =Q110 -> 6011756.372
A108: Additional Capex | C108: =C$14 -> 2366400 | D108: 686400 | E108: 280000 | F108: 729600 | G108: 622405.6845 | H108: 540539.0458 | I108: 437172.5959 | J108: 389009.3207 | K108: 487489.2078 | L108: 811892.1229 | M108: 1346500.554 | N108: -60500.40226 | O108: -78268.30838 | P108: 387670.2946 | Q108: 458284.3902 | R108: 525516.541
A109: Depreciation | C109: =C$63 -> 392715.3231 | D109: 469035.3231 | E109: 493195.3231 | F109: 518435.3231 | G109: 552235.4652 | H109: 581309.0835 | I109: 605751.8745 | J109: 626406.4224 | K109: 648318.8856 | L109: 680803.4189 | M109: 734763.2358 | N109: =N$63 -> 766913.2396 | O109: 763444.0219 | P109: 771179.0715 | Q109: 792327.9387 | R109: 816922.9619
A110: Closing RAB | C110: =C107+C108-C109 -> 7977680.493 | D110: 8195045.17 | E110: 7981849.847 | F110: 8193014.523 | G110: 8263184.743 | H110: 8222414.705 | I110: 8053835.426 | J110: 7816438.325 | K110: 7655608.647 | L110: 7786697.351 | M110: 8398434.669 | N110: =N107+N108-N109 -> 7571021.028 | O110: 6729308.697 | P110: 6345799.92 | Q110: 6011756.372 | R110: 5720349.951
A111: Average RAB | C111: =SUM(C107,C110)/2 -> 6990838.154 | D111: =SUM(D107,D110)/2 -> 8086362.831 | E111: =SUM(E107,E110)/2 -> 8088447.508 | F111: =SUM(F107,F110)/2 -> 8087432.185 | G111: =SUM(G107,G110)/2 -> 8228099.633 | H111: 8242799.724 | I111: 8138125.066 | J111: 7935136.876 | K111: 7736023.486 | L111: 7721152.999 | M111: 8092566.01 | N111: 7984727.849 | O111: 7150164.862 | P111: 6537554.309 | Q111: 6178778.146 | R111: 5866053.162
A113: Total Value to be recovered by change in unit rates | N113: =N$6 -> 2016 | O113: 2017 | P113: 2018 | Q113: 2019 | R113: 2020
A114: Depreciation | N114: =N109 -> 766913.2396 | O114: =O109 -> 763444.0219 | P114: =P109 -> 771179.0715 | Q114: =Q109 -> 792327.9387 | R114: =R109 -> 816922.9619
A115: ROA | N115: =N$87*N111 -> 663760.424 | O115: =O$87*O111 -> 594384.2484 | P115: 543458.7005 | Q115: 513634.0875 | R115: 487637.6512
N116: =SUM(N114:N115) -> 1430673.664 | O116: 1357828.27 | P116: 1314637.772 | Q116: 1305962.026 | R116: 1304560.613
A119: =$A$16 -> Energy Efficient Lights
A120: =$A$17 -> Luminaires and Ballasts
A121: RAB | C121: =$C$6 -> 2005 | D121: =$D$6 -> 2006 | E121: =$E$6 -> 2007 | F121: =$F$6 -> 2008 | G121: =G$6 -> 2009 | H121: =H$6 -> 2010 | I121: 2011 | J121: 2012 | K121: 2013 | L121: 2014 | M121: 2015 | N121: 2016 | O121: 2017 | P121: 2018 | Q121: 2019 | R121: 2020
A122: Opening RAB | C122: 0 | D122: =C125 -> 0 | E122: 0 | F122: 0 | G122: 0 | H122: 237402.5689 | I122: 431404.4696 | J122: 575406.4281 | K122: 692486.3333 | L122: 839519.9942 | M122: 1100754.335 | N122: =M125 -> 1550022.052 | O122: =N125 -> 1516653.17 | P122: =O125 -> 1499070.329 | Q122: =P125 -> 1485831.745 | R122: =Q125 -> 1476819.375
A123: Additional Capex | C123: =C$17 -> 0 | D123: 0 | E123: 0 | F123: 0 | G123: 243489.8142 | H123: 211462.9656 | I123: 171025.2281 | J123: 152183.3904 | K123: 190709.4675 | L123: 317618.343 | M123: 526761.2074 | N123: 58762.70677 | O123: 77966.98929 | P123: 86420.94593 | Q123: 95187.36695 | R123: 104197.4218
A124: Depreciation | C124: =C$84 -> 0 | D124: 0 | E124: 0 | F124: 0 | G124: 6087.245356 | H124: 17461.06485 | I124: 27023.26969 | J124: 35103.48516 | K124: 43675.8066 | L124: 56384.00187 | M124: 77493.49063 | N124: 92131.58848 | O124: 95549.83088 | P124: 99659.52926 | Q124: 104199.7371 | R124: 109184.3568
A125: Closing RAB | C125: =C122+C123-C124 -> 0 | D125: 0 | E125: 0 | F125: 0 | G125: 237402.5689 | H125: 431404.4696 | I125: 575406.4281 | J125: 692486.3333 | K125: 839519.9942 | L125: 1100754.335 | M125: 1550022.052 | N125: =N122+N123-N124 -> 1516653.17 | O125: 1499070.329 | P125: 1485831.745 | Q125: 1476819.375 | R125: 1471832.44
A126: Average RAB | C126: =SUM(C122,C125)/2 -> 0 | D126: 0 | E126: 0 | F126: 0 | G126: =SUM(G122,G125)/2 -> 118701.2844 | H126: 334403.5193 | I126: 503405.4488 | J126: 633946.3807 | K126: 766003.1637 | L126: 970137.1647 | M126: 1325388.194 | N126: 1533337.611 | O126: 1507861.75 | P126: 1492451.037 | Q126: 1481325.56 | R126: 1474325.908
A128: Total Value to be recovered by change in unit rates | N128: =N$6 -> 2016 | O128: 2017 | P128: 2018 | Q128: 2019 | R128: 2020
A129: Depreciation | N129: =N124 -> 92131.58848 | O129: =O124 -> 95549.83088 | P129: =P124 -> 99659.52926 | Q129: =Q124 -> 104199.7371 | R129: =R124 -> 109184.3568
A130: ROA | N130: =N$87*N126 -> 127464.4349 | O130: =O$87*O126 -> 125346.6584 | P130: 124065.5852 | Q130: 123140.7383 | R130: 122558.8659
N131: =SUM(N129:N130) -> 219596.0234 | O131: 220896.4893 | P131: 223725.1145 | Q131: 227340.4753 | R131: 231743.2227
A135: Total Public Lighting RAB
A136: Historical cost ($)
A138: RAB | C138: =C$6 -> 2005 | D138: =D$6 -> 2006 | E138: =E$6 -> 2007 | F138: 2008 | G138: 2009 | H138: 2010 | I138: 2011 | J138: 2012 | K138: 2013 | L138: 2014 | M138: 2015 | N138: 2016 | O138: 2017 | P138: 2018 | Q138: 2019 | R138: 2020
A139: Opening RAB | C139: =SUM(C92,C107,C122) -> 10365157.24 | D139: =C142 -> 12789834.08 | E139: =D142 -> 13027288.06 | F139: 12729130.62 | G139: 12964127.46 | H139: 13323908.09 | I139: 14358568.27 | J139: 14860917.73 | K139: 16193288.5 | L139: 18147507.99 | M139: 21192806.07 | N139: 26211564.41 | O139: 25614343.43 | P139: 25020530.94 | Q139: 24891086.31 | R139: 24817252.01
A140: Capex | C140: =SUM(C93,C108,C123) -> 2958000 | D140: =SUM(D93,D108,D123) -> 858000 | E140: 350000 | F140: 912000 | G140: 1082369.373 | H140: 1815988.66 | I140: 1343385.42 | J140: 2236868.1 | K140: 2945820.147 | L140: 4157746.558 | M140: 6312960.923 | N140: =SUM(N93,N108,N123) -> 818917.6255 | O140: 846090.0847 | P140: 1346862.165 | Q140: 1453487.084 | R140: 1557896.202
A141: Depreciation | C141: =SUM(C94,C109,C124) -> 533323.1583 | D141: =SUM(D94,D109,D124) -> 620546.0155 | E141: 648157.444 | F141: 677003.1583 | G141: 722588.744 | H141: 781328.475 | I141: 841035.96 | J141: 904497.3375 | K141: 991600.6487 | L141: 1112448.485 | M141: 1294202.58 | N141: =SUM(N94,N109,N124) -> 1416138.603 | O141: 1439902.581 | P141: 1476306.791 | Q141: 1527321.384 | R141: 1583018.135
A142: Closing RAB | C142: =C139+C140-C141 -> 12789834.08 | D142: =D139+D140-D141 -> 13027288.06 | E142: =E139+E140-E141 -> 12729130.62 | F142: 12964127.46 | G142: 13323908.09 | H142: 14358568.27 | I142: 14860917.73 | J142: 16193288.5 | K142: 18147507.99 | L142: 21192806.07 | M142: 26211564.41 | N142: 25614343.43 | O142: 25020530.94 | P142: 24891086.31 | Q142: 24817252.01 | R142: 24792130.08
A143: Average RAB | C143: =SUM(C139,C142)/2 -> 11577495.66 | D143: =SUM(D139,D142)/2 -> 12908561.07 | E143: =SUM(E139,E142)/2 -> 12878209.34 | F143: 12846629.04 | G143: 13144017.77 | H143: 13841238.18 | I143: 14609743 | J143: 15527103.12 | K143: 17170398.25 | L143: 19670157.03 | M143: 23702185.24 | N143: 25912953.92 | O143: 25317437.18 | P143: 24955808.62 | Q143: 24854169.16 | R143: 24804691.04
A144: Check | B144: =SUM(C144:R144) -> 7.636845112e-08 | C144: =ABS(C142-SUM(C95,C110,C125)) -> 0 | D144: 0 | E144: 0 | F144: 0 | G144: 0 | H144: 1.862645149e-09 | I144: 5.587935448e-09 | J144: 1.862645149e-09 | K144: 0 | L144: 3.725290298e-09 | M144: 7.450580597e-09 | N144: 7.450580597e-09 | O144: 3.725290298e-09 | P144: 1.11758709e-08 | Q144: 1.862645149e-08 | R144: 1.490116119e-08
A147: Depreciation Useful Lives for RAB RIN
A149: Table 3.3.4.1 - Asset Lives – estimated service life of new assets
A150: “Other” assets with long lives | M150: =ROUND( M11/SUM(M$11,M$14,M$17)*$B11 + M14/SUM(M$11,M$14,M$17)*$B14 + M17/SUM(M$11,M$14,M$17)*$B17, 1) -> 30.5 | N150: Applied for periods 2016-2020
A152: Table 3.3.4.2 - Asset Lives – estimated residual service life
A153: “Other” assets with long lives | M153: =ROUND(M139/M141,1) -> 16.4 | N153: =ROUND(N139/N141,1) -> 18.5 | O153: 17.8 | P153: 16.9 | Q153: 16.3 | R153: 15.7

Sheet PL Tariffs
A1: ='DNSP Inputs O & M'!$A$3 -> Powercor | E1: Global Check | F1: =IF(SUM('Total RAB'!F1,'Depn & WACC Post 2004'!F1,'Cashflow Summary'!F1)<1,"Ok","Error") -> Ok
A3: Public Lighting Tariffs | C3: Nominal Prices | J3: Nominal Price Movement | P3: Real Price Movement (Implied X Factor)
C4: Actual
A5: ='DNSP Inputs General'!A$40 -> Existing Lights | C5: ='DNSP Inputs General'!J$2 -> 2015 | D5: ='DNSP Inputs General'!K$2 -> 2016 | E5: ='DNSP Inputs General'!L$2 -> 2017 | F5: ='DNSP Inputs General'!M$2 -> 2018 | G5: ='DNSP Inputs General'!N$2 -> 2019 | H5: ='DNSP Inputs General'!O$2 -> 2020 | J5: =D5 -> 2016 | K5: =E5 -> 2017 | L5: 2018 | M5: 2019 | N5: 2020 | P5: =J5 -> 2016 | Q5: =K5 -> 2017 | R5: 2018 | S5: 2019 | T5: 2020
A6: ='DNSP Inputs General'!A41 -> Mercury vapour 80 watt | C6: ='DNSP Inputs General'!E41 -> 53.01279618 | D6: ='Charges Summary'!D$31 -> 59.19456644 | E6: ='Charges Summary'!E$31 -> 60.92763908 | F6: ='Charges Summary'!F$31 -> 62.59991943 | G6: ='Charges Summary'!G$31 -> 64.54482218 | H6: ='Charges Summary'!H$31 -> 66.49933991 | J6: =IF(C6=0,"",D6/C6-1) -> 0.1166090209 | K6: =IF(D6=0,"",E6/D6-1) -> 0.02927756288 | L6: =IF(E6=0,"",F6/E6-1) -> 0.02744699084 | M6: =IF(F6=0,"",G6/F6-1) -> 0.03106877404 | N6: =IF(G6=0,"",H6/G6-1) -> 0.0302815573 | P6: =IF(C6=0,"",(D6/'Charges Summary'!D$4)/C6-1) -> 0.08831288592 | Q6: =IF(D6=0,"",(E6/'Charges Summary'!E$4)/(D6/'Charges Summary'!D$4)-1) -> 0.003194505726 | R6: =IF(E6=0,"",(F6/'Charges Summary'!F$4)/(E6/'Charges Summary'!E$4)-1) -> 0.001410322458 | S6: =IF(F6=0,"",(G6/'Charges Summary'!G$4)/(F6/'Charges Summary'!F$4)-1) -> 0.004940325577 | T6: =IF(G6=0,"",(H6/'Charges Summary'!H$4)/(G6/'Charges Summary'!G$4)-1) -> 0.004173057795
A7: ='DNSP Inputs General'!A42 -> Sodium high pressure 150 watt | C7: ='DNSP Inputs General'!E42 -> 87.39393168 | D7: ='Charges Summary'!D$55 -> 109.4544469 | E7: ='Charges Summary'!E$55 -> 113.0564204 | F7: ='Charges Summary'!F$55 -> 116.7343848 | G7: ='Charges Summary'!G$55 -> 120.748341 | H7: ='Charges Summary'!H$55 -> 124.8365157 | J7: 0.2524261675 | K7: 0.0329084257 | L7: 0.03253211433 | M7: 0.03438537941 | N7: 0.03385698444 | P7: =IF(C7=0,"",(D7/'Charges Summary'!D$4)/C7-1) -> 0.2206882724 | Q7: =IF(D7=0,"",(E7/'Charges Summary'!E$4)/(D7/'Charges Summary'!D$4)-1) -> 0.006733358385 | R7: =IF(E7=0,"",(F7/'Charges Summary'!F$4)/(E7/'Charges Summary'!E$4)-1) -> 0.006366583164 | S7: =IF(F7=0,"",(G7/'Charges Summary'!G$4)/(F7/'Charges Summary'!F$4)-1) -> 0.008172884414 | T7: =IF(G7=0,"",(H7/'Charges Summary'!H$4)/(G7/'Charges Summary'!G$4)-1) -> 0.007657879571
A8: ='DNSP Inputs General'!A43 -> Sodium high pressure 250 watt | C8: ='DNSP Inputs General'!E43 -> 90.26732099 | D8: ='Charges Summary'!D$71 -> 110.6668348 | E8: ='Charges Summary'!E$71 -> 114.3137145 | F8: ='Charges Summary'!F$71 -> 117.9879318 | G8: ='Charges Summary'!G$71 -> 122.0245215 | H8: ='Charges Summary'!H$71 -> 126.2628104 | J8: 0.2259900216 | K8: 0.03295368216 | L8: 0.03214152639 | M8: 0.03421188679 | N8: 0.03473309159 | P8: =IF(C8=0,"",(D8/'Charges Summary'!D$4)/C8-1) -> 0.1949220483 | Q8: =IF(D8=0,"",(E8/'Charges Summary'!E$4)/(D8/'Charges Summary'!D$4)-1) -> 0.006777467995 | R8: =IF(E8=0,"",(F8/'Charges Summary'!F$4)/(E8/'Charges Summary'!E$4)-1) -> 0.005985893169 | S8: =IF(F8=0,"",(G8/'Charges Summary'!G$4)/(F8/'Charges Summary'!F$4)-1) -> 0.00800378829 | T8: =IF(G8=0,"",(H8/'Charges Summary'!H$4)/(G8/'Charges Summary'!G$4)-1) -> 0.00851178518
A9: ='DNSP Inputs General'!A44 -> Flourescent 20 watt | C9: ='DNSP Inputs General'!E44 -> 147.3755734 | D9: =IF('DNSP Inputs General'!$B44='DNSP Inputs General'!$A$41,D$6,IF('DNSP Inputs General'!$B44='DNSP Inputs General'!$A$42,D$7,D$8))*'DNSP Inputs General'!$D44 -> 125.4924809 | E9: =IF('DNSP Inputs General'!$B44='DNSP Inputs General'!$A$41,E$6,IF('DNSP Inputs General'!$B44='DNSP Inputs General'!$A$42,E$7,E$8))*'DNSP Inputs General'!$D44 -> 129.1665948 | F9: =IF('DNSP Inputs General'!$B44='DNSP Inputs General'!$A$41,F$6,IF('DNSP Inputs General'!$B44='DNSP Inputs General'!$A$42,F$7,F$8))*'DNSP Inputs General'!$D44 -> 132.7118292 | G9: =IF('DNSP Inputs General'!$B44='DNSP Inputs General'!$A$41,G$6,IF('DNSP Inputs General'!$B44='DNSP Inputs General'!$A$42,G$7,G$8))*'DNSP Inputs General'!$D44 -> 136.835023 | H9: =IF('DNSP Inputs General'!$B44='DNSP Inputs General'!$A$41,H$6,IF('DNSP Inputs General'!$B44='DNSP Inputs General'!$A$42,H$7,H$8))*'DNSP Inputs General'!$D44 -> 140.9786006 | J9: -0.148485207 | K9: 0.02927756288 | L9: 0.02744699084 | M9: 0.03106877404 | N9: 0.0302815573 | P9: =IF(C9=0,"",(D9/'Charges Summary'!D$4)/C9-1) -> -0.1700635546 | Q9: =IF(D9=0,"",(E9/'Charges Summary'!E$4)/(D9/'Charges Summary'!D$4)-1) -> 0.003194505726 | R9: =IF(E9=0,"",(F9/'Charges Summary'!F$4)/(E9/'Charges Summary'!E$4)-1) -> 0.001410322458 | S9: =IF(F9=0,"",(G9/'Charges Summary'!G$4)/(F9/'Charges Summary'!F$4)-1) -> 0.004940325577 | T9: =IF(G9=0,"",(H9/'Charges Summary'!H$4)/(G9/'Charges Summary'!G$4)-1) -> 0.004173057795
A10: ='DNSP Inputs General'!A45 -> Flourescent 40 watt | C10: ='DNSP Inputs General'!E45 -> 147.3755734 | D10: =IF('DNSP Inputs General'!$B45='DNSP Inputs General'!$A$41,D$6,IF('DNSP Inputs General'!$B45='DNSP Inputs General'!$A$42,D$7,D$8))*'DNSP Inputs General'!$D45 -> 125.4924809 | E10: =IF('DNSP Inputs General'!$B45='DNSP Inputs General'!$A$41,E$6,IF('DNSP Inputs General'!$B45='DNSP Inputs General'!$A$42,E$7,E$8))*'DNSP Inputs General'!$D45 -> 129.1665948 | F10: =IF('DNSP Inputs General'!$B45='DNSP Inputs General'!$A$41,F$6,IF('DNSP Inputs General'!$B45='DNSP Inputs General'!$A$42,F$7,F$8))*'DNSP Inputs General'!$D45 -> 132.7118292 | G10: =IF('DNSP Inputs General'!$B45='DNSP Inputs General'!$A$41,G$6,IF('DNSP Inputs General'!$B45='DNSP Inputs General'!$A$42,G$7,G$8))*'DNSP Inputs General'!$D45 -> 136.835023 | H10: =IF('DNSP Inputs General'!$B45='DNSP Inputs General'!$A$41,H$6,IF('DNSP Inputs General'!$B45='DNSP Inputs General'!$A$42,H$7,H$8))*'DNSP Inputs General'!$D45 -> 140.9786006 | J10: -0.148485207 | K10: 0.02927756288 | L10: 0.02744699084 | M10: 0.03106877404 | N10: 0.0302815573 | P10: =IF(C10=0,"",(D10/'Charges Summary'!D$4)/C10-1) -> -0.1700635546 | Q10: =IF(D10=0,"",(E10/'Charges Summary'!E$4)/(D10/'Charges Summary'!D$4)-1) -> 0.003194505726 | R10: =IF(E10=0,"",(F10/'Charges Summary'!F$4)/(E10/'Charges Summary'!E$4)-1) -> 0.001410322458 | S10: =IF(F10=0,"",(G10/'Charges Summary'!G$4)/(F10/'Charges Summary'!F$4)-1) -> 0.004940325577 | T10: =IF(G10=0,"",(H10/'Charges Summary'!H$4)/(G10/'Charges Summary'!G$4)-1) -> 0.004173057795
A11: ='DNSP Inputs General'!A46 -> Mercury vapour 50 watt | C11: ='DNSP Inputs General'!E46 -> 73.68778669 | D11: =IF('DNSP Inputs General'!$B46='DNSP Inputs General'!$A$41,D$6,IF('DNSP Inputs General'!$B46='DNSP Inputs General'!$A$42,D$7,D$8))*'DNSP Inputs General'!$D46 -> 82.28044735 | E11: =IF('DNSP Inputs General'!$B46='DNSP Inputs General'!$A$41,E$6,IF('DNSP Inputs General'!$B46='DNSP Inputs General'!$A$42,E$7,E$8))*'DNSP Inputs General'!$D46 -> 84.68941832 | F11: =IF('DNSP Inputs General'!$B46='DNSP Inputs General'!$A$41,F$6,IF('DNSP Inputs General'!$B46='DNSP Inputs General'!$A$42,F$7,F$8))*'DNSP Inputs General'!$D46 -> 87.01388801 | G11: =IF('DNSP Inputs General'!$B46='DNSP Inputs General'!$A$41,G$6,IF('DNSP Inputs General'!$B46='DNSP Inputs General'!$A$42,G$7,G$8))*'DNSP Inputs General'!$D46 -> 89.71730284 | H11: =IF('DNSP Inputs General'!$B46='DNSP Inputs General'!$A$41,H$6,IF('DNSP Inputs General'!$B46='DNSP Inputs General'!$A$42,H$7,H$8))*'DNSP Inputs General'!$D46 -> 92.43408248 | J11: 0.1166090209 | K11: 0.02927756288 | L11: 0.02744699084 | M11: 0.03106877404 | N11: 0.0302815573 | P11: =IF(C11=0,"",(D11/'Charges Summary'!D$4)/C11-1) -> 0.08831288592 | Q11: =IF(D11=0,"",(E11/'Charges Summary'!E$4)/(D11/'Charges Summary'!D$4)-1) -> 0.003194505726 | R11: =IF(E11=0,"",(F11/'Charges Summary'!F$4)/(E11/'Charges Summary'!E$4)-1) -> 0.001410322458 | S11: =IF(F11=0,"",(G11/'Charges Summary'!G$4)/(F11/'Charges Summary'!F$4)-1) -> 0.004940325577 | T11: =IF(G11=0,"",(H11/'Charges Summary'!H$4)/(G11/'Charges Summary'!G$4)-1) -> 0.004173057795
A12: ='DNSP Inputs General'!A47 -> Mercury vapour 125 watt | C12: ='DNSP Inputs General'!E47 -> 71.56727484 | D12: =IF('DNSP Inputs General'!$B47='DNSP Inputs General'!$A$41,D$6,IF('DNSP Inputs General'!$B47='DNSP Inputs General'!$A$42,D$7,D$8))*'DNSP Inputs General'!$D47 -> 79.91266469 | E12: =IF('DNSP Inputs General'!$B47='DNSP Inputs General'!$A$41,E$6,IF('DNSP Inputs General'!$B47='DNSP Inputs General'!$A$42,E$7,E$8))*'DNSP Inputs General'!$D47 -> 82.25231276 | F12: =IF('DNSP Inputs General'!$B47='DNSP Inputs General'!$A$41,F$6,IF('DNSP Inputs General'!$B47='DNSP Inputs General'!$A$42,F$7,F$8))*'DNSP Inputs General'!$D47 -> 84.50989123 | G12: =IF('DNSP Inputs General'!$B47='DNSP Inputs General'!$A$41,G$6,IF('DNSP Inputs General'!$B47='DNSP Inputs General'!$A$42,G$7,G$8))*'DNSP Inputs General'!$D47 -> 87.13550995 | H12: =IF('DNSP Inputs General'!$B47='DNSP Inputs General'!$A$41,H$6,IF('DNSP Inputs General'!$B47='DNSP Inputs General'!$A$42,H$7,H$8))*'DNSP Inputs General'!$D47 -> 89.77410888 | J12: 0.1166090209 | K12: 0.02927756288 | L12: 0.02744699084 | M12: 0.03106877404 | N12: 0.0302815573 | P12: =IF(C12=0,"",(D12/'Charges Summary'!D$4)/C12-1) -> 0.08831288592 | Q12: =IF(D12=0,"",(E12/'Charges Summary'!E$4)/(D12/'Charges Summary'!D$4)-1) -> 0.003194505726 | R12: =IF(E12=0,"",(F12/'Charges Summary'!F$4)/(E12/'Charges Summary'!E$4)-1) -> 0.001410322458 | S12: =IF(F12=0,"",(G12/'Charges Summary'!G$4)/(F12/'Charges Summary'!F$4)-1) -> 0.004940325577 | T12: =IF(G12=0,"",(H12/'Charges Summary'!H$4)/(G12/'Charges Summary'!G$4)-1) -> 0.004173057795
A13: ='DNSP Inputs General'!A48 -> Mercury vapour 250 watt | C13: ='DNSP Inputs General'!E48 -> 68.60316396 | D13: =IF('DNSP Inputs General'!$B48='DNSP Inputs General'!$A$41,D$6,IF('DNSP Inputs General'!$B48='DNSP Inputs General'!$A$42,D$7,D$8))*'DNSP Inputs General'!$D48 -> 84.10679446 | E13: =IF('DNSP Inputs General'!$B48='DNSP Inputs General'!$A$41,E$6,IF('DNSP Inputs General'!$B48='DNSP Inputs General'!$A$42,E$7,E$8))*'DNSP Inputs General'!$D48 -> 86.87842303 | F13: =IF('DNSP Inputs General'!$B48='DNSP Inputs General'!$A$41,F$6,IF('DNSP Inputs General'!$B48='DNSP Inputs General'!$A$42,F$7,F$8))*'DNSP Inputs General'!$D48 -> 89.67082816 | G13: =IF('DNSP Inputs General'!$B48='DNSP Inputs General'!$A$41,G$6,IF('DNSP Inputs General'!$B48='DNSP Inputs General'!$A$42,G$7,G$8))*'DNSP Inputs General'!$D48 -> 92.73863638 | H13: =IF('DNSP Inputs General'!$B48='DNSP Inputs General'!$A$41,H$6,IF('DNSP Inputs General'!$B48='DNSP Inputs General'!$A$42,H$7,H$8))*'DNSP Inputs General'!$D48 -> 95.95973593 | J13: 0.2259900216 | K13: 0.03295368216 | L13: 0.03214152639 | M13: 0.03421188679 | N13: 0.03473309159 | P13: =IF(C13=0,"",(D13/'Charges Summary'!D$4)/C13-1) -> 0.1949220483 | Q13: =IF(D13=0,"",(E13/'Charges Summary'!E$4)/(D13/'Charges Summary'!D$4)-1) -> 0.006777467995 | R13: =IF(E13=0,"",(F13/'Charges Summary'!F$4)/(E13/'Charges Summary'!E$4)-1) -> 0.005985893169 | S13: =IF(F13=0,"",(G13/'Charges Summary'!G$4)/(F13/'Charges Summary'!F$4)-1) -> 0.00800378829 | T13: =IF(G13=0,"",(H13/'Charges Summary'!H$4)/(G13/'Charges Summary'!G$4)-1) -> 0.00851178518
A14: ='DNSP Inputs General'!A49 -> Mercury vapour 400 watt | C14: ='DNSP Inputs General'!E49 -> 79.43524248 | D14: =IF('DNSP Inputs General'!$B49='DNSP Inputs General'!$A$41,D$6,IF('DNSP Inputs General'!$B49='DNSP Inputs General'!$A$42,D$7,D$8))*'DNSP Inputs General'!$D49 -> 97.38681463 | E14: =IF('DNSP Inputs General'!$B49='DNSP Inputs General'!$A$41,E$6,IF('DNSP Inputs General'!$B49='DNSP Inputs General'!$A$42,E$7,E$8))*'DNSP Inputs General'!$D49 -> 100.5960688 | F14: =IF('DNSP Inputs General'!$B49='DNSP Inputs General'!$A$41,F$6,IF('DNSP Inputs General'!$B49='DNSP Inputs General'!$A$42,F$7,F$8))*'DNSP Inputs General'!$D49 -> 103.82938 | G14: =IF('DNSP Inputs General'!$B49='DNSP Inputs General'!$A$41,G$6,IF('DNSP Inputs General'!$B49='DNSP Inputs General'!$A$42,G$7,G$8))*'DNSP Inputs General'!$D49 -> 107.381579 | H14: =IF('DNSP Inputs General'!$B49='DNSP Inputs General'!$A$41,H$6,IF('DNSP Inputs General'!$B49='DNSP Inputs General'!$A$42,H$7,H$8))*'DNSP Inputs General'!$D49 -> 111.1112732 | J14: 0.2259900216 | K14: 0.03295368216 | L14: 0.03214152639 | M14: 0.03421188679 | N14: 0.03473309159 | P14: =IF(C14=0,"",(D14/'Charges Summary'!D$4)/C14-1) -> 0.1949220483 | Q14: =IF(D14=0,"",(E14/'Charges Summary'!E$4)/(D14/'Charges Summary'!D$4)-1) -> 0.006777467995 | R14: =IF(E14=0,"",(F14/'Charges Summary'!F$4)/(E14/'Charges Summary'!E$4)-1) -> 0.005985893169 | S14: =IF(F14=0,"",(G14/'Charges Summary'!G$4)/(F14/'Charges Summary'!F$4)-1) -> 0.00800378829 | T14: =IF(G14=0,"",(H14/'Charges Summary'!H$4)/(G14/'Charges Summary'!G$4)-1) -> 0.00851178518
A15: ='DNSP Inputs General'!A50 -> Mercury vapour 700 watt | C15: ='DNSP Inputs General'!E50 -> 120.0555369 | D15: =IF('DNSP Inputs General'!$B50='DNSP Inputs General'!$A$41,D$6,IF('DNSP Inputs General'!$B50='DNSP Inputs General'!$A$42,D$7,D$8))*'DNSP Inputs General'!$D50 -> 147.1868903 | E15: =IF('DNSP Inputs General'!$B50='DNSP Inputs General'!$A$41,E$6,IF('DNSP Inputs General'!$B50='DNSP Inputs General'!$A$42,E$7,E$8))*'DNSP Inputs General'!$D50 -> 152.0372403 | F15: =IF('DNSP Inputs General'!$B50='DNSP Inputs General'!$A$41,F$6,IF('DNSP Inputs General'!$B50='DNSP Inputs General'!$A$42,F$7,F$8))*'DNSP Inputs General'!$D50 -> 156.9239493 | G15: =IF('DNSP Inputs General'!$B50='DNSP Inputs General'!$A$41,G$6,IF('DNSP Inputs General'!$B50='DNSP Inputs General'!$A$42,G$7,G$8))*'DNSP Inputs General'!$D50 -> 162.2926137 | H15: =IF('DNSP Inputs General'!$B50='DNSP Inputs General'!$A$41,H$6,IF('DNSP Inputs General'!$B50='DNSP Inputs General'!$A$42,H$7,H$8))*'DNSP Inputs General'!$D50 -> 167.9295379 | J15: 0.2259900216 | K15: 0.03295368216 | L15: 0.03214152639 | M15: 0.03421188679 | N15: 0.03473309159 | P15: =IF(C15=0,"",(D15/'Charges Summary'!D$4)/C15-1) -> 0.1949220483 | Q15: =IF(D15=0,"",(E15/'Charges Summary'!E$4)/(D15/'Charges Summary'!D$4)-1) -> 0.006777467995 | R15: =IF(E15=0,"",(F15/'Charges Summary'!F$4)/(E15/'Charges Summary'!E$4)-1) -> 0.005985893169 | S15: =IF(F15=0,"",(G15/'Charges Summary'!G$4)/(F15/'Charges Summary'!F$4)-1) -> 0.00800378829 | T15: =IF(G15=0,"",(H15/'Charges Summary'!H$4)/(G15/'Charges Summary'!G$4)-1) -> 0.00851178518
A16: ='DNSP Inputs General'!A51 -> Sodium low pressure 90 watt | C16: ='DNSP Inputs General'!E51 -> 117.9818078 | D16: =IF('DNSP Inputs General'!$B51='DNSP Inputs General'!$A$41,D$6,IF('DNSP Inputs General'!$B51='DNSP Inputs General'!$A$42,D$7,D$8))*'DNSP Inputs General'!$D51 -> 147.7635033 | E16: =IF('DNSP Inputs General'!$B51='DNSP Inputs General'!$A$41,E$6,IF('DNSP Inputs General'!$B51='DNSP Inputs General'!$A$42,E$7,E$8))*'DNSP Inputs General'!$D51 -> 152.6261676 | F16: =IF('DNSP Inputs General'!$B51='DNSP Inputs General'!$A$41,F$6,IF('DNSP Inputs General'!$B51='DNSP Inputs General'!$A$42,F$7,F$8))*'DNSP Inputs General'!$D51 -> 157.5914195 | G16: =IF('DNSP Inputs General'!$B51='DNSP Inputs General'!$A$41,G$6,IF('DNSP Inputs General'!$B51='DNSP Inputs General'!$A$42,G$7,G$8))*'DNSP Inputs General'!$D51 -> 163.0102603 | H16: =IF('DNSP Inputs General'!$B51='DNSP Inputs General'!$A$41,H$6,IF('DNSP Inputs General'!$B51='DNSP Inputs General'!$A$42,H$7,H$8))*'DNSP Inputs General'!$D51 -> 168.5292961 | J16: 0.2524261675 | K16: 0.0329084257 | L16: 0.03253211433 | M16: 0.03438537941 | N16: 0.03385698444 | P16: =IF(C16=0,"",(D16/'Charges Summary'!D$4)/C16-1) -> 0.2206882724 | Q16: =IF(D16=0,"",(E16/'Charges Summary'!E$4)/(D16/'Charges Summary'!D$4)-1) -> 0.006733358385 | R16: =IF(E16=0,"",(F16/'Charges Summary'!F$4)/(E16/'Charges Summary'!E$4)-1) -> 0.006366583164 | S16: =IF(F16=0,"",(G16/'Charges Summary'!G$4)/(F16/'Charges Summary'!F$4)-1) -> 0.008172884414 | T16: =IF(G16=0,"",(H16/'Charges Summary'!H$4)/(G16/'Charges Summary'!G$4)-1) -> 0.007657879571
A17: ='DNSP Inputs General'!A52 -> Sodium low pressure 180 watt | C17: ='DNSP Inputs General'!E52 -> 117.2832143 | D17: =IF('DNSP Inputs General'!$B52='DNSP Inputs General'!$A$41,D$6,IF('DNSP Inputs General'!$B52='DNSP Inputs General'!$A$42,D$7,D$8))*'DNSP Inputs General'!$D52 -> 147.7635033 | E17: =IF('DNSP Inputs General'!$B52='DNSP Inputs General'!$A$41,E$6,IF('DNSP Inputs General'!$B52='DNSP Inputs General'!$A$42,E$7,E$8))*'DNSP Inputs General'!$D52 -> 152.6261676 | F17: =IF('DNSP Inputs General'!$B52='DNSP Inputs General'!$A$41,F$6,IF('DNSP Inputs General'!$B52='DNSP Inputs General'!$A$42,F$7,F$8))*'DNSP Inputs General'!$D52 -> 157.5914195 | G17: =IF('DNSP Inputs General'!$B52='DNSP Inputs General'!$A$41,G$6,IF('DNSP Inputs General'!$B52='DNSP Inputs General'!$A$42,G$7,G$8))*'DNSP Inputs General'!$D52 -> 163.0102603 | H17: =IF('DNSP Inputs General'!$B52='DNSP Inputs General'!$A$41,H$6,IF('DNSP Inputs General'!$B52='DNSP Inputs General'!$A$42,H$7,H$8))*'DNSP Inputs General'!$D52 -> 168.5292961 | J17: 0.2598862007 | K17: 0.0329084257 | L17: 0.03253211433 | M17: 0.03438537941 | N17: 0.03385698444 | P17: =IF(C17=0,"",(D17/'Charges Summary'!D$4)/C17-1) -> 0.22795926 | Q17: =IF(D17=0,"",(E17/'Charges Summary'!E$4)/(D17/'Charges Summary'!D$4)-1) -> 0.006733358385 | R17: =IF(E17=0,"",(F17/'Charges Summary'!F$4)/(E17/'Charges Summary'!E$4)-1) -> 0.006366583164 | S17: =IF(F17=0,"",(G17/'Charges Summary'!G$4)/(F17/'Charges Summary'!F$4)-1) -> 0.008172884414 | T17: =IF(G17=0,"",(H17/'Charges Summary'!H$4)/(G17/'Charges Summary'!G$4)-1) -> 0.007657879571
A18: ='DNSP Inputs General'!A53 -> Sodium high pressure 400 watt | C18: ='DNSP Inputs General'!E53 -> 120.0555369 | D18: =IF('DNSP Inputs General'!$B53='DNSP Inputs General'!$A$41,D$6,IF('DNSP Inputs General'!$B53='DNSP Inputs General'!$A$42,D$7,D$8))*'DNSP Inputs General'!$D53 -> 147.1868903 | E18: =IF('DNSP Inputs General'!$B53='DNSP Inputs General'!$A$41,E$6,IF('DNSP Inputs General'!$B53='DNSP Inputs General'!$A$42,E$7,E$8))*'DNSP Inputs General'!$D53 -> 152.0372403 | F18: =IF('DNSP Inputs General'!$B53='DNSP Inputs General'!$A$41,F$6,IF('DNSP Inputs General'!$B53='DNSP Inputs General'!$A$42,F$7,F$8))*'DNSP Inputs General'!$D53 -> 156.9239493 | G18: =IF('DNSP Inputs General'!$B53='DNSP Inputs General'!$A$41,G$6,IF('DNSP Inputs General'!$B53='DNSP Inputs General'!$A$42,G$7,G$8))*'DNSP Inputs General'!$D53 -> 162.2926137 | H18: =IF('DNSP Inputs General'!$B53='DNSP Inputs General'!$A$41,H$6,IF('DNSP Inputs General'!$B53='DNSP Inputs General'!$A$42,H$7,H$8))*'DNSP Inputs General'!$D53 -> 167.9295379 | J18: 0.2259900216 | K18: 0.03295368216 | L18: 0.03214152639 | M18: 0.03421188679 | N18: 0.03473309159 | P18: =IF(C18=0,"",(D18/'Charges Summary'!D$4)/C18-1) -> 0.1949220483 | Q18: =IF(D18=0,"",(E18/'Charges Summary'!E$4)/(D18/'Charges Summary'!D$4)-1) -> 0.006777467995 | R18: =IF(E18=0,"",(F18/'Charges Summary'!F$4)/(E18/'Charges Summary'!E$4)-1) -> 0.005985893169 | S18: =IF(F18=0,"",(G18/'Charges Summary'!G$4)/(F18/'Charges Summary'!F$4)-1) -> 0.00800378829 | T18: =IF(G18=0,"",(H18/'Charges Summary'!H$4)/(G18/'Charges Summary'!G$4)-1) -> 0.00851178518
A19: ='DNSP Inputs General'!A54 -> Incandescent 100 watt | C19: ='DNSP Inputs General'!E54 -> 147.3755734 | D19: =IF('DNSP Inputs General'!$B54='DNSP Inputs General'!$A$41,D$6,IF('DNSP Inputs General'!$B54='DNSP Inputs General'!$A$42,D$7,D$8))*'DNSP Inputs General'!$D54 -> 164.5608947 | E19: =IF('DNSP Inputs General'!$B54='DNSP Inputs General'!$A$41,E$6,IF('DNSP Inputs General'!$B54='DNSP Inputs General'!$A$42,E$7,E$8))*'DNSP Inputs General'!$D54 -> 169.3788366 | F19: =IF('DNSP Inputs General'!$B54='DNSP Inputs General'!$A$41,F$6,IF('DNSP Inputs General'!$B54='DNSP Inputs General'!$A$42,F$7,F$8))*'DNSP Inputs General'!$D54 -> 174.027776 | G19: =IF('DNSP Inputs General'!$B54='DNSP Inputs General'!$A$41,G$6,IF('DNSP Inputs General'!$B54='DNSP Inputs General'!$A$42,G$7,G$8))*'DNSP Inputs General'!$D54 -> 179.4346057 | H19: =IF('DNSP Inputs General'!$B54='DNSP Inputs General'!$A$41,H$6,IF('DNSP Inputs General'!$B54='DNSP Inputs General'!$A$42,H$7,H$8))*'DNSP Inputs General'!$D54 -> 184.868165 | J19: 0.1166090209 | K19: 0.02927756288 | L19: 0.02744699084 | M19: 0.03106877404 | N19: 0.0302815573 | P19: =IF(C19=0,"",(D19/'Charges Summary'!D$4)/C19-1) -> 0.08831288592 | Q19: =IF(D19=0,"",(E19/'Charges Summary'!E$4)/(D19/'Charges Summary'!D$4)-1) -> 0.003194505726 | R19: =IF(E19=0,"",(F19/'Charges Summary'!F$4)/(E19/'Charges Summary'!E$4)-1) -> 0.001410322458 | S19: =IF(F19=0,"",(G19/'Charges Summary'!G$4)/(F19/'Charges Summary'!F$4)-1) -> 0.004940325577 | T19: =IF(G19=0,"",(H19/'Charges Summary'!H$4)/(G19/'Charges Summary'!G$4)-1) -> 0.004173057795
A20: ='DNSP Inputs General'!A55 -> Incandescent 150 watt | C20: ='DNSP Inputs General'!E55 -> 147.3755734 | D20: =IF('DNSP Inputs General'!$B55='DNSP Inputs General'!$A$41,D$6,IF('DNSP Inputs General'!$B55='DNSP Inputs General'!$A$42,D$7,D$8))*'DNSP Inputs General'!$D55 -> 164.5608947 | E20: =IF('DNSP Inputs General'!$B55='DNSP Inputs General'!$A$41,E$6,IF('DNSP Inputs General'!$B55='DNSP Inputs General'!$A$42,E$7,E$8))*'DNSP Inputs General'!$D55 -> 169.3788366 | F20: =IF('DNSP Inputs General'!$B55='DNSP Inputs General'!$A$41,F$6,IF('DNSP Inputs General'!$B55='DNSP Inputs General'!$A$42,F$7,F$8))*'DNSP Inputs General'!$D55 -> 174.027776 | G20: =IF('DNSP Inputs General'!$B55='DNSP Inputs General'!$A$41,G$6,IF('DNSP Inputs General'!$B55='DNSP Inputs General'!$A$42,G$7,G$8))*'DNSP Inputs General'!$D55 -> 179.4346057 | H20: =IF('DNSP Inputs General'!$B55='DNSP Inputs General'!$A$41,H$6,IF('DNSP Inputs General'!$B55='DNSP Inputs General'!$A$42,H$7,H$8))*'DNSP Inputs General'!$D55 -> 184.868165 | J20: 0.1166090209 | K20: 0.02927756288 | L20: 0.02744699084 | M20: 0.03106877404 | N20: 0.0302815573 | P20: =IF(C20=0,"",(D20/'Charges Summary'!D$4)/C20-1) -> 0.08831288592 | Q20: =IF(D20=0,"",(E20/'Charges Summary'!E$4)/(D20/'Charges Summary'!D$4)-1) -> 0.003194505726 | R20: =IF(E20=0,"",(F20/'Charges Summary'!F$4)/(E20/'Charges Summary'!E$4)-1) -> 0.001410322458 | S20: =IF(F20=0,"",(G20/'Charges Summary'!G$4)/(F20/'Charges Summary'!F$4)-1) -> 0.004940325577 | T20: =IF(G20=0,"",(H20/'Charges Summary'!H$4)/(G20/'Charges Summary'!G$4)-1) -> 0.004173057795
A21: ='DNSP Inputs General'!A56 -> Metal halide 250 watt | C21: ='DNSP Inputs General'!E56 -> 120.0555369 | D21: =IF('DNSP Inputs General'!$B56='DNSP Inputs General'!$A$41,D$6,IF('DNSP Inputs General'!$B56='DNSP Inputs General'!$A$42,D$7,D$8))*'DNSP Inputs General'!$D56 -> 147.1868903 | E21: =IF('DNSP Inputs General'!$B56='DNSP Inputs General'!$A$41,E$6,IF('DNSP Inputs General'!$B56='DNSP Inputs General'!$A$42,E$7,E$8))*'DNSP Inputs General'!$D56 -> 152.0372403 | F21: =IF('DNSP Inputs General'!$B56='DNSP Inputs General'!$A$41,F$6,IF('DNSP Inputs General'!$B56='DNSP Inputs General'!$A$42,F$7,F$8))*'DNSP Inputs General'!$D56 -> 156.9239493 | G21: =IF('DNSP Inputs General'!$B56='DNSP Inputs General'!$A$41,G$6,IF('DNSP Inputs General'!$B56='DNSP Inputs General'!$A$42,G$7,G$8))*'DNSP Inputs General'!$D56 -> 162.2926137 | H21: =IF('DNSP Inputs General'!$B56='DNSP Inputs General'!$A$41,H$6,IF('DNSP Inputs General'!$B56='DNSP Inputs General'!$A$42,H$7,H$8))*'DNSP Inputs General'!$D56 -> 167.9295379 | J21: 0.2259900216 | K21: 0.03295368216 | L21: 0.03214152639 | M21: 0.03421188679 | N21: 0.03473309159 | P21: =IF(C21=0,"",(D21/'Charges Summary'!D$4)/C21-1) -> 0.1949220483 | Q21: =IF(D21=0,"",(E21/'Charges Summary'!E$4)/(D21/'Charges Summary'!D$4)-1) -> 0.006777467995 | R21: =IF(E21=0,"",(F21/'Charges Summary'!F$4)/(E21/'Charges Summary'!E$4)-1) -> 0.005985893169 | S21: =IF(F21=0,"",(G21/'Charges Summary'!G$4)/(F21/'Charges Summary'!F$4)-1) -> 0.00800378829 | T21: =IF(G21=0,"",(H21/'Charges Summary'!H$4)/(G21/'Charges Summary'!G$4)-1) -> 0.00851178518
A22: ='DNSP Inputs General'!A57 -> Metal halide 400 watt | C22: ='DNSP Inputs General'!E57 -> 120.0555369 | D22: =IF('DNSP Inputs General'!$B57='DNSP Inputs General'!$A$41,D$6,IF('DNSP Inputs General'!$B57='DNSP Inputs General'!$A$42,D$7,D$8))*'DNSP Inputs General'!$D57 -> 147.1868903 | E22: =IF('DNSP Inputs General'!$B57='DNSP Inputs General'!$A$41,E$6,IF('DNSP Inputs General'!$B57='DNSP Inputs General'!$A$42,E$7,E$8))*'DNSP Inputs General'!$D57 -> 152.0372403 | F22: =IF('DNSP Inputs General'!$B57='DNSP Inputs General'!$A$41,F$6,IF('DNSP Inputs General'!$B57='DNSP Inputs General'!$A$42,F$7,F$8))*'DNSP Inputs General'!$D57 -> 156.9239493 | G22: =IF('DNSP Inputs General'!$B57='DNSP Inputs General'!$A$41,G$6,IF('DNSP Inputs General'!$B57='DNSP Inputs General'!$A$42,G$7,G$8))*'DNSP Inputs General'!$D57 -> 162.2926137 | H22: =IF('DNSP Inputs General'!$B57='DNSP Inputs General'!$A$41,H$6,IF('DNSP Inputs General'!$B57='DNSP Inputs General'!$A$42,H$7,H$8))*'DNSP Inputs General'!$D57 -> 167.9295379 | J22: 0.2259900216 | K22: 0.03295368216 | L22: 0.03214152639 | M22: 0.03421188679 | N22: 0.03473309159 | P22: =IF(C22=0,"",(D22/'Charges Summary'!D$4)/C22-1) -> 0.1949220483 | Q22: =IF(D22=0,"",(E22/'Charges Summary'!E$4)/(D22/'Charges Summary'!D$4)-1) -> 0.006777467995 | R22: =IF(E22=0,"",(F22/'Charges Summary'!F$4)/(E22/'Charges Summary'!E$4)-1) -> 0.005985893169 | S22: =IF(F22=0,"",(G22/'Charges Summary'!G$4)/(F22/'Charges Summary'!F$4)-1) -> 0.00800378829 | T22: =IF(G22=0,"",(H22/'Charges Summary'!H$4)/(G22/'Charges Summary'!G$4)-1) -> 0.00851178518
A23: ='DNSP Inputs General'!A58 -> Metal halide 70 watt | C23: ='DNSP Inputs General'!E58 -> 191.9219234 | D23: =IF('DNSP Inputs General'!$B58='DNSP Inputs General'!$A$41,D$6,IF('DNSP Inputs General'!$B58='DNSP Inputs General'!$A$42,D$7,D$8))*'DNSP Inputs General'!$D58 -> 125.4924809 | E23: =IF('DNSP Inputs General'!$B58='DNSP Inputs General'!$A$41,E$6,IF('DNSP Inputs General'!$B58='DNSP Inputs General'!$A$42,E$7,E$8))*'DNSP Inputs General'!$D58 -> 129.1665948 | F23: =IF('DNSP Inputs General'!$B58='DNSP Inputs General'!$A$41,F$6,IF('DNSP Inputs General'!$B58='DNSP Inputs General'!$A$42,F$7,F$8))*'DNSP Inputs General'!$D58 -> 132.7118292 | G23: =IF('DNSP Inputs General'!$B58='DNSP Inputs General'!$A$41,G$6,IF('DNSP Inputs General'!$B58='DNSP Inputs General'!$A$42,G$7,G$8))*'DNSP Inputs General'!$D58 -> 136.835023 | H23: =IF('DNSP Inputs General'!$B58='DNSP Inputs General'!$A$41,H$6,IF('DNSP Inputs General'!$B58='DNSP Inputs General'!$A$42,H$7,H$8))*'DNSP Inputs General'!$D58 -> 140.9786006 | J23: =IF(C23=0,"",D23/C23-1) -> -0.3461274321 | K23: =IF(D23=0,"",E23/D23-1) -> 0.02927756288 | L23: =IF(E23=0,"",F23/E23-1) -> 0.02744699084 | M23: =IF(F23=0,"",G23/F23-1) -> 0.03106877404 | N23: =IF(G23=0,"",H23/G23-1) -> 0.0302815573 | P23: =IF(C23=0,"",(D23/'Charges Summary'!D$4)/C23-1) -> -0.3626973023 | Q23: =IF(D23=0,"",(E23/'Charges Summary'!E$4)/(D23/'Charges Summary'!D$4)-1) -> 0.003194505726 | R23: =IF(E23=0,"",(F23/'Charges Summary'!F$4)/(E23/'Charges Summary'!E$4)-1) -> 0.001410322458 | S23: =IF(F23=0,"",(G23/'Charges Summary'!G$4)/(F23/'Charges Summary'!F$4)-1) -> 0.004940325577 | T23: =IF(G23=0,"",(H23/'Charges Summary'!H$4)/(G23/'Charges Summary'!G$4)-1) -> 0.004173057795
A24: ='DNSP Inputs General'!A59 -> Metal halide 150 watt | C24: ='DNSP Inputs General'!E59 -> 152.9761672 | D24: =IF('DNSP Inputs General'!$B59='DNSP Inputs General'!$A$41,D$6,IF('DNSP Inputs General'!$B59='DNSP Inputs General'!$A$42,D$7,D$8))*'DNSP Inputs General'!$D59 -> 145.5744144 | E24: =IF('DNSP Inputs General'!$B59='DNSP Inputs General'!$A$41,E$6,IF('DNSP Inputs General'!$B59='DNSP Inputs General'!$A$42,E$7,E$8))*'DNSP Inputs General'!$D59 -> 150.3650392 | F24: =IF('DNSP Inputs General'!$B59='DNSP Inputs General'!$A$41,F$6,IF('DNSP Inputs General'!$B59='DNSP Inputs General'!$A$42,F$7,F$8))*'DNSP Inputs General'!$D59 -> 155.2567318 | G24: =IF('DNSP Inputs General'!$B59='DNSP Inputs General'!$A$41,G$6,IF('DNSP Inputs General'!$B59='DNSP Inputs General'!$A$42,G$7,G$8))*'DNSP Inputs General'!$D59 -> 160.5952935 | H24: =IF('DNSP Inputs General'!$B59='DNSP Inputs General'!$A$41,H$6,IF('DNSP Inputs General'!$B59='DNSP Inputs General'!$A$42,H$7,H$8))*'DNSP Inputs General'!$D59 -> 166.0325658 | J24: -0.04838500625 | K24: 0.0329084257 | L24: 0.03253211433 | M24: 0.03438537941 | N24: 0.03385698444 | P24: =IF(C24=0,"",(D24/'Charges Summary'!D$4)/C24-1) -> -0.07250000609 | Q24: =IF(D24=0,"",(E24/'Charges Summary'!E$4)/(D24/'Charges Summary'!D$4)-1) -> 0.006733358385 | R24: =IF(E24=0,"",(F24/'Charges Summary'!F$4)/(E24/'Charges Summary'!E$4)-1) -> 0.006366583164 | S24: =IF(F24=0,"",(G24/'Charges Summary'!G$4)/(F24/'Charges Summary'!F$4)-1) -> 0.008172884414 | T24: =IF(G24=0,"",(H24/'Charges Summary'!H$4)/(G24/'Charges Summary'!G$4)-1) -> 0.007657879571
A30: ='DNSP Inputs General'!A$62 -> Energy Efficient Lights
A31: ='DNSP Inputs General'!A63 -> T5 2X14W | C31: ='DNSP Inputs General'!E63 -> 33.60818013 | D31: ='Charges Summary'!D$89 -> 51.18686914 | E31: ='Charges Summary'!E$89 -> 51.55180313 | F31: ='Charges Summary'!F$89 -> 53.09965793 | G31: ='Charges Summary'!G$89 -> 54.63067329 | H31: ='Charges Summary'!H$89 -> 56.15012598 | J31: =IF(C31=0,"",D31/C31-1) -> 0.5230479288 | K31: =IF(D31=0,"",E31/D31-1) -> 0.007129445383 | L31: =IF(E31=0,"",F31/E31-1) -> 0.03002523104 | M31: =IF(F31=0,"",G31/F31-1) -> 0.02883286671 | N31: =IF(G31=0,"",H31/G31-1) -> 0.02781317887 | P31: =IF(C31=0,"",(D31/'Charges Summary'!D$4)/C31-1) -> 0.4844521723 | Q31: =IF(D31=0,"",(E31/'Charges Summary'!E$4)/(D31/'Charges Summary'!D$4)-1) -> -0.01839235343 | R31: =IF(E31=0,"",(F31/'Charges Summary'!F$4)/(E31/'Charges Summary'!E$4)-1) -> 0.003923227135 | S31: =IF(F31=0,"",(G31/'Charges Summary'!G$4)/(F31/'Charges Summary'!F$4)-1) -> 0.002761078661 | T31: =IF(G31=0,"",(H31/'Charges Summary'!H$4)/(G31/'Charges Summary'!G$4)-1) -> 0.001767230869
A32: ='DNSP Inputs General'!A64 -> T5 2X24W | C32: ='DNSP Inputs General'!E64 -> 33.06325076 | D32: =IF('DNSP Inputs General'!$B64='DNSP Inputs General'!$A$63,D$31,D$35)*'DNSP Inputs General'!$D64 -> 50.35691559 | E32: =IF('DNSP Inputs General'!$B64='DNSP Inputs General'!$A$63,E$31,E$35)*'DNSP Inputs General'!$D64 -> 50.71593247 | F32: =IF('DNSP Inputs General'!$B64='DNSP Inputs General'!$A$63,F$31,F$35)*'DNSP Inputs General'!$D64 -> 52.23869005 | G32: =IF('DNSP Inputs General'!$B64='DNSP Inputs General'!$A$63,G$31,G$35)*'DNSP Inputs General'!$D64 -> 53.74488124 | H32: =IF('DNSP Inputs General'!$B64='DNSP Inputs General'!$A$63,H$31,H$35)*'DNSP Inputs General'!$D64 -> 55.23969724 | J32: =IF(C32=0,"",D32/C32-1) -> 0.5230479288 | K32: =IF(D32=0,"",E32/D32-1) -> 0.007129445383 | L32: =IF(E32=0,"",F32/E32-1) -> 0.03002523104 | M32: =IF(F32=0,"",G32/F32-1) -> 0.02883286671 | N32: =IF(G32=0,"",H32/G32-1) -> 0.02781317887 | P32: =IF(C32=0,"",(D32/'Charges Summary'!D$4)/C32-1) -> 0.4844521723 | Q32: =IF(D32=0,"",(E32/'Charges Summary'!E$4)/(D32/'Charges Summary'!D$4)-1) -> -0.01839235343 | R32: =IF(E32=0,"",(F32/'Charges Summary'!F$4)/(E32/'Charges Summary'!E$4)-1) -> 0.003923227135 | S32: =IF(F32=0,"",(G32/'Charges Summary'!G$4)/(F32/'Charges Summary'!F$4)-1) -> 0.002761078661 | T32: =IF(G32=0,"",(H32/'Charges Summary'!H$4)/(G32/'Charges Summary'!G$4)-1) -> 0.001767230869
A33: ='DNSP Inputs General'!A65 -> CF32 | C33: ='DNSP Inputs General'!E65 -> 32.30706113 | D33: =IF('DNSP Inputs General'!$B65='DNSP Inputs General'!$A$63,D$31,D$35)*'DNSP Inputs General'!$D65 -> 49.20520253 | E33: =IF('DNSP Inputs General'!$B65='DNSP Inputs General'!$A$63,E$31,E$35)*'DNSP Inputs General'!$D65 -> 49.55600834 | F33: =IF('DNSP Inputs General'!$B65='DNSP Inputs General'!$A$63,F$31,F$35)*'DNSP Inputs General'!$D65 -> 51.04393894 | G33: =IF('DNSP Inputs General'!$B65='DNSP Inputs General'!$A$63,G$31,G$35)*'DNSP Inputs General'!$D65 -> 52.51568202 | H33: =IF('DNSP Inputs General'!$B65='DNSP Inputs General'!$A$63,H$31,H$35)*'DNSP Inputs General'!$D65 -> 53.97631008 | J33: 0.5230479288 | K33: 0.007129445383 | L33: 0.03002523104 | M33: 0.02883286671 | N33: 0.02781317887 | P33: =IF(C33=0,"",(D33/'Charges Summary'!D$4)/C33-1) -> 0.4844521723 | Q33: =IF(D33=0,"",(E33/'Charges Summary'!E$4)/(D33/'Charges Summary'!D$4)-1) -> -0.01839235343 | R33: =IF(E33=0,"",(F33/'Charges Summary'!F$4)/(E33/'Charges Summary'!E$4)-1) -> 0.003923227135 | S33: =IF(F33=0,"",(G33/'Charges Summary'!G$4)/(F33/'Charges Summary'!F$4)-1) -> 0.002761078661 | T33: =IF(G33=0,"",(H33/'Charges Summary'!H$4)/(G33/'Charges Summary'!G$4)-1) -> 0.001767230869
A34: ='DNSP Inputs General'!A66 -> CF42 | C34: ='DNSP Inputs General'!E66 -> 32.30706113 | D34: =IF('DNSP Inputs General'!$B66='DNSP Inputs General'!$A$63,D$31,D$35)*'DNSP Inputs General'!$D66 -> 49.20520253 | E34: =IF('DNSP Inputs General'!$B66='DNSP Inputs General'!$A$63,E$31,E$35)*'DNSP Inputs General'!$D66 -> 49.55600834 | F34: =IF('DNSP Inputs General'!$B66='DNSP Inputs General'!$A$63,F$31,F$35)*'DNSP Inputs General'!$D66 -> 51.04393894 | G34: =IF('DNSP Inputs General'!$B66='DNSP Inputs General'!$A$63,G$31,G$35)*'DNSP Inputs General'!$D66 -> 52.51568202 | H34: =IF('DNSP Inputs General'!$B66='DNSP Inputs General'!$A$63,H$31,H$35)*'DNSP Inputs General'!$D66 -> 53.97631008 | J34: 0.5230479288 | K34: 0.007129445383 | L34: 0.03002523104 | M34: 0.02883286671 | N34: 0.02781317887 | P34: =IF(C34=0,"",(D34/'Charges Summary'!D$4)/C34-1) -> 0.4844521723 | Q34: =IF(D34=0,"",(E34/'Charges Summary'!E$4)/(D34/'Charges Summary'!D$4)-1) -> -0.01839235343 | R34: =IF(E34=0,"",(F34/'Charges Summary'!F$4)/(E34/'Charges Summary'!E$4)-1) -> 0.003923227135 | S34: =IF(F34=0,"",(G34/'Charges Summary'!G$4)/(F34/'Charges Summary'!F$4)-1) -> 0.002761078661 | T34: =IF(G34=0,"",(H34/'Charges Summary'!H$4)/(G34/'Charges Summary'!G$4)-1) -> 0.001767230869
A35: ='DNSP Inputs General'!A67 -> Category P LED 18 Watt | C35: ='DNSP Inputs General'!E67 -> 17.82195409 | D35: ='Charges Summary'!D$107 -> 34.40276111 | E35: ='Charges Summary'!E$107 -> 33.97567932 | F35: ='Charges Summary'!F$107 -> 34.8587462 | G35: ='Charges Summary'!G$107 -> 35.66779834 | H35: ='Charges Summary'!H$107 -> 36.44311833 | J35: 0.9303585303 | K35: -0.012414172 | L35: 0.02599114705 | M35: 0.02320944478 | N35: 0.02173725396 | P35: =IF(C35=0,"",(D35/'Charges Summary'!D$4)/C35-1) -> 0.8814410626 | Q35: =IF(D35=0,"",(E35/'Charges Summary'!E$4)/(D35/'Charges Summary'!D$4)-1) -> -0.03744071345 | R35: =IF(E35=0,"",(F35/'Charges Summary'!F$4)/(E35/'Charges Summary'!E$4)-1) -> -8.628602071e-06 | S35: =IF(F35=0,"",(G35/'Charges Summary'!G$4)/(F35/'Charges Summary'!F$4)-1) -> -0.002719839393 | T35: =IF(G35=0,"",(H35/'Charges Summary'!H$4)/(G35/'Charges Summary'!G$4)-1) -> -0.00415472324
A36: ='DNSP Inputs General'!A68 -> Category P LED 47 Watt | C36: ='DNSP Inputs General'!E68 -> 17.82195409 | D36: =IF('DNSP Inputs General'!$B68='DNSP Inputs General'!$A$63,D$31,D$35)*'DNSP Inputs General'!$D68 -> 34.40276111 | E36: =IF('DNSP Inputs General'!$B68='DNSP Inputs General'!$A$63,E$31,E$35)*'DNSP Inputs General'!$D68 -> 33.97567932 | F36: =IF('DNSP Inputs General'!$B68='DNSP Inputs General'!$A$63,F$31,F$35)*'DNSP Inputs General'!$D68 -> 34.8587462 | G36: =IF('DNSP Inputs General'!$B68='DNSP Inputs General'!$A$63,G$31,G$35)*'DNSP Inputs General'!$D68 -> 35.66779834 | H36: =IF('DNSP Inputs General'!$B68='DNSP Inputs General'!$A$63,H$31,H$35)*'DNSP Inputs General'!$D68 -> 36.44311833 | J36: 0.9303585303 | K36: -0.012414172 | L36: 0.02599114705 | M36: 0.02320944478 | N36: 0.02173725396 | P36: =IF(C36=0,"",(D36/'Charges Summary'!D$4)/C36-1) -> 0.8814410626 | Q36: =IF(D36=0,"",(E36/'Charges Summary'!E$4)/(D36/'Charges Summary'!D$4)-1) -> -0.03744071345 | R36: =IF(E36=0,"",(F36/'Charges Summary'!F$4)/(E36/'Charges Summary'!E$4)-1) -> -8.628602071e-06 | S36: =IF(F36=0,"",(G36/'Charges Summary'!G$4)/(F36/'Charges Summary'!F$4)-1) -> -0.002719839393 | T36: =IF(G36=0,"",(H36/'Charges Summary'!H$4)/(G36/'Charges Summary'!G$4)-1) -> -0.00415472324

Sheet Cashflow Summary
A1: ='DNSP Inputs O & M'!$A$3 -> Powercor | E1: Check | F1: =SUM(C131,C137,C160) -> 3.41096893e-08
C2: ='DNSP Inputs General'!J$2 -> 2015 | D2: ='DNSP Inputs General'!K$2 -> 2016 | E2: ='DNSP Inputs General'!L$2 -> 2017 | F2: ='DNSP Inputs General'!M$2 -> 2018 | G2: ='DNSP Inputs General'!N$2 -> 2019 | H2: ='DNSP Inputs General'!O$2 -> 2020 | J2: =C2 -> 2015 | K2: =D2 -> 2016 | L2: 2017 | M2: 2018 | N2: 2019 | O2: 2020
A4: Public Lighting - Revenue | C4: Revenue - Nominal | J4: Revenue - Real 2015 $
C5: =C$2 -> 2015 | D5: =D$2 -> 2016 | E5: 2017 | F5: 2018 | G5: 2019 | H5: 2020 | J5: =J$2 -> 2015 | K5: 2016 | L5: 2017 | M5: 2018 | N5: 2019 | O5: 2020
A6: ='DNSP Inputs General'!A$40 -> Existing Lights
A7: ='DNSP Inputs General'!A41 -> Mercury vapour 80 watt | C7: =IF('PL Tariffs'!C6=0,"",'DNSP Inputs General'!J41*'PL Tariffs'!C6) -> 3719377.78 | D7: =IF('PL Tariffs'!D6=0,"",'DNSP Inputs General'!K41*'PL Tariffs'!D6) -> 3548235.185 | E7: =IF('PL Tariffs'!E6=0,"",'DNSP Inputs General'!L41*'PL Tariffs'!E6) -> 2979005.494 | F7: =IF('PL Tariffs'!F6=0,"",'DNSP Inputs General'!M41*'PL Tariffs'!F6) -> 2754693.207 | G7: =IF('PL Tariffs'!G6=0,"",'DNSP Inputs General'!N41*'PL Tariffs'!G6) -> 2556250.333 | H7: =IF('PL Tariffs'!H6=0,"",'DNSP Inputs General'!O41*'PL Tariffs'!H6) -> 2370291.817 | J7: =C7 -> 3719377.78 | K7: =D7/'Charges Summary'!D$4 -> 3458318.893 | L7: =E7/'Charges Summary'!E$4 -> 2829935.796 | M7: =F7/'Charges Summary'!F$4 -> 2550534.226 | N7: =G7/'Charges Summary'!G$4 -> 2306821.226 | O7: =H7/'Charges Summary'!H$4 -> 2084802.952
A8: ='DNSP Inputs General'!A42 -> Sodium high pressure 150 watt | C8: =IF('PL Tariffs'!C7=0,"",'DNSP Inputs General'!J42*'PL Tariffs'!C7) -> 2469228.146 | D8: =IF('PL Tariffs'!D7=0,"",'DNSP Inputs General'!K42*'PL Tariffs'!D7) -> 3230623.212 | E8: =IF('PL Tariffs'!E7=0,"",'DNSP Inputs General'!L42*'PL Tariffs'!E7) -> 3485949.465 | F8: =IF('PL Tariffs'!F7=0,"",'DNSP Inputs General'!M42*'PL Tariffs'!F7) -> 3760084.568 | G8: =IF('PL Tariffs'!G7=0,"",'DNSP Inputs General'!N42*'PL Tariffs'!G7) -> 4063057.268 | H8: =IF('PL Tariffs'!H7=0,"",'DNSP Inputs General'!O42*'PL Tariffs'!H7) -> 4388199.538 | J8: 2469228.146 | K8: =D8/'Charges Summary'!D$4 -> 3148755.568 | L8: =E8/'Charges Summary'!E$4 -> 3311512.246 | M8: =F8/'Charges Summary'!F$4 -> 3481412.869 | N8: =G8/'Charges Summary'!G$4 -> 3666599.717 | O8: =H8/'Charges Summary'!H$4 -> 3859664.572
A9: ='DNSP Inputs General'!A43 -> Sodium high pressure 250 watt | C9: =IF('PL Tariffs'!C8=0,"",'DNSP Inputs General'!J43*'PL Tariffs'!C8) -> 1184126.717 | D9: =IF('PL Tariffs'!D8=0,"",'DNSP Inputs General'!K43*'PL Tariffs'!D8) -> 1500948.873 | E9: =IF('PL Tariffs'!E8=0,"",'DNSP Inputs General'!L43*'PL Tariffs'!E8) -> 1602977.885 | F9: =IF('PL Tariffs'!F8=0,"",'DNSP Inputs General'!M43*'PL Tariffs'!F8) -> 1710596.448 | G9: =IF('PL Tariffs'!G8=0,"",'DNSP Inputs General'!N43*'PL Tariffs'!G8) -> 1829101.789 | H9: =IF('PL Tariffs'!H8=0,"",'DNSP Inputs General'!O43*'PL Tariffs'!H8) -> 1956802.509 | J9: 1184126.717 | K9: =D9/'Charges Summary'!D$4 -> 1462913.131 | L9: =E9/'Charges Summary'!E$4 -> 1522764.73 | M9: =F9/'Charges Summary'!F$4 -> 1583818.763 | N9: =G9/'Charges Summary'!G$4 -> 1650625.049 | O9: =H9/'Charges Summary'!H$4 -> 1721116.201
A10: ='DNSP Inputs General'!A44 -> Flourescent 20 watt | C10: =IF('PL Tariffs'!C9=0,"",'DNSP Inputs General'!J44*'PL Tariffs'!C9) -> 0 | D10: =IF('PL Tariffs'!D9=0,"",'DNSP Inputs General'!K44*'PL Tariffs'!D9) -> 0 | E10: =IF('PL Tariffs'!E9=0,"",'DNSP Inputs General'!L44*'PL Tariffs'!E9) -> 0 | F10: =IF('PL Tariffs'!F9=0,"",'DNSP Inputs General'!M44*'PL Tariffs'!F9) -> 0 | G10: =IF('PL Tariffs'!G9=0,"",'DNSP Inputs General'!N44*'PL Tariffs'!G9) -> 0 | H10: =IF('PL Tariffs'!H9=0,"",'DNSP Inputs General'!O44*'PL Tariffs'!H9) -> 0 | J10: 0 | K10: =D10/'Charges Summary'!D$4 -> 0 | L10: =E10/'Charges Summary'!E$4 -> 0 | M10: =F10/'Charges Summary'!F$4 -> 0 | N10: =G10/'Charges Summary'!G$4 -> 0 | O10: =H10/'Charges Summary'!H$4 -> 0
A11: ='DNSP Inputs General'!A45 -> Flourescent 40 watt | C11: =IF('PL Tariffs'!C10=0,"",'DNSP Inputs General'!J45*'PL Tariffs'!C10) -> 0 | D11: =IF('PL Tariffs'!D10=0,"",'DNSP Inputs General'!K45*'PL Tariffs'!D10) -> 0 | E11: =IF('PL Tariffs'!E10=0,"",'DNSP Inputs General'!L45*'PL Tariffs'!E10) -> 0 | F11: =IF('PL Tariffs'!F10=0,"",'DNSP Inputs General'!M45*'PL Tariffs'!F10) -> 0 | G11: =IF('PL Tariffs'!G10=0,"",'DNSP Inputs General'!N45*'PL Tariffs'!G10) -> 0 | H11: =IF('PL Tariffs'!H10=0,"",'DNSP Inputs General'!O45*'PL Tariffs'!H10) -> 0 | J11: 0 | K11: =D11/'Charges Summary'!D$4 -> 0 | L11: =E11/'Charges Summary'!E$4 -> 0 | M11: =F11/'Charges Summary'!F$4 -> 0 | N11: =G11/'Charges Summary'!G$4 -> 0 | O11: =H11/'Charges Summary'!H$4 -> 0
A12: ='DNSP Inputs General'!A46 -> Mercury vapour 50 watt | C12: =IF('PL Tariffs'!C11=0,"",'DNSP Inputs General'!J46*'PL Tariffs'!C11) -> 15990.24971 | D12: =IF('PL Tariffs'!D11=0,"",'DNSP Inputs General'!K46*'PL Tariffs'!D11) -> 16743.39576 | E12: =IF('PL Tariffs'!E11=0,"",'DNSP Inputs General'!L46*'PL Tariffs'!E11) -> 16160.81329 | F12: =IF('PL Tariffs'!F11=0,"",'DNSP Inputs General'!M46*'PL Tariffs'!F11) -> 15570.75968 | G12: =IF('PL Tariffs'!G11=0,"",'DNSP Inputs General'!N46*'PL Tariffs'!G11) -> 15055.13315 | H12: =IF('PL Tariffs'!H11=0,"",'DNSP Inputs General'!O46*'PL Tariffs'!H11) -> 14545.46772 | J12: 15990.24971 | K12: =D12/'Charges Summary'!D$4 -> 16319.09918 | L12: =E12/'Charges Summary'!E$4 -> 15352.12477 | M12: =F12/'Charges Summary'!F$4 -> 14416.76169 | N12: =G12/'Charges Summary'!G$4 -> 13586.11097 | O12: =H12/'Charges Summary'!H$4 -> 12793.54459
A13: ='DNSP Inputs General'!A47 -> Mercury vapour 125 watt | C13: =IF('PL Tariffs'!C12=0,"",'DNSP Inputs General'!J47*'PL Tariffs'!C12) -> 73213.32216 | D13: =IF('PL Tariffs'!D12=0,"",'DNSP Inputs General'!K47*'PL Tariffs'!D12) -> 84877.87275 | E13: =IF('PL Tariffs'!E12=0,"",'DNSP Inputs General'!L47*'PL Tariffs'!E12) -> 90704.79217 | F13: =IF('PL Tariffs'!F12=0,"",'DNSP Inputs General'!M47*'PL Tariffs'!F12) -> 96759.34001 | G13: =IF('PL Tariffs'!G12=0,"",'DNSP Inputs General'!N47*'PL Tariffs'!G12) -> 103581.8759 | H13: =IF('PL Tariffs'!H12=0,"",'DNSP Inputs General'!O47*'PL Tariffs'!H12) -> 110800.8108 | J13: 73213.32216 | K13: =D13/'Charges Summary'!D$4 -> 82726.97149 | L13: =E13/'Charges Summary'!E$4 -> 86165.91636 | M13: =F13/'Charges Summary'!F$4 -> 89588.20087 | N13: =G13/'Charges Summary'!G$4 -> 93474.75361 | O13: =H13/'Charges Summary'!H$4 -> 97455.45071
A14: ='DNSP Inputs General'!A48 -> Mercury vapour 250 watt | C14: =IF('PL Tariffs'!C13=0,"",'DNSP Inputs General'!J48*'PL Tariffs'!C13) -> 19208.88591 | D14: =IF('PL Tariffs'!D13=0,"",'DNSP Inputs General'!K48*'PL Tariffs'!D13) -> 18105.46915 | E14: =IF('PL Tariffs'!E13=0,"",'DNSP Inputs General'!L48*'PL Tariffs'!E13) -> 14378.4245 | F14: =IF('PL Tariffs'!F13=0,"",'DNSP Inputs General'!M48*'PL Tariffs'!F13) -> 11409.62112 | G14: =IF('PL Tariffs'!G13=0,"",'DNSP Inputs General'!N48*'PL Tariffs'!G13) -> 9071.966095 | H14: =IF('PL Tariffs'!H13=0,"",'DNSP Inputs General'!O48*'PL Tariffs'!H13) -> 7216.895673 | J14: 19208.88591 | K14: =D14/'Charges Summary'!D$4 -> 17646.65609 | L14: =E14/'Charges Summary'!E$4 -> 13658.92687 | M14: =F14/'Charges Summary'!F$4 -> 10564.0182 | N14: =G14/'Charges Summary'!G$4 -> 8186.758424 | O14: =H14/'Charges Summary'!H$4 -> 6347.659514
A15: ='DNSP Inputs General'!A49 -> Mercury vapour 400 watt | C15: =IF('PL Tariffs'!C14=0,"",'DNSP Inputs General'!J49*'PL Tariffs'!C14) -> 7387.47755 | D15: =IF('PL Tariffs'!D14=0,"",'DNSP Inputs General'!K49*'PL Tariffs'!D14) -> 8065.720096 | E15: =IF('PL Tariffs'!E14=0,"",'DNSP Inputs General'!L49*'PL Tariffs'!E14) -> 7419.660467 | F15: =IF('PL Tariffs'!F14=0,"",'DNSP Inputs General'!M49*'PL Tariffs'!F14) -> 6819.983445 | G15: =IF('PL Tariffs'!G14=0,"",'DNSP Inputs General'!N49*'PL Tariffs'!G14) -> 6281.348401 | H15: =IF('PL Tariffs'!H14=0,"",'DNSP Inputs General'!O49*'PL Tariffs'!H14) -> 5788.169736 | J15: 7387.47755 | K15: =D15/'Charges Summary'!D$4 -> 7861.32563 | L15: =E15/'Charges Summary'!E$4 -> 7048.380002 | M15: =F15/'Charges Summary'!F$4 -> 6314.533013 | N15: =G15/'Charges Summary'!G$4 -> 5668.438506 | O15: =H15/'Charges Summary'!H$4 -> 5091.01591
A16: ='DNSP Inputs General'!A50 -> Mercury vapour 700 watt | C16: =IF('PL Tariffs'!C15=0,"",'DNSP Inputs General'!J50*'PL Tariffs'!C15) -> 0 | D16: =IF('PL Tariffs'!D15=0,"",'DNSP Inputs General'!K50*'PL Tariffs'!D15) -> 0 | E16: =IF('PL Tariffs'!E15=0,"",'DNSP Inputs General'!L50*'PL Tariffs'!E15) -> 0 | F16: =IF('PL Tariffs'!F15=0,"",'DNSP Inputs General'!M50*'PL Tariffs'!F15) -> 0 | G16: =IF('PL Tariffs'!G15=0,"",'DNSP Inputs General'!N50*'PL Tariffs'!G15) -> 0 | H16: =IF('PL Tariffs'!H15=0,"",'DNSP Inputs General'!O50*'PL Tariffs'!H15) -> 0 | J16: 0 | K16: =D16/'Charges Summary'!D$4 -> 0 | L16: =E16/'Charges Summary'!E$4 -> 0 | M16: =F16/'Charges Summary'!F$4 -> 0 | N16: =G16/'Charges Summary'!G$4 -> 0 | O16: =H16/'Charges Summary'!H$4 -> 0
A17: ='DNSP Inputs General'!A51 -> Sodium low pressure 90 watt | C17: =IF('PL Tariffs'!C16=0,"",'DNSP Inputs General'!J51*'PL Tariffs'!C16) -> 0 | D17: =IF('PL Tariffs'!D16=0,"",'DNSP Inputs General'!K51*'PL Tariffs'!D16) -> 0 | E17: =IF('PL Tariffs'!E16=0,"",'DNSP Inputs General'!L51*'PL Tariffs'!E16) -> 0 | F17: =IF('PL Tariffs'!F16=0,"",'DNSP Inputs General'!M51*'PL Tariffs'!F16) -> 0 | G17: =IF('PL Tariffs'!G16=0,"",'DNSP Inputs General'!N51*'PL Tariffs'!G16) -> 0 | H17: =IF('PL Tariffs'!H16=0,"",'DNSP Inputs General'!O51*'PL Tariffs'!H16) -> 0 | J17: 0 | K17: =D17/'Charges Summary'!D$4 -> 0 | L17: =E17/'Charges Summary'!E$4 -> 0 | M17: =F17/'Charges Summary'!F$4 -> 0 | N17: =G17/'Charges Summary'!G$4 -> 0 | O17: =H17/'Charges Summary'!H$4 -> 0
A18: ='DNSP Inputs General'!A52 -> Sodium low pressure 180 watt | C18: =IF('PL Tariffs'!C17=0,"",'DNSP Inputs General'!J52*'PL Tariffs'!C17) -> 0 | D18: =IF('PL Tariffs'!D17=0,"",'DNSP Inputs General'!K52*'PL Tariffs'!D17) -> 0 | E18: =IF('PL Tariffs'!E17=0,"",'DNSP Inputs General'!L52*'PL Tariffs'!E17) -> 0 | F18: =IF('PL Tariffs'!F17=0,"",'DNSP Inputs General'!M52*'PL Tariffs'!F17) -> 0 | G18: =IF('PL Tariffs'!G17=0,"",'DNSP Inputs General'!N52*'PL Tariffs'!G17) -> 0 | H18: =IF('PL Tariffs'!H17=0,"",'DNSP Inputs General'!O52*'PL Tariffs'!H17) -> 0 | J18: 0 | K18: =D18/'Charges Summary'!D$4 -> 0 | L18: =E18/'Charges Summary'!E$4 -> 0 | M18: =F18/'Charges Summary'!F$4 -> 0 | N18: =G18/'Charges Summary'!G$4 -> 0 | O18: =H18/'Charges Summary'!H$4 -> 0
A19: ='DNSP Inputs General'!A53 -> Sodium high pressure 400 watt | C19: =IF('PL Tariffs'!C18=0,"",'DNSP Inputs General'!J53*'PL Tariffs'!C18) -> 91242.20806 | D19: =IF('PL Tariffs'!D18=0,"",'DNSP Inputs General'!K53*'PL Tariffs'!D18) -> 112246.7357 | E19: =IF('PL Tariffs'!E18=0,"",'DNSP Inputs General'!L53*'PL Tariffs'!E18) -> 116344.4219 | F19: =IF('PL Tariffs'!F18=0,"",'DNSP Inputs General'!M53*'PL Tariffs'!F18) -> 120496.8837 | G19: =IF('PL Tariffs'!G18=0,"",'DNSP Inputs General'!N53*'PL Tariffs'!G18) -> 125047.8815 | H19: =IF('PL Tariffs'!H18=0,"",'DNSP Inputs General'!O53*'PL Tariffs'!H18) -> 129836.1637 | J19: 91242.20806 | K19: =D19/'Charges Summary'!D$4 -> 109402.2765 | L19: =E19/'Charges Summary'!E$4 -> 110522.5368 | M19: =F19/'Charges Summary'!F$4 -> 111566.4805 | N19: =G19/'Charges Summary'!G$4 -> 112846.1886 | O19: =H19/'Charges Summary'!H$4 -> 114198.098
A20: ='DNSP Inputs General'!A54 -> Incandescent 100 watt | C20: =IF('PL Tariffs'!C19=0,"",'DNSP Inputs General'!J54*'PL Tariffs'!C19) -> 0 | D20: =IF('PL Tariffs'!D19=0,"",'DNSP Inputs General'!K54*'PL Tariffs'!D19) -> 0 | E20: =IF('PL Tariffs'!E19=0,"",'DNSP Inputs General'!L54*'PL Tariffs'!E19) -> 0 | F20: =IF('PL Tariffs'!F19=0,"",'DNSP Inputs General'!M54*'PL Tariffs'!F19) -> 0 | G20: =IF('PL Tariffs'!G19=0,"",'DNSP Inputs General'!N54*'PL Tariffs'!G19) -> 0 | H20: =IF('PL Tariffs'!H19=0,"",'DNSP Inputs General'!O54*'PL Tariffs'!H19) -> 0 | J20: 0 | K20: =D20/'Charges Summary'!D$4 -> 0 | L20: =E20/'Charges Summary'!E$4 -> 0 | M20: =F20/'Charges Summary'!F$4 -> 0 | N20: =G20/'Charges Summary'!G$4 -> 0 | O20: =H20/'Charges Summary'!H$4 -> 0
A21: ='DNSP Inputs General'!A55 -> Incandescent 150 watt | C21: =IF('PL Tariffs'!C20=0,"",'DNSP Inputs General'!J55*'PL Tariffs'!C20) -> 0 | D21: =IF('PL Tariffs'!D20=0,"",'DNSP Inputs General'!K55*'PL Tariffs'!D20) -> 0 | E21: =IF('PL Tariffs'!E20=0,"",'DNSP Inputs General'!L55*'PL Tariffs'!E20) -> 0 | F21: =IF('PL Tariffs'!F20=0,"",'DNSP Inputs General'!M55*'PL Tariffs'!F20) -> 0 | G21: =IF('PL Tariffs'!G20=0,"",'DNSP Inputs General'!N55*'PL Tariffs'!G20) -> 0 | H21: =IF('PL Tariffs'!H20=0,"",'DNSP Inputs General'!O55*'PL Tariffs'!H20) -> 0 | J21: 0 | K21: =D21/'Charges Summary'!D$4 -> 0 | L21: =E21/'Charges Summary'!E$4 -> 0 | M21: =F21/'Charges Summary'!F$4 -> 0 | N21: =G21/'Charges Summary'!G$4 -> 0 | O21: =H21/'Charges Summary'!H$4 -> 0
A22: ='DNSP Inputs General'!A56 -> Metal halide 250 watt | C22: =IF('PL Tariffs'!C21=0,"",'DNSP Inputs General'!J56*'PL Tariffs'!C21) -> 42739.77114 | D22: =IF('PL Tariffs'!D21=0,"",'DNSP Inputs General'!K56*'PL Tariffs'!D21) -> 53446.50361 | E22: =IF('PL Tariffs'!E21=0,"",'DNSP Inputs General'!L56*'PL Tariffs'!E21) -> 56311.91795 | F22: =IF('PL Tariffs'!F21=0,"",'DNSP Inputs General'!M56*'PL Tariffs'!F21) -> 59284.30633 | G22: =IF('PL Tariffs'!G21=0,"",'DNSP Inputs General'!N56*'PL Tariffs'!G21) -> 62538.78499 | H22: =IF('PL Tariffs'!H21=0,"",'DNSP Inputs General'!O56*'PL Tariffs'!H21) -> 66005.16934 | J22: 42739.77114 | K22: =D22/'Charges Summary'!D$4 -> 52092.10878 | L22: =E22/'Charges Summary'!E$4 -> 53494.06461 | M22: =F22/'Charges Summary'!F$4 -> 54890.55985 | N22: =G22/'Charges Summary'!G$4 -> 56436.49011 | O22: =H22/'Charges Summary'!H$4 -> 58055.2027
A23: ='DNSP Inputs General'!A57 -> Metal halide 400 watt | C23: =IF('PL Tariffs'!C22=0,"",'DNSP Inputs General'!J57*'PL Tariffs'!C22) -> 0 | D23: =IF('PL Tariffs'!D22=0,"",'DNSP Inputs General'!K57*'PL Tariffs'!D22) -> 0 | E23: =IF('PL Tariffs'!E22=0,"",'DNSP Inputs General'!L57*'PL Tariffs'!E22) -> 0 | F23: =IF('PL Tariffs'!F22=0,"",'DNSP Inputs General'!M57*'PL Tariffs'!F22) -> 0 | G23: =IF('PL Tariffs'!G22=0,"",'DNSP Inputs General'!N57*'PL Tariffs'!G22) -> 0 | H23: =IF('PL Tariffs'!H22=0,"",'DNSP Inputs General'!O57*'PL Tariffs'!H22) -> 0 | J23: 0 | K23: =D23/'Charges Summary'!D$4 -> 0 | L23: =E23/'Charges Summary'!E$4 -> 0 | M23: =F23/'Charges Summary'!F$4 -> 0 | N23: =G23/'Charges Summary'!G$4 -> 0 | O23: =H23/'Charges Summary'!H$4 -> 0
A24: ='DNSP Inputs General'!A58 -> Metal halide 70 watt | C24: =IF('PL Tariffs'!C23=0,"",'DNSP Inputs General'!J58*'PL Tariffs'!C23) -> 1535.375387 | D24: =IF('PL Tariffs'!D23=0,"",'DNSP Inputs General'!K58*'PL Tariffs'!D23) -> 1024.018644 | E24: =IF('PL Tariffs'!E23=0,"",'DNSP Inputs General'!L58*'PL Tariffs'!E23) -> 1075.079402 | F24: =IF('PL Tariffs'!F23=0,"",'DNSP Inputs General'!M58*'PL Tariffs'!F23) -> 1126.678839 | G24: =IF('PL Tariffs'!G23=0,"",'DNSP Inputs General'!N58*'PL Tariffs'!G23) -> 1184.917036 | H24: =IF('PL Tariffs'!H23=0,"",'DNSP Inputs General'!O58*'PL Tariffs'!H23) -> 1245.214133 | J24: =C24 -> 1535.375387 | K24: =D24/'Charges Summary'!D$4 -> 998.0688535 | L24: =E24/'Charges Summary'!E$4 -> 1021.282334 | M24: =F24/'Charges Summary'!F$4 -> 1043.177125 | N24: =G24/'Charges Summary'!G$4 -> 1069.297375 | O24: =H24/'Charges Summary'!H$4 -> 1095.234807
A25: ='DNSP Inputs General'!A59 -> Metal halide 150 watt | C25: =IF('PL Tariffs'!C24=0,"",'DNSP Inputs General'!J59*'PL Tariffs'!C24) -> 7648.80836 | D25: =IF('PL Tariffs'!D24=0,"",'DNSP Inputs General'!K59*'PL Tariffs'!D24) -> 7424.295134 | E25: =IF('PL Tariffs'!E24=0,"",'DNSP Inputs General'!L59*'PL Tariffs'!E24) -> 7821.989339 | F25: =IF('PL Tariffs'!F24=0,"",'DNSP Inputs General'!M59*'PL Tariffs'!F24) -> 8237.984294 | G25: =IF('PL Tariffs'!G24=0,"",'DNSP Inputs General'!N59*'PL Tariffs'!G24) -> 8691.67552 | H25: =IF('PL Tariffs'!H24=0,"",'DNSP Inputs General'!O59*'PL Tariffs'!H24) -> 9165.668432 | J25: 7648.80836 | K25: =D25/'Charges Summary'!D$4 -> 7236.155102 | L25: =E25/'Charges Summary'!E$4 -> 7430.576302 | M25: =F25/'Charges Summary'!F$4 -> 7627.441357 | N25: =G25/'Charges Summary'!G$4 -> 7843.575145 | O25: =H25/'Charges Summary'!H$4 -> 8061.713105
A29: ='DNSP Inputs General'!A$62 -> Energy Efficient Lights
A30: ='DNSP Inputs General'!A63 -> T5 2X14W | C30: =IF('PL Tariffs'!C31=0,"",'DNSP Inputs General'!J63*'PL Tariffs'!C31) -> 358431.2411 | D30: =IF('PL Tariffs'!D31=0,"",'DNSP Inputs General'!K63*'PL Tariffs'!D31) -> 534989.8002 | E30: =IF('PL Tariffs'!E31=0,"",'DNSP Inputs General'!L63*'PL Tariffs'!E31) -> 528027.9012 | F30: =IF('PL Tariffs'!F31=0,"",'DNSP Inputs General'!M63*'PL Tariffs'!F31) -> 533004.4197 | G30: =IF('PL Tariffs'!G31=0,"",'DNSP Inputs General'!N63*'PL Tariffs'!G31) -> 537405.0158 | H30: =IF('PL Tariffs'!H31=0,"",'DNSP Inputs General'!O63*'PL Tariffs'!H31) -> 541304.9184 | J30: =C30 -> 358431.2411 | K30: =D30/'Charges Summary'!D$4 -> 521432.5538 | L30: =E30/'Charges Summary'!E$4 -> 501605.3384 | M30: =F30/'Charges Summary'!F$4 -> 493501.785 | N30: =G30/'Charges Summary'!G$4 -> 484967.0946 | O30: =H30/'Charges Summary'!H$4 -> 476107.6606
A31: ='DNSP Inputs General'!A64 -> T5 2X24W | C31: =IF('PL Tariffs'!C32=0,"",'DNSP Inputs General'!J64*'PL Tariffs'!C32) -> 48933.61112 | D31: =IF('PL Tariffs'!D32=0,"",'DNSP Inputs General'!K64*'PL Tariffs'!D32) -> 73037.67037 | E31: =IF('PL Tariffs'!E32=0,"",'DNSP Inputs General'!L64*'PL Tariffs'!E32) -> 72087.22068 | F31: =IF('PL Tariffs'!F32=0,"",'DNSP Inputs General'!M64*'PL Tariffs'!F32) -> 72766.62301 | G31: =IF('PL Tariffs'!G32=0,"",'DNSP Inputs General'!N64*'PL Tariffs'!G32) -> 73367.39949 | H31: =IF('PL Tariffs'!H32=0,"",'DNSP Inputs General'!O64*'PL Tariffs'!H32) -> 73899.82049 | J31: =C31 -> 48933.61112 | K31: =D31/'Charges Summary'!D$4 -> 71186.81322 | L31: =E31/'Charges Summary'!E$4 -> 68479.96979 | M31: =F31/'Charges Summary'!F$4 -> 67373.65962 | N31: =G31/'Charges Summary'!G$4 -> 66208.48992 | O31: =H31/'Charges Summary'!H$4 -> 64998.9857
A32: ='DNSP Inputs General'!A65 -> CF32 | C32: =IF('PL Tariffs'!C33=0,"",'DNSP Inputs General'!J65*'PL Tariffs'!C33) -> 99796.51182 | D32: =IF('PL Tariffs'!D33=0,"",'DNSP Inputs General'!K65*'PL Tariffs'!D33) -> 148954.9732 | E32: =IF('PL Tariffs'!E33=0,"",'DNSP Inputs General'!L65*'PL Tariffs'!E33) -> 147016.6008 | F32: =IF('PL Tariffs'!F33=0,"",'DNSP Inputs General'!M65*'PL Tariffs'!F33) -> 148402.192 | G32: =IF('PL Tariffs'!G33=0,"",'DNSP Inputs General'!N65*'PL Tariffs'!G33) -> 149627.4316 | H32: =IF('PL Tariffs'!H33=0,"",'DNSP Inputs General'!O65*'PL Tariffs'!H33) -> 150713.2652 | J32: 99796.51182 | K32: =D32/'Charges Summary'!D$4 -> 145180.2858 | L32: =E32/'Charges Summary'!E$4 -> 139659.8771 | M32: =F32/'Charges Summary'!F$4 -> 137403.6386 | N32: =G32/'Charges Summary'!G$4 -> 135027.3604 | O32: =H32/'Charges Summary'!H$4 -> 132560.6653
A33: ='DNSP Inputs General'!A66 -> CF42 | C33: =IF('PL Tariffs'!C34=0,"",'DNSP Inputs General'!J66*'PL Tariffs'!C34) -> 145866.381 | D33: =IF('PL Tariffs'!D34=0,"",'DNSP Inputs General'!K66*'PL Tariffs'!D34) -> 217718.2596 | E33: =IF('PL Tariffs'!E34=0,"",'DNSP Inputs General'!L66*'PL Tariffs'!E34) -> 214885.0607 | F33: =IF('PL Tariffs'!F34=0,"",'DNSP Inputs General'!M66*'PL Tariffs'!F34) -> 216910.2936 | G33: =IF('PL Tariffs'!G34=0,"",'DNSP Inputs General'!N66*'PL Tariffs'!G34) -> 218701.1504 | H33: =IF('PL Tariffs'!H34=0,"",'DNSP Inputs General'!O66*'PL Tariffs'!H34) -> 220288.2461 | J33: 145866.381 | K33: =D33/'Charges Summary'!D$4 -> 212201.0328 | L33: =E33/'Charges Summary'!E$4 -> 204132.1933 | M33: =F33/'Charges Summary'!F$4 -> 200834.3892 | N33: =G33/'Charges Summary'!G$4 -> 197361.1306 | O33: =H33/'Charges Summary'!H$4 -> 193755.715
A34: ='DNSP Inputs General'!A67 -> Category P LED 18 Watt | C34: =IF('PL Tariffs'!C35=0,"",'DNSP Inputs General'!J67*'PL Tariffs'!C35) -> 478466.0016 | D34: =IF('PL Tariffs'!D35=0,"",'DNSP Inputs General'!K67*'PL Tariffs'!D35) -> 1275151.249 | E34: =IF('PL Tariffs'!E35=0,"",'DNSP Inputs General'!L67*'PL Tariffs'!E35) -> 1798143.752 | F34: =IF('PL Tariffs'!F35=0,"",'DNSP Inputs General'!M67*'PL Tariffs'!F35) -> 1992469.936 | G34: =IF('PL Tariffs'!G35=0,"",'DNSP Inputs General'!N67*'PL Tariffs'!G35) -> 2201811.182 | H34: =IF('PL Tariffs'!H35=0,"",'DNSP Inputs General'!O67*'PL Tariffs'!H35) -> 2429646.311 | J34: 478466.0016 | K34: =D34/'Charges Summary'!D$4 -> 1242837.474 | L34: =E34/'Charges Summary'!E$4 -> 1708164.48 | M34: =F34/'Charges Summary'!F$4 -> 1844801.72 | N34: =G34/'Charges Summary'!G$4 -> 1986966.888 | O34: =H34/'Charges Summary'!H$4 -> 2137008.518
A35: ='DNSP Inputs General'!A68 -> Category P LED 47 Watt | C35: =IF('PL Tariffs'!C36=0,"",'DNSP Inputs General'!J68*'PL Tariffs'!C36) -> 0 | D35: =IF('PL Tariffs'!D36=0,"",'DNSP Inputs General'!K68*'PL Tariffs'!D36) -> 0 | E35: =IF('PL Tariffs'!E36=0,"",'DNSP Inputs General'!L68*'PL Tariffs'!E36) -> 0 | F35: =IF('PL Tariffs'!F36=0,"",'DNSP Inputs General'!M68*'PL Tariffs'!F36) -> 0 | G35: =IF('PL Tariffs'!G36=0,"",'DNSP Inputs General'!N68*'PL Tariffs'!G36) -> 0 | H35: =IF('PL Tariffs'!H36=0,"",'DNSP Inputs General'!O68*'PL Tariffs'!H36) -> 0 | J35: 0 | K35: =D35/'Charges Summary'!D$4 -> 0 | L35: =E35/'Charges Summary'!E$4 -> 0 | M35: =F35/'Charges Summary'!F$4 -> 0 | N35: =G35/'Charges Summary'!G$4 -> 0 | O35: =H35/'Charges Summary'!H$4 -> 0
A37: Total Revenue | C37: =IF(SUM(C7:C36)=0,"",SUM(C7:C36)) -> 8763192.487 | D37: =IF(SUM(D7:D36)=0,"",SUM(D7:D36)) -> 10831593.23 | E37: 11138310.48 | F37: 11508633.24 | G37: 11960775.15 | H37: 12475749.98 | J37: =IF(SUM(J7:J36)=0,"",SUM(J7:J36)) -> 8763192.487 | K37: =SUM(K7:K36) -> 10557108.41 | L37: =SUM(L7:L36) -> 10580948.44 | M37: =SUM(M7:M36) -> 10655692.22 | N37: =SUM(N7:N36) -> 10793688.57 | O37: =SUM(O7:O36) -> 10973113.19
A40: Public Lighting - O & M | D40: Forecast O & M - Nominal | K40: Forecast O & M - Real 2015 $
D41: =D$2 -> 2016 | E41: 2017 | F41: 2018 | G41: 2019 | H41: 2020 | K41: =K$2 -> 2016 | L41: 2017 | M41: 2018 | N41: 2019 | O41: 2020
A43: Unit cost
A44: ='DNSP Inputs General'!A$41 -> Mercury vapour 80 watt | D44: =SUM('Charges Summary'!D25,'Charges Summary'!D8) -> 34.24918406 | E44: =SUM('Charges Summary'!E25,'Charges Summary'!E8) -> 35.66458231 | F44: =SUM('Charges Summary'!F25,'Charges Summary'!F8) -> 37.15199196 | G44: =SUM('Charges Summary'!G25,'Charges Summary'!G8) -> 38.69365477 | H44: =SUM('Charges Summary'!H25,'Charges Summary'!H8) -> 40.29578601
A45: ='DNSP Inputs General'!A$42 -> Sodium high pressure 150 watt | D45: =SUM('Charges Summary'!D49,'Charges Summary'!D8) -> 84.25350771 | E45: =SUM('Charges Summary'!E49,'Charges Summary'!E8) -> 87.52845715 | F45: =SUM('Charges Summary'!F49,'Charges Summary'!F8) -> 91.02218277 | G45: =SUM('Charges Summary'!G49,'Charges Summary'!G8) -> 94.62808267 | H45: =SUM('Charges Summary'!H49,'Charges Summary'!H8) -> 98.35886147
A46: ='DNSP Inputs General'!A$43 -> Sodium high pressure 250 watt | D46: =SUM('Charges Summary'!D65,'Charges Summary'!D8) -> 84.23371326 | E46: =SUM('Charges Summary'!E65,'Charges Summary'!E8) -> 87.50848872 | F46: =SUM('Charges Summary'!F65,'Charges Summary'!F8) -> 91.00151406 | G46: =SUM('Charges Summary'!G65,'Charges Summary'!G8) -> 94.60682574 | H46: =SUM('Charges Summary'!H65,'Charges Summary'!H8) -> 98.4635655
A48: ='DNSP Inputs General'!A$40 -> Existing Lights
A49: ='DNSP Inputs General'!A$41 -> Mercury vapour 80 watt | D49: =D44*'DNSP Inputs General'!K41 -> 2052961.399 | E49: =E44*'DNSP Inputs General'!L41 -> 1743789.653 | F49: =F44*'DNSP Inputs General'!M41 -> 1634863.764 | G49: =G44*'DNSP Inputs General'!N41 -> 1532433.812 | H49: =H44*'DNSP Inputs General'!O41 -> 1436296.54 | K49: =D49/'Charges Summary'!D$4 -> 2000937.036 | L49: =E49/'Charges Summary'!E$4 -> 1656530.265 | M49: =F49/'Charges Summary'!F$4 -> 1513698.866 | N49: =G49/'Charges Summary'!G$4 -> 1382904.795 | O49: =H49/'Charges Summary'!H$4 -> 1263302.369
A50: ='DNSP Inputs General'!A$42 -> Sodium high pressure 150 watt | D50: =D45*'DNSP Inputs General'!K42 -> 2486800.175 | E50: =E45*'DNSP Inputs General'!L42 -> 2698827.516 | F50: =F45*'DNSP Inputs General'!M42 -> 2931879.113 | G50: =G45*'DNSP Inputs General'!N42 -> 3184137.488 | H50: =H45*'DNSP Inputs General'!O42 -> 3457468.419 | K50: =D50/'Charges Summary'!D$4 -> 2423781.847 | L50: =E50/'Charges Summary'!E$4 -> 2563777.949 | M50: =F50/'Charges Summary'!F$4 -> 2714588.327 | N50: =G50/'Charges Summary'!G$4 -> 2873441.559 | O50: =H50/'Charges Summary'!H$4 -> 3041034.996
A51: ='DNSP Inputs General'!A$43 -> Sodium high pressure 250 watt | D51: =D46*'DNSP Inputs General'!K43 -> 1142442.514 | E51: =E46*'DNSP Inputs General'!L43 -> 1227098.365 | F51: =F46*'DNSP Inputs General'!M43 -> 1319345.668 | G51: =G46*'DNSP Inputs General'!N43 -> 1418120.817 | H51: =H46*'DNSP Inputs General'!O43 -> 1525973.89 | K51: =D51/'Charges Summary'!D$4 -> 1113491.729 | L51: =E51/'Charges Summary'!E$4 -> 1165694.254 | M51: =F51/'Charges Summary'!F$4 -> 1221564.809 | N51: =G51/'Charges Summary'!G$4 -> 1279746.024 | O51: =H51/'Charges Summary'!H$4 -> 1342178.565
A52: ='DNSP Inputs General'!A$44 -> Flourescent 20 watt | D52: =IF('DNSP Inputs General'!$B44='DNSP Inputs General'!$A$41,D$44,IF('DNSP Inputs General'!$B44='DNSP Inputs General'!$A$42,D$45,D$46))*'DNSP Inputs General'!$D44*'DNSP Inputs General'!K44 -> 0 | E52: =IF('DNSP Inputs General'!$B44='DNSP Inputs General'!$A$41,E$44,IF('DNSP Inputs General'!$B44='DNSP Inputs General'!$A$42,E$45,E$46))*'DNSP Inputs General'!$D44*'DNSP Inputs General'!L44 -> 0 | F52: =IF('DNSP Inputs General'!$B44='DNSP Inputs General'!$A$41,F$44,IF('DNSP Inputs General'!$B44='DNSP Inputs General'!$A$42,F$45,F$46))*'DNSP Inputs General'!$D44*'DNSP Inputs General'!M44 -> 0 | G52: =IF('DNSP Inputs General'!$B44='DNSP Inputs General'!$A$41,G$44,IF('DNSP Inputs General'!$B44='DNSP Inputs General'!$A$42,G$45,G$46))*'DNSP Inputs General'!$D44*'DNSP Inputs General'!N44 -> 0 | H52: =IF('DNSP Inputs General'!$B44='DNSP Inputs General'!$A$41,H$44,IF('DNSP Inputs General'!$B44='DNSP Inputs General'!$A$42,H$45,H$46))*'DNSP Inputs General'!$D44*'DNSP Inputs General'!O44 -> 0 | K52: =D52/'Charges Summary'!D$4 -> 0 | L52: =E52/'Charges Summary'!E$4 -> 0 | M52: =F52/'Charges Summary'!F$4 -> 0 | N52: =G52/'Charges Summary'!G$4 -> 0 | O52: =H52/'Charges Summary'!H$4 -> 0
A53: ='DNSP Inputs General'!A$45 -> Flourescent 40 watt | D53: =IF('DNSP Inputs General'!$B45='DNSP Inputs General'!$A$41,D$44,IF('DNSP Inputs General'!$B45='DNSP Inputs General'!$A$42,D$45,D$46))*'DNSP Inputs General'!$D45*'DNSP Inputs General'!K45 -> 0 | E53: =IF('DNSP Inputs General'!$B45='DNSP Inputs General'!$A$41,E$44,IF('DNSP Inputs General'!$B45='DNSP Inputs General'!$A$42,E$45,E$46))*'DNSP Inputs General'!$D45*'DNSP Inputs General'!L45 -> 0 | F53: =IF('DNSP Inputs General'!$B45='DNSP Inputs General'!$A$41,F$44,IF('DNSP Inputs General'!$B45='DNSP Inputs General'!$A$42,F$45,F$46))*'DNSP Inputs General'!$D45*'DNSP Inputs General'!M45 -> 0 | G53: =IF('DNSP Inputs General'!$B45='DNSP Inputs General'!$A$41,G$44,IF('DNSP Inputs General'!$B45='DNSP Inputs General'!$A$42,G$45,G$46))*'DNSP Inputs General'!$D45*'DNSP Inputs General'!N45 -> 0 | H53: =IF('DNSP Inputs General'!$B45='DNSP Inputs General'!$A$41,H$44,IF('DNSP Inputs General'!$B45='DNSP Inputs General'!$A$42,H$45,H$46))*'DNSP Inputs General'!$D45*'DNSP Inputs General'!O45 -> 0 | K53: =D53/'Charges Summary'!D$4 -> 0 | L53: =E53/'Charges Summary'!E$4 -> 0 | M53: =F53/'Charges Summary'!F$4 -> 0 | N53: =G53/'Charges Summary'!G$4 -> 0 | O53: =H53/'Charges Summary'!H$4 -> 0
A54: ='DNSP Inputs General'!A$46 -> Mercury vapour 50 watt | D54: =IF('DNSP Inputs General'!$B46='DNSP Inputs General'!$A$41,D$44,IF('DNSP Inputs General'!$B46='DNSP Inputs General'!$A$42,D$45,D$46))*'DNSP Inputs General'!$D46*'DNSP Inputs General'!K46 -> 9687.504741 | E54: =IF('DNSP Inputs General'!$B46='DNSP Inputs General'!$A$41,E$44,IF('DNSP Inputs General'!$B46='DNSP Inputs General'!$A$42,E$45,E$46))*'DNSP Inputs General'!$D46*'DNSP Inputs General'!L46 -> 9459.888231 | F54: =IF('DNSP Inputs General'!$B46='DNSP Inputs General'!$A$41,F$44,IF('DNSP Inputs General'!$B46='DNSP Inputs General'!$A$42,F$45,F$46))*'DNSP Inputs General'!$D46*'DNSP Inputs General'!M46 -> 9240.982156 | G54: =IF('DNSP Inputs General'!$B46='DNSP Inputs General'!$A$41,G$44,IF('DNSP Inputs General'!$B46='DNSP Inputs General'!$A$42,G$45,G$46))*'DNSP Inputs General'!$D46*'DNSP Inputs General'!N46 -> 9025.32697 | H54: =IF('DNSP Inputs General'!$B46='DNSP Inputs General'!$A$41,H$44,IF('DNSP Inputs General'!$B46='DNSP Inputs General'!$A$42,H$45,H$46))*'DNSP Inputs General'!$D46*'DNSP Inputs General'!O46 -> 8813.937937 | K54: =D54/'Charges Summary'!D$4 -> 9442.012418 | L54: =E54/'Charges Summary'!E$4 -> 8986.514588 | M54: =F54/'Charges Summary'!F$4 -> 8556.103892 | N54: =G54/'Charges Summary'!G$4 -> 8144.670166 | O54: =H54/'Charges Summary'!H$4 -> 7752.346651
A55: ='DNSP Inputs General'!A$47 -> Mercury vapour 125 watt | D55: =IF('DNSP Inputs General'!$B47='DNSP Inputs General'!$A$41,D$44,IF('DNSP Inputs General'!$B47='DNSP Inputs General'!$A$42,D$45,D$46))*'DNSP Inputs General'!$D47*'DNSP Inputs General'!K47 -> 49109.20142 | E55: =IF('DNSP Inputs General'!$B47='DNSP Inputs General'!$A$41,E$44,IF('DNSP Inputs General'!$B47='DNSP Inputs General'!$A$42,E$45,E$46))*'DNSP Inputs General'!$D47*'DNSP Inputs General'!L47 -> 53094.92663 | F55: =IF('DNSP Inputs General'!$B47='DNSP Inputs General'!$A$41,F$44,IF('DNSP Inputs General'!$B47='DNSP Inputs General'!$A$42,F$45,F$46))*'DNSP Inputs General'!$D47*'DNSP Inputs General'!M47 -> 57425.02954 | G55: =IF('DNSP Inputs General'!$B47='DNSP Inputs General'!$A$41,G$44,IF('DNSP Inputs General'!$B47='DNSP Inputs General'!$A$42,G$45,G$46))*'DNSP Inputs General'!$D47*'DNSP Inputs General'!N47 -> 62095.78418 | H55: =IF('DNSP Inputs General'!$B47='DNSP Inputs General'!$A$41,H$44,IF('DNSP Inputs General'!$B47='DNSP Inputs General'!$A$42,H$45,H$46))*'DNSP Inputs General'!$D47*'DNSP Inputs General'!O47 -> 67140.60269 | K55: =D55/'Charges Summary'!D$4 -> 47864.71873 | L55: =E55/'Charges Summary'!E$4 -> 50438.05181 | M55: =F55/'Charges Summary'!F$4 -> 53169.07991 | N55: =G55/'Charges Summary'!G$4 -> 56036.71562 | O55: =H55/'Charges Summary'!H$4 -> 59053.87922
A56: ='DNSP Inputs General'!A$48 -> Mercury vapour 250 watt | D56: =IF('DNSP Inputs General'!$B48='DNSP Inputs General'!$A$41,D$44,IF('DNSP Inputs General'!$B48='DNSP Inputs General'!$A$42,D$45,D$46))*'DNSP Inputs General'!$D48*'DNSP Inputs General'!K48 -> 13780.9209 | E56: =IF('DNSP Inputs General'!$B48='DNSP Inputs General'!$A$41,E$44,IF('DNSP Inputs General'!$B48='DNSP Inputs General'!$A$42,E$45,E$46))*'DNSP Inputs General'!$D48*'DNSP Inputs General'!L48 -> 11006.85253 | F56: =IF('DNSP Inputs General'!$B48='DNSP Inputs General'!$A$41,F$44,IF('DNSP Inputs General'!$B48='DNSP Inputs General'!$A$42,F$45,F$46))*'DNSP Inputs General'!$D48*'DNSP Inputs General'!M48 -> 8799.9915 | G56: =IF('DNSP Inputs General'!$B48='DNSP Inputs General'!$A$41,G$44,IF('DNSP Inputs General'!$B48='DNSP Inputs General'!$A$42,G$45,G$46))*'DNSP Inputs General'!$D48*'DNSP Inputs General'!N48 -> 7033.585582 | H56: =IF('DNSP Inputs General'!$B48='DNSP Inputs General'!$A$41,H$44,IF('DNSP Inputs General'!$B48='DNSP Inputs General'!$A$42,H$45,H$46))*'DNSP Inputs General'!$D48*'DNSP Inputs General'!O48 -> 5627.953927 | K56: =D56/'Charges Summary'!D$4 -> 13431.69678 | L56: =E56/'Charges Summary'!E$4 -> 10456.06866 | M56: =F56/'Charges Summary'!F$4 -> 8147.796441 | N56: =G56/'Charges Summary'!G$4 -> 6347.275267 | O56: =H56/'Charges Summary'!H$4 -> 4950.097231
A57: ='DNSP Inputs General'!A$49 -> Mercury vapour 400 watt | D57: =IF('DNSP Inputs General'!$B49='DNSP Inputs General'!$A$41,D$44,IF('DNSP Inputs General'!$B49='DNSP Inputs General'!$A$42,D$45,D$46))*'DNSP Inputs General'!$D49*'DNSP Inputs General'!K49 -> 6139.197484 | E57: =IF('DNSP Inputs General'!$B49='DNSP Inputs General'!$A$41,E$44,IF('DNSP Inputs General'!$B49='DNSP Inputs General'!$A$42,E$45,E$46))*'DNSP Inputs General'!$D49*'DNSP Inputs General'!L49 -> 5679.837079 | F57: =IF('DNSP Inputs General'!$B49='DNSP Inputs General'!$A$41,F$44,IF('DNSP Inputs General'!$B49='DNSP Inputs General'!$A$42,F$45,F$46))*'DNSP Inputs General'!$D49*'DNSP Inputs General'!M49 -> 5260.104233 | G57: =IF('DNSP Inputs General'!$B49='DNSP Inputs General'!$A$41,G$44,IF('DNSP Inputs General'!$B49='DNSP Inputs General'!$A$42,G$45,G$46))*'DNSP Inputs General'!$D49*'DNSP Inputs General'!N49 -> 4869.991917 | H57: =IF('DNSP Inputs General'!$B49='DNSP Inputs General'!$A$41,H$44,IF('DNSP Inputs General'!$B49='DNSP Inputs General'!$A$42,H$45,H$46))*'DNSP Inputs General'!$D49*'DNSP Inputs General'!O49 -> 4513.790149 | K57: =D57/'Charges Summary'!D$4 -> 5983.623278 | L57: =E57/'Charges Summary'!E$4 -> 5395.61753 | M57: =F57/'Charges Summary'!F$4 -> 4870.261357 | N57: =G57/'Charges Summary'!G$4 -> 4394.796776 | O57: =H57/'Charges Summary'!H$4 -> 3970.128471
A58: ='DNSP Inputs General'!A$50 -> Mercury vapour 700 watt | D58: =IF('DNSP Inputs General'!$B50='DNSP Inputs General'!$A$41,D$44,IF('DNSP Inputs General'!$B50='DNSP Inputs General'!$A$42,D$45,D$46))*'DNSP Inputs General'!$D50*'DNSP Inputs General'!K50 -> 0 | E58: =IF('DNSP Inputs General'!$B50='DNSP Inputs General'!$A$41,E$44,IF('DNSP Inputs General'!$B50='DNSP Inputs General'!$A$42,E$45,E$46))*'DNSP Inputs General'!$D50*'DNSP Inputs General'!L50 -> 0 | F58: =IF('DNSP Inputs General'!$B50='DNSP Inputs General'!$A$41,F$44,IF('DNSP Inputs General'!$B50='DNSP Inputs General'!$A$42,F$45,F$46))*'DNSP Inputs General'!$D50*'DNSP Inputs General'!M50 -> 0 | G58: =IF('DNSP Inputs General'!$B50='DNSP Inputs General'!$A$41,G$44,IF('DNSP Inputs General'!$B50='DNSP Inputs General'!$A$42,G$45,G$46))*'DNSP Inputs General'!$D50*'DNSP Inputs General'!N50 -> 0 | H58: =IF('DNSP Inputs General'!$B50='DNSP Inputs General'!$A$41,H$44,IF('DNSP Inputs General'!$B50='DNSP Inputs General'!$A$42,H$45,H$46))*'DNSP Inputs General'!$D50*'DNSP Inputs General'!O50 -> 0 | K58: =D58/'Charges Summary'!D$4 -> 0 | L58: =E58/'Charges Summary'!E$4 -> 0 | M58: =F58/'Charges Summary'!F$4 -> 0 | N58: =G58/'Charges Summary'!G$4 -> 0 | O58: =H58/'Charges Summary'!H$4 -> 0
A59: ='DNSP Inputs General'!A$51 -> Sodium low pressure 90 watt | D59: =IF('DNSP Inputs General'!$B51='DNSP Inputs General'!$A$41,D$44,IF('DNSP Inputs General'!$B51='DNSP Inputs General'!$A$42,D$45,D$46))*'DNSP Inputs General'!$D51*'DNSP Inputs General'!K51 -> 0 | E59: =IF('DNSP Inputs General'!$B51='DNSP Inputs General'!$A$41,E$44,IF('DNSP Inputs General'!$B51='DNSP Inputs General'!$A$42,E$45,E$46))*'DNSP Inputs General'!$D51*'DNSP Inputs General'!L51 -> 0 | F59: =IF('DNSP Inputs General'!$B51='DNSP Inputs General'!$A$41,F$44,IF('DNSP Inputs General'!$B51='DNSP Inputs General'!$A$42,F$45,F$46))*'DNSP Inputs General'!$D51*'DNSP Inputs General'!M51 -> 0 | G59: =IF('DNSP Inputs General'!$B51='DNSP Inputs General'!$A$41,G$44,IF('DNSP Inputs General'!$B51='DNSP Inputs General'!$A$42,G$45,G$46))*'DNSP Inputs General'!$D51*'DNSP Inputs General'!N51 -> 0 | H59: =IF('DNSP Inputs General'!$B51='DNSP Inputs General'!$A$41,H$44,IF('DNSP Inputs General'!$B51='DNSP Inputs General'!$A$42,H$45,H$46))*'DNSP Inputs General'!$D51*'DNSP Inputs General'!O51 -> 0 | K59: =D59/'Charges Summary'!D$4 -> 0 | L59: =E59/'Charges Summary'!E$4 -> 0 | M59: =F59/'Charges Summary'!F$4 -> 0 | N59: =G59/'Charges Summary'!G$4 -> 0 | O59: =H59/'Charges Summary'!H$4 -> 0
A60: ='DNSP Inputs General'!A$52 -> Sodium low pressure 180 watt | D60: =IF('DNSP Inputs General'!$B52='DNSP Inputs General'!$A$41,D$44,IF('DNSP Inputs General'!$B52='DNSP Inputs General'!$A$42,D$45,D$46))*'DNSP Inputs General'!$D52*'DNSP Inputs General'!K52 -> 0 | E60: =IF('DNSP Inputs General'!$B52='DNSP Inputs General'!$A$41,E$44,IF('DNSP Inputs General'!$B52='DNSP Inputs General'!$A$42,E$45,E$46))*'DNSP Inputs General'!$D52*'DNSP Inputs General'!L52 -> 0 | F60: =IF('DNSP Inputs General'!$B52='DNSP Inputs General'!$A$41,F$44,IF('DNSP Inputs General'!$B52='DNSP Inputs General'!$A$42,F$45,F$46))*'DNSP Inputs General'!$D52*'DNSP Inputs General'!M52 -> 0 | G60: =IF('DNSP Inputs General'!$B52='DNSP Inputs General'!$A$41,G$44,IF('DNSP Inputs General'!$B52='DNSP Inputs General'!$A$42,G$45,G$46))*'DNSP Inputs General'!$D52*'DNSP Inputs General'!N52 -> 0 | H60: =IF('DNSP Inputs General'!$B52='DNSP Inputs General'!$A$41,H$44,IF('DNSP Inputs General'!$B52='DNSP Inputs General'!$A$42,H$45,H$46))*'DNSP Inputs General'!$D52*'DNSP Inputs General'!O52 -> 0 | K60: =D60/'Charges Summary'!D$4 -> 0 | L60: =E60/'Charges Summary'!E$4 -> 0 | M60: =F60/'Charges Summary'!F$4 -> 0 | N60: =G60/'Charges Summary'!G$4 -> 0 | O60: =H60/'Charges Summary'!H$4 -> 0
A61: ='DNSP Inputs General'!A$53 -> Sodium high pressure 400 watt | D61: =IF('DNSP Inputs General'!$B53='DNSP Inputs General'!$A$41,D$44,IF('DNSP Inputs General'!$B53='DNSP Inputs General'!$A$42,D$45,D$46))*'DNSP Inputs General'!$D53*'DNSP Inputs General'!K53 -> 85436.24986 | E61: =IF('DNSP Inputs General'!$B53='DNSP Inputs General'!$A$41,E$44,IF('DNSP Inputs General'!$B53='DNSP Inputs General'!$A$42,E$45,E$46))*'DNSP Inputs General'!$D53*'DNSP Inputs General'!L53 -> 89063.01904 | F61: =IF('DNSP Inputs General'!$B53='DNSP Inputs General'!$A$41,F$44,IF('DNSP Inputs General'!$B53='DNSP Inputs General'!$A$42,F$45,F$46))*'DNSP Inputs General'!$D53*'DNSP Inputs General'!M53 -> 92936.61389 | G61: =IF('DNSP Inputs General'!$B53='DNSP Inputs General'!$A$41,G$44,IF('DNSP Inputs General'!$B53='DNSP Inputs General'!$A$42,G$45,G$46))*'DNSP Inputs General'!$D53*'DNSP Inputs General'!N53 -> 96950.86677 | H61: =IF('DNSP Inputs General'!$B53='DNSP Inputs General'!$A$41,H$44,IF('DNSP Inputs General'!$B53='DNSP Inputs General'!$A$42,H$45,H$46))*'DNSP Inputs General'!$D53*'DNSP Inputs General'!O53 -> 101250.1746 | K61: =D61/'Charges Summary'!D$4 -> 83271.1987 | L61: =E61/'Charges Summary'!E$4 -> 84606.29771 | M61: =F61/'Charges Summary'!F$4 -> 86048.78901 | N61: =G61/'Charges Summary'!G$4 -> 87490.77288 | O61: =H61/'Charges Summary'!H$4 -> 89055.13721
A62: ='DNSP Inputs General'!A$54 -> Incandescent 100 watt | D62: =IF('DNSP Inputs General'!$B54='DNSP Inputs General'!$A$41,D$44,IF('DNSP Inputs General'!$B54='DNSP Inputs General'!$A$42,D$45,D$46))*'DNSP Inputs General'!$D54*'DNSP Inputs General'!K54 -> 0 | E62: =IF('DNSP Inputs General'!$B54='DNSP Inputs General'!$A$41,E$44,IF('DNSP Inputs General'!$B54='DNSP Inputs General'!$A$42,E$45,E$46))*'DNSP Inputs General'!$D54*'DNSP Inputs General'!L54 -> 0 | F62: =IF('DNSP Inputs General'!$B54='DNSP Inputs General'!$A$41,F$44,IF('DNSP Inputs General'!$B54='DNSP Inputs General'!$A$42,F$45,F$46))*'DNSP Inputs General'!$D54*'DNSP Inputs General'!M54 -> 0 | G62: =IF('DNSP Inputs General'!$B54='DNSP Inputs General'!$A$41,G$44,IF('DNSP Inputs General'!$B54='DNSP Inputs General'!$A$42,G$45,G$46))*'DNSP Inputs General'!$D54*'DNSP Inputs General'!N54 -> 0 | H62: =IF('DNSP Inputs General'!$B54='DNSP Inputs General'!$A$41,H$44,IF('DNSP Inputs General'!$B54='DNSP Inputs General'!$A$42,H$45,H$46))*'DNSP Inputs General'!$D54*'DNSP Inputs General'!O54 -> 0 | K62: =D62/'Charges Summary'!D$4 -> 0 | L62: =E62/'Charges Summary'!E$4 -> 0 | M62: =F62/'Charges Summary'!F$4 -> 0 | N62: =G62/'Charges Summary'!G$4 -> 0 | O62: =H62/'Charges Summary'!H$4 -> 0
A63: ='DNSP Inputs General'!A$55 -> Incandescent 150 watt | D63: =IF('DNSP Inputs General'!$B55='DNSP Inputs General'!$A$41,D$44,IF('DNSP Inputs General'!$B55='DNSP Inputs General'!$A$42,D$45,D$46))*'DNSP Inputs General'!$D55*'DNSP Inputs General'!K55 -> 0 | E63: =IF('DNSP Inputs General'!$B55='DNSP Inputs General'!$A$41,E$44,IF('DNSP Inputs General'!$B55='DNSP Inputs General'!$A$42,E$45,E$46))*'DNSP Inputs General'!$D55*'DNSP Inputs General'!L55 -> 0 | F63: =IF('DNSP Inputs General'!$B55='DNSP Inputs General'!$A$41,F$44,IF('DNSP Inputs General'!$B55='DNSP Inputs General'!$A$42,F$45,F$46))*'DNSP Inputs General'!$D55*'DNSP Inputs General'!M55 -> 0 | G63: =IF('DNSP Inputs General'!$B55='DNSP Inputs General'!$A$41,G$44,IF('DNSP Inputs General'!$B55='DNSP Inputs General'!$A$42,G$45,G$46))*'DNSP Inputs General'!$D55*'DNSP Inputs General'!N55 -> 0 | H63: =IF('DNSP Inputs General'!$B55='DNSP Inputs General'!$A$41,H$44,IF('DNSP Inputs General'!$B55='DNSP Inputs General'!$A$42,H$45,H$46))*'DNSP Inputs General'!$D55*'DNSP Inputs General'!O55 -> 0 | K63: =D63/'Charges Summary'!D$4 -> 0 | L63: =E63/'Charges Summary'!E$4 -> 0 | M63: =F63/'Charges Summary'!F$4 -> 0 | N63: =G63/'Charges Summary'!G$4 -> 0 | O63: =H63/'Charges Summary'!H$4 -> 0
A64: ='DNSP Inputs General'!A$56 -> Metal halide 250 watt | D64: =IF('DNSP Inputs General'!$B56='DNSP Inputs General'!$A$41,D$44,IF('DNSP Inputs General'!$B56='DNSP Inputs General'!$A$42,D$45,D$46))*'DNSP Inputs General'!$D56*'DNSP Inputs General'!K56 -> 40680.63812 | E64: =IF('DNSP Inputs General'!$B56='DNSP Inputs General'!$A$41,E$44,IF('DNSP Inputs General'!$B56='DNSP Inputs General'!$A$42,E$45,E$46))*'DNSP Inputs General'!$D56*'DNSP Inputs General'!L56 -> 43107.43342 | F64: =IF('DNSP Inputs General'!$B56='DNSP Inputs General'!$A$41,F$44,IF('DNSP Inputs General'!$B56='DNSP Inputs General'!$A$42,F$45,F$46))*'DNSP Inputs General'!$D56*'DNSP Inputs General'!M56 -> 45724.69026 | G64: =IF('DNSP Inputs General'!$B56='DNSP Inputs General'!$A$41,G$44,IF('DNSP Inputs General'!$B56='DNSP Inputs General'!$A$42,G$45,G$46))*'DNSP Inputs General'!$D56*'DNSP Inputs General'!N56 -> 48486.94228 | H64: =IF('DNSP Inputs General'!$B56='DNSP Inputs General'!$A$41,H$44,IF('DNSP Inputs General'!$B56='DNSP Inputs General'!$A$42,H$45,H$46))*'DNSP Inputs General'!$D56*'DNSP Inputs General'!O56 -> 51472.8311 | K64: =D64/'Charges Summary'!D$4 -> 39649.74476 | L64: =E64/'Charges Summary'!E$4 -> 40950.33364 | M64: =F64/'Charges Summary'!F$4 -> 42335.8896 | N64: =G64/'Charges Summary'!G$4 -> 43755.77235 | O64: =H64/'Charges Summary'!H$4 -> 45273.20622
A65: ='DNSP Inputs General'!$A57 -> Metal halide 400 watt | D65: =IF('DNSP Inputs General'!$B57='DNSP Inputs General'!$A$41,D$44,IF('DNSP Inputs General'!$B57='DNSP Inputs General'!$A$42,D$45,D$46))*'DNSP Inputs General'!$D57*'DNSP Inputs General'!K57 -> 0 | E65: =IF('DNSP Inputs General'!$B57='DNSP Inputs General'!$A$41,E$44,IF('DNSP Inputs General'!$B57='DNSP Inputs General'!$A$42,E$45,E$46))*'DNSP Inputs General'!$D57*'DNSP Inputs General'!L57 -> 0 | F65: =IF('DNSP Inputs General'!$B57='DNSP Inputs General'!$A$41,F$44,IF('DNSP Inputs General'!$B57='DNSP Inputs General'!$A$42,F$45,F$46))*'DNSP Inputs General'!$D57*'DNSP Inputs General'!M57 -> 0 | G65: =IF('DNSP Inputs General'!$B57='DNSP Inputs General'!$A$41,G$44,IF('DNSP Inputs General'!$B57='DNSP Inputs General'!$A$42,G$45,G$46))*'DNSP Inputs General'!$D57*'DNSP Inputs General'!N57 -> 0 | H65: =IF('DNSP Inputs General'!$B57='DNSP Inputs General'!$A$41,H$44,IF('DNSP Inputs General'!$B57='DNSP Inputs General'!$A$42,H$45,H$46))*'DNSP Inputs General'!$D57*'DNSP Inputs General'!O57 -> 0 | K65: =D65/'Charges Summary'!D$4 -> 0 | L65: =E65/'Charges Summary'!E$4 -> 0 | M65: =F65/'Charges Summary'!F$4 -> 0 | N65: =G65/'Charges Summary'!G$4 -> 0 | O65: =H65/'Charges Summary'!H$4 -> 0
A66: ='DNSP Inputs General'!$A58 -> Metal halide 70 watt | D66: =IF('DNSP Inputs General'!$B58='DNSP Inputs General'!$A$41,D$44,IF('DNSP Inputs General'!$B58='DNSP Inputs General'!$A$42,D$45,D$46))*'DNSP Inputs General'!$D58*'DNSP Inputs General'!K58 -> 592.4834849 | E66: =IF('DNSP Inputs General'!$B58='DNSP Inputs General'!$A$41,E$44,IF('DNSP Inputs General'!$B58='DNSP Inputs General'!$A$42,E$45,E$46))*'DNSP Inputs General'!$D58*'DNSP Inputs General'!L58 -> 629.3081172 | F66: =IF('DNSP Inputs General'!$B58='DNSP Inputs General'!$A$41,F$44,IF('DNSP Inputs General'!$B58='DNSP Inputs General'!$A$42,F$45,F$46))*'DNSP Inputs General'!$D58*'DNSP Inputs General'!M58 -> 668.6648088 | G66: =IF('DNSP Inputs General'!$B58='DNSP Inputs General'!$A$41,G$44,IF('DNSP Inputs General'!$B58='DNSP Inputs General'!$A$42,G$45,G$46))*'DNSP Inputs General'!$D58*'DNSP Inputs General'!N58 -> 710.340027 | H66: =IF('DNSP Inputs General'!$B58='DNSP Inputs General'!$A$41,H$44,IF('DNSP Inputs General'!$B58='DNSP Inputs General'!$A$42,H$45,H$46))*'DNSP Inputs General'!$D58*'DNSP Inputs General'!O58 -> 754.5470722 | K66: =D66/'Charges Summary'!D$4 -> 577.4692835 | L66: =E66/'Charges Summary'!E$4 -> 597.8174834 | M66: =F66/'Charges Summary'!F$4 -> 619.1079559 | N66: =G66/'Charges Summary'!G$4 -> 641.0277704 | O66: =H66/'Charges Summary'!H$4 -> 663.6659471
A67: ='DNSP Inputs General'!$A59 -> Metal halide 150 watt | D67: =IF('DNSP Inputs General'!$B59='DNSP Inputs General'!$A$41,D$44,IF('DNSP Inputs General'!$B59='DNSP Inputs General'!$A$42,D$45,D$46))*'DNSP Inputs General'!$D59*'DNSP Inputs General'!K59 -> 5714.915428 | E67: =IF('DNSP Inputs General'!$B59='DNSP Inputs General'!$A$41,E$44,IF('DNSP Inputs General'!$B59='DNSP Inputs General'!$A$42,E$45,E$46))*'DNSP Inputs General'!$D59*'DNSP Inputs General'!L59 -> 6055.796354 | F67: =IF('DNSP Inputs General'!$B59='DNSP Inputs General'!$A$41,F$44,IF('DNSP Inputs General'!$B59='DNSP Inputs General'!$A$42,F$45,F$46))*'DNSP Inputs General'!$D59*'DNSP Inputs General'!M59 -> 6423.465657 | G67: =IF('DNSP Inputs General'!$B59='DNSP Inputs General'!$A$41,G$44,IF('DNSP Inputs General'!$B59='DNSP Inputs General'!$A$42,G$45,G$46))*'DNSP Inputs General'!$D59*'DNSP Inputs General'!N59 -> 6811.493915 | H67: =IF('DNSP Inputs General'!$B59='DNSP Inputs General'!$A$41,H$44,IF('DNSP Inputs General'!$B59='DNSP Inputs General'!$A$42,H$45,H$46))*'DNSP Inputs General'!$D59*'DNSP Inputs General'!O59 -> 7221.642697 | K67: =D67/'Charges Summary'!D$4 -> 5570.09301 | L67: =E67/'Charges Summary'!E$4 -> 5752.763769 | M67: =F67/'Charges Summary'!F$4 -> 5947.402406 | N67: =G67/'Charges Summary'!G$4 -> 6146.854453 | O67: =H67/'Charges Summary'!H$4 -> 6351.834784
A73: ='DNSP Inputs General'!A$62 -> Energy Efficient Lights
A74: ='DNSP Inputs General'!$A63 -> T5 2X14W | D74: =SUM('Charges Summary'!D83,'Charges Summary'!D8)*'DNSP Inputs General'!$D63*'DNSP Inputs General'!K63 -> 374853.1568 | E74: =SUM('Charges Summary'!E83,'Charges Summary'!E8)*'DNSP Inputs General'!$D63*'DNSP Inputs General'!L63 -> 380727.3633 | F74: =SUM('Charges Summary'!F83,'Charges Summary'!F8)*'DNSP Inputs General'!$D63*'DNSP Inputs General'!M63 -> 387614.4635 | G74: =SUM('Charges Summary'!G83,'Charges Summary'!G8)*'DNSP Inputs General'!$D63*'DNSP Inputs General'!N63 -> 394426.7754 | H74: =SUM('Charges Summary'!H83,'Charges Summary'!H8)*'DNSP Inputs General'!$D63*'DNSP Inputs General'!O63 -> 401207.055 | K74: =D74/'Charges Summary'!D$4 -> 365353.954 | L74: =E74/'Charges Summary'!E$4 -> 361675.7325 | M74: =F74/'Charges Summary'!F$4 -> 358887.136 | N74: =G74/'Charges Summary'!G$4 -> 355940.1228 | O74: =H74/'Charges Summary'!H$4 -> 352883.8292
A75: ='DNSP Inputs General'!$A64 -> T5 2X24W | D75: =SUM('Charges Summary'!D83,'Charges Summary'!D8)*'DNSP Inputs General'!$D64*'DNSP Inputs General'!K64 -> 51175.55754 | E75: =SUM('Charges Summary'!E83,'Charges Summary'!E8)*'DNSP Inputs General'!$D64*'DNSP Inputs General'!L64 -> 51977.51369 | F75: =SUM('Charges Summary'!F83,'Charges Summary'!F8)*'DNSP Inputs General'!$D64*'DNSP Inputs General'!M64 -> 52917.75171 | G75: =SUM('Charges Summary'!G83,'Charges Summary'!G8)*'DNSP Inputs General'!$D64*'DNSP Inputs General'!N64 -> 53847.77951 | H75: =SUM('Charges Summary'!H83,'Charges Summary'!H8)*'DNSP Inputs General'!$D64*'DNSP Inputs General'!O64 -> 54773.43422 | K75: =D75/'Charges Summary'!D$4 -> 49878.71105 | L75: =E75/'Charges Summary'!E$4 -> 49376.55431 | M75: =F75/'Charges Summary'!F$4 -> 48995.85063 | N75: =G75/'Charges Summary'!G$4 -> 48593.51963 | O75: =H75/'Charges Summary'!H$4 -> 48176.26949
A76: ='DNSP Inputs General'!$A65 -> CF32 | D76: =SUM('Charges Summary'!D83,'Charges Summary'!D8)*'DNSP Inputs General'!$D65*'DNSP Inputs General'!K65 -> 104368.7971 | E76: =SUM('Charges Summary'!E83,'Charges Summary'!E8)*'DNSP Inputs General'!$D65*'DNSP Inputs General'!L65 -> 106004.3279 | F76: =SUM('Charges Summary'!F83,'Charges Summary'!F8)*'DNSP Inputs General'!$D65*'DNSP Inputs General'!M65 -> 107921.8744 | G76: =SUM('Charges Summary'!G83,'Charges Summary'!G8)*'DNSP Inputs General'!$D65*'DNSP Inputs General'!N65 -> 109818.5979 | H76: =SUM('Charges Summary'!H83,'Charges Summary'!H8)*'DNSP Inputs General'!$D65*'DNSP Inputs General'!O65 -> 111706.4028 | K76: =D76/'Charges Summary'!D$4 -> 101723.9738 | L76: =E76/'Charges Summary'!E$4 -> 100699.862 | M76: =F76/'Charges Summary'!F$4 -> 99923.44472 | N76: =G76/'Charges Summary'!G$4 -> 99102.92016 | O76: =H76/'Charges Summary'!H$4 -> 98251.9691
A77: ='DNSP Inputs General'!$A66 -> CF42 | D77: =SUM('Charges Summary'!D83,'Charges Summary'!D8)*'DNSP Inputs General'!$D66*'DNSP Inputs General'!K66 -> 152549.4073 | E77: =SUM('Charges Summary'!E83,'Charges Summary'!E8)*'DNSP Inputs General'!$D66*'DNSP Inputs General'!L66 -> 154939.9613 | F77: =SUM('Charges Summary'!F83,'Charges Summary'!F8)*'DNSP Inputs General'!$D66*'DNSP Inputs General'!M66 -> 157742.7203 | G77: =SUM('Charges Summary'!G83,'Charges Summary'!G8)*'DNSP Inputs General'!$D66*'DNSP Inputs General'!N66 -> 160515.0436 | H77: =SUM('Charges Summary'!H83,'Charges Summary'!H8)*'DNSP Inputs General'!$D66*'DNSP Inputs General'!O66 -> 163274.3311 | K77: =D77/'Charges Summary'!D$4 -> 148683.6328 | L77: =E77/'Charges Summary'!E$4 -> 147186.752 | M77: =F77/'Charges Summary'!F$4 -> 146051.9109 | N77: =G77/'Charges Summary'!G$4 -> 144852.601 | O77: =H77/'Charges Summary'!H$4 -> 143608.8185
A78: ='DNSP Inputs General'!$A67 -> Category P LED 18 Watt | D78: =SUM('Charges Summary'!D101,'Charges Summary'!D8)*'DNSP Inputs General'!$D67*'DNSP Inputs General'!K67 -> 685051.1118 | E78: =SUM('Charges Summary'!E101,'Charges Summary'!E8)*'DNSP Inputs General'!$D67*'DNSP Inputs General'!L67 -> 1012339.295 | F78: =SUM('Charges Summary'!F101,'Charges Summary'!F8)*'DNSP Inputs General'!$D67*'DNSP Inputs General'!M67 -> 1139016.446 | G78: =SUM('Charges Summary'!G101,'Charges Summary'!G8)*'DNSP Inputs General'!$D67*'DNSP Inputs General'!N67 -> 1278073.174 | H78: =SUM('Charges Summary'!H101,'Charges Summary'!H8)*'DNSP Inputs General'!$D67*'DNSP Inputs General'!O67 -> 1433253.402 | K78: =D78/'Charges Summary'!D$4 -> 667691.1421 | L78: =E78/'Charges Summary'!E$4 -> 961681.7473 | M78: =F78/'Charges Summary'!F$4 -> 1054600.354 | N78: =G78/'Charges Summary'!G$4 -> 1153363.694 | O78: =H78/'Charges Summary'!H$4 -> 1260625.76
A79: ='DNSP Inputs General'!$A68 -> Category P LED 47 Watt | D79: =SUM('Charges Summary'!D101,'Charges Summary'!D8)*'DNSP Inputs General'!$D68*'DNSP Inputs General'!K68 -> 0 | E79: =SUM('Charges Summary'!E101,'Charges Summary'!E8)*'DNSP Inputs General'!$D68*'DNSP Inputs General'!L68 -> 0 | F79: =SUM('Charges Summary'!F101,'Charges Summary'!F8)*'DNSP Inputs General'!$D68*'DNSP Inputs General'!M68 -> 0 | G79: =SUM('Charges Summary'!G101,'Charges Summary'!G8)*'DNSP Inputs General'!$D68*'DNSP Inputs General'!N68 -> 0 | H79: =SUM('Charges Summary'!H101,'Charges Summary'!H8)*'DNSP Inputs General'!$D68*'DNSP Inputs General'!O68 -> 0 | K79: =D79/'Charges Summary'!D$4 -> 0 | L79: =E79/'Charges Summary'!E$4 -> 0 | M79: =F79/'Charges Summary'!F$4 -> 0 | N79: =G79/'Charges Summary'!G$4 -> 0 | O79: =H79/'Charges Summary'!H$4 -> 0
A83: Total O & M | D83: =SUM(D49:D82) -> 7261343.23 | E83: =SUM(E49:E82) -> 7593801.057 | F83: =SUM(F49:F82) -> 7957781.343 | G83: =SUM(G49:G82) -> 8367357.819 | H83: =SUM(H49:H82) -> 8830748.954 | K83: =SUM(K49:K82) -> 7077332.583 | L83: =SUM(L49:L82) -> 7213806.581 | M83: =SUM(M49:M82) -> 7368005.129 | N83: =SUM(N49:N82) -> 7550903.122 | O83: =SUM(O49:O82) -> 7767132.872
A86: Public Lighting - Capital Charge | D86: Capital Charge - Nominal | K86: Capital Charge - Real 2015 $
D87: =D$2 -> 2016 | E87: 2017 | F87: 2018 | G87: 2019 | H87: 2020 | K87: =K$2 -> 2016 | L87: 2017 | M87: 2018 | N87: 2019 | O87: 2020
A89: Unit cost
A90: ='DNSP Inputs General'!A$41 -> Mercury vapour 80 watt | D90: =SUM('Charges Summary'!D27,'Charges Summary'!D11) -> 24.94538238 | E90: =SUM('Charges Summary'!E27,'Charges Summary'!E11) -> 25.26305677 | F90: =SUM('Charges Summary'!F27,'Charges Summary'!F11) -> 25.44792747 | G90: =SUM('Charges Summary'!G27,'Charges Summary'!G11) -> 25.85116742 | H90: =SUM('Charges Summary'!H27,'Charges Summary'!H11) -> 26.2035539
A91: ='DNSP Inputs General'!A$42 -> Sodium high pressure 150 watt | D91: =SUM('Charges Summary'!D51,'Charges Summary'!D11) -> 25.2009392 | E91: =SUM('Charges Summary'!E51,'Charges Summary'!E11) -> 25.5279633 | F91: =SUM('Charges Summary'!F51,'Charges Summary'!F11) -> 25.71220208 | G91: =SUM('Charges Summary'!G51,'Charges Summary'!G11) -> 26.12025828 | H91: =SUM('Charges Summary'!H51,'Charges Summary'!H11) -> 26.47765419
A92: ='DNSP Inputs General'!A$43 -> Sodium high pressure 250 watt | D92: =SUM('Charges Summary'!D67,'Charges Summary'!D11) -> 26.43312155 | E92: =SUM('Charges Summary'!E67,'Charges Summary'!E11) -> 26.80522579 | F92: =SUM('Charges Summary'!F67,'Charges Summary'!F11) -> 26.98641773 | G92: =SUM('Charges Summary'!G67,'Charges Summary'!G11) -> 27.41769581 | H92: =SUM('Charges Summary'!H67,'Charges Summary'!H11) -> 27.79924493
A94: ='DNSP Inputs General'!A$40 -> Existing Lights
A95: ='DNSP Inputs General'!A$41 -> Mercury vapour 80 watt | D95: =D90*'DNSP Inputs General'!K41 -> 1495273.786 | E95: =E90*'DNSP Inputs General'!L41 -> 1235215.84 | F95: =F90*'DNSP Inputs General'!M41 -> 1119829.443 | G95: =G90*'DNSP Inputs General'!N41 -> 1023816.521 | H95: =H90*'DNSP Inputs General'!O41 -> 933995.2766 | K95: =D95/'Charges Summary'!D$4 -> 1457381.857 | L95: =E95/'Charges Summary'!E$4 -> 1173405.53 | M95: =F95/'Charges Summary'!F$4 -> 1036835.36 | N95: =G95/'Charges Summary'!G$4 -> 923916.4303 | O95: =H95/'Charges Summary'!H$4 -> 821500.5831
A96: ='DNSP Inputs General'!A$42 -> Sodium high pressure 150 watt | D96: =D91*'DNSP Inputs General'!K42 -> 743823.0375 | E96: =E91*'DNSP Inputs General'!L42 -> 787121.9488 | F96: =F91*'DNSP Inputs General'!M42 -> 828205.4543 | G96: =G91*'DNSP Inputs General'!N42 -> 878919.7799 | H96: =H91*'DNSP Inputs General'!O42 -> 930731.1186 | K96: =D96/'Charges Summary'!D$4 -> 724973.7207 | L96: =E96/'Charges Summary'!E$4 -> 747734.2969 | M96: =F96/'Charges Summary'!F$4 -> 766824.5421 | N96: =G96/'Charges Summary'!G$4 -> 793158.1574 | O96: =H96/'Charges Summary'!H$4 -> 818629.5754
A97: ='DNSP Inputs General'!A$43 -> Sodium high pressure 250 watt | D97: =D92*'DNSP Inputs General'!K43 -> 358506.3589 | E97: =E92*'DNSP Inputs General'!L43 -> 375879.52 | F97: =F92*'DNSP Inputs General'!M43 -> 391250.7797 | G97: =G92*'DNSP Inputs General'!N43 -> 410980.9718 | H97: =H92*'DNSP Inputs General'!O43 -> 430828.6187 | K97: =D97/'Charges Summary'!D$4 -> 349421.4025 | L97: =E97/'Charges Summary'!E$4 -> 357070.4757 | M97: =F97/'Charges Summary'!F$4 -> 362253.9533 | N97: =G97/'Charges Summary'!G$4 -> 370879.0242 | O97: =H97/'Charges Summary'!H$4 -> 378937.6353
A98: ='DNSP Inputs General'!A$44 -> Flourescent 20 watt | D98: =IF('DNSP Inputs General'!$B44='DNSP Inputs General'!$A$41,D$90,IF('DNSP Inputs General'!$B44='DNSP Inputs General'!$A$42,D$91,D$92))*'DNSP Inputs General'!$D44*'DNSP Inputs General'!K44 -> 0 | E98: =IF('DNSP Inputs General'!$B44='DNSP Inputs General'!$A$41,E$90,IF('DNSP Inputs General'!$B44='DNSP Inputs General'!$A$42,E$91,E$92))*'DNSP Inputs General'!$D44*'DNSP Inputs General'!L44 -> 0 | F98: =IF('DNSP Inputs General'!$B44='DNSP Inputs General'!$A$41,F$90,IF('DNSP Inputs General'!$B44='DNSP Inputs General'!$A$42,F$91,F$92))*'DNSP Inputs General'!$D44*'DNSP Inputs General'!M44 -> 0 | G98: =IF('DNSP Inputs General'!$B44='DNSP Inputs General'!$A$41,G$90,IF('DNSP Inputs General'!$B44='DNSP Inputs General'!$A$42,G$91,G$92))*'DNSP Inputs General'!$D44*'DNSP Inputs General'!N44 -> 0 | H98: =IF('DNSP Inputs General'!$B44='DNSP Inputs General'!$A$41,H$90,IF('DNSP Inputs General'!$B44='DNSP Inputs General'!$A$42,H$91,H$92))*'DNSP Inputs General'!$D44*'DNSP Inputs General'!O44 -> 0 | K98: =D98/'Charges Summary'!D$4 -> 0 | L98: =E98/'Charges Summary'!E$4 -> 0 | M98: =F98/'Charges Summary'!F$4 -> 0 | N98: =G98/'Charges Summary'!G$4 -> 0 | O98: =H98/'Charges Summary'!H$4 -> 0
A99: ='DNSP Inputs General'!A$45 -> Flourescent 40 watt | D99: =IF('DNSP Inputs General'!$B45='DNSP Inputs General'!$A$41,D$90,IF('DNSP Inputs General'!$B45='DNSP Inputs General'!$A$42,D$91,D$92))*'DNSP Inputs General'!$D45*'DNSP Inputs General'!K45 -> 0 | E99: =IF('DNSP Inputs General'!$B45='DNSP Inputs General'!$A$41,E$90,IF('DNSP Inputs General'!$B45='DNSP Inputs General'!$A$42,E$91,E$92))*'DNSP Inputs General'!$D45*'DNSP Inputs General'!L45 -> 0 | F99: =IF('DNSP Inputs General'!$B45='DNSP Inputs General'!$A$41,F$90,IF('DNSP Inputs General'!$B45='DNSP Inputs General'!$A$42,F$91,F$92))*'DNSP Inputs General'!$D45*'DNSP Inputs General'!M45 -> 0 | G99: =IF('DNSP Inputs General'!$B45='DNSP Inputs General'!$A$41,G$90,IF('DNSP Inputs General'!$B45='DNSP Inputs General'!$A$42,G$91,G$92))*'DNSP Inputs General'!$D45*'DNSP Inputs General'!N45 -> 0 | H99: =IF('DNSP Inputs General'!$B45='DNSP Inputs General'!$A$41,H$90,IF('DNSP Inputs General'!$B45='DNSP Inputs General'!$A$42,H$91,H$92))*'DNSP Inputs General'!$D45*'DNSP Inputs General'!O45 -> 0 | K99: =D99/'Charges Summary'!D$4 -> 0 | L99: =E99/'Charges Summary'!E$4 -> 0 | M99: =F99/'Charges Summary'!F$4 -> 0 | N99: =G99/'Charges Summary'!G$4 -> 0 | O99: =H99/'Charges Summary'!H$4 -> 0
A100: ='DNSP Inputs General'!A$46 -> Mercury vapour 50 watt | D100: =IF('DNSP Inputs General'!$B46='DNSP Inputs General'!$A$41,D$90,IF('DNSP Inputs General'!$B46='DNSP Inputs General'!$A$42,D$91,D$92))*'DNSP Inputs General'!$D46*'DNSP Inputs General'!K46 -> 7055.891015 | E100: =IF('DNSP Inputs General'!$B46='DNSP Inputs General'!$A$41,E$90,IF('DNSP Inputs General'!$B46='DNSP Inputs General'!$A$42,E$91,E$92))*'DNSP Inputs General'!$D46*'DNSP Inputs General'!L46 -> 6700.92506 | F100: =IF('DNSP Inputs General'!$B46='DNSP Inputs General'!$A$41,F$90,IF('DNSP Inputs General'!$B46='DNSP Inputs General'!$A$42,F$91,F$92))*'DNSP Inputs General'!$D46*'DNSP Inputs General'!M46 -> 6329.777523 | G100: =IF('DNSP Inputs General'!$B46='DNSP Inputs General'!$A$41,G$90,IF('DNSP Inputs General'!$B46='DNSP Inputs General'!$A$42,G$91,G$92))*'DNSP Inputs General'!$D46*'DNSP Inputs General'!N46 -> 6029.806177 | H100: =IF('DNSP Inputs General'!$B46='DNSP Inputs General'!$A$41,H$90,IF('DNSP Inputs General'!$B46='DNSP Inputs General'!$A$42,H$91,H$92))*'DNSP Inputs General'!$D46*'DNSP Inputs General'!O46 -> 5731.529787 | K100: =D100/'Charges Summary'!D$4 -> 6877.086759 | L100: =E100/'Charges Summary'!E$4 -> 6365.610178 | M100: =F100/'Charges Summary'!F$4 -> 5860.657795 | N100: =G100/'Charges Summary'!G$4 -> 5441.440807 | O100: =H100/'Charges Summary'!H$4 -> 5041.197937
A101: ='DNSP Inputs General'!A$47 -> Mercury vapour 125 watt | D101: =IF('DNSP Inputs General'!$B47='DNSP Inputs General'!$A$41,D$90,IF('DNSP Inputs General'!$B47='DNSP Inputs General'!$A$42,D$91,D$92))*'DNSP Inputs General'!$D47*'DNSP Inputs General'!K47 -> 35768.67132 | E101: =IF('DNSP Inputs General'!$B47='DNSP Inputs General'!$A$41,E$90,IF('DNSP Inputs General'!$B47='DNSP Inputs General'!$A$42,E$91,E$92))*'DNSP Inputs General'!$D47*'DNSP Inputs General'!L47 -> 37609.86554 | F101: =IF('DNSP Inputs General'!$B47='DNSP Inputs General'!$A$41,F$90,IF('DNSP Inputs General'!$B47='DNSP Inputs General'!$A$42,F$91,F$92))*'DNSP Inputs General'!$D47*'DNSP Inputs General'!M47 -> 39334.31048 | G101: =IF('DNSP Inputs General'!$B47='DNSP Inputs General'!$A$41,G$90,IF('DNSP Inputs General'!$B47='DNSP Inputs General'!$A$42,G$91,G$92))*'DNSP Inputs General'!$D47*'DNSP Inputs General'!N47 -> 41486.09177 | H101: =IF('DNSP Inputs General'!$B47='DNSP Inputs General'!$A$41,H$90,IF('DNSP Inputs General'!$B47='DNSP Inputs General'!$A$42,H$91,H$92))*'DNSP Inputs General'!$D47*'DNSP Inputs General'!O47 -> 43660.20806 | K101: =D101/'Charges Summary'!D$4 -> 34862.25275 | L101: =E101/'Charges Summary'!E$4 -> 35727.86455 | M101: =F101/'Charges Summary'!F$4 -> 36419.12096 | N101: =G101/'Charges Summary'!G$4 -> 37438.03799 | O101: =H101/'Charges Summary'!H$4 -> 38401.57149
A102: ='DNSP Inputs General'!A$48 -> Mercury vapour 250 watt | D102: =IF('DNSP Inputs General'!$B48='DNSP Inputs General'!$A$41,D$90,IF('DNSP Inputs General'!$B48='DNSP Inputs General'!$A$42,D$91,D$92))*'DNSP Inputs General'!$D48*'DNSP Inputs General'!K48 -> 4324.548251 | E102: =IF('DNSP Inputs General'!$B48='DNSP Inputs General'!$A$41,E$90,IF('DNSP Inputs General'!$B48='DNSP Inputs General'!$A$42,E$91,E$92))*'DNSP Inputs General'!$D48*'DNSP Inputs General'!L48 -> 3371.571966 | F102: =IF('DNSP Inputs General'!$B48='DNSP Inputs General'!$A$41,F$90,IF('DNSP Inputs General'!$B48='DNSP Inputs General'!$A$42,F$91,F$92))*'DNSP Inputs General'!$D48*'DNSP Inputs General'!M48 -> 2609.629621 | G102: =IF('DNSP Inputs General'!$B48='DNSP Inputs General'!$A$41,G$90,IF('DNSP Inputs General'!$B48='DNSP Inputs General'!$A$42,G$91,G$92))*'DNSP Inputs General'!$D48*'DNSP Inputs General'!N48 -> 2038.380513 | H102: =IF('DNSP Inputs General'!$B48='DNSP Inputs General'!$A$41,H$90,IF('DNSP Inputs General'!$B48='DNSP Inputs General'!$A$42,H$91,H$92))*'DNSP Inputs General'!$D48*'DNSP Inputs General'!O48 -> 1588.941746 | K102: =D102/'Charges Summary'!D$4 -> 4214.959309 | L102: =E102/'Charges Summary'!E$4 -> 3202.858207 | M102: =F102/'Charges Summary'!F$4 -> 2416.221758 | N102: =G102/'Charges Summary'!G$4 -> 1839.483157 | O102: =H102/'Charges Summary'!H$4 -> 1397.562283
A103: ='DNSP Inputs General'!A$49 -> Mercury vapour 400 watt | D103: =IF('DNSP Inputs General'!$B49='DNSP Inputs General'!$A$41,D$90,IF('DNSP Inputs General'!$B49='DNSP Inputs General'!$A$42,D$91,D$92))*'DNSP Inputs General'!$D49*'DNSP Inputs General'!K49 -> 1926.522613 | E103: =IF('DNSP Inputs General'!$B49='DNSP Inputs General'!$A$41,E$90,IF('DNSP Inputs General'!$B49='DNSP Inputs General'!$A$42,E$91,E$92))*'DNSP Inputs General'!$D49*'DNSP Inputs General'!L49 -> 1739.823388 | F103: =IF('DNSP Inputs General'!$B49='DNSP Inputs General'!$A$41,F$90,IF('DNSP Inputs General'!$B49='DNSP Inputs General'!$A$42,F$91,F$92))*'DNSP Inputs General'!$D49*'DNSP Inputs General'!M49 -> 1559.879213 | G103: =IF('DNSP Inputs General'!$B49='DNSP Inputs General'!$A$41,G$90,IF('DNSP Inputs General'!$B49='DNSP Inputs General'!$A$42,G$91,G$92))*'DNSP Inputs General'!$D49*'DNSP Inputs General'!N49 -> 1411.356484 | H103: =IF('DNSP Inputs General'!$B49='DNSP Inputs General'!$A$41,H$90,IF('DNSP Inputs General'!$B49='DNSP Inputs General'!$A$42,H$91,H$92))*'DNSP Inputs General'!$D49*'DNSP Inputs General'!O49 -> 1274.379587 | K103: =D103/'Charges Summary'!D$4 -> 1877.702351 | L103: =E103/'Charges Summary'!E$4 -> 1652.762472 | M103: =F103/'Charges Summary'!F$4 -> 1444.271656 | N103: =G103/'Charges Summary'!G$4 -> 1273.64173 | O103: =H103/'Charges Summary'!H$4 -> 1120.887439
A104: ='DNSP Inputs General'!A$50 -> Mercury vapour 700 watt | D104: =IF('DNSP Inputs General'!$B50='DNSP Inputs General'!$A$41,D$90,IF('DNSP Inputs General'!$B50='DNSP Inputs General'!$A$42,D$91,D$92))*'DNSP Inputs General'!$D50*'DNSP Inputs General'!K50 -> 0 | E104: =IF('DNSP Inputs General'!$B50='DNSP Inputs General'!$A$41,E$90,IF('DNSP Inputs General'!$B50='DNSP Inputs General'!$A$42,E$91,E$92))*'DNSP Inputs General'!$D50*'DNSP Inputs General'!L50 -> 0 | F104: =IF('DNSP Inputs General'!$B50='DNSP Inputs General'!$A$41,F$90,IF('DNSP Inputs General'!$B50='DNSP Inputs General'!$A$42,F$91,F$92))*'DNSP Inputs General'!$D50*'DNSP Inputs General'!M50 -> 0 | G104: =IF('DNSP Inputs General'!$B50='DNSP Inputs General'!$A$41,G$90,IF('DNSP Inputs General'!$B50='DNSP Inputs General'!$A$42,G$91,G$92))*'DNSP Inputs General'!$D50*'DNSP Inputs General'!N50 -> 0 | H104: =IF('DNSP Inputs General'!$B50='DNSP Inputs General'!$A$41,H$90,IF('DNSP Inputs General'!$B50='DNSP Inputs General'!$A$42,H$91,H$92))*'DNSP Inputs General'!$D50*'DNSP Inputs General'!O50 -> 0 | K104: =D104/'Charges Summary'!D$4 -> 0 | L104: =E104/'Charges Summary'!E$4 -> 0 | M104: =F104/'Charges Summary'!F$4 -> 0 | N104: =G104/'Charges Summary'!G$4 -> 0 | O104: =H104/'Charges Summary'!H$4 -> 0
A105: ='DNSP Inputs General'!A$51 -> Sodium low pressure 90 watt | D105: =IF('DNSP Inputs General'!$B51='DNSP Inputs General'!$A$41,D$90,IF('DNSP Inputs General'!$B51='DNSP Inputs General'!$A$42,D$91,D$92))*'DNSP Inputs General'!$D51*'DNSP Inputs General'!K51 -> 0 | E105: =IF('DNSP Inputs General'!$B51='DNSP Inputs General'!$A$41,E$90,IF('DNSP Inputs General'!$B51='DNSP Inputs General'!$A$42,E$91,E$92))*'DNSP Inputs General'!$D51*'DNSP Inputs General'!L51 -> 0 | F105: =IF('DNSP Inputs General'!$B51='DNSP Inputs General'!$A$41,F$90,IF('DNSP Inputs General'!$B51='DNSP Inputs General'!$A$42,F$91,F$92))*'DNSP Inputs General'!$D51*'DNSP Inputs General'!M51 -> 0 | G105: =IF('DNSP Inputs General'!$B51='DNSP Inputs General'!$A$41,G$90,IF('DNSP Inputs General'!$B51='DNSP Inputs General'!$A$42,G$91,G$92))*'DNSP Inputs General'!$D51*'DNSP Inputs General'!N51 -> 0 | H105: =IF('DNSP Inputs General'!$B51='DNSP Inputs General'!$A$41,H$90,IF('DNSP Inputs General'!$B51='DNSP Inputs General'!$A$42,H$91,H$92))*'DNSP Inputs General'!$D51*'DNSP Inputs General'!O51 -> 0 | K105: =D105/'Charges Summary'!D$4 -> 0 | L105: =E105/'Charges Summary'!E$4 -> 0 | M105: =F105/'Charges Summary'!F$4 -> 0 | N105: =G105/'Charges Summary'!G$4 -> 0 | O105: =H105/'Charges Summary'!H$4 -> 0
A106: ='DNSP Inputs General'!A$52 -> Sodium low pressure 180 watt | D106: =IF('DNSP Inputs General'!$B52='DNSP Inputs General'!$A$41,D$90,IF('DNSP Inputs General'!$B52='DNSP Inputs General'!$A$42,D$91,D$92))*'DNSP Inputs General'!$D52*'DNSP Inputs General'!K52 -> 0 | E106: =IF('DNSP Inputs General'!$B52='DNSP Inputs General'!$A$41,E$90,IF('DNSP Inputs General'!$B52='DNSP Inputs General'!$A$42,E$91,E$92))*'DNSP Inputs General'!$D52*'DNSP Inputs General'!L52 -> 0 | F106: =IF('DNSP Inputs General'!$B52='DNSP Inputs General'!$A$41,F$90,IF('DNSP Inputs General'!$B52='DNSP Inputs General'!$A$42,F$91,F$92))*'DNSP Inputs General'!$D52*'DNSP Inputs General'!M52 -> 0 | G106: =IF('DNSP Inputs General'!$B52='DNSP Inputs General'!$A$41,G$90,IF('DNSP Inputs General'!$B52='DNSP Inputs General'!$A$42,G$91,G$92))*'DNSP Inputs General'!$D52*'DNSP Inputs General'!N52 -> 0 | H106: =IF('DNSP Inputs General'!$B52='DNSP Inputs General'!$A$41,H$90,IF('DNSP Inputs General'!$B52='DNSP Inputs General'!$A$42,H$91,H$92))*'DNSP Inputs General'!$D52*'DNSP Inputs General'!O52 -> 0 | K106: =D106/'Charges Summary'!D$4 -> 0 | L106: =E106/'Charges Summary'!E$4 -> 0 | M106: =F106/'Charges Summary'!F$4 -> 0 | N106: =G106/'Charges Summary'!G$4 -> 0 | O106: =H106/'Charges Summary'!H$4 -> 0
A107: ='DNSP Inputs General'!A$53 -> Sodium high pressure 400 watt | D107: =IF('DNSP Inputs General'!$B53='DNSP Inputs General'!$A$41,D$90,IF('DNSP Inputs General'!$B53='DNSP Inputs General'!$A$42,D$91,D$92))*'DNSP Inputs General'!$D53*'DNSP Inputs General'!K53 -> 26810.48586 | E107: =IF('DNSP Inputs General'!$B53='DNSP Inputs General'!$A$41,E$90,IF('DNSP Inputs General'!$B53='DNSP Inputs General'!$A$42,E$91,E$92))*'DNSP Inputs General'!$D53*'DNSP Inputs General'!L53 -> 27281.40287 | F107: =IF('DNSP Inputs General'!$B53='DNSP Inputs General'!$A$41,F$90,IF('DNSP Inputs General'!$B53='DNSP Inputs General'!$A$42,F$91,F$92))*'DNSP Inputs General'!$D53*'DNSP Inputs General'!M53 -> 27560.26985 | G107: =IF('DNSP Inputs General'!$B53='DNSP Inputs General'!$A$41,G$90,IF('DNSP Inputs General'!$B53='DNSP Inputs General'!$A$42,G$91,G$92))*'DNSP Inputs General'!$D53*'DNSP Inputs General'!N53 -> 28097.0147 | H107: =IF('DNSP Inputs General'!$B53='DNSP Inputs General'!$A$41,H$90,IF('DNSP Inputs General'!$B53='DNSP Inputs General'!$A$42,H$91,H$92))*'DNSP Inputs General'!$D53*'DNSP Inputs General'!O53 -> 28585.98904 | K107: =D107/'Charges Summary'!D$4 -> 26131.07783 | L107: =E107/'Charges Summary'!E$4 -> 25916.23906 | M107: =F107/'Charges Summary'!F$4 -> 25517.69154 | N107: =G107/'Charges Summary'!G$4 -> 25355.41573 | O107: =H107/'Charges Summary'!H$4 -> 25142.96084
A108: ='DNSP Inputs General'!A$54 -> Incandescent 100 watt | D108: =IF('DNSP Inputs General'!$B54='DNSP Inputs General'!$A$41,D$90,IF('DNSP Inputs General'!$B54='DNSP Inputs General'!$A$42,D$91,D$92))*'DNSP Inputs General'!$D54*'DNSP Inputs General'!K54 -> 0 | E108: =IF('DNSP Inputs General'!$B54='DNSP Inputs General'!$A$41,E$90,IF('DNSP Inputs General'!$B54='DNSP Inputs General'!$A$42,E$91,E$92))*'DNSP Inputs General'!$D54*'DNSP Inputs General'!L54 -> 0 | F108: =IF('DNSP Inputs General'!$B54='DNSP Inputs General'!$A$41,F$90,IF('DNSP Inputs General'!$B54='DNSP Inputs General'!$A$42,F$91,F$92))*'DNSP Inputs General'!$D54*'DNSP Inputs General'!M54 -> 0 | G108: =IF('DNSP Inputs General'!$B54='DNSP Inputs General'!$A$41,G$90,IF('DNSP Inputs General'!$B54='DNSP Inputs General'!$A$42,G$91,G$92))*'DNSP Inputs General'!$D54*'DNSP Inputs General'!N54 -> 0 | H108: =IF('DNSP Inputs General'!$B54='DNSP Inputs General'!$A$41,H$90,IF('DNSP Inputs General'!$B54='DNSP Inputs General'!$A$42,H$91,H$92))*'DNSP Inputs General'!$D54*'DNSP Inputs General'!O54 -> 0 | K108: =D108/'Charges Summary'!D$4 -> 0 | L108: =E108/'Charges Summary'!E$4 -> 0 | M108: =F108/'Charges Summary'!F$4 -> 0 | N108: =G108/'Charges Summary'!G$4 -> 0 | O108: =H108/'Charges Summary'!H$4 -> 0
A109: ='DNSP Inputs General'!A$55 -> Incandescent 150 watt | D109: =IF('DNSP Inputs General'!$B55='DNSP Inputs General'!$A$41,D$90,IF('DNSP Inputs General'!$B55='DNSP Inputs General'!$A$42,D$91,D$92))*'DNSP Inputs General'!$D55*'DNSP Inputs General'!K55 -> 0 | E109: =IF('DNSP Inputs General'!$B55='DNSP Inputs General'!$A$41,E$90,IF('DNSP Inputs General'!$B55='DNSP Inputs General'!$A$42,E$91,E$92))*'DNSP Inputs General'!$D55*'DNSP Inputs General'!L55 -> 0 | F109: =IF('DNSP Inputs General'!$B55='DNSP Inputs General'!$A$41,F$90,IF('DNSP Inputs General'!$B55='DNSP Inputs General'!$A$42,F$91,F$92))*'DNSP Inputs General'!$D55*'DNSP Inputs General'!M55 -> 0 | G109: =IF('DNSP Inputs General'!$B55='DNSP Inputs General'!$A$41,G$90,IF('DNSP Inputs General'!$B55='DNSP Inputs General'!$A$42,G$91,G$92))*'DNSP Inputs General'!$D55*'DNSP Inputs General'!N55 -> 0 | H109: =IF('DNSP Inputs General'!$B55='DNSP Inputs General'!$A$41,H$90,IF('DNSP Inputs General'!$B55='DNSP Inputs General'!$A$42,H$91,H$92))*'DNSP Inputs General'!$D55*'DNSP Inputs General'!O55 -> 0 | K109: =D109/'Charges Summary'!D$4 -> 0 | L109: =E109/'Charges Summary'!E$4 -> 0 | M109: =F109/'Charges Summary'!F$4 -> 0 | N109: =G109/'Charges Summary'!G$4 -> 0 | O109: =H109/'Charges Summary'!H$4 -> 0
A110: ='DNSP Inputs General'!A$56 -> Metal halide 250 watt | D110: =IF('DNSP Inputs General'!$B56='DNSP Inputs General'!$A$41,D$90,IF('DNSP Inputs General'!$B56='DNSP Inputs General'!$A$42,D$91,D$92))*'DNSP Inputs General'!$D56*'DNSP Inputs General'!K56 -> 12765.86548 | E110: =IF('DNSP Inputs General'!$B56='DNSP Inputs General'!$A$41,E$90,IF('DNSP Inputs General'!$B56='DNSP Inputs General'!$A$42,E$91,E$92))*'DNSP Inputs General'!$D56*'DNSP Inputs General'!L56 -> 13204.48454 | F110: =IF('DNSP Inputs General'!$B56='DNSP Inputs General'!$A$41,F$90,IF('DNSP Inputs General'!$B56='DNSP Inputs General'!$A$42,F$91,F$92))*'DNSP Inputs General'!$D56*'DNSP Inputs General'!M56 -> 13559.61606 | G110: =IF('DNSP Inputs General'!$B56='DNSP Inputs General'!$A$41,G$90,IF('DNSP Inputs General'!$B56='DNSP Inputs General'!$A$42,G$91,G$92))*'DNSP Inputs General'!$D56*'DNSP Inputs General'!N56 -> 14051.84271 | H110: =IF('DNSP Inputs General'!$B56='DNSP Inputs General'!$A$41,H$90,IF('DNSP Inputs General'!$B56='DNSP Inputs General'!$A$42,H$91,H$92))*'DNSP Inputs General'!$D56*'DNSP Inputs General'!O56 -> 14532.33825 | K110: =D110/'Charges Summary'!D$4 -> 12442.36402 | L110: =E110/'Charges Summary'!E$4 -> 12543.73096 | M110: =F110/'Charges Summary'!F$4 -> 12554.67025 | N110: =G110/'Charges Summary'!G$4 -> 12680.71777 | O110: =H110/'Charges Summary'!H$4 -> 12781.99649
A111: ='DNSP Inputs General'!A57 -> Metal halide 400 watt | D111: =IF('DNSP Inputs General'!$B57='DNSP Inputs General'!$A$41,D$90,IF('DNSP Inputs General'!$B57='DNSP Inputs General'!$A$42,D$91,D$92))*'DNSP Inputs General'!$D57*'DNSP Inputs General'!K57 -> 0 | E111: =IF('DNSP Inputs General'!$B57='DNSP Inputs General'!$A$41,E$90,IF('DNSP Inputs General'!$B57='DNSP Inputs General'!$A$42,E$91,E$92))*'DNSP Inputs General'!$D57*'DNSP Inputs General'!L57 -> 0 | F111: =IF('DNSP Inputs General'!$B57='DNSP Inputs General'!$A$41,F$90,IF('DNSP Inputs General'!$B57='DNSP Inputs General'!$A$42,F$91,F$92))*'DNSP Inputs General'!$D57*'DNSP Inputs General'!M57 -> 0 | G111: =IF('DNSP Inputs General'!$B57='DNSP Inputs General'!$A$41,G$90,IF('DNSP Inputs General'!$B57='DNSP Inputs General'!$A$42,G$91,G$92))*'DNSP Inputs General'!$D57*'DNSP Inputs General'!N57 -> 0 | H111: =IF('DNSP Inputs General'!$B57='DNSP Inputs General'!$A$41,H$90,IF('DNSP Inputs General'!$B57='DNSP Inputs General'!$A$42,H$91,H$92))*'DNSP Inputs General'!$D57*'DNSP Inputs General'!O57 -> 0 | K111: =D111/'Charges Summary'!D$4 -> 0 | L111: =E111/'Charges Summary'!E$4 -> 0 | M111: =F111/'Charges Summary'!F$4 -> 0 | N111: =G111/'Charges Summary'!G$4 -> 0 | O111: =H111/'Charges Summary'!H$4 -> 0
A112: ='DNSP Inputs General'!A58 -> Metal halide 70 watt | D112: =IF('DNSP Inputs General'!$B58='DNSP Inputs General'!$A$41,D$90,IF('DNSP Inputs General'!$B58='DNSP Inputs General'!$A$42,D$91,D$92))*'DNSP Inputs General'!$D58*'DNSP Inputs General'!K58 -> 431.5351588 | E112: =IF('DNSP Inputs General'!$B58='DNSP Inputs General'!$A$41,E$90,IF('DNSP Inputs General'!$B58='DNSP Inputs General'!$A$42,E$91,E$92))*'DNSP Inputs General'!$D58*'DNSP Inputs General'!L58 -> 445.771285 | F112: =IF('DNSP Inputs General'!$B58='DNSP Inputs General'!$A$41,F$90,IF('DNSP Inputs General'!$B58='DNSP Inputs General'!$A$42,F$91,F$92))*'DNSP Inputs General'!$D58*'DNSP Inputs General'!M58 -> 458.0140299 | G112: =IF('DNSP Inputs General'!$B58='DNSP Inputs General'!$A$41,G$90,IF('DNSP Inputs General'!$B58='DNSP Inputs General'!$A$42,G$91,G$92))*'DNSP Inputs General'!$D58*'DNSP Inputs General'!N58 -> 474.5770094 | H112: =IF('DNSP Inputs General'!$B58='DNSP Inputs General'!$A$41,H$90,IF('DNSP Inputs General'!$B58='DNSP Inputs General'!$A$42,H$91,H$92))*'DNSP Inputs General'!$D58*'DNSP Inputs General'!O58 -> 490.6670606 | K112: =D112/'Charges Summary'!D$4 -> 420.59957 | L112: =E112/'Charges Summary'!E$4 -> 423.4648506 | M112: =F112/'Charges Summary'!F$4 -> 424.069169 | N112: =G112/'Charges Summary'!G$4 -> 428.2696042 | O112: =H112/'Charges Summary'!H$4 -> 431.5688596
A113: ='DNSP Inputs General'!A59 -> Metal halide 150 watt | D113: =IF('DNSP Inputs General'!$B59='DNSP Inputs General'!$A$41,D$90,IF('DNSP Inputs General'!$B59='DNSP Inputs General'!$A$42,D$91,D$92))*'DNSP Inputs General'!$D59*'DNSP Inputs General'!K59 -> 1709.379706 | E113: =IF('DNSP Inputs General'!$B59='DNSP Inputs General'!$A$41,E$90,IF('DNSP Inputs General'!$B59='DNSP Inputs General'!$A$42,E$91,E$92))*'DNSP Inputs General'!$D59*'DNSP Inputs General'!L59 -> 1766.192985 | F113: =IF('DNSP Inputs General'!$B59='DNSP Inputs General'!$A$41,F$90,IF('DNSP Inputs General'!$B59='DNSP Inputs General'!$A$42,F$91,F$92))*'DNSP Inputs General'!$D59*'DNSP Inputs General'!M59 -> 1814.518637 | G113: =IF('DNSP Inputs General'!$B59='DNSP Inputs General'!$A$41,G$90,IF('DNSP Inputs General'!$B59='DNSP Inputs General'!$A$42,G$91,G$92))*'DNSP Inputs General'!$D59*'DNSP Inputs General'!N59 -> 1880.181605 | H113: =IF('DNSP Inputs General'!$B59='DNSP Inputs General'!$A$41,H$90,IF('DNSP Inputs General'!$B59='DNSP Inputs General'!$A$42,H$91,H$92))*'DNSP Inputs General'!$D59*'DNSP Inputs General'!O59 -> 1944.025735 | K113: =D113/'Charges Summary'!D$4 -> 1666.062092 | L113: =E113/'Charges Summary'!E$4 -> 1677.812532 | M113: =F113/'Charges Summary'!F$4 -> 1680.038951 | N113: =G113/'Charges Summary'!G$4 -> 1696.720692 | O113: =H113/'Charges Summary'!H$4 -> 1709.878321
A119: ='DNSP Inputs General'!A$62 -> Energy Efficient Lights
A120: ='DNSP Inputs General'!A63 -> T5 2X14W | D120: =SUM('Charges Summary'!D$85,'Charges Summary'!D$11)*'DNSP Inputs General'!$D63*'DNSP Inputs General'!K63 -> 160136.6434 | E120: =SUM('Charges Summary'!E$85,'Charges Summary'!E$11)*'DNSP Inputs General'!$D63*'DNSP Inputs General'!L63 -> 147300.5378 | F120: =SUM('Charges Summary'!F$85,'Charges Summary'!F$11)*'DNSP Inputs General'!$D63*'DNSP Inputs General'!M63 -> 145389.9562 | G120: =SUM('Charges Summary'!G$85,'Charges Summary'!G$11)*'DNSP Inputs General'!$D63*'DNSP Inputs General'!N63 -> 142978.2404 | H120: =SUM('Charges Summary'!H$85,'Charges Summary'!H$11)*'DNSP Inputs General'!$D63*'DNSP Inputs General'!O63 -> 140097.8635 | K120: =D120/'Charges Summary'!D$4 -> 156078.5998 | L120: =E120/'Charges Summary'!E$4 -> 139929.6059 | M120: =F120/'Charges Summary'!F$4 -> 134614.649 | N120: =G120/'Charges Summary'!G$4 -> 129026.9718 | O120: =H120/'Charges Summary'!H$4 -> 123223.8314
A121: ='DNSP Inputs General'!A64 -> T5 2X24W | D121: =SUM('Charges Summary'!D$85,'Charges Summary'!D$11)*'DNSP Inputs General'!$D64*'DNSP Inputs General'!K64 -> 21862.11283 | E121: =SUM('Charges Summary'!E$85,'Charges Summary'!E$11)*'DNSP Inputs General'!$D64*'DNSP Inputs General'!L64 -> 20109.70699 | F121: =SUM('Charges Summary'!F$85,'Charges Summary'!F$11)*'DNSP Inputs General'!$D64*'DNSP Inputs General'!M64 -> 19848.8713 | G121: =SUM('Charges Summary'!G$85,'Charges Summary'!G$11)*'DNSP Inputs General'!$D64*'DNSP Inputs General'!N64 -> 19519.61997 | H121: =SUM('Charges Summary'!H$85,'Charges Summary'!H$11)*'DNSP Inputs General'!$D64*'DNSP Inputs General'!O64 -> 19126.38627 | K121: =D121/'Charges Summary'!D$4 -> 21308.10217 | L121: =E121/'Charges Summary'!E$4 -> 19103.41548 | M121: =F121/'Charges Summary'!F$4 -> 18377.809 | N121: =G121/'Charges Summary'!G$4 -> 17614.97029 | O121: =H121/'Charges Summary'!H$4 -> 16822.7162
A122: ='DNSP Inputs General'!A65 -> CF32 | D122: =SUM('Charges Summary'!D$85,'Charges Summary'!D$11)*'DNSP Inputs General'!$D65*'DNSP Inputs General'!K65 -> 44586.17606 | E122: =SUM('Charges Summary'!E$85,'Charges Summary'!E$11)*'DNSP Inputs General'!$D65*'DNSP Inputs General'!L65 -> 41012.27286 | F122: =SUM('Charges Summary'!F$85,'Charges Summary'!F$11)*'DNSP Inputs General'!$D65*'DNSP Inputs General'!M65 -> 40480.3176 | G122: =SUM('Charges Summary'!G$85,'Charges Summary'!G$11)*'DNSP Inputs General'!$D65*'DNSP Inputs General'!N65 -> 39808.83366 | H122: =SUM('Charges Summary'!H$85,'Charges Summary'!H$11)*'DNSP Inputs General'!$D65*'DNSP Inputs General'!O65 -> 39006.86235 | K122: =D122/'Charges Summary'!D$4 -> 43456.31195 | L122: =E122/'Charges Summary'!E$4 -> 38960.01511 | M122: =F122/'Charges Summary'!F$4 -> 37480.19389 | N122: =G122/'Charges Summary'!G$4 -> 35924.44029 | O122: =H122/'Charges Summary'!H$4 -> 34308.69617
A123: ='DNSP Inputs General'!A66 -> CF42 | D123: =SUM('Charges Summary'!D$85,'Charges Summary'!D$11)*'DNSP Inputs General'!$D66*'DNSP Inputs General'!K66 -> 65168.85236 | E123: =SUM('Charges Summary'!E$85,'Charges Summary'!E$11)*'DNSP Inputs General'!$D66*'DNSP Inputs General'!L66 -> 59945.09937 | F123: =SUM('Charges Summary'!F$85,'Charges Summary'!F$11)*'DNSP Inputs General'!$D66*'DNSP Inputs General'!M66 -> 59167.57331 | G123: =SUM('Charges Summary'!G$85,'Charges Summary'!G$11)*'DNSP Inputs General'!$D66*'DNSP Inputs General'!N66 -> 58186.10682 | H123: =SUM('Charges Summary'!H$85,'Charges Summary'!H$11)*'DNSP Inputs General'!$D66*'DNSP Inputs General'!O66 -> 57013.91503 | K123: =D123/'Charges Summary'!D$4 -> 63517.39996 | L123: =E123/'Charges Summary'!E$4 -> 56945.44131 | M123: =F123/'Charges Summary'!F$4 -> 54782.47828 | N123: =G123/'Charges Summary'!G$4 -> 52508.52959 | O123: =H123/'Charges Summary'!H$4 -> 50146.89647
A124: ='DNSP Inputs General'!A67 -> Category P LED 18 Watt | D124: =SUM('Charges Summary'!D$103,'Charges Summary'!D$11)*'DNSP Inputs General'!$D67*'DNSP Inputs General'!K67 -> 590100.1367 | E124: =SUM('Charges Summary'!E$103,'Charges Summary'!E$11)*'DNSP Inputs General'!$D67*'DNSP Inputs General'!L67 -> 785804.4567 | F124: =SUM('Charges Summary'!F$103,'Charges Summary'!F$11)*'DNSP Inputs General'!$D67*'DNSP Inputs General'!M67 -> 853453.4897 | G124: =SUM('Charges Summary'!G$103,'Charges Summary'!G$11)*'DNSP Inputs General'!$D67*'DNSP Inputs General'!N67 -> 923738.0075 | H124: =SUM('Charges Summary'!H$103,'Charges Summary'!H$11)*'DNSP Inputs General'!$D67*'DNSP Inputs General'!O67 -> 996392.9094 | K124: =D124/'Charges Summary'!D$4 -> 575146.3321 | L124: =E124/'Charges Summary'!E$4 -> 746482.7323 | M124: =F124/'Charges Summary'!F$4 -> 790201.3662 | N124: =G124/'Charges Summary'!G$4 -> 833603.1941 | O124: =H124/'Charges Summary'!H$4 -> 876382.7576
A125: ='DNSP Inputs General'!A68 -> Category P LED 47 Watt | D125: =SUM('Charges Summary'!D$103,'Charges Summary'!D$11)*'DNSP Inputs General'!$D68*'DNSP Inputs General'!K68 -> 0 | E125: =SUM('Charges Summary'!E$103,'Charges Summary'!E$11)*'DNSP Inputs General'!$D68*'DNSP Inputs General'!L68 -> 0 | F125: =SUM('Charges Summary'!F$103,'Charges Summary'!F$11)*'DNSP Inputs General'!$D68*'DNSP Inputs General'!M68 -> 0 | G125: =SUM('Charges Summary'!G$103,'Charges Summary'!G$11)*'DNSP Inputs General'!$D68*'DNSP Inputs General'!N68 -> 0 | H125: =SUM('Charges Summary'!H$103,'Charges Summary'!H$11)*'DNSP Inputs General'!$D68*'DNSP Inputs General'!O68 -> 0 | K125: =D125/'Charges Summary'!D$4 -> 0 | L125: =E125/'Charges Summary'!E$4 -> 0 | M125: =F125/'Charges Summary'!F$4 -> 0 | N125: =G125/'Charges Summary'!G$4 -> 0 | O125: =H125/'Charges Summary'!H$4 -> 0
A129: Total Capital Charge | D129: =SUM(D95:D128) -> 3570250.003 | E129: =SUM(E95:E128) -> 3544509.42 | F129: =SUM(F95:F128) -> 3550851.901 | G129: =SUM(G95:G128) -> 3593417.332 | H129: =SUM(H95:H128) -> 3645001.03 | K129: =SUM(K95:K128) -> 3479775.831 | L129: =SUM(L95:L128) -> 3367141.856 | M129: =SUM(M95:M128) -> 3287687.094 | N129: =SUM(N95:N128) -> 3242785.446 | O129: =SUM(O95:O128) -> 3205980.315
A131: Check | C131: =SUM(D131:O131) -> 2.980232239e-08 | D131: =ABS(D37-SUM(D83,D129)) -> 1.862645149e-09 | E131: =ABS(E37-SUM(E83,E129)) -> 1.862645149e-09 | F131: =ABS(F37-SUM(F83,F129)) -> 3.725290298e-09 | G131: =ABS(G37-SUM(G83,G129)) -> 5.587935448e-09 | H131: =ABS(H37-SUM(H83,H129)) -> 5.587935448e-09 | K131: =ABS(K37-SUM(K83,K129)) -> 3.725290298e-09 | L131: =ABS(L37-SUM(L83,L129)) -> 1.862645149e-09 | M131: =ABS(M37-SUM(M83,M129)) -> 5.587935448e-09 | N131: =ABS(N37-SUM(N83,N129)) -> 0 | O131: =ABS(O37-SUM(O83,O129)) -> 0
A133: Public Lighting - Capital Expenditure | D133: Forecast Capital Expenditure - Nominal | K133: Forecast Capital Expenditure - Real 2015 $
D134: =D$2 -> 2016 | E134: 2017 | F134: 2018 | G134: 2019 | H134: 2020 | K134: =K$2 -> 2016 | L134: 2017 | M134: 2018 | N134: 2019 | O134: 2020
A136: Total Capital Expenditure | D136: =K136*'Charges Summary'!D$4 -> 818917.6255 | E136: =L136*'Charges Summary'!E$4 -> 846090.0847 | F136: =M136*'Charges Summary'!F$4 -> 1346862.165 | G136: =N136*'Charges Summary'!G$4 -> 1453487.084 | H136: =O136*'Charges Summary'!H$4 -> 1557896.202 | K136: ='DNSP Inputs General'!K14 -> 798165.327 | L136: ='DNSP Inputs General'!L14 -> 803751.6621 | M136: ='DNSP Inputs General'!M14 -> 1247041.972 | N136: ='DNSP Inputs General'!N14 -> 1311661.387 | O136: ='DNSP Inputs General'!O14 -> 1370256.008
A137: Check | C137: =SUM(D137:H137) -> 5.820766091e-10 | D137: =ABS(D136-D144) -> 1.164153218e-10 | E137: =ABS(E136-E144) -> 0 | F137: =ABS(F136-F144) -> 2.328306437e-10 | G137: =ABS(G136-G144) -> 0 | H137: =ABS(H136-H144) -> 2.328306437e-10
A140: Public Lighting - RAB | D140: RAB - Historical Cost ($)
D141: ='DNSP Inputs General'!K$2 -> 2016 | E141: ='DNSP Inputs General'!L$2 -> 2017 | F141: ='DNSP Inputs General'!M$2 -> 2018 | G141: ='DNSP Inputs General'!N$2 -> 2019 | H141: ='DNSP Inputs General'!O$2 -> 2020
A143: Opening RAB | D143: ='Total RAB'!N139 -> 26211564.41 | E143: =D146 -> 25614343.43 | F143: =E146 -> 25020530.94 | G143: 24891086.31 | H143: 24817252.01
A144: Capex | D144: ='Total RAB'!N140 -> 818917.6255 | E144: ='Total RAB'!O140 -> 846090.0847 | F144: ='Total RAB'!P140 -> 1346862.165 | G144: ='Total RAB'!Q140 -> 1453487.084 | H144: ='Total RAB'!R140 -> 1557896.202
A145: Depreciation | D145: ='Total RAB'!N141 -> 1416138.603 | E145: ='Total RAB'!O141 -> 1439902.581 | F145: ='Total RAB'!P141 -> 1476306.791 | G145: ='Total RAB'!Q141 -> 1527321.384 | H145: ='Total RAB'!R141 -> 1583018.135
A146: Closing RAB | D146: =D143+D144-D145 -> 25614343.43 | E146: =E143+E144-E145 -> 25020530.94 | F146: =F143+F144-F145 -> 24891086.31 | G146: =G143+G144-G145 -> 24817252.01 | H146: =H143+H144-H145 -> 24792130.08
A148: Average RAB | D148: =SUM(D143,D146)/2 -> 25912953.92 | E148: =SUM(E143,E146)/2 -> 25317437.18 | F148: =SUM(F143,F146)/2 -> 24955808.62 | G148: =SUM(G143,G146)/2 -> 24854169.16 | H148: =SUM(H143,H146)/2 -> 24804691.04
A150: =WACC!A$8 -> Nominal Pre Tax WACC | D150: =WACC!E$8 -> 0.08312874735 | E150: =WACC!F$8 -> 0.08312874735 | F150: =WACC!G$8 -> 0.08312874735 | G150: =WACC!H$8 -> 0.08312874735 | H150: =WACC!I$8 -> 0.08312874735
A152: Capital Charge | D152: Capital Charge - Nominal
D153: =D$2 -> 2016 | E153: 2017 | F153: 2018 | G153: 2019 | H153: 2020
A155: Depreciation | D155: =D145 -> 1416138.603 | E155: =E145 -> 1439902.581 | F155: =F145 -> 1476306.791 | G155: =G145 -> 1527321.384 | H155: =H145 -> 1583018.135
A156: Return | D156: =D150*D148 -> 2154111.4 | E156: =E150*E148 -> 2104606.839 | F156: =F150*F148 -> 2074545.11 | G156: =G150*G148 -> 2066095.949 | H156: =H150*H148 -> 2061982.895
D158: =SUM(D155:D157) -> 3570250.003 | E158: =SUM(E155:E157) -> 3544509.42 | F158: =SUM(F155:F157) -> 3550851.901 | G158: =SUM(G155:G157) -> 3593417.332 | H158: =SUM(H155:H157) -> 3645001.03
A160: Check | C160: =SUM(D160:H160) -> 3.725290298e-09 | D160: =ABS(D129-D158)*IF('DNSP Inputs General'!K73=0,0,1) -> 1.862645149e-09 | E160: =ABS(E129-E158)*IF('DNSP Inputs General'!L73=0,0,1) -> 4.656612873e-10 | F160: =ABS(F129-F158)*IF('DNSP Inputs General'!M73=0,0,1) -> 9.313225746e-10 | G160: =ABS(G129-G158)*IF('DNSP Inputs General'!N73=0,0,1) -> 0 | H160: =ABS(H129-H158)*IF('DNSP Inputs General'!O73=0,0,1) -> 4.656612873e-10

Sheet Charges Summary
A1: ='DNSP Inputs O & M'!$A$3 -> Powercor | D1: ='DNSP Inputs General'!K$2 -> 2016 | E1: ='DNSP Inputs General'!L$2 -> 2017 | F1: ='DNSP Inputs General'!M$2 -> 2018 | G1: ='DNSP Inputs General'!N$2 -> 2019 | H1: ='DNSP Inputs General'!O$2 -> 2020
A2: Nominal $
A4: ='Total RAB'!A20 -> CPI Index | D4: =(1+WACC!E6) -> 1.026 | E4: =D4*(1+WACC!F6) -> 1.052676 | F4: =E4*(1+WACC!G6) -> 1.080045576 | G4: =F4*(1+WACC!H6) -> 1.108126761 | H4: =G4*(1+WACC!I6) -> 1.136938057
A6: ='DNSP Inputs General'!$A$6 -> Poles and Brackets | D6: ='DNSP Inputs General'!K$2 -> 2016 | E6: ='DNSP Inputs General'!L$2 -> 2017 | F6: ='DNSP Inputs General'!M$2 -> 2018 | G6: ='DNSP Inputs General'!N$2 -> 2019 | H6: ='DNSP Inputs General'!O$2 -> 2020
A7: O & M
A8: ='O & M 2016-2020'!A$10 -> Dedicated poles - inspection | D8: ='O & M 2016-2020'!$B$10*D$4 -> 4.991959579 | E8: ='O & M 2016-2020'!$Y$10*E$4 -> 5.214212268 | F8: ='O & M 2016-2020'!$AV$10*F$4 -> 5.440590267 | G8: ='O & M 2016-2020'!$BS$10*G$4 -> 5.676515668 | H8: ='O & M 2016-2020'!$CP$10*H$4 -> 5.923112012
A10: Capital Charge
A11: Depreciation and Return | D11: ='Depn & WACC Post 2004'!H$81 -> 11.80340048 | E11: ='Depn & WACC Post 2004'!H$131 -> 11.64026739 | F11: ='Depn & WACC Post 2004'!H$181 -> 11.8576346 | G11: ='Depn & WACC Post 2004'!H$231 -> 12.01319895 | H11: ='Depn & WACC Post 2004'!H$281 -> 12.10797657
A13: Total Charge | D13: =SUM(D8,D11) -> 16.79536006 | E13: =SUM(E8,E11) -> 16.85447966 | F13: =SUM(F8,F11) -> 17.29822486 | G13: =SUM(G8,G11) -> 17.68971462 | H13: =SUM(H8,H11) -> 18.03108859
A18: ='DNSP Inputs General'!$A$8 -> Existing Lights
A20: ='O & M 2016-2020'!$A$8 -> MV80 | D20: =D$1 -> 2016 | E20: =E$1 -> 2017 | F20: 2018 | G20: 2019 | H20: 2020
A22: O & M Charge
A23: ='O & M 2016-2020'!A$9 -> Bulk change & repairs | D23: ='O & M 2016-2020'!$B$9*D$4 -> 26.80099387 | E23: ='O & M 2016-2020'!$Y$9*E$4 -> 27.97126051 | F23: ='O & M 2016-2020'!$AV$9*F$4 -> 29.12616093 | G23: ='O & M 2016-2020'!$BS$9*G$4 -> 30.33560845 | H23: ='O & M 2016-2020'!$CP$9*H$4 -> 31.60532243
A24: ='O & M 2016-2020'!A$11 -> Other costs | D24: ='O & M 2016-2020'!$B$11*D$4 -> 2.45623061 | E24: ='O & M 2016-2020'!$Y$11*E$4 -> 2.479109538 | F24: ='O & M 2016-2020'!$AV$11*F$4 -> 2.585240761 | G24: ='O & M 2016-2020'!$BS$11*G$4 -> 2.681530652 | H24: ='O & M 2016-2020'!$CP$11*H$4 -> 2.767351576
D25: =SUM(D23:D24) -> 29.25722448 | E25: =SUM(E23:E24) -> 30.45037005 | F25: =SUM(F23:F24) -> 31.7114017 | G25: =SUM(G23:G24) -> 33.0171391 | H25: =SUM(H23:H24) -> 34.372674
A26: Capital Charge
A27: Depreciation and Return | D27: ='Depn & WACC Post 2004'!H$40 -> 13.1419819 | E27: ='Depn & WACC Post 2004'!H$90 -> 13.62278937 | F27: ='Depn & WACC Post 2004'!H$140 -> 13.59029287 | G27: ='Depn & WACC Post 2004'!H$190 -> 13.83796846 | H27: ='Depn & WACC Post 2004'!H$240 -> 14.09557733
A29: Poles & Brackets Charge | D29: =D$13 -> 16.79536006 | E29: =E$13 -> 16.85447966 | F29: =F$13 -> 17.29822486 | G29: =G$13 -> 17.68971462 | H29: =H$13 -> 18.03108859
A31: Total Charge | D31: =SUM(D25,D27,D29) -> 59.19456644 | E31: =SUM(E25,E27,E29) -> 60.92763908 | F31: =SUM(F25,F27,F29) -> 62.59991943 | G31: =SUM(G25,G27,G29) -> 64.54482218 | H31: =SUM(H25,H27,H29) -> 66.49933991
A33: WDV RAB - MV 80 Luminair
A34: RAB WDV | D34: =MAX(0,'Depn & WACC Post 2004'!$I$8) -> 71.58925257 | E34: =MAX(0,'Depn & WACC Post 2004'!I$40) -> 69.54641288 | F34: =MAX(0,'Depn & WACC Post 2004'!I$90) -> 67.51365914 | G34: =MAX(0,'Depn & WACC Post 2004'!I$140) -> 65.60079231 | H34: =MAX(0,'Depn & WACC Post 2004'!I$190) -> 63.70054674
A36: Avoided Costs - MV 80 O & M
A37: Materials & labour - bulk lamp change | D37: ='O & M 2016-2020'!$G$9*D$4 -> -28.23236538 | E37: ='O & M 2016-2020'!$AD$9*E$4 -> -29.32183533 | F37: ='O & M 2016-2020'!$BA$9*F$4 -> -30.43586047 | G37: ='O & M 2016-2020'!$BX$9*G$4 -> -31.59316025 | H37: ='O & M 2016-2020'!$CU$9*H$4 -> -32.79790712
A38: Materials & Labour - repair of faults | D38: ='O & M 2016-2020'!$G$10*D$4 -> -3.143390605 | E38: ='O & M 2016-2020'!$AD$10*E$4 -> -3.316471298 | F38: ='O & M 2016-2020'!$BA$10*F$4 -> -3.477564227 | G38: ='O & M 2016-2020'!$BX$10*G$4 -> -3.648601201 | H38: ='O & M 2016-2020'!$CU$10*H$4 -> -3.83071612
D39: =SUM(D37:D38) -> -31.37575598 | E39: =SUM(E37:E38) -> -32.63830662 | F39: =SUM(F37:F38) -> -33.9134247 | G39: =SUM(G37:G38) -> -35.24176145 | H39: =SUM(H37:H38) -> -36.62862324
A44: ='O & M 2016-2020'!$A$14 -> S-HP 150 | D44: =D$1 -> 2016 | E44: =E$1 -> 2017 | F44: 2018 | G44: 2019 | H44: 2020
A46: O & M Charge
A47: ='O & M 2016-2020'!A$15 -> Patrols and repairs | D47: ='O & M 2016-2020'!$B$15*D$4 -> 76.80531752 | E47: ='O & M 2016-2020'!$Y$15*E$4 -> 79.83513535 | F47: ='O & M 2016-2020'!$AV$15*F$4 -> 82.99635174 | G47: ='O & M 2016-2020'!$BS$15*G$4 -> 86.27003635 | H47: ='O & M 2016-2020'!$CP$15*H$4 -> 89.66839788
A48: ='O & M 2016-2020'!A$17 -> Other costs | D48: ='O & M 2016-2020'!$B$17*D$4 -> 2.45623061 | E48: ='O & M 2016-2020'!$Y$17*E$4 -> 2.479109538 | F48: ='O & M 2016-2020'!$AV$17*F$4 -> 2.585240761 | G48: ='O & M 2016-2020'!$BS$17*G$4 -> 2.681530652 | H48: ='O & M 2016-2020'!$CP$17*H$4 -> 2.767351576
D49: =SUM(D47:D48) -> 79.26154813 | E49: =SUM(E47:E48) -> 82.31424489 | F49: =SUM(F47:F48) -> 85.5815925 | G49: =SUM(G47:G48) -> 88.95156701 | H49: =SUM(H47:H48) -> 92.43574946
A50: Capital Charge
A51: Depreciation and Return | D51: ='Depn & WACC Post 2004'!H$41 -> 13.39753873 | E51: ='Depn & WACC Post 2004'!H$91 -> 13.8876959 | F51: ='Depn & WACC Post 2004'!H$141 -> 13.85456748 | G51: ='Depn & WACC Post 2004'!H$191 -> 14.10705933 | H51: ='Depn & WACC Post 2004'!H$241 -> 14.36967761
A53: Poles & Brackets Charge | D53: =D$13 -> 16.79536006 | E53: =E$13 -> 16.85447966 | F53: =F$13 -> 17.29822486 | G53: =G$13 -> 17.68971462 | H53: =H$13 -> 18.03108859
A55: Total Charge | D55: =SUM(D49,D51,D53) -> 109.4544469 | E55: =SUM(E49,E51,E53) -> 113.0564204 | F55: =SUM(F49,F51,F53) -> 116.7343848 | G55: =SUM(G49,G51,G53) -> 120.748341 | H55: =SUM(H49,H51,H53) -> 124.8365157
A60: ='O & M 2016-2020'!$A$20 -> S-HP 250 | D60: =D$1 -> 2016 | E60: =E$1 -> 2017 | F60: 2018 | G60: 2019 | H60: 2020
A62: O & M Charge
A63: ='O & M 2016-2020'!A$21 -> Patrols and repairs | D63: ='O & M 2016-2020'!$B$21*D$4 -> 76.78552307 | E63: ='O & M 2016-2020'!$Y$21*E$4 -> 79.81516691 | F63: ='O & M 2016-2020'!$AV$21*F$4 -> 82.97568303 | G63: ='O & M 2016-2020'!$BS$21*G$4 -> 86.24877942 | H63: ='O & M 2016-2020'!$CP$21*H$4 -> 89.77310192
A64: ='O & M 2016-2020'!A$23 -> Other costs | D64: ='O & M 2016-2020'!$B$23*D$4 -> 2.45623061 | E64: ='O & M 2016-2020'!$Y$23*E$4 -> 2.479109538 | F64: ='O & M 2016-2020'!$AV$23*F$4 -> 2.585240761 | G64: ='O & M 2016-2020'!$BS$23*G$4 -> 2.681530652 | H64: ='O & M 2016-2020'!$CP$23*H$4 -> 2.767351576
D65: =SUM(D63:D64) -> 79.24175368 | E65: =SUM(E63:E64) -> 82.29427645 | F65: =SUM(F63:F64) -> 85.56092379 | G65: =SUM(G63:G64) -> 88.93031007 | H65: =SUM(H63:H64) -> 92.54045349
A66: Capital Charge
A67: Depreciation and Return | D67: ='Depn & WACC Post 2004'!H$42 -> 14.62972108 | E67: ='Depn & WACC Post 2004'!H$92 -> 15.1649584 | F67: ='Depn & WACC Post 2004'!H$142 -> 15.12878313 | G67: ='Depn & WACC Post 2004'!H$192 -> 15.40449686 | H67: ='Depn & WACC Post 2004'!H$242 -> 15.69126835
A69: Poles & Brackets Charge | D69: =D$13 -> 16.79536006 | E69: =E$13 -> 16.85447966 | F69: =F$13 -> 17.29822486 | G69: =G$13 -> 17.68971462 | H69: =H$13 -> 18.03108859
A71: Total Charge | D71: =SUM(D65,D67,D69) -> 110.6668348 | E71: =SUM(E65,E67,E69) -> 114.3137145 | F71: =SUM(F65,F67,F69) -> 117.9879318 | G71: =SUM(G65,G67,G69) -> 122.0245215 | H71: =SUM(H65,H67,H69) -> 126.2628104
A76: ='DNSP Inputs General'!$A$11 -> Energy Efficient Lights
A78: ='O & M 2016-2020'!$A$26 -> T5 2X14W | D78: =D$1 -> 2016 | E78: =E$1 -> 2017 | F78: 2018 | G78: 2019 | H78: 2020
A80: O & M Charge
A81: ='O & M 2016-2020'!A$27 -> Bulk change & repairs | D81: ='O & M 2016-2020'!$B$27*D$4 -> 28.41709076 | E81: ='O & M 2016-2020'!$Y$27*E$4 -> 29.47740731 | F81: ='O & M 2016-2020'!$AV$27*F$4 -> 30.58960003 | G81: ='O & M 2016-2020'!$BS$27*G$4 -> 31.73797004 | H81: ='O & M 2016-2020'!$CP$27*H$4 -> 32.92716432
A82: ='O & M 2016-2020'!A$29 -> Other costs | D82: ='O & M 2016-2020'!$B$29*D$4 -> 2.45623061 | E82: ='O & M 2016-2020'!$Y$29*E$4 -> 2.479109538 | F82: ='O & M 2016-2020'!$AV$29*F$4 -> 2.585240761 | G82: ='O & M 2016-2020'!$BS$29*G$4 -> 2.681530652 | H82: ='O & M 2016-2020'!$CP$29*H$4 -> 2.767351576
D83: =SUM(D81:D82) -> 30.87332137 | E83: =SUM(E81:E82) -> 31.95651685 | F83: =SUM(F81:F82) -> 33.17484079 | G83: =SUM(G81:G82) -> 34.41950069 | H83: =SUM(H81:H82) -> 35.6945159
A84: Capital Charge
A85: Depreciation and Return | D85: ='Depn & WACC Post 2004'!$H$69 -> 3.518187721 | E85: ='Depn & WACC Post 2004'!$H$119 -> 2.740806619 | F85: ='Depn & WACC Post 2004'!$H$169 -> 2.626592277 | G85: ='Depn & WACC Post 2004'!$H$219 -> 2.521457978 | H85: ='Depn & WACC Post 2004'!$H$269 -> 2.424521495
A87: Poles & Brackets Charge | D87: =D$13 -> 16.79536006 | E87: =E$13 -> 16.85447966 | F87: =F$13 -> 17.29822486 | G87: =G$13 -> 17.68971462 | H87: =H$13 -> 18.03108859
A89: Total Charge | D89: =SUM(D83,D85,D87) -> 51.18686914 | E89: =SUM(E83,E85,E87) -> 51.55180313 | F89: =SUM(F83,F85,F87) -> 53.09965793 | G89: =SUM(G83,G85,G87) -> 54.63067329 | H89: =SUM(H83,H85,H87) -> 56.15012598
A94: ='DNSP Inputs General'!$A$11 -> Energy Efficient Lights
A96: ='O & M 2016-2020'!$A$32 -> Category P LED 18 Watt | D96: =D$1 -> 2016 | E96: =E$1 -> 2017 | F96: 2018 | G96: 2019 | H96: 2020
A98: O & M Charge
A99: ='O & M 2016-2020'!A$27 -> Bulk change & repairs | D99: ='O & M 2016-2020'!$B$33*D$4 -> 11.03404851 | E99: ='O & M 2016-2020'!$Y$33*E$4 -> 11.43469019 | F99: ='O & M 2016-2020'!$AV$33*F$4 -> 11.90153876 | G99: ='O & M 2016-2020'!$BS$33*G$4 -> 12.34584356 | H99: ='O & M 2016-2020'!$CP$33*H$4 -> 12.80740755
A100: ='O & M 2016-2020'!A$35 -> Other costs | D100: ='O & M 2016-2020'!$B$35*D$4 -> 2.45623061 | E100: ='O & M 2016-2020'!$Y$35*E$4 -> 2.479109538 | F100: ='O & M 2016-2020'!$AV$35*F$4 -> 2.585240761 | G100: ='O & M 2016-2020'!$BS$35*G$4 -> 2.681530652 | H100: ='O & M 2016-2020'!$CP$35*H$4 -> 2.767351576
D101: =SUM(D99:D100) -> 13.49027912 | E101: =SUM(E99:E100) -> 13.91379973 | F101: =SUM(F99:F100) -> 14.48677953 | G101: =SUM(G99:G100) -> 15.02737421 | H101: =SUM(H99:H100) -> 15.57475913
A102: Capital Charge
A103: Depreciation and Return | D103: ='Depn & WACC Post 2004'!$H$73 -> 4.117121937 | E103: ='Depn & WACC Post 2004'!$H$123 -> 3.207399932 | F103: ='Depn & WACC Post 2004'!$H$173 -> 3.073741807 | G103: ='Depn & WACC Post 2004'!$H$223 -> 2.950709507 | H103: ='Depn & WACC Post 2004'!$H$273 -> 2.837270614
A105: Poles & Brackets Charge | D105: =D$13 -> 16.79536006 | E105: =E$13 -> 16.85447966 | F105: =F$13 -> 17.29822486 | G105: =G$13 -> 17.68971462 | H105: =H$13 -> 18.03108859
A107: Total Charge | D107: =SUM(D101,D103,D105) -> 34.40276111 | E107: =SUM(E101,E103,E105) -> 33.97567932 | F107: =SUM(F101,F103,F105) -> 34.8587462 | G107: =SUM(G101,G103,G105) -> 35.66779834 | H107: =SUM(H101,H103,H105) -> 36.44311833

Sheet O & M 2016-2020
A1: ='DNSP Inputs O & M'!$A$3 -> Powercor
A3: Public Lighting O & M Costs | B3: Year | C3: 2016 | Y3: Year | Z3: =C3+1 -> 2017 | AV3: Year | AW3: =Z3+1 -> 2018 | BS3: Year | BT3: =AW3+1 -> 2019 | CP3: Year | CQ3: =BT3+1 -> 2020
A4: ='DNSP Inputs O & M'!C5 -> Real 2015 $
A6: Summary
A8: =$A$70 -> MV80 | D8: Avoided Costs - MV 80 O & M | AA8: Avoided Costs - MV 80 O & M | AX8: Avoided Costs - MV 80 O & M | BU8: Avoided Costs - MV 80 O & M | CR8: Avoided Costs - MV 80 O & M
A9: =$A$71 -> Bulk change & repairs | B9: =G91*C40+N91*C41+U91*C42 -> 26.12182639 | D9: Materials & labour - bulk lamp change | G9: =-((G73+G82)*C40+(N73+N82)*C41+(U73+U82)*C42)*2 -> -27.51692532 | Y9: =AD91*Z40+AK91*Z41+AR91*Z42 -> 26.57157616 | AA9: Materials & labour - bulk lamp change | AD9: =-((AD73+AD82)*Z40+(AK73+AK82)*Z41+(AR73+AR82)*Z42)*2 -> -27.8545681 | AV9: =BA91*AW40+BH91*AW41+BO91*AW42 -> 26.9675295 | AX9: Materials & labour - bulk lamp change | BA9: =-((BA73+BA82)*AW40+(BH73+BH82)*AW41+(BO73+BO82)*AW42)*2 -> -28.18016308 | BS9: =BX91*BT40+CE91*BT41+CL91*BT42 -> 27.37557608 | BU9: Materials & labour - bulk lamp change | BX9: =-((BX73+BX82)*BT40+(CE73+CE82)*BT41+(CL73+CL82)*BT42)*2 -> -28.51042079 | CP9: =CU91*CQ40+DB91*CQ41+DI91*CQ42 -> 27.79863181 | CR9: Materials & labour - bulk lamp change | CU9: =-((CU73+CU82)*CQ40+(DB73+DB82)*CQ41+(DI73+DI82)*CQ42)*2 -> -28.84757611
A10: =A93 -> Dedicated poles - inspection | B10: =(G94*C40+N94*C41+U94*C42)*C44 -> 4.865457679 | D10: Materials & Labour - repair of faults | G10: =-((G77+G85+G87)*C40+(N77+N85+N87)*C41+(U77+U85+U87)*C42)/2 -> -3.063733533 | Y10: =(AD94*Z40+AK94*Z41+AR94*Z42)*Z44 -> 4.953292625 | AA10: Materials & Labour - repair of faults | AD10: =-((AD77+AD85+AD87)*Z40+(AK77+AK85+AK87)*Z41+(AR77+AR85+AR87)*Z42)/2 -> -3.150514782 | AV10: =(BA94*AW40+BH94*AW41+BO94*AW42)*AW44 -> 5.037371003 | AX10: Materials & Labour - repair of faults | BA10: =-((BA77+BA85+BA87)*AW40+(BH77+BH85+BH87)*AW41+(BO77+BO85+BO87)*AW42)/2 -> -3.219831 | BS10: =(BX94*BT40+CE94*BT41+CL94*BT42)*BT44 -> 5.122623032 | BU10: Materials & Labour - repair of faults | BX10: =-((BX77+BX85+BX87)*BT40+(CE77+CE85+CE87)*BT41+(CL77+CL85+CL87)*BT42)/2 -> -3.292584684 | CP10: =(CU94*CQ40+DB94*CQ41+DI94*CQ42)*CQ44 -> 5.209705117 | CR10: Materials & Labour - repair of faults | CU10: =-((CU77+CU85+CU87)*CQ40+(DB77+DB85+DB87)*CQ41+(DI77+DI85+DI87)*CQ42)/2 -> -3.369327025
A11: Other costs | B11: =IF(C52=0,0,C51/C52) -> 2.393986949 | G11: =SUM(G9:G10) -> -30.58065885 | Y11: =IF(Z53=0,0,Z51/Z53) -> 2.355054678 | AD11: =SUM(AD9:AD10) -> -31.00508288 | AV11: =IF(AW53=0,0,AW51/AW53) -> 2.393640434 | BA11: =SUM(BA9:BA10) -> -31.39999408 | BS11: =IF(BT53=0,0,BT51/BT53) -> 2.419877171 | BX11: =SUM(BX9:BX10) -> -31.80300548 | CP11: =IF(CQ53=0,0,CQ51/CQ53) -> 2.434039005 | CU11: =SUM(CU9:CU10) -> -32.21690313
A14: =$A$111 -> S-HP 150
A15: =$A$112 -> Patrols and repairs | B15: =G128*E40+N128*E41+U128*E42 -> 74.85898394 | Y15: =AD128*AB40+AK128*AB41+AR128*AB42 -> 75.84017812 | AV15: =BA128*AY40+BH128*AY41+BO128*AY42 -> 76.84523096 | BS15: =BX128*BV40+CE128*BV41+CL128*BV42 -> 77.85213695 | CP15: =CU128*CS40+DB128*CS41+DI128*CS42 -> 78.86832299
A16: =$A$10 -> Dedicated poles - inspection | B16: =B10 -> 4.865457679 | Y16: =Y10 -> 4.953292625 | AV16: =AV10 -> 5.037371003 | BS16: =BS10 -> 5.122623032 | CP16: =CP10 -> 5.209705117
A17: =$A$11 -> Other costs | B17: =B11 -> 2.393986949 | Y17: =Y11 -> 2.355054678 | AV17: =AV11 -> 2.393640434 | BS17: =BS11 -> 2.419877171 | CP17: =CP11 -> 2.434039005
A20: =$A$143 -> S-HP 250
A21: =$A$144 -> Patrols and repairs | B21: =G160*G40+N160*G41+U160*G42 -> 74.8396911 | Y21: =AD160*AD40+AK160*AD41+AR160*AD42 -> 75.82120891 | AV21: =BA160*BA40+BH160*BA41+BO160*BA42 -> 76.82609408 | BS21: =BX160*BX40+CE160*BX41+CL160*BX42 -> 77.83295418 | CP21: =CU160*CU40+DB160*CU41+DI160*CU42 -> 78.96041599
A22: =$A$10 -> Dedicated poles - inspection | B22: =B10 -> 4.865457679 | Y22: =Y10 -> 4.953292625 | AV22: =AV10 -> 5.037371003 | BS22: =BS10 -> 5.122623032 | CP22: =CP10 -> 5.209705117
A23: =$A$11 -> Other costs | B23: =B11 -> 2.393986949 | Y23: =Y11 -> 2.355054678 | AV23: =AV11 -> 2.393640434 | BS23: =BS11 -> 2.419877171 | CP23: =CP11 -> 2.434039005
A26: =$A$177 -> T5 2X14W
A27: =$A$178 -> Bulk change & repairs | B27: =G198*I40+N198*I41+U198*I42 -> 27.69696955 | Y27: =AD198*AF40+AK198*AF41+AR198*AF42 -> 28.00235525 | AV27: =BA198*BC40+BH198*BC41+BO198*BC42 -> 28.32250852 | BS27: =BX198*BZ40+CE198*BZ41+CL198*BZ42 -> 28.6411006 | CP27: =CU198*CW40+DB198*CW41+DI198*CW42 -> 28.96126497
A28: =$A$10 -> Dedicated poles - inspection | B28: =B10 -> 4.865457679 | Y28: =Y10 -> 4.953292625 | AV28: =AV10 -> 5.037371003 | BS28: =BS10 -> 5.122623032 | CP28: =CP10 -> 5.209705117
A29: =$A$11 -> Other costs | B29: =B11 -> 2.393986949 | Y29: =Y11 -> 2.355054678 | AV29: =AV11 -> 2.393640434 | BS29: =BS11 -> 2.419877171 | CP29: =CP11 -> 2.434039005
A32: =$A$214 -> Category P LED 18 Watt
A33: =$A$178 -> Bulk change & repairs | B33: =G235*K40+N235*K41+U235*K42 -> 10.75443324 | Y33: =AD235*AH40+AK235*AH41+AR235*AH42 -> 10.86249728 | AV33: =BA235*BE40+BH235*BE41+BO235*BE42 -> 11.01947828 | BS33: =BX235*CB40+CE235*CB41+CL235*CB42 -> 11.14118348 | CP33: =CU235*CY40+DB235*CY41+DI235*CY42 -> 11.26482439
A34: =$A$10 -> Dedicated poles - inspection | B34: =B10 -> 4.865457679 | Y34: =Y10 -> 4.953292625 | AV34: =AV10 -> 5.037371003 | BS34: =BS10 -> 5.122623032 | CP34: =CP10 -> 5.209705117
A35: =$A$11 -> Other costs | B35: =B11 -> 2.393986949 | Y35: =Y11 -> 2.355054678 | AV35: =AV11 -> 2.393640434 | BS35: =BS11 -> 2.419877171 | CP35: =CP11 -> 2.434039005
A39: ='DNSP Inputs O & M'!A52 -> Location of selected public lighting assets within distributors' areas (%) | C39: =$A$70 -> MV80 | E39: =$A$111 -> S-HP 150 | G39: =$A$143 -> S-HP 250 | I39: =$A$177 -> T5 2X14W | K39: =$A$214 -> Category P LED 18 Watt | Z39: =$A$70 -> MV80 | AB39: =$A$111 -> S-HP 150 | AD39: =$A$143 -> S-HP 250 | AF39: =$A$177 -> T5 2X14W | AH39: =$A$214 -> Category P LED 18 Watt | AW39: =$A$70 -> MV80 | AY39: =$A$111 -> S-HP 150 | BA39: =$A$143 -> S-HP 250 | BC39: =$A$177 -> T5 2X14W | BE39: =$A$214 -> Category P LED 18 Watt | BT39: =$A$70 -> MV80 | BV39: =$A$111 -> S-HP 150 | BX39: =$A$143 -> S-HP 250 | BZ39: =$A$177 -> T5 2X14W | CB39: =$A$214 -> Category P LED 18 Watt | CQ39: =$A$70 -> MV80 | CS39: =$A$111 -> S-HP 150 | CU39: =$A$143 -> S-HP 250 | CW39: =$A$177 -> T5 2X14W | CY39: =$A$214 -> Category P LED 18 Watt
A40: ='DNSP Inputs O & M'!A53 -> Urban | C40: ='DNSP Inputs O & M'!$D$53 -> 0.7537060972 | E40: ='DNSP Inputs O & M'!$D$85 -> 0.7849450786 | G40: ='DNSP Inputs O & M'!$D$117 -> 0.7724111283 | I40: ='DNSP Inputs O & M'!$D$177 -> 0.7798005229 | K40: ='DNSP Inputs O & M'!$D$217 -> 0.284894599 | Z40: ='DNSP Inputs O & M'!$E$53 -> 0.7537060972 | AB40: ='DNSP Inputs O & M'!$E$85 -> 0.7849450786 | AD40: ='DNSP Inputs O & M'!$E$117 -> 0.7724111283 | AF40: ='DNSP Inputs O & M'!$E$177 -> 0.7798005229 | AH40: ='DNSP Inputs O & M'!$E$217 -> 0.284894599 | AW40: ='DNSP Inputs O & M'!$F$53 -> 0.7537060972 | AY40: ='DNSP Inputs O & M'!$F$85 -> 0.7849450786 | BA40: ='DNSP Inputs O & M'!$F$117 -> 0.7724111283 | BC40: ='DNSP Inputs O & M'!$F$177 -> 0.7798005229 | BE40: ='DNSP Inputs O & M'!$F$217 -> 0.284894599 | BT40: ='DNSP Inputs O & M'!$G$53 -> 0.7537060972 | BV40: ='DNSP Inputs O & M'!$G$85 -> 0.7849450786 | BX40: ='DNSP Inputs O & M'!$G$117 -> 0.7724111283 | BZ40: ='DNSP Inputs O & M'!$G$177 -> 0.7798005229 | CB40: ='DNSP Inputs O & M'!$G$217 -> 0.284894599 | CQ40: ='DNSP Inputs O & M'!$H$53 -> 0.7537060972 | CS40: ='DNSP Inputs O & M'!$H$85 -> 0.7849450786 | CU40: ='DNSP Inputs O & M'!$H$117 -> 0.7724111283 | CW40: ='DNSP Inputs O & M'!$H$177 -> 0.7798005229 | CY40: ='DNSP Inputs O & M'!$H$217 -> 0.284894599
A41: ='DNSP Inputs O & M'!A54 -> Rural | C41: ='DNSP Inputs O & M'!$D$54 -> 0.1885136274 | E41: ='DNSP Inputs O & M'!$D$86 -> 0.185117381 | G41: ='DNSP Inputs O & M'!$D$118 -> 0.2045595054 | I41: ='DNSP Inputs O & M'!$D$178 -> 0.2198121429 | K41: ='DNSP Inputs O & M'!$D$218 -> 0.6372707996 | Z41: ='DNSP Inputs O & M'!$E$54 -> 0.1885136274 | AB41: ='DNSP Inputs O & M'!$E$86 -> 0.185117381 | AD41: ='DNSP Inputs O & M'!$E$118 -> 0.2045595054 | AF41: ='DNSP Inputs O & M'!$E$178 -> 0.2198121429 | AH41: ='DNSP Inputs O & M'!$E$218 -> 0.6372707996 | AW41: ='DNSP Inputs O & M'!$F$54 -> 0.1885136274 | AY41: ='DNSP Inputs O & M'!$F$86 -> 0.185117381 | BA41: ='DNSP Inputs O & M'!$F$118 -> 0.2045595054 | BC41: ='DNSP Inputs O & M'!$F$178 -> 0.2198121429 | BE41: ='DNSP Inputs O & M'!$F$218 -> 0.6372707996 | BT41: ='DNSP Inputs O & M'!$G$54 -> 0.1885136274 | BV41: ='DNSP Inputs O & M'!$G$86 -> 0.185117381 | BX41: ='DNSP Inputs O & M'!$G$118 -> 0.2045595054 | BZ41: ='DNSP Inputs O & M'!$G$178 -> 0.2198121429 | CB41: ='DNSP Inputs O & M'!$G$218 -> 0.6372707996 | CQ41: ='DNSP Inputs O & M'!$H$54 -> 0.1885136274 | CS41: ='DNSP Inputs O & M'!$H$86 -> 0.185117381 | CU41: ='DNSP Inputs O & M'!$H$118 -> 0.2045595054 | CW41: ='DNSP Inputs O & M'!$H$178 -> 0.2198121429 | CY41: ='DNSP Inputs O & M'!$H$218 -> 0.6372707996
A42: ='DNSP Inputs O & M'!A55 -> Remote | C42: ='DNSP Inputs O & M'!$D$55 -> 0.05778027536 | E42: ='DNSP Inputs O & M'!$D$87 -> 0.02993754038 | G42: ='DNSP Inputs O & M'!$D$119 -> 0.02302936631 | I42: ='DNSP Inputs O & M'!$D$179 -> 0.0003873341726 | K42: ='DNSP Inputs O & M'!$D$219 -> 0.07783460147 | Z42: ='DNSP Inputs O & M'!$E$55 -> 0.05778027536 | AB42: ='DNSP Inputs O & M'!$E$87 -> 0.02993754038 | AD42: ='DNSP Inputs O & M'!$E$119 -> 0.02302936631 | AF42: ='DNSP Inputs O & M'!$E$179 -> 0.0003873341726 | AH42: ='DNSP Inputs O & M'!$E$219 -> 0.07783460147 | AW42: ='DNSP Inputs O & M'!$F$55 -> 0.05778027536 | AY42: ='DNSP Inputs O & M'!$F$87 -> 0.02993754038 | BA42: ='DNSP Inputs O & M'!$F$119 -> 0.02302936631 | BC42: ='DNSP Inputs O & M'!$F$179 -> 0.0003873341726 | BE42: ='DNSP Inputs O & M'!$F$219 -> 0.07783460147 | BT42: ='DNSP Inputs O & M'!$G$55 -> 0.05778027536 | BV42: ='DNSP Inputs O & M'!$G$87 -> 0.02993754038 | BX42: ='DNSP Inputs O & M'!$G$119 -> 0.02302936631 | BZ42: ='DNSP Inputs O & M'!$G$179 -> 0.0003873341726 | CB42: ='DNSP Inputs O & M'!$G$219 -> 0.07783460147 | CQ42: ='DNSP Inputs O & M'!$H$55 -> 0.05778027536 | CS42: ='DNSP Inputs O & M'!$H$87 -> 0.02993754038 | CU42: ='DNSP Inputs O & M'!$H$119 -> 0.02302936631 | CW42: ='DNSP Inputs O & M'!$H$179 -> 0.0003873341726 | CY42: ='DNSP Inputs O & M'!$H$219 -> 0.07783460147
A44: ='DNSP Inputs O & M'!A128 -> Proportion of lights on dedicated poles | C44: ='DNSP Inputs O & M'!$D$128 -> 1 | Z44: ='DNSP Inputs O & M'!$E$128 -> 1 | AW44: ='DNSP Inputs O & M'!$F$128 -> 1 | BT44: ='DNSP Inputs O & M'!$G$128 -> 1 | CQ44: ='DNSP Inputs O & M'!$H$128 -> 1
A46: ='DNSP Inputs O & M'!A132 -> Other direct costs
A47: ='DNSP Inputs O & M'!$A$133 -> Call centre | C47: ='DNSP Inputs O & M'!$D$136 -> 99564.4493 | Z47: ='DNSP Inputs O & M'!$E$136 -> 102946.7711 | AW47: ='DNSP Inputs O & M'!$F$136 -> 106443.9943 | BT47: ='DNSP Inputs O & M'!$G$136 -> 110060.0224 | CQ47: ='DNSP Inputs O & M'!$H$136 -> 113798.8911
A48: ='DNSP Inputs O & M'!$A$138 -> GIS and other | C48: ='DNSP Inputs O & M'!$D$138 -> 117060.4756 | Z48: ='DNSP Inputs O & M'!$E$138 -> 119032.2111 | AW48: ='DNSP Inputs O & M'!$F$138 -> 121037.158 | BT48: ='DNSP Inputs O & M'!$G$138 -> 123075.8757 | CQ48: ='DNSP Inputs O & M'!$H$138 -> 125148.9331
A49: ='DNSP Inputs O & M'!A139 -> Complaints handling | C49: ='DNSP Inputs O & M'!$D$139 -> 35118.14268 | Z49: ='DNSP Inputs O & M'!$E$139 -> 35709.66334 | AW49: ='DNSP Inputs O & M'!$F$139 -> 36311.14741 | BT49: ='DNSP Inputs O & M'!$G$139 -> 36922.76272 | CQ49: ='DNSP Inputs O & M'!$H$139 -> 37544.67992
A50: ='DNSP Inputs O & M'!A140 -> Accounts Manager | C50: ='DNSP Inputs O & M'!$D$140 -> 136533.7664 | Z50: ='DNSP Inputs O & M'!$E$140 -> 138833.5049 | AW50: ='DNSP Inputs O & M'!$F$140 -> 141171.9795 | BT50: ='DNSP Inputs O & M'!$G$140 -> 143549.8428 | CQ50: ='DNSP Inputs O & M'!$H$140 -> 145967.7582
C51: =SUM(C47:C50) -> 388276.834 | Z51: =SUM(Z47:Z50) -> 396522.1504 | AW51: =SUM(AW47:AW50) -> 404964.2793 | BT51: =SUM(BT47:BT50) -> 413608.5036 | CQ51: =SUM(CQ47:CQ50) -> 422460.2623
A52: ='DNSP Inputs General'!A73 -> Total Number of Lights | C52: ='DNSP Inputs General'!$K$73 -> 162188.3671
Z53: ='DNSP Inputs General'!$L$73 -> 168370.677 | AW53: ='DNSP Inputs General'!$M$73 -> 169183.4218 | BT53: ='DNSP Inputs General'!$N$73 -> 170921.28 | CQ53: ='DNSP Inputs General'!$O$73 -> 173563.4727
A58: Mercury Vapour 80 Watt Standard Light Type - Cost build-up
A60: Addiitonal assumptions
A61: Proportion of lamps that will fail before bulk change | D61: ='DNSP Inputs O & M'!$D$27 -> 0.1554544767 | AA61: ='DNSP Inputs O & M'!$E$27 -> 0.1554544767 | AX61: ='DNSP Inputs O & M'!$F$27 -> 0.1554544767 | BU61: ='DNSP Inputs O & M'!$G$27 -> 0.1554544767 | CR61: ='DNSP Inputs O & M'!$H$27 -> 0.1554544767
A62: Proportion of lamps that will fail before bulk change (per year) | D62: =D61/'DNSP Inputs O & M'!$D$25 -> 0.03886361918 | AA62: =AA61/'DNSP Inputs O & M'!$E$25 -> 0.03886361918 | AX62: =AX61/'DNSP Inputs O & M'!$F$25 -> 0.03886361918 | BU62: =BU61/'DNSP Inputs O & M'!$G$25 -> 0.03886361918 | CR62: =CR61/'DNSP Inputs O & M'!$H$25 -> 0.03886361918
A63: Overheads are applied to material and labour components
A64: All costs and charges are exclusive of GST
B66: Urban | I66: Rural | P66: Remote | Y66: Urban | AF66: Rural | AM66: Remote | AV66: Urban | BC66: Rural | BJ66: Remote | BS66: Urban | BZ66: Rural | CG66: Remote | CP66: Urban | CW66: Rural | DD66: Remote
B68: Unit rate | C68: Number | D68: Hours | E68: Cost | F68: Annualised | G68: Annualised | I68: Unit rate | J68: Number | K68: Hours | L68: Cost | M68: Annualised | N68: Annualised | P68: Unit rate | Q68: Number | R68: Hours | S68: Cost | T68: Annualised | U68: Annualised | Y68: Unit rate | Z68: Number | AA68: Hours | AB68: Cost | AC68: Annualised | AD68: Annualised | AF68: Unit rate | AG68: Number | AH68: Hours | AI68: Cost | AJ68: Annualised | AK68: Annualised | AM68: Unit rate | AN68: Number | AO68: Hours | AP68: Cost | AQ68: Annualised | AR68: Annualised | AV68: Unit rate | AW68: Number | AX68: Hours | AY68: Cost | AZ68: Annualised | BA68: Annualised | BC68: Unit rate | BD68: Number | BE68: Hours | BF68: Cost | BG68: Annualised | BH68: Annualised | BJ68: Unit rate | BK68: Number | BL68: Hours | BM68: Cost | BN68: Annualised | BO68: Annualised | BS68: Unit rate | BT68: Number | BU68: Hours | BV68: Cost | BW68: Annualised | BX68: Annualised | BZ68: Unit rate | CA68: Number | CB68: Hours | CC68: Cost | CD68: Annualised | CE68: Annualised | CG68: Unit rate | CH68: Number | CI68: Hours | CJ68: Cost | CK68: Annualised | CL68: Annualised | CP68: Unit rate | CQ68: Number | CR68: Hours | CS68: Cost | CT68: Annualised | CU68: Annualised | CW68: Unit rate | CX68: Number | CY68: Hours | CZ68: Cost | DA68: Annualised | DB68: Annualised | DD68: Unit rate | DE68: Number | DF68: Hours | DG68: Cost | DH68: Annualised | DI68: Annualised
F69: cost | G69: unit cost | M69: cost | N69: unit cost | T69: cost | U69: unit cost | AC69: cost | AD69: unit cost | AJ69: cost | AK69: unit cost | AQ69: cost | AR69: unit cost | AZ69: cost | BA69: unit cost | BG69: cost | BH69: unit cost | BN69: cost | BO69: unit cost | BW69: cost | BX69: unit cost | CD69: cost | CE69: unit cost | CK69: cost | CL69: unit cost | CT69: cost | CU69: unit cost | DA69: cost | DB69: unit cost | DH69: cost | DI69: unit cost
A70: MV80
A71: Bulk change & repairs
A72: Materials - bulk lamp change | C72: Changes in one day | E72: Cost per day
A73: Lamp | B73: ='DNSP Inputs O & M'!$D$28 -> 5.711379906 | C73: ='DNSP Inputs O & M'!$D$34 -> 86.4 | E73: =B73*C73 -> 493.4632239 | F73: =E73/'DNSP Inputs O & M'!$D$25*0.8 -> 98.69264477 | G73: =(F73+F74+F75)/C73 -> 4.274474206 | I73: ='DNSP Inputs O & M'!$D$28*(1+'DNSP Inputs O & M'!$D$11) -> 5.996948901 | J73: ='DNSP Inputs O & M'!$D$35 -> 72 | L73: =I73*J73 -> 431.7803209 | M73: =L73/'DNSP Inputs O & M'!$D$25*0.8 -> 86.35606418 | N73: =(M73+M74+M75)/J73 -> 4.488197917 | P73: ='DNSP Inputs O & M'!$D$28*(1+'DNSP Inputs O & M'!$D$11) -> 5.996948901 | Q73: ='DNSP Inputs O & M'!$D$36 -> 60 | S73: =P73*Q73 -> 359.8169341 | T73: =S73/'DNSP Inputs O & M'!$D$25*0.8 -> 71.96338681 | U73: =(T73+T74+T75)/Q73 -> 4.488197917 | Y73: ='DNSP Inputs O & M'!$E$28 -> 5.711379906 | Z73: ='DNSP Inputs O & M'!$E$34 -> 86.4 | AB73: =Y73*Z73 -> 493.4632239 | AC73: =AB73/'DNSP Inputs O & M'!$E$25*0.8 -> 98.69264477 | AD73: =(AC73+AC74+AC75)/Z73 -> 4.274474206 | AF73: ='DNSP Inputs O & M'!$E$28*(1+'DNSP Inputs O & M'!$E$11) -> 5.996948901 | AG73: ='DNSP Inputs O & M'!$E$35 -> 72 | AI73: =AF73*AG73 -> 431.7803209 | AJ73: =AI73/'DNSP Inputs O & M'!$E$25*0.8 -> 86.35606418 | AK73: =(AJ73+AJ74+AJ75)/AG73 -> 4.488197917 | AM73: ='DNSP Inputs O & M'!$E$28*(1+'DNSP Inputs O & M'!$E$11) -> 5.996948901 | AN73: ='DNSP Inputs O & M'!$E$36 -> 60 | AP73: =AM73*AN73 -> 359.8169341 | AQ73: =AP73/'DNSP Inputs O & M'!$E$25*0.8 -> 71.96338681 | AR73: =(AQ73+AQ74+AQ75)/AN73 -> 4.488197917 | AV73: ='DNSP Inputs O & M'!$F$28 -> 5.711379906 | AW73: ='DNSP Inputs O & M'!$F$34 -> 86.4 | AY73: =AV73*AW73 -> 493.4632239 | AZ73: =AY73/'DNSP Inputs O & M'!$F$25*0.8 -> 98.69264477 | BA73: =(AZ73+AZ74+AZ75)/AW73 -> 4.274474206 | BC73: ='DNSP Inputs O & M'!$F$28*(1+'DNSP Inputs O & M'!$F$11) -> 5.996948901 | BD73: ='DNSP Inputs O & M'!$F$35 -> 72 | BF73: =BC73*BD73 -> 431.7803209 | BG73: =BF73/'DNSP Inputs O & M'!$F$25*0.8 -> 86.35606418 | BH73: =(BG73+BG74+BG75)/BD73 -> 4.488197917 | BJ73: ='DNSP Inputs O & M'!$F$28*(1+'DNSP Inputs O & M'!$F$11) -> 5.996948901 | BK73: ='DNSP Inputs O & M'!$F$36 -> 60 | BM73: =BJ73*BK73 -> 359.8169341 | BN73: =BM73/'DNSP Inputs O & M'!$F$25*0.8 -> 71.96338681 | BO73: =(BN73+BN74+BN75)/BK73 -> 4.488197917 | BS73: ='DNSP Inputs O & M'!$G$28 -> 5.711379906 | BT73: ='DNSP Inputs O & M'!$G$34 -> 86.4 | BV73: =BS73*BT73 -> 493.4632239 | BW73: =BV73/'DNSP Inputs O & M'!$G$25*0.8 -> 98.69264477 | BX73: =(BW73+BW74+BW75)/BT73 -> 4.274474206 | BZ73: ='DNSP Inputs O & M'!$G$28*(1+'DNSP Inputs O & M'!$G$11) -> 5.996948901 | CA73: ='DNSP Inputs O & M'!$G$35 -> 72 | CC73: =BZ73*CA73 -> 431.7803209 | CD73: =CC73/'DNSP Inputs O & M'!$G$25*0.8 -> 86.35606418 | CE73: =(CD73+CD74+CD75)/CA73 -> 4.488197917 | CG73: ='DNSP Inputs O & M'!$G$28*(1+'DNSP Inputs O & M'!$G$11) -> 5.996948901 | CH73: ='DNSP Inputs O & M'!$G$36 -> 60 | CJ73: =CG73*CH73 -> 359.8169341 | CK73: =CJ73/'DNSP Inputs O & M'!$G$25*0.8 -> 71.96338681 | CL73: =(CK73+CK74+CK75)/CH73 -> 4.488197917 | CP73: ='DNSP Inputs O & M'!$H$28 -> 5.711379906 | CQ73: ='DNSP Inputs O & M'!$H$34 -> 86.4 | CS73: =CP73*CQ73 -> 493.4632239 | CT73: =CS73/'DNSP Inputs O & M'!$H$25*0.8 -> 98.69264477 | CU73: =(CT73+CT74+CT75)/CQ73 -> 4.274474206 | CW73: ='DNSP Inputs O & M'!$H$28*(1+'DNSP Inputs O & M'!$H$11) -> 5.996948901 | CX73: ='DNSP Inputs O & M'!$H$35 -> 72 | CZ73: =CW73*CX73 -> 431.7803209 | DA73: =CZ73/'DNSP Inputs O & M'!$H$25*0.8 -> 86.35606418 | DB73: =(DA73+DA74+DA75)/CX73 -> 4.488197917 | DD73: ='DNSP Inputs O & M'!$H$28*(1+'DNSP Inputs O & M'!$H$11) -> 5.996948901 | DE73: ='DNSP Inputs O & M'!$H$36 -> 60 | DG73: =DD73*DE73 -> 359.8169341 | DH73: =DG73/'DNSP Inputs O & M'!$H$25*0.8 -> 71.96338681 | DI73: =(DH73+DH74+DH75)/DE73 -> 4.488197917
A74: PE cell | B74: ='DNSP Inputs O & M'!$D$29 -> 23.05797796 | C74: =C73*'DNSP Inputs O & M'!$D$25/'DNSP Inputs O & M'!$D$26 -> 43.2 | E74: =B74*C74 -> 996.1046477 | F74: =E74/'DNSP Inputs O & M'!$D$25 -> 249.0261619 | I74: ='DNSP Inputs O & M'!$D$29*(1+'DNSP Inputs O & M'!$D$11) -> 24.21087685 | J74: =J73*'DNSP Inputs O & M'!$D$25/'DNSP Inputs O & M'!$D$26 -> 36 | L74: =I74*J74 -> 871.5915668 | M74: =L74/'DNSP Inputs O & M'!$D$25 -> 217.8978917 | P74: ='DNSP Inputs O & M'!$D$29*(1+'DNSP Inputs O & M'!$D$11) -> 24.21087685 | Q74: =Q73*'DNSP Inputs O & M'!$D$25/'DNSP Inputs O & M'!$D$26 -> 30 | S74: =P74*Q74 -> 726.3263056 | T74: =S74/'DNSP Inputs O & M'!$D$25 -> 181.5815764 | Y74: ='DNSP Inputs O & M'!$E$29 -> 23.05797796 | Z74: =Z73*'DNSP Inputs O & M'!$E$25/'DNSP Inputs O & M'!$E$26 -> 43.2 | AB74: =Y74*Z74 -> 996.1046477 | AC74: =AB74/'DNSP Inputs O & M'!$E$25 -> 249.0261619 | AF74: ='DNSP Inputs O & M'!$E$29*(1+'DNSP Inputs O & M'!$E$11) -> 24.21087685 | AG74: =AG73*'DNSP Inputs O & M'!$E$25/'DNSP Inputs O & M'!$E$26 -> 36 | AI74: =AF74*AG74 -> 871.5915668 | AJ74: =AI74/'DNSP Inputs O & M'!$E$25 -> 217.8978917 | AM74: ='DNSP Inputs O & M'!$E$29*(1+'DNSP Inputs O & M'!$E$11) -> 24.21087685 | AN74: =AN73*'DNSP Inputs O & M'!$E$25/'DNSP Inputs O & M'!$E$26 -> 30 | AP74: =AM74*AN74 -> 726.3263056 | AQ74: =AP74/'DNSP Inputs O & M'!$E$25 -> 181.5815764 | AV74: ='DNSP Inputs O & M'!$F$29 -> 23.05797796 | AW74: =AW73*'DNSP Inputs O & M'!$F$25/'DNSP Inputs O & M'!$F$26 -> 43.2 | AY74: =AV74*AW74 -> 996.1046477 | AZ74: =AY74/'DNSP Inputs O & M'!$F$25 -> 249.0261619 | BC74: ='DNSP Inputs O & M'!$F$29*(1+'DNSP Inputs O & M'!$F$11) -> 24.21087685 | BD74: =BD73*'DNSP Inputs O & M'!$F$25/'DNSP Inputs O & M'!$F$26 -> 36 | BF74: =BC74*BD74 -> 871.5915668 | BG74: =BF74/'DNSP Inputs O & M'!$F$25 -> 217.8978917 | BJ74: ='DNSP Inputs O & M'!$F$29*(1+'DNSP Inputs O & M'!$F$11) -> 24.21087685 | BK74: =BK73*'DNSP Inputs O & M'!$F$25/'DNSP Inputs O & M'!$F$26 -> 30 | BM74: =BJ74*BK74 -> 726.3263056 | BN74: =BM74/'DNSP Inputs O & M'!$F$25 -> 181.5815764 | BS74: ='DNSP Inputs O & M'!$G$29 -> 23.05797796 | BT74: =BT73*'DNSP Inputs O & M'!$G$25/'DNSP Inputs O & M'!$G$26 -> 43.2 | BV74: =BS74*BT74 -> 996.1046477 | BW74: =BV74/'DNSP Inputs O & M'!$G$25 -> 249.0261619 | BZ74: ='DNSP Inputs O & M'!$G$29*(1+'DNSP Inputs O & M'!$G$11) -> 24.21087685 | CA74: =CA73*'DNSP Inputs O & M'!$G$25/'DNSP Inputs O & M'!$G$26 -> 36 | CC74: =BZ74*CA74 -> 871.5915668 | CD74: =CC74/'DNSP Inputs O & M'!$G$25 -> 217.8978917 | CG74: ='DNSP Inputs O & M'!$G$29*(1+'DNSP Inputs O & M'!$G$11) -> 24.21087685 | CH74: =CH73*'DNSP Inputs O & M'!$G$25/'DNSP Inputs O & M'!$G$26 -> 30 | CJ74: =CG74*CH74 -> 726.3263056 | CK74: =CJ74/'DNSP Inputs O & M'!$G$25 -> 181.5815764 | CP74: ='DNSP Inputs O & M'!$H$29 -> 23.05797796 | CQ74: =CQ73*'DNSP Inputs O & M'!$H$25/'DNSP Inputs O & M'!$H$26 -> 43.2 | CS74: =CP74*CQ74 -> 996.1046477 | CT74: =CS74/'DNSP Inputs O & M'!$H$25 -> 249.0261619 | CW74: ='DNSP Inputs O & M'!$H$29*(1+'DNSP Inputs O & M'!$H$11) -> 24.21087685 | CX74: =CX73*'DNSP Inputs O & M'!$H$25/'DNSP Inputs O & M'!$H$26 -> 36 | CZ74: =CW74*CX74 -> 871.5915668 | DA74: =CZ74/'DNSP Inputs O & M'!$H$25 -> 217.8978917 | DD74: ='DNSP Inputs O & M'!$H$29*(1+'DNSP Inputs O & M'!$H$11) -> 24.21087685 | DE74: =DE73*'DNSP Inputs O & M'!$H$25/'DNSP Inputs O & M'!$H$26 -> 30 | DG74: =DD74*DE74 -> 726.3263056 | DH74: =DG74/'DNSP Inputs O & M'!$H$25 -> 181.5815764
A75: Miscellaneous | B75: ='DNSP Inputs O & M'!$D$31 -> 1.249754903 | C75: ='DNSP Inputs O & M'!$D$34 -> 86.4 | E75: =B75*C75 -> 107.9788236 | F75: =E75/'DNSP Inputs O & M'!$D$25*0.8 -> 21.59576472 | I75: ='DNSP Inputs O & M'!$D$31*(1+'DNSP Inputs O & M'!$D$11) -> 1.312242648 | J75: ='DNSP Inputs O & M'!$D$35 -> 72 | L75: =I75*J75 -> 94.48147065 | M75: =L75/'DNSP Inputs O & M'!$D$25*0.8 -> 18.89629413 | P75: ='DNSP Inputs O & M'!$D$31*(1+'DNSP Inputs O & M'!$D$11) -> 1.312242648 | Q75: ='DNSP Inputs O & M'!$D$36 -> 60 | S75: =P75*Q75 -> 78.73455888 | T75: =S75/'DNSP Inputs O & M'!$D$25*0.8 -> 15.74691178 | Y75: ='DNSP Inputs O & M'!$E$31 -> 1.249754903 | Z75: ='DNSP Inputs O & M'!$E$34 -> 86.4 | AB75: =Y75*Z75 -> 107.9788236 | AC75: =AB75/'DNSP Inputs O & M'!$E$25*0.8 -> 21.59576472 | AF75: ='DNSP Inputs O & M'!$E$31*(1+'DNSP Inputs O & M'!$E$11) -> 1.312242648 | AG75: ='DNSP Inputs O & M'!$E$35 -> 72 | AI75: =AF75*AG75 -> 94.48147065 | AJ75: =AI75/'DNSP Inputs O & M'!$E$25*0.8 -> 18.89629413 | AM75: ='DNSP Inputs O & M'!$E$31*(1+'DNSP Inputs O & M'!$E$11) -> 1.312242648 | AN75: ='DNSP Inputs O & M'!$E$36 -> 60 | AP75: =AM75*AN75 -> 78.73455888 | AQ75: =AP75/'DNSP Inputs O & M'!$E$25*0.8 -> 15.74691178 | AV75: ='DNSP Inputs O & M'!$F$31 -> 1.249754903 | AW75: ='DNSP Inputs O & M'!$F$34 -> 86.4 | AY75: =AV75*AW75 -> 107.9788236 | AZ75: =AY75/'DNSP Inputs O & M'!$F$25*0.8 -> 21.59576472 | BC75: ='DNSP Inputs O & M'!$F$31*(1+'DNSP Inputs O & M'!$F$11) -> 1.312242648 | BD75: ='DNSP Inputs O & M'!$F$35 -> 72 | BF75: =BC75*BD75 -> 94.48147065 | BG75: =BF75/'DNSP Inputs O & M'!$F$25*0.8 -> 18.89629413 | BJ75: ='DNSP Inputs O & M'!$F$31*(1+'DNSP Inputs O & M'!$F$11) -> 1.312242648 | BK75: ='DNSP Inputs O & M'!$F$36 -> 60 | BM75: =BJ75*BK75 -> 78.73455888 | BN75: =BM75/'DNSP Inputs O & M'!$F$25*0.8 -> 15.74691178 | BS75: ='DNSP Inputs O & M'!$G$31 -> 1.249754903 | BT75: ='DNSP Inputs O & M'!$G$34 -> 86.4 | BV75: =BS75*BT75 -> 107.9788236 | BW75: =BV75/'DNSP Inputs O & M'!$G$25*0.8 -> 21.59576472 | BZ75: ='DNSP Inputs O & M'!$G$31*(1+'DNSP Inputs O & M'!$G$11) -> 1.312242648 | CA75: ='DNSP Inputs O & M'!$G$35 -> 72 | CC75: =BZ75*CA75 -> 94.48147065 | CD75: =CC75/'DNSP Inputs O & M'!$G$25*0.8 -> 18.89629413 | CG75: ='DNSP Inputs O & M'!$G$31*(1+'DNSP Inputs O & M'!$G$11) -> 1.312242648 | CH75: ='DNSP Inputs O & M'!$G$36 -> 60 | CJ75: =CG75*CH75 -> 78.73455888 | CK75: =CJ75/'DNSP Inputs O & M'!$G$25*0.8 -> 15.74691178 | CP75: ='DNSP Inputs O & M'!$H$31 -> 1.249754903 | CQ75: ='DNSP Inputs O & M'!$H$34 -> 86.4 | CS75: =CP75*CQ75 -> 107.9788236 | CT75: =CS75/'DNSP Inputs O & M'!$H$25*0.8 -> 21.59576472 | CW75: ='DNSP Inputs O & M'!$H$31*(1+'DNSP Inputs O & M'!$H$11) -> 1.312242648 | CX75: ='DNSP Inputs O & M'!$H$35 -> 72 | CZ75: =CW75*CX75 -> 94.48147065 | DA75: =CZ75/'DNSP Inputs O & M'!$H$25*0.8 -> 18.89629413 | DD75: ='DNSP Inputs O & M'!$H$31*(1+'DNSP Inputs O & M'!$H$11) -> 1.312242648 | DE75: ='DNSP Inputs O & M'!$H$36 -> 60 | DG75: =DD75*DE75 -> 78.73455888 | DH75: =DG75/'DNSP Inputs O & M'!$H$25*0.8 -> 15.74691178
A76: Materials - repair of faults
A77: Lamp | B77: ='DNSP Inputs O & M'!$D$28 -> 5.711379906 | C77: ='DNSP Inputs O & M'!$D$37*'DNSP Inputs O & M'!$D$40 -> 17.28 | E77: =B77*C77 -> 98.69264477 | F77: =(E77+E78+E79+E80)/'DNSP Inputs O & M'!$D$37 -> 45.9278678 | G77: =F77*D62 -> 1.784923164 | I77: ='DNSP Inputs O & M'!$D$28*(1+'DNSP Inputs O & M'!$D$11) -> 5.996948901 | J77: ='DNSP Inputs O & M'!$D$38*'DNSP Inputs O & M'!$D$40 -> 14.4 | L77: =I77*J77 -> 86.35606418 | M77: =(L77+L78+L79+L80)/'DNSP Inputs O & M'!$D$38 -> 48.22426119 | N77: =M77*$D$62 -> 1.874169322 | P77: ='DNSP Inputs O & M'!$D$28*(1+'DNSP Inputs O & M'!$D$11) -> 5.996948901 | Q77: ='DNSP Inputs O & M'!$D$39*'DNSP Inputs O & M'!$D$40 -> 11.52 | S77: =P77*Q77 -> 69.08485134 | T77: =(S77+S78+S79+S80)/'DNSP Inputs O & M'!$D$39 -> 48.22426119 | U77: =T77*D62 -> 1.874169322 | Y77: ='DNSP Inputs O & M'!$E$28 -> 5.711379906 | Z77: ='DNSP Inputs O & M'!$E$37*'DNSP Inputs O & M'!$E$40 -> 17.28 | AB77: =Y77*Z77 -> 98.69264477 | AC77: =(AB77+AB78+AB79+AB80)/'DNSP Inputs O & M'!$E$37 -> 45.9278678 | AD77: =AC77*AA62 -> 1.784923164 | AF77: ='DNSP Inputs O & M'!$E$28*(1+'DNSP Inputs O & M'!$E$11) -> 5.996948901 | AG77: ='DNSP Inputs O & M'!$E$38*'DNSP Inputs O & M'!$E$40 -> 14.4 | AI77: =AF77*AG77 -> 86.35606418 | AJ77: =(AI77+AI78+AI79+AI80)/'DNSP Inputs O & M'!$E$38 -> 48.22426119 | AK77: =AJ77*$AA$62 -> 1.874169322 | AM77: ='DNSP Inputs O & M'!$E$28*(1+'DNSP Inputs O & M'!$E$11) -> 5.996948901 | AN77: ='DNSP Inputs O & M'!$E$39*'DNSP Inputs O & M'!$E$40 -> 11.52 | AP77: =AM77*AN77 -> 69.08485134 | AQ77: =(AP77+AP78+AP79+AP80)/'DNSP Inputs O & M'!$E$39 -> 48.22426119 | AR77: =AQ77*AA62 -> 1.874169322 | AV77: ='DNSP Inputs O & M'!$F$28 -> 5.711379906 | AW77: ='DNSP Inputs O & M'!$F$37*'DNSP Inputs O & M'!$F$40 -> 17.28 | AY77: =AV77*AW77 -> 98.69264477 | AZ77: =(AY77+AY78+AY79+AY80)/'DNSP Inputs O & M'!$F$37 -> 45.9278678 | BA77: =AZ77*AX62 -> 1.784923164 | BC77: ='DNSP Inputs O & M'!$F$28*(1+'DNSP Inputs O & M'!$F$11) -> 5.996948901 | BD77: ='DNSP Inputs O & M'!$F$38*'DNSP Inputs O & M'!$F$40 -> 14.4 | BF77: =BC77*BD77 -> 86.35606418 | BG77: =(BF77+BF78+BF79+BF80)/'DNSP Inputs O & M'!$F$38 -> 48.22426119 | BH77: =BG77*$AX$62 -> 1.874169322 | BJ77: ='DNSP Inputs O & M'!$F$28*(1+'DNSP Inputs O & M'!$F$11) -> 5.996948901 | BK77: ='DNSP Inputs O & M'!$F$39*'DNSP Inputs O & M'!$F$40 -> 11.52 | BM77: =BJ77*BK77 -> 69.08485134 | BN77: =(BM77+BM78+BM79+BM80)/'DNSP Inputs O & M'!$F$39 -> 48.22426119 | BO77: =BN77*AX62 -> 1.874169322 | BS77: ='DNSP Inputs O & M'!$G$28 -> 5.711379906 | BT77: ='DNSP Inputs O & M'!$G$37*'DNSP Inputs O & M'!$G$40 -> 17.28 | BV77: =BS77*BT77 -> 98.69264477 | BW77: =(BV77+BV78+BV79+BV80)/'DNSP Inputs O & M'!$G$37 -> 45.9278678 | BX77: =BW77*BU62 -> 1.784923164 | BZ77: ='DNSP Inputs O & M'!$G$28*(1+'DNSP Inputs O & M'!$G$11) -> 5.996948901 | CA77: ='DNSP Inputs O & M'!$G$38*'DNSP Inputs O & M'!$G$40 -> 14.4 | CC77: =BZ77*CA77 -> 86.35606418 | CD77: =(CC77+CC78+CC79+CC80)/'DNSP Inputs O & M'!$G$38 -> 48.22426119 | CE77: =CD77*$BU$62 -> 1.874169322 | CG77: ='DNSP Inputs O & M'!$G$28*(1+'DNSP Inputs O & M'!$G$11) -> 5.996948901 | CH77: ='DNSP Inputs O & M'!$G$39*'DNSP Inputs O & M'!$G$40 -> 11.52 | CJ77: =CG77*CH77 -> 69.08485134 | CK77: =(CJ77+CJ78+CJ79+CJ80)/'DNSP Inputs O & M'!$G$39 -> 48.22426119 | CL77: =CK77*BU62 -> 1.874169322 | CP77: ='DNSP Inputs O & M'!$H$28 -> 5.711379906 | CQ77: ='DNSP Inputs O & M'!$H$37*'DNSP Inputs O & M'!$H$40 -> 17.28 | CS77: =CP77*CQ77 -> 98.69264477 | CT77: =(CS77+CS78+CS79+CS80)/'DNSP Inputs O & M'!$H$37 -> 45.9278678 | CU77: =CT77*CR62 -> 1.784923164 | CW77: ='DNSP Inputs O & M'!$H$28*(1+'DNSP Inputs O & M'!$H$11) -> 5.996948901 | CX77: ='DNSP Inputs O & M'!$H$38*'DNSP Inputs O & M'!$H$40 -> 14.4 | CZ77: =CW77*CX77 -> 86.35606418 | DA77: =(CZ77+CZ78+CZ79+CZ80)/'DNSP Inputs O & M'!$H$38 -> 48.22426119 | DB77: =DA77*$CR$62 -> 1.874169322 | DD77: ='DNSP Inputs O & M'!$H$28*(1+'DNSP Inputs O & M'!$H$11) -> 5.996948901 | DE77: ='DNSP Inputs O & M'!$H$39*'DNSP Inputs O & M'!$H$40 -> 11.52 | DG77: =DD77*DE77 -> 69.08485134 | DH77: =(DG77+DG78+DG79+DG80)/'DNSP Inputs O & M'!$H$39 -> 48.22426119 | DI77: =DH77*CR62 -> 1.874169322
A78: PE cell | B78: ='DNSP Inputs O & M'!$D$29 -> 23.05797796 | C78: ='DNSP Inputs O & M'!$D$37*'DNSP Inputs O & M'!$D$41 -> 14.4 | E78: =B78*C78 -> 332.0348826 | I78: ='DNSP Inputs O & M'!$D$29*(1+'DNSP Inputs O & M'!$D$11) -> 24.21087685 | J78: ='DNSP Inputs O & M'!$D$38*'DNSP Inputs O & M'!$D$41 -> 12 | L78: =I78*J78 -> 290.5305223 | P78: ='DNSP Inputs O & M'!$D$29*(1+'DNSP Inputs O & M'!$D$11) -> 24.21087685 | Q78: ='DNSP Inputs O & M'!$D$39*'DNSP Inputs O & M'!$D$41 -> 9.6 | S78: =P78*Q78 -> 232.4244178 | Y78: ='DNSP Inputs O & M'!$E$29 -> 23.05797796 | Z78: ='DNSP Inputs O & M'!$E$37*'DNSP Inputs O & M'!$E$41 -> 14.4 | AB78: =Y78*Z78 -> 332.0348826 | AF78: ='DNSP Inputs O & M'!$E$29*(1+'DNSP Inputs O & M'!$E$11) -> 24.21087685 | AG78: ='DNSP Inputs O & M'!$E$38*'DNSP Inputs O & M'!$E$41 -> 12 | AI78: =AF78*AG78 -> 290.5305223 | AM78: ='DNSP Inputs O & M'!$E$29*(1+'DNSP Inputs O & M'!$E$11) -> 24.21087685 | AN78: ='DNSP Inputs O & M'!$E$39*'DNSP Inputs O & M'!$E$41 -> 9.6 | AP78: =AM78*AN78 -> 232.4244178 | AV78: ='DNSP Inputs O & M'!$F$29 -> 23.05797796 | AW78: ='DNSP Inputs O & M'!$F$37*'DNSP Inputs O & M'!$F$41 -> 14.4 | AY78: =AV78*AW78 -> 332.0348826 | BC78: ='DNSP Inputs O & M'!$F$29*(1+'DNSP Inputs O & M'!$F$11) -> 24.21087685 | BD78: ='DNSP Inputs O & M'!$F$38*'DNSP Inputs O & M'!$F$41 -> 12 | BF78: =BC78*BD78 -> 290.5305223 | BJ78: ='DNSP Inputs O & M'!$F$29*(1+'DNSP Inputs O & M'!$F$11) -> 24.21087685 | BK78: ='DNSP Inputs O & M'!$F$39*'DNSP Inputs O & M'!$F$41 -> 9.6 | BM78: =BJ78*BK78 -> 232.4244178 | BS78: ='DNSP Inputs O & M'!$G$29 -> 23.05797796 | BT78: ='DNSP Inputs O & M'!$G$37*'DNSP Inputs O & M'!$G$41 -> 14.4 | BV78: =BS78*BT78 -> 332.0348826 | BZ78: ='DNSP Inputs O & M'!$G$29*(1+'DNSP Inputs O & M'!$G$11) -> 24.21087685 | CA78: ='DNSP Inputs O & M'!$G$38*'DNSP Inputs O & M'!$G$41 -> 12 | CC78: =BZ78*CA78 -> 290.5305223 | CG78: ='DNSP Inputs O & M'!$G$29*(1+'DNSP Inputs O & M'!$G$11) -> 24.21087685 | CH78: ='DNSP Inputs O & M'!$G$39*'DNSP Inputs O & M'!$G$41 -> 9.6 | CJ78: =CG78*CH78 -> 232.4244178 | CP78: ='DNSP Inputs O & M'!$H$29 -> 23.05797796 | CQ78: ='DNSP Inputs O & M'!$H$37*'DNSP Inputs O & M'!$H$41 -> 14.4 | CS78: =CP78*CQ78 -> 332.0348826 | CW78: ='DNSP Inputs O & M'!$H$29*(1+'DNSP Inputs O & M'!$H$11) -> 24.21087685 | CX78: ='DNSP Inputs O & M'!$H$38*'DNSP Inputs O & M'!$H$41 -> 12 | CZ78: =CW78*CX78 -> 290.5305223 | DD78: ='DNSP Inputs O & M'!$H$29*(1+'DNSP Inputs O & M'!$H$11) -> 24.21087685 | DE78: ='DNSP Inputs O & M'!$H$39*'DNSP Inputs O & M'!$H$41 -> 9.6 | DG78: =DD78*DE78 -> 232.4244178
A79: Luminaire | B79: ='DNSP Inputs O & M'!$D$30 -> 198.1486398 | C79: ='DNSP Inputs O & M'!$D$37*'DNSP Inputs O & M'!$D$42 -> 4.32 | E79: =B79*C79 -> 856.0021241 | I79: ='DNSP Inputs O & M'!$D$30*(1+'DNSP Inputs O & M'!$D$11) -> 208.0560718 | J79: ='DNSP Inputs O & M'!$D$38*'DNSP Inputs O & M'!$D$42 -> 3.6 | L79: =I79*J79 -> 749.0018586 | P79: ='DNSP Inputs O & M'!$D$30*(1+'DNSP Inputs O & M'!$D$11) -> 208.0560718 | Q79: ='DNSP Inputs O & M'!$D$39*'DNSP Inputs O & M'!$D$42 -> 2.88 | S79: =P79*Q79 -> 599.2014869 | Y79: ='DNSP Inputs O & M'!$E$30 -> 198.1486398 | Z79: ='DNSP Inputs O & M'!$E$37*'DNSP Inputs O & M'!$E$42 -> 4.32 | AB79: =Y79*Z79 -> 856.0021241 | AF79: ='DNSP Inputs O & M'!$E$30*(1+'DNSP Inputs O & M'!$E$11) -> 208.0560718 | AG79: ='DNSP Inputs O & M'!$E$38*'DNSP Inputs O & M'!$E$42 -> 3.6 | AI79: =AF79*AG79 -> 749.0018586 | AM79: ='DNSP Inputs O & M'!$E$30*(1+'DNSP Inputs O & M'!$E$11) -> 208.0560718 | AN79: ='DNSP Inputs O & M'!$E$39*'DNSP Inputs O & M'!$E$42 -> 2.88 | AP79: =AM79*AN79 -> 599.2014869 | AV79: ='DNSP Inputs O & M'!$F$30 -> 198.1486398 | AW79: ='DNSP Inputs O & M'!$F$37*'DNSP Inputs O & M'!$F$42 -> 4.32 | AY79: =AV79*AW79 -> 856.0021241 | BC79: ='DNSP Inputs O & M'!$F$30*(1+'DNSP Inputs O & M'!$F$11) -> 208.0560718 | BD79: ='DNSP Inputs O & M'!$F$38*'DNSP Inputs O & M'!$F$42 -> 3.6 | BF79: =BC79*BD79 -> 749.0018586 | BJ79: ='DNSP Inputs O & M'!$F$30*(1+'DNSP Inputs O & M'!$F$11) -> 208.0560718 | BK79: ='DNSP Inputs O & M'!$F$39*'DNSP Inputs O & M'!$F$42 -> 2.88 | BM79: =BJ79*BK79 -> 599.2014869 | BS79: ='DNSP Inputs O & M'!$G$30 -> 198.1486398 | BT79: ='DNSP Inputs O & M'!$G$37*'DNSP Inputs O & M'!$G$42 -> 4.32 | BV79: =BS79*BT79 -> 856.0021241 | BZ79: ='DNSP Inputs O & M'!$G$30*(1+'DNSP Inputs O & M'!$G$11) -> 208.0560718 | CA79: ='DNSP Inputs O & M'!$G$38*'DNSP Inputs O & M'!$G$42 -> 3.6 | CC79: =BZ79*CA79 -> 749.0018586 | CG79: ='DNSP Inputs O & M'!$G$30*(1+'DNSP Inputs O & M'!$G$11) -> 208.0560718 | CH79: ='DNSP Inputs O & M'!$G$39*'DNSP Inputs O & M'!$G$42 -> 2.88 | CJ79: =CG79*CH79 -> 599.2014869 | CP79: ='DNSP Inputs O & M'!$H$30 -> 198.1486398 | CQ79: ='DNSP Inputs O & M'!$H$37*'DNSP Inputs O & M'!$H$42 -> 4.32 | CS79: =CP79*CQ79 -> 856.0021241 | CW79: ='DNSP Inputs O & M'!$H$30*(1+'DNSP Inputs O & M'!$H$11) -> 208.0560718 | CX79: ='DNSP Inputs O & M'!$H$38*'DNSP Inputs O & M'!$H$42 -> 3.6 | CZ79: =CW79*CX79 -> 749.0018586 | DD79: ='DNSP Inputs O & M'!$H$30*(1+'DNSP Inputs O & M'!$H$11) -> 208.0560718 | DE79: ='DNSP Inputs O & M'!$H$39*'DNSP Inputs O & M'!$H$42 -> 2.88 | DG79: =DD79*DE79 -> 599.2014869
A80: Miscellaneous | B80: ='DNSP Inputs O & M'!$D$32 -> 12.49754903 | C80: ='DNSP Inputs O & M'!$D$37*'DNSP Inputs O & M'!$D$43 -> 2.88 | E80: =B80*C80 -> 35.9929412 | I80: ='DNSP Inputs O & M'!$D$32*(1+'DNSP Inputs O & M'!$D$11) -> 13.12242648 | J80: ='DNSP Inputs O & M'!$D$38*'DNSP Inputs O & M'!$D$43 -> 2.4 | L80: =I80*J80 -> 31.49382355 | P80: ='DNSP Inputs O & M'!$D$32*(1+'DNSP Inputs O & M'!$D$11) -> 13.12242648 | Q80: ='DNSP Inputs O & M'!$D$39*'DNSP Inputs O & M'!$D$43 -> 1.92 | S80: =P80*Q80 -> 25.19505884 | Y80: ='DNSP Inputs O & M'!$E$32 -> 12.49754903 | Z80: ='DNSP Inputs O & M'!$E$37*'DNSP Inputs O & M'!$E$43 -> 2.88 | AB80: =Y80*Z80 -> 35.9929412 | AF80: ='DNSP Inputs O & M'!$E$32*(1+'DNSP Inputs O & M'!$E$11) -> 13.12242648 | AG80: ='DNSP Inputs O & M'!$E$38*'DNSP Inputs O & M'!$E$43 -> 2.4 | AI80: =AF80*AG80 -> 31.49382355 | AM80: ='DNSP Inputs O & M'!$E$32*(1+'DNSP Inputs O & M'!$E$11) -> 13.12242648 | AN80: ='DNSP Inputs O & M'!$E$39*'DNSP Inputs O & M'!$E$43 -> 1.92 | AP80: =AM80*AN80 -> 25.19505884 | AV80: ='DNSP Inputs O & M'!$F$32 -> 12.49754903 | AW80: ='DNSP Inputs O & M'!$F$37*'DNSP Inputs O & M'!$F$43 -> 2.88 | AY80: =AV80*AW80 -> 35.9929412 | BC80: ='DNSP Inputs O & M'!$F$32*(1+'DNSP Inputs O & M'!$F$11) -> 13.12242648 | BD80: ='DNSP Inputs O & M'!$F$38*'DNSP Inputs O & M'!$F$43 -> 2.4 | BF80: =BC80*BD80 -> 31.49382355 | BJ80: ='DNSP Inputs O & M'!$F$32*(1+'DNSP Inputs O & M'!$F$11) -> 13.12242648 | BK80: ='DNSP Inputs O & M'!$F$39*'DNSP Inputs O & M'!$F$43 -> 1.92 | BM80: =BJ80*BK80 -> 25.19505884 | BS80: ='DNSP Inputs O & M'!$G$32 -> 12.49754903 | BT80: ='DNSP Inputs O & M'!$G$37*'DNSP Inputs O & M'!$G$43 -> 2.88 | BV80: =BS80*BT80 -> 35.9929412 | BZ80: ='DNSP Inputs O & M'!$G$32*(1+'DNSP Inputs O & M'!$G$11) -> 13.12242648 | CA80: ='DNSP Inputs O & M'!$G$38*'DNSP Inputs O & M'!$G$43 -> 2.4 | CC80: =BZ80*CA80 -> 31.49382355 | CG80: ='DNSP Inputs O & M'!$G$32*(1+'DNSP Inputs O & M'!$G$11) -> 13.12242648 | CH80: ='DNSP Inputs O & M'!$G$39*'DNSP Inputs O & M'!$G$43 -> 1.92 | CJ80: =CG80*CH80 -> 25.19505884 | CP80: ='DNSP Inputs O & M'!$H$32 -> 12.49754903 | CQ80: ='DNSP Inputs O & M'!$H$37*'DNSP Inputs O & M'!$H$43 -> 2.88 | CS80: =CP80*CQ80 -> 35.9929412 | CW80: ='DNSP Inputs O & M'!$H$32*(1+'DNSP Inputs O & M'!$H$11) -> 13.12242648 | CX80: ='DNSP Inputs O & M'!$H$38*'DNSP Inputs O & M'!$H$43 -> 2.4 | CZ80: =CW80*CX80 -> 31.49382355 | DD80: ='DNSP Inputs O & M'!$H$32*(1+'DNSP Inputs O & M'!$H$11) -> 13.12242648 | DE80: ='DNSP Inputs O & M'!$H$39*'DNSP Inputs O & M'!$H$43 -> 1.92 | DG80: =DD80*DE80 -> 25.19505884
A81: Labour - bulk lamp change
A82: Crew costs | B82: ='DNSP Inputs O & M'!$D$12 -> 123.7674125 | C82: ='DNSP Inputs O & M'!$D$33 -> 2 | D82: ='DNSP Inputs O & M'!$D$17 -> 8 | E82: =B82*C82*D82 -> 1980.278601 | F82: =E82/'DNSP Inputs O & M'!$D$25*(C73+C74)/C73*0.8 -> 594.0835802 | G82: =(F82+F83)/C73 -> 9.034179619 | I82: ='DNSP Inputs O & M'!$D$12 -> 123.7674125 | J82: ='DNSP Inputs O & M'!$D$33 -> 2 | K82: ='DNSP Inputs O & M'!$D$17 -> 8 | L82: =I82*J82*K82 -> 1980.278601 | M82: =L82/'DNSP Inputs O & M'!$D$25*(J73+J74)/J73*0.8 -> 594.0835802 | N82: =(M82+M83)/J$73 -> 10.16960935 | P82: ='DNSP Inputs O & M'!$D$12 -> 123.7674125 | Q82: ='DNSP Inputs O & M'!$D$33 -> 2 | R82: ='DNSP Inputs O & M'!$D$17 -> 8 | S82: =P82*Q82*R82 -> 1980.278601 | T82: =S82/'DNSP Inputs O & M'!$D$25*(Q73+Q74)/Q73*0.8 -> 594.0835802 | U82: =(T82+T83)/Q73 -> 12.20353122 | Y82: ='DNSP Inputs O & M'!$E$12 -> 125.8521179 | Z82: ='DNSP Inputs O & M'!$E$33 -> 2 | AA82: ='DNSP Inputs O & M'!$E$17 -> 8 | AB82: =Y82*Z82*AA82 -> 2013.633887 | AC82: =AB82/'DNSP Inputs O & M'!$E$25*(Z73+Z74)/Z73*0.8 -> 604.090166 | AD82: =(AC82+AC83)/Z73 -> 9.196484393 | AF82: ='DNSP Inputs O & M'!$E$12 -> 125.8521179 | AG82: ='DNSP Inputs O & M'!$E$33 -> 2 | AH82: ='DNSP Inputs O & M'!$E$17 -> 8 | AI82: =AF82*AG82*AH82 -> 2013.633887 | AJ82: =AI82/'DNSP Inputs O & M'!$E$25*(AG73+AG74)/AG73*0.8 -> 604.090166 | AK82: =(AJ82+AJ83)/AG$73 -> 10.34991302 | AM82: ='DNSP Inputs O & M'!$E$12 -> 125.8521179 | AN82: ='DNSP Inputs O & M'!$E$33 -> 2 | AO82: ='DNSP Inputs O & M'!$E$17 -> 8 | AP82: =AM82*AN82*AO82 -> 2013.633887 | AQ82: =AP82/'DNSP Inputs O & M'!$E$25*(AN73+AN74)/AN73*0.8 -> 604.090166 | AR82: =(AQ82+AQ83)/AN73 -> 12.41989562 | AV82: ='DNSP Inputs O & M'!$F$12 -> 127.9719375 | AW82: ='DNSP Inputs O & M'!$F$33 -> 2 | AX82: ='DNSP Inputs O & M'!$F$17 -> 8 | AY82: =AV82*AW82*AX82 -> 2047.551 | AZ82: =AY82/'DNSP Inputs O & M'!$F$25*(AW73+AW74)/AW73*0.8 -> 614.2653001 | BA82: =(AZ82+AZ83)/AW73 -> 9.352501331 | BC82: ='DNSP Inputs O & M'!$F$12 -> 127.9719375 | BD82: ='DNSP Inputs O & M'!$F$33 -> 2 | BE82: ='DNSP Inputs O & M'!$F$17 -> 8 | BF82: =BC82*BD82*BE82 -> 2047.551 | BG82: =BF82/'DNSP Inputs O & M'!$F$25*(BD73+BD74)/BD73*0.8 -> 614.2653001 | BH82: =(BG82+BG83)/BD$73 -> 10.52523427 | BJ82: ='DNSP Inputs O & M'!$F$12 -> 127.9719375 | BK82: ='DNSP Inputs O & M'!$F$33 -> 2 | BL82: ='DNSP Inputs O & M'!$F$17 -> 8 | BM82: =BJ82*BK82*BL82 -> 2047.551 | BN82: =BM82/'DNSP Inputs O & M'!$F$25*(BK73+BK74)/BK73*0.8 -> 614.2653001 | BO82: =(BN82+BN83)/BK73 -> 12.63028112 | BS82: ='DNSP Inputs O & M'!$G$12 -> 130.1274628 | BT82: ='DNSP Inputs O & M'!$G$33 -> 2 | BU82: ='DNSP Inputs O & M'!$G$17 -> 8 | BV82: =BS82*BT82*BU82 -> 2082.039405 | BW82: =BV82/'DNSP Inputs O & M'!$G$25*(BT73+BT74)/BT73*0.8 -> 624.6118215 | BX82: =(BW82+BW83)/BT73 -> 9.510728278 | BZ82: ='DNSP Inputs O & M'!$G$12 -> 130.1274628 | CA82: ='DNSP Inputs O & M'!$G$33 -> 2 | CB82: ='DNSP Inputs O & M'!$G$17 -> 8 | CC82: =BZ82*CA82*CB82 -> 2082.039405 | CD82: =CC82/'DNSP Inputs O & M'!$G$25*(CA73+CA74)/CA73*0.8 -> 624.6118215 | CE82: =(CD82+CD83)/CA$73 -> 10.7031371 | CG82: ='DNSP Inputs O & M'!$G$12 -> 130.1274628 | CH82: ='DNSP Inputs O & M'!$G$33 -> 2 | CI82: ='DNSP Inputs O & M'!$G$17 -> 8 | CJ82: =CG82*CH82*CI82 -> 2082.039405 | CK82: =CJ82/'DNSP Inputs O & M'!$G$25*(CH73+CH74)/CH73*0.8 -> 624.6118215 | CL82: =(CK82+CK83)/CH73 -> 12.84376452 | CP82: ='DNSP Inputs O & M'!$H$12 -> 132.3192952 | CQ82: ='DNSP Inputs O & M'!$H$33 -> 2 | CR82: ='DNSP Inputs O & M'!$H$17 -> 8 | CS82: =CP82*CQ82*CR82 -> 2117.108723 | CT82: =CS82/'DNSP Inputs O & M'!$H$25*(CQ73+CQ74)/CQ73*0.8 -> 635.1326169 | CU82: =(CT82+CT83)/CQ73 -> 9.672299379 | CW82: ='DNSP Inputs O & M'!$H$12 -> 132.3192952 | CX82: ='DNSP Inputs O & M'!$H$33 -> 2 | CY82: ='DNSP Inputs O & M'!$H$17 -> 8 | CZ82: =CW82*CX82*CY82 -> 2117.108723 | DA82: =CZ82/'DNSP Inputs O & M'!$H$25*(CX73+CX74)/CX73*0.8 -> 635.1326169 | DB82: =(DA82+DA83)/CX$73 -> 10.88464008 | DD82: ='DNSP Inputs O & M'!$H$12 -> 132.3192952 | DE82: ='DNSP Inputs O & M'!$H$33 -> 2 | DF82: ='DNSP Inputs O & M'!$H$17 -> 8 | DG82: =DD82*DE82*DF82 -> 2117.108723 | DH82: =DG82/'DNSP Inputs O & M'!$H$25*(DE73+DE74)/DE73*0.8 -> 635.1326169 | DI82: =(DH82+DH83)/DE73 -> 13.06156809
A83: Elevated platform costs | B83: ='DNSP Inputs O & M'!$D$14 -> 77.69564122 | C83: 1 | D83: ='DNSP Inputs O & M'!$D$17 -> 8 | E83: =B83*C83*D83 -> 621.5651298 | F83: =E83/'DNSP Inputs O & M'!$D$25*(C73+C74)/C73*0.8 -> 186.4695389 | I83: ='DNSP Inputs O & M'!$D$15 -> 57.55345553 | J83: 1 | K83: ='DNSP Inputs O & M'!$D$17 -> 8 | L83: =I83*J83*K83 -> 460.4276442 | M83: =L83/'DNSP Inputs O & M'!$D$25*(J73+J74)/J73*0.8 -> 138.1282933 | P83: ='DNSP Inputs O & M'!$D$15 -> 57.55345553 | Q83: 1 | R83: ='DNSP Inputs O & M'!$D$17 -> 8 | S83: =P83*Q83*R83 -> 460.4276442 | T83: =S83/'DNSP Inputs O & M'!$D$25*(Q73+Q74)/Q73*0.8 -> 138.1282933 | Y83: ='DNSP Inputs O & M'!$E$14 -> 79.36920231 | Z83: 1 | AA83: ='DNSP Inputs O & M'!$E$17 -> 8 | AB83: =Y83*Z83*AA83 -> 634.9536185 | AC83: =AB83/'DNSP Inputs O & M'!$E$25*(Z73+Z74)/Z73*0.8 -> 190.4860855 | AF83: ='DNSP Inputs O & M'!$E$15 -> 58.79315472 | AG83: 1 | AH83: ='DNSP Inputs O & M'!$E$17 -> 8 | AI83: =AF83*AG83*AH83 -> 470.3452378 | AJ83: =AI83/'DNSP Inputs O & M'!$E$25*(AG73+AG74)/AG73*0.8 -> 141.1035713 | AM83: ='DNSP Inputs O & M'!$E$15 -> 58.79315472 | AN83: 1 | AO83: ='DNSP Inputs O & M'!$E$17 -> 8 | AP83: =AM83*AN83*AO83 -> 470.3452378 | AQ83: =AP83/'DNSP Inputs O & M'!$E$25*(AN73+AN74)/AN73*0.8 -> 141.1035713 | AV83: ='DNSP Inputs O & M'!$F$14 -> 80.74617287 | AW83: 1 | AX83: ='DNSP Inputs O & M'!$F$17 -> 8 | AY83: =AV83*AW83*AX83 -> 645.969383 | AZ83: =AY83/'DNSP Inputs O & M'!$F$25*(AW73+AW74)/AW73*0.8 -> 193.7908149 | BC83: ='DNSP Inputs O & M'!$F$15 -> 59.81315292 | BD83: 1 | BE83: ='DNSP Inputs O & M'!$F$17 -> 8 | BF83: =BC83*BD83*BE83 -> 478.5052234 | BG83: =BF83/'DNSP Inputs O & M'!$F$25*(BD73+BD74)/BD73*0.8 -> 143.551567 | BJ83: ='DNSP Inputs O & M'!$F$15 -> 59.81315292 | BK83: 1 | BL83: ='DNSP Inputs O & M'!$F$17 -> 8 | BM83: =BJ83*BK83*BL83 -> 478.5052234 | BN83: =BM83/'DNSP Inputs O & M'!$F$25*(BK73+BK74)/BK73*0.8 -> 143.551567 | BS83: ='DNSP Inputs O & M'!$G$14 -> 82.13129241 | BT83: 1 | BU83: ='DNSP Inputs O & M'!$G$17 -> 8 | BV83: =BS83*BT83*BU83 -> 657.0503393 | BW83: =BV83/'DNSP Inputs O & M'!$G$25*(BT73+BT74)/BT73*0.8 -> 197.1151018 | BZ83: ='DNSP Inputs O & M'!$G$15 -> 60.83918751 | CA83: 1 | CB83: ='DNSP Inputs O & M'!$G$17 -> 8 | CC83: =BZ83*CA83*CB83 -> 486.7135001 | CD83: =CC83/'DNSP Inputs O & M'!$G$25*(CA73+CA74)/CA73*0.8 -> 146.01405 | CG83: ='DNSP Inputs O & M'!$G$15 -> 60.83918751 | CH83: 1 | CI83: ='DNSP Inputs O & M'!$G$17 -> 8 | CJ83: =CG83*CH83*CI83 -> 486.7135001 | CK83: =CJ83/'DNSP Inputs O & M'!$G$25*(CH73+CH74)/CH73*0.8 -> 146.01405 | CP83: ='DNSP Inputs O & M'!$H$14 -> 83.56418727 | CQ83: 1 | CR83: ='DNSP Inputs O & M'!$H$17 -> 8 | CS83: =CP83*CQ83*CR83 -> 668.5134982 | CT83: =CS83/'DNSP Inputs O & M'!$H$25*(CQ73+CQ74)/CQ73*0.8 -> 200.5540495 | CW83: ='DNSP Inputs O & M'!$H$15 -> 61.90061193 | CX83: 1 | CY83: ='DNSP Inputs O & M'!$H$17 -> 8 | CZ83: =CW83*CX83*CY83 -> 495.2048955 | DA83: =CZ83/'DNSP Inputs O & M'!$H$25*(CX73+CX74)/CX73*0.8 -> 148.5614686 | DD83: ='DNSP Inputs O & M'!$H$15 -> 61.90061193 | DE83: 1 | DF83: ='DNSP Inputs O & M'!$H$17 -> 8 | DG83: =DD83*DE83*DF83 -> 495.2048955 | DH83: =DG83/'DNSP Inputs O & M'!$H$25*(DE73+DE74)/DE73*0.8 -> 148.5614686
A84: Labour - repair of faults
A85: Crew costs | B85: ='DNSP Inputs O & M'!$D$12 -> 123.7674125 | C85: ='DNSP Inputs O & M'!$D$33 -> 2 | D85: ='DNSP Inputs O & M'!$D$17 -> 8 | E85: =B85*C85*D85 -> 1980.278601 | F85: =(E85+E86)/'DNSP Inputs O & M'!$D$37 -> 90.34179619 | G85: =F85*D62 -> 3.511009164 | I85: ='DNSP Inputs O & M'!$D$12 -> 123.7674125 | J85: ='DNSP Inputs O & M'!$D$33 -> 2 | K85: ='DNSP Inputs O & M'!$D$17 -> 8 | L85: =I85*J85*K85 -> 1980.278601 | M85: =(L85+L86)/'DNSP Inputs O & M'!$D$38 -> 101.6960935 | N85: =M85*$D$62 -> 3.952278252 | P85: ='DNSP Inputs O & M'!$D$12 -> 123.7674125 | Q85: ='DNSP Inputs O & M'!$D$33 -> 2 | R85: ='DNSP Inputs O & M'!$D$17 -> 8 | S85: =P85*Q85*R85 -> 1980.278601 | T85: =(S85+S86)/'DNSP Inputs O & M'!$D$39 -> 127.1201169 | U85: =T85*D62 -> 4.940347815 | Y85: ='DNSP Inputs O & M'!$E$12 -> 125.8521179 | Z85: ='DNSP Inputs O & M'!$E$33 -> 2 | AA85: ='DNSP Inputs O & M'!$E$17 -> 8 | AB85: =Y85*Z85*AA85 -> 2013.633887 | AC85: =(AB85+AB86)/'DNSP Inputs O & M'!$E$37 -> 91.96484393 | AD85: =AC85*AA62 -> 3.574086673 | AF85: ='DNSP Inputs O & M'!$E$12 -> 125.8521179 | AG85: ='DNSP Inputs O & M'!$E$33 -> 2 | AH85: ='DNSP Inputs O & M'!$E$17 -> 8 | AI85: =AF85*AG85*AH85 -> 2013.633887 | AJ85: =(AI85+AI86)/'DNSP Inputs O & M'!$E$38 -> 103.4991302 | AK85: =AJ85*$AA$62 -> 4.022350781 | AM85: ='DNSP Inputs O & M'!$E$12 -> 125.8521179 | AN85: ='DNSP Inputs O & M'!$E$33 -> 2 | AO85: ='DNSP Inputs O & M'!$E$17 -> 8 | AP85: =AM85*AN85*AO85 -> 2013.633887 | AQ85: =(AP85+AP86)/'DNSP Inputs O & M'!$E$39 -> 129.3739127 | AR85: =AQ85*AA62 -> 5.027938477 | AV85: ='DNSP Inputs O & M'!$F$12 -> 127.9719375 | AW85: ='DNSP Inputs O & M'!$F$33 -> 2 | AX85: ='DNSP Inputs O & M'!$F$17 -> 8 | AY85: =AV85*AW85*AX85 -> 2047.551 | AZ85: =(AY85+AY86)/'DNSP Inputs O & M'!$F$37 -> 93.52501331 | BA85: =AZ85*AX62 -> 3.634720502 | BC85: ='DNSP Inputs O & M'!$F$12 -> 127.9719375 | BD85: ='DNSP Inputs O & M'!$F$33 -> 2 | BE85: ='DNSP Inputs O & M'!$F$17 -> 8 | BF85: =BC85*BD85*BE85 -> 2047.551 | BG85: =(BF85+BF86)/'DNSP Inputs O & M'!$F$38 -> 105.2523427 | BH85: =BG85*$AX$62 -> 4.090486963 | BJ85: ='DNSP Inputs O & M'!$F$12 -> 127.9719375 | BK85: ='DNSP Inputs O & M'!$F$33 -> 2 | BL85: ='DNSP Inputs O & M'!$F$17 -> 8 | BM85: =BJ85*BK85*BL85 -> 2047.551 | BN85: =(BM85+BM86)/'DNSP Inputs O & M'!$F$39 -> 131.5654283 | BO85: =BN85*AX62 -> 5.113108704 | BS85: ='DNSP Inputs O & M'!$G$12 -> 130.1274628 | BT85: ='DNSP Inputs O & M'!$G$33 -> 2 | BU85: ='DNSP Inputs O & M'!$G$17 -> 8 | BV85: =BS85*BT85*BU85 -> 2082.039405 | BW85: =(BV85+BV86)/'DNSP Inputs O & M'!$G$37 -> 95.10728278 | BX85: =BW85*BU62 -> 3.69621322 | BZ85: ='DNSP Inputs O & M'!$G$12 -> 130.1274628 | CA85: ='DNSP Inputs O & M'!$G$33 -> 2 | CB85: ='DNSP Inputs O & M'!$G$17 -> 8 | CC85: =BZ85*CA85*CB85 -> 2082.039405 | CD85: =(CC85+CC86)/'DNSP Inputs O & M'!$G$38 -> 107.031371 | CE85: =CD85*$BU$62 -> 4.159626445 | CG85: ='DNSP Inputs O & M'!$G$12 -> 130.1274628 | CH85: ='DNSP Inputs O & M'!$G$33 -> 2 | CI85: ='DNSP Inputs O & M'!$G$17 -> 8 | CJ85: =CG85*CH85*CI85 -> 2082.039405 | CK85: =(CJ85+CJ86)/'DNSP Inputs O & M'!$G$39 -> 133.7892138 | CL85: =CK85*BU62 -> 5.199533056 | CP85: ='DNSP Inputs O & M'!$H$12 -> 132.3192952 | CQ85: ='DNSP Inputs O & M'!$H$33 -> 2 | CR85: ='DNSP Inputs O & M'!$H$17 -> 8 | CS85: =CP85*CQ85*CR85 -> 2117.108723 | CT85: =(CS85+CS86)/'DNSP Inputs O & M'!$H$37 -> 96.72299379 | CU85: =CT85*CR62 -> 3.759005597 | CW85: ='DNSP Inputs O & M'!$H$12 -> 132.3192952 | CX85: ='DNSP Inputs O & M'!$H$33 -> 2 | CY85: ='DNSP Inputs O & M'!$H$17 -> 8 | CZ85: =CW85*CX85*CY85 -> 2117.108723 | DA85: =(CZ85+CZ86)/'DNSP Inputs O & M'!$H$38 -> 108.8464008 | DB85: =DA85*$CR$62 -> 4.230165069 | DD85: ='DNSP Inputs O & M'!$H$12 -> 132.3192952 | DE85: ='DNSP Inputs O & M'!$H$33 -> 2 | DF85: ='DNSP Inputs O & M'!$H$17 -> 8 | DG85: =DD85*DE85*DF85 -> 2117.108723 | DH85: =(DG85+DG86)/'DNSP Inputs O & M'!$H$39 -> 136.058001 | DI85: =DH85*CR62 -> 5.287706336
A86: Elevated platform costs | B86: ='DNSP Inputs O & M'!$D$14 -> 77.69564122 | C86: 1 | D86: ='DNSP Inputs O & M'!$D$17 -> 8 | E86: =B86*C86*D86 -> 621.5651298 | I86: ='DNSP Inputs O & M'!$D$15 -> 57.55345553 | J86: 1 | K86: ='DNSP Inputs O & M'!$D$17 -> 8 | L86: =I86*J86*K86 -> 460.4276442 | P86: ='DNSP Inputs O & M'!$D$15 -> 57.55345553 | Q86: 1 | R86: ='DNSP Inputs O & M'!$D$17 -> 8 | S86: =P86*Q86*R86 -> 460.4276442 | Y86: ='DNSP Inputs O & M'!$E$14 -> 79.36920231 | Z86: 1 | AA86: ='DNSP Inputs O & M'!$E$17 -> 8 | AB86: =Y86*Z86*AA86 -> 634.9536185 | AF86: ='DNSP Inputs O & M'!$E$15 -> 58.79315472 | AG86: 1 | AH86: ='DNSP Inputs O & M'!$E$17 -> 8 | AI86: =AF86*AG86*AH86 -> 470.3452378 | AM86: ='DNSP Inputs O & M'!$E$15 -> 58.79315472 | AN86: 1 | AO86: ='DNSP Inputs O & M'!$E$17 -> 8 | AP86: =AM86*AN86*AO86 -> 470.3452378 | AV86: ='DNSP Inputs O & M'!$F$14 -> 80.74617287 | AW86: 1 | AX86: ='DNSP Inputs O & M'!$F$17 -> 8 | AY86: =AV86*AW86*AX86 -> 645.969383 | BC86: ='DNSP Inputs O & M'!$F$15 -> 59.81315292 | BD86: 1 | BE86: ='DNSP Inputs O & M'!$F$17 -> 8 | BF86: =BC86*BD86*BE86 -> 478.5052234 | BJ86: ='DNSP Inputs O & M'!$F$15 -> 59.81315292 | BK86: 1 | BL86: ='DNSP Inputs O & M'!$F$17 -> 8 | BM86: =BJ86*BK86*BL86 -> 478.5052234 | BS86: ='DNSP Inputs O & M'!$G$14 -> 82.13129241 | BT86: 1 | BU86: ='DNSP Inputs O & M'!$G$17 -> 8 | BV86: =BS86*BT86*BU86 -> 657.0503393 | BZ86: ='DNSP Inputs O & M'!$G$15 -> 60.83918751 | CA86: 1 | CB86: ='DNSP Inputs O & M'!$G$17 -> 8 | CC86: =BZ86*CA86*CB86 -> 486.7135001 | CG86: ='DNSP Inputs O & M'!$G$15 -> 60.83918751 | CH86: 1 | CI86: ='DNSP Inputs O & M'!$G$17 -> 8 | CJ86: =CG86*CH86*CI86 -> 486.7135001 | CP86: ='DNSP Inputs O & M'!$H$14 -> 83.56418727 | CQ86: 1 | CR86: ='DNSP Inputs O & M'!$H$17 -> 8 | CS86: =CP86*CQ86*CR86 -> 668.5134982 | CW86: ='DNSP Inputs O & M'!$H$15 -> 61.90061193 | CX86: 1 | CY86: ='DNSP Inputs O & M'!$H$17 -> 8 | CZ86: =CW86*CX86*CY86 -> 495.2048955 | DD86: ='DNSP Inputs O & M'!$H$15 -> 61.90061193 | DE86: 1 | DF86: ='DNSP Inputs O & M'!$H$17 -> 8 | DG86: =DD86*DE86*DF86 -> 495.2048955
A87: Other Maintenance and Repair costs | G87: ='DNSP Inputs O & M'!$D$50 -> 0.6437811371 | N87: ='DNSP Inputs O & M'!$D$50 -> 0.6437811371 | U87: ='DNSP Inputs O & M'!$D$50 -> 0.6437811371 | AD87: ='DNSP Inputs O & M'!$E$50 -> 0.7515310912 | AK87: ='DNSP Inputs O & M'!$E$50 -> 0.7515310912 | AR87: ='DNSP Inputs O & M'!$E$50 -> 0.7515310912 | BA87: ='DNSP Inputs O & M'!$F$50 -> 0.8266976827 | BH87: ='DNSP Inputs O & M'!$F$50 -> 0.8266976827 | BO87: ='DNSP Inputs O & M'!$F$50 -> 0.8266976827 | BX87: ='DNSP Inputs O & M'!$G$50 -> 0.9078302578 | CE87: ='DNSP Inputs O & M'!$G$50 -> 0.9078302578 | CL87: ='DNSP Inputs O & M'!$G$50 -> 0.9078302578 | CU87: ='DNSP Inputs O & M'!$H$50 -> 0.9955957736 | DB87: ='DNSP Inputs O & M'!$H$50 -> 0.9955957736 | DI87: ='DNSP Inputs O & M'!$H$50 -> 0.9955957736
A89: Overheads | B89: ='DNSP Inputs O & M'!$D$18 -> 0.31358336 | G89: =B89*SUM(G73:G87) -> 6.03596769 | I89: ='DNSP Inputs O & M'!$D$18 -> 0.31358336 | N89: =I89*SUM(N73:N87) -> 6.625400513 | P89: ='DNSP Inputs O & M'!$D$18 -> 0.31358336 | U89: =P89*SUM(U73:U87) -> 7.573046741 | Y89: ='DNSP Inputs O & M'!$E$18 -> 0.31358336 | AD89: =Y89*SUM(AD73:AD87) -> 6.140432416 | AF89: ='DNSP Inputs O & M'!$E$18 -> 0.31358336 | AK89: =AF89*SUM(AK73:AK87) -> 6.737702914 | AM89: ='DNSP Inputs O & M'!$E$18 -> 0.31358336 | AR89: =AM89*SUM(AR73:AR87) -> 7.702150583 | AV89: ='DNSP Inputs O & M'!$F$18 -> 0.31358336 | BA89: =AV89*SUM(BA73:BA87) -> 6.231941483 | BC89: ='DNSP Inputs O & M'!$F$18 -> 0.31358336 | BH89: =BC89*SUM(BH73:BH87) -> 6.837618105 | BJ89: ='DNSP Inputs O & M'!$F$18 -> 0.31358336 | BO89: =BJ89*SUM(BO73:BO87) -> 7.818402932 | BS89: ='DNSP Inputs O & M'!$G$18 -> 0.31358336 | BX89: =BS89*SUM(BX73:BX87) -> 6.32628374 | BZ89: ='DNSP Inputs O & M'!$G$18 -> 0.31358336 | CE89: =BZ89*SUM(CE73:CE87) -> 6.940528292 | CG89: ='DNSP Inputs O & M'!$G$18 -> 0.31358336 | CL89: =CG89*SUM(CL73:CL87) -> 7.93789084 | CP89: ='DNSP Inputs O & M'!$H$18 -> 0.31358336 | CU89: =CP89*SUM(CU73:CU87) -> 6.424162198 | CW89: ='DNSP Inputs O & M'!$H$18 -> 0.31358336 | DB89: =CW89*SUM(DB73:DB87) -> 7.047086148 | DD89: ='DNSP Inputs O & M'!$H$18 -> 0.31358336 | DI89: =DD89*SUM(DI73:DI87) -> 8.061361893
G91: =SUM(G73,G77,G82,G85,G87,G89) -> 25.28433498 | H91: 42.32802202 | N91: =SUM(N73,N77,N82,N85,N87,N89) -> 27.75343649 | U91: =SUM(U73,U77,U82,U85,U87,U89) -> 31.72307416 | AD91: =SUM(AD73,AD77,AD82,AD85,AD87,AD89) -> 25.72193194 | AK91: =SUM(AK73,AK77,AK82,AK85,AK87,AK89) -> 28.22386504 | AR91: =SUM(AR73,AR77,AR82,AR85,AR87,AR89) -> 32.26388301 | BA91: =SUM(BA73,BA77,BA82,BA85,BA87,BA89) -> 26.10525837 | BH91: =SUM(BH73,BH77,BH82,BH85,BH87,BH89) -> 28.64240426 | BO91: =SUM(BO73,BO77,BO82,BO85,BO87,BO89) -> 32.75085768 | BX91: =SUM(BX73,BX77,BX82,BX85,BX87,BX89) -> 26.50045287 | CE91: =SUM(CE73,CE77,CE82,CE85,CE87,CE89) -> 29.07348934 | CL91: =SUM(CL73,CL77,CL82,CL85,CL87,CL89) -> 33.25138592 | CU91: =SUM(CU73,CU77,CU82,CU85,CU87,CU89) -> 26.91046032 | DB91: =SUM(DB73,DB77,DB82,DB85,DB87,DB89) -> 29.51985431 | DI91: =SUM(DI73,DI77,DI82,DI85,DI87,DI89) -> 33.76859933
A93: Dedicated poles - inspection
A94: Crew costs | B94: ='DNSP Inputs O & M'!$D$12 -> 123.7674125 | C94: 1 | D94: ='DNSP Inputs O & M'!$D$17 -> 8 | E94: =B94*C94*D94 -> 990.1393003 | F94: =(E94+E95+E96)/'DNSP Inputs O & M'!$D$125 -> 350.3129529 | G94: =F94/'DNSP Inputs O & M'!$D$126 -> 4.865457679 | I94: ='DNSP Inputs O & M'!$D$12 -> 123.7674125 | J94: 1 | K94: ='DNSP Inputs O & M'!$D$17 -> 8 | L94: =I94*J94*K94 -> 990.1393003 | M94: =(L94+L95+L96)/'DNSP Inputs O & M'!$D$125 -> 350.3129529 | N94: =M94/'DNSP Inputs O & M'!$D$126 -> 4.865457679 | P94: ='DNSP Inputs O & M'!$D$12 -> 123.7674125 | Q94: 1 | R94: ='DNSP Inputs O & M'!$D$17 -> 8 | S94: =P94*Q94*R94 -> 990.1393003 | T94: =(S94+S95+S96)/'DNSP Inputs O & M'!$D$125 -> 350.3129529 | U94: =T94/'DNSP Inputs O & M'!$D$126 -> 4.865457679 | Y94: ='DNSP Inputs O & M'!$E$12 -> 125.8521179 | Z94: 1 | AA94: ='DNSP Inputs O & M'!$E$17 -> 8 | AB94: =Y94*Z94*AA94 -> 1006.816943 | AC94: =(AB94+AB95+AB96)/'DNSP Inputs O & M'!$E$125 -> 356.637069 | AD94: =AC94/'DNSP Inputs O & M'!$E$126 -> 4.953292625 | AF94: ='DNSP Inputs O & M'!$E$12 -> 125.8521179 | AG94: 1 | AH94: ='DNSP Inputs O & M'!$E$17 -> 8 | AI94: =AF94*AG94*AH94 -> 1006.816943 | AJ94: =(AI94+AI95+AI96)/'DNSP Inputs O & M'!$E$125 -> 356.637069 | AK94: =AJ94/'DNSP Inputs O & M'!$E$126 -> 4.953292625 | AM94: ='DNSP Inputs O & M'!$E$12 -> 125.8521179 | AN94: 1 | AO94: ='DNSP Inputs O & M'!$E$17 -> 8 | AP94: =AM94*AN94*AO94 -> 1006.816943 | AQ94: =(AP94+AP95+AP96)/'DNSP Inputs O & M'!$E$125 -> 356.637069 | AR94: =AQ94/'DNSP Inputs O & M'!$E$126 -> 4.953292625 | AV94: ='DNSP Inputs O & M'!$F$12 -> 127.9719375 | AW94: 1 | AX94: ='DNSP Inputs O & M'!$F$17 -> 8 | AY94: =AV94*AW94*AX94 -> 1023.7755 | AZ94: =(AY94+AY95+AY96)/'DNSP Inputs O & M'!$F$125 -> 362.6907122 | BA94: =AZ94/'DNSP Inputs O & M'!$F$126 -> 5.037371003 | BC94: ='DNSP Inputs O & M'!$F$12 -> 127.9719375 | BD94: 1 | BE94: ='DNSP Inputs O & M'!$F$17 -> 8 | BF94: =BC94*BD94*BE94 -> 1023.7755 | BG94: =(BF94+BF95+BF96)/'DNSP Inputs O & M'!$F$125 -> 362.6907122 | BH94: =BG94/'DNSP Inputs O & M'!$F$126 -> 5.037371003 | BJ94: ='DNSP Inputs O & M'!$F$12 -> 127.9719375 | BK94: 1 | BL94: ='DNSP Inputs O & M'!$F$17 -> 8 | BM94: =BJ94*BK94*BL94 -> 1023.7755 | BN94: =(BM94+BM95+BM96)/'DNSP Inputs O & M'!$F$125 -> 362.6907122 | BO94: =BN94/'DNSP Inputs O & M'!$F$126 -> 5.037371003 | BS94: ='DNSP Inputs O & M'!$G$12 -> 130.1274628 | BT94: 1 | BU94: ='DNSP Inputs O & M'!$G$17 -> 8 | BV94: =BS94*BT94*BU94 -> 1041.019702 | BW94: =(BV94+BV95+BV96)/'DNSP Inputs O & M'!$G$125 -> 368.8288583 | BX94: =BW94/'DNSP Inputs O & M'!$G$126 -> 5.122623032 | BZ94: ='DNSP Inputs O & M'!$G$12 -> 130.1274628 | CA94: 1 | CB94: ='DNSP Inputs O & M'!$G$17 -> 8 | CC94: =BZ94*CA94*CB94 -> 1041.019702 | CD94: =(CC94+CC95+CC96)/'DNSP Inputs O & M'!$G$125 -> 368.8288583 | CE94: =CD94/'DNSP Inputs O & M'!$G$126 -> 5.122623032 | CG94: ='DNSP Inputs O & M'!$G$12 -> 130.1274628 | CH94: 1 | CI94: ='DNSP Inputs O & M'!$G$17 -> 8 | CJ94: =CG94*CH94*CI94 -> 1041.019702 | CK94: =(CJ94+CJ95+CJ96)/'DNSP Inputs O & M'!$G$125 -> 368.8288583 | CL94: =CK94/'DNSP Inputs O & M'!$G$126 -> 5.122623032 | CP94: ='DNSP Inputs O & M'!$H$12 -> 132.3192952 | CQ94: 1 | CR94: ='DNSP Inputs O & M'!$H$17 -> 8 | CS94: =CP94*CQ94*CR94 -> 1058.554361 | CT94: =(CS94+CS95+CS96)/'DNSP Inputs O & M'!$H$125 -> 375.0987684 | CU94: =CT94/'DNSP Inputs O & M'!$H$126 -> 5.209705117 | CW94: ='DNSP Inputs O & M'!$H$12 -> 132.3192952 | CX94: 1 | CY94: ='DNSP Inputs O & M'!$H$17 -> 8 | CZ94: =CW94*CX94*CY94 -> 1058.554361 | DA94: =(CZ94+CZ95+CZ96)/'DNSP Inputs O & M'!$H$125 -> 375.0987684 | DB94: =DA94/'DNSP Inputs O & M'!$H$126 -> 5.209705117 | DD94: ='DNSP Inputs O & M'!$H$12 -> 132.3192952 | DE94: 1 | DF94: ='DNSP Inputs O & M'!$H$17 -> 8 | DG94: =DD94*DE94*DF94 -> 1058.554361 | DH94: =(DG94+DG95+DG96)/'DNSP Inputs O & M'!$H$125 -> 375.0987684 | DI94: =DH94/'DNSP Inputs O & M'!$H$126 -> 5.209705117
A95: Vehicle costs | B95: ='DNSP Inputs O & M'!$D$16 -> 42.91070035 | C95: 1 | D95: ='DNSP Inputs O & M'!$D$17 -> 8 | E95: =B95*C95*D95 -> 343.2856028 | I95: ='DNSP Inputs O & M'!$D$16 -> 42.91070035 | J95: 1 | K95: ='DNSP Inputs O & M'!$D$17 -> 8 | L95: =I95*J95*K95 -> 343.2856028 | P95: ='DNSP Inputs O & M'!$D$16 -> 42.91070035 | Q95: 1 | R95: ='DNSP Inputs O & M'!$D$17 -> 8 | S95: =P95*Q95*R95 -> 343.2856028 | Y95: ='DNSP Inputs O & M'!$E$16 -> 43.83499516 | Z95: 1 | AA95: ='DNSP Inputs O & M'!$E$17 -> 8 | AB95: =Y95*Z95*AA95 -> 350.6799613 | AF95: ='DNSP Inputs O & M'!$E$16 -> 43.83499516 | AG95: 1 | AH95: ='DNSP Inputs O & M'!$E$17 -> 8 | AI95: =AF95*AG95*AH95 -> 350.6799613 | AM95: ='DNSP Inputs O & M'!$E$16 -> 43.83499516 | AN95: 1 | AO95: ='DNSP Inputs O & M'!$E$17 -> 8 | AP95: =AM95*AN95*AO95 -> 350.6799613 | AV95: ='DNSP Inputs O & M'!$F$16 -> 44.59548533 | AW95: 1 | AX95: ='DNSP Inputs O & M'!$F$17 -> 8 | AY95: =AV95*AW95*AX95 -> 356.7638826 | BC95: ='DNSP Inputs O & M'!$F$16 -> 44.59548533 | BD95: 1 | BE95: ='DNSP Inputs O & M'!$F$17 -> 8 | BF95: =BC95*BD95*BE95 -> 356.7638826 | BJ95: ='DNSP Inputs O & M'!$F$16 -> 44.59548533 | BK95: 1 | BL95: ='DNSP Inputs O & M'!$F$17 -> 8 | BM95: =BJ95*BK95*BL95 -> 356.7638826 | BS95: ='DNSP Inputs O & M'!$G$16 -> 45.36047611 | BT95: 1 | BU95: ='DNSP Inputs O & M'!$G$17 -> 8 | BV95: =BS95*BT95*BU95 -> 362.8838089 | BZ95: ='DNSP Inputs O & M'!$G$16 -> 45.36047611 | CA95: 1 | CB95: ='DNSP Inputs O & M'!$G$17 -> 8 | CC95: =BZ95*CA95*CB95 -> 362.8838089 | CG95: ='DNSP Inputs O & M'!$G$16 -> 45.36047611 | CH95: 1 | CI95: ='DNSP Inputs O & M'!$G$17 -> 8 | CJ95: =CG95*CH95*CI95 -> 362.8838089 | CP95: ='DNSP Inputs O & M'!$H$16 -> 46.15185284 | CQ95: 1 | CR95: ='DNSP Inputs O & M'!$H$17 -> 8 | CS95: =CP95*CQ95*CR95 -> 369.2148227 | CW95: ='DNSP Inputs O & M'!$H$16 -> 46.15185284 | CX95: 1 | CY95: ='DNSP Inputs O & M'!$H$17 -> 8 | CZ95: =CW95*CX95*CY95 -> 369.2148227 | DD95: ='DNSP Inputs O & M'!$H$16 -> 46.15185284 | DE95: 1 | DF95: ='DNSP Inputs O & M'!$H$17 -> 8 | DG95: =DD95*DE95*DF95 -> 369.2148227
A96: Overheads | B96: ='DNSP Inputs O & M'!$D$18 -> 0.31358336 | E96: =B96*(E94+E95) -> 418.1398614 | I96: ='DNSP Inputs O & M'!$D$18 -> 0.31358336 | L96: =I96*(L94+L95) -> 418.1398614 | P96: ='DNSP Inputs O & M'!$D$18 -> 0.31358336 | S96: =P96*(S94+S95) -> 418.1398614 | Y96: ='DNSP Inputs O & M'!$E$18 -> 0.31358336 | AB96: =Y96*(AB94+AB95) -> 425.6884405 | AF96: ='DNSP Inputs O & M'!$E$18 -> 0.31358336 | AI96: =AF96*(AI94+AI95) -> 425.6884405 | AM96: ='DNSP Inputs O & M'!$E$18 -> 0.31358336 | AP96: =AM96*(AP94+AP95) -> 425.6884405 | AV96: ='DNSP Inputs O & M'!$F$18 -> 0.31358336 | AY96: =AV96*(AY94+AY95) -> 432.9141783 | BC96: ='DNSP Inputs O & M'!$F$18 -> 0.31358336 | BF96: =BC96*(BF94+BF95) -> 432.9141783 | BJ96: ='DNSP Inputs O & M'!$F$18 -> 0.31358336 | BM96: =BJ96*(BM94+BM95) -> 432.9141783 | BS96: ='DNSP Inputs O & M'!$G$18 -> 0.31358336 | BV96: =BS96*(BV94+BV95) -> 440.2407802 | BZ96: ='DNSP Inputs O & M'!$G$18 -> 0.31358336 | CC96: =BZ96*(CC94+CC95) -> 440.2407802 | CG96: ='DNSP Inputs O & M'!$G$18 -> 0.31358336 | CJ96: =CG96*(CJ94+CJ95) -> 440.2407802 | CP96: ='DNSP Inputs O & M'!$H$18 -> 0.31358336 | CS96: =CP96*(CS94+CS95) -> 447.7246581 | CW96: ='DNSP Inputs O & M'!$H$18 -> 0.31358336 | CZ96: =CW96*(CZ94+CZ95) -> 447.7246581 | DD96: ='DNSP Inputs O & M'!$H$18 -> 0.31358336 | DG96: =DD96*(DG94+DG95) -> 447.7246581
A101: Sodium High Pressure 150 Watt Standard Light Type - Cost build-up
A103: Addiitonal assumptions
A104: Overheads are applied to material and labour components
A105: All costs and charges are exclusive of GST
B107: Urban | I107: Rural | P107: Remote | Y107: Urban | AF107: Rural | AM107: Remote | AV107: Urban | BC107: Rural | BJ107: Remote | BS107: Urban | BZ107: Rural | CG107: Remote | CP107: Urban | CW107: Rural | DD107: Remote
B109: Unit rate | C109: Number | D109: Hours | E109: Cost | F109: Annualised | G109: Annualised | I109: Unit rate | J109: Number | K109: Hours | L109: Cost | M109: Annualised | N109: Annualised | P109: Unit rate | Q109: Number | R109: Hours | S109: Cost | T109: Annualised | U109: Annualised | Y109: Unit rate | Z109: Number | AA109: Hours | AB109: Cost | AC109: Annualised | AD109: Annualised | AF109: Unit rate | AG109: Number | AH109: Hours | AI109: Cost | AJ109: Annualised | AK109: Annualised | AM109: Unit rate | AN109: Number | AO109: Hours | AP109: Cost | AQ109: Annualised | AR109: Annualised | AV109: Unit rate | AW109: Number | AX109: Hours | AY109: Cost | AZ109: Annualised | BA109: Annualised | BC109: Unit rate | BD109: Number | BE109: Hours | BF109: Cost | BG109: Annualised | BH109: Annualised | BJ109: Unit rate | BK109: Number | BL109: Hours | BM109: Cost | BN109: Annualised | BO109: Annualised | BS109: Unit rate | BT109: Number | BU109: Hours | BV109: Cost | BW109: Annualised | BX109: Annualised | BZ109: Unit rate | CA109: Number | CB109: Hours | CC109: Cost | CD109: Annualised | CE109: Annualised | CG109: Unit rate | CH109: Number | CI109: Hours | CJ109: Cost | CK109: Annualised | CL109: Annualised | CP109: Unit rate | CQ109: Number | CR109: Hours | CS109: Cost | CT109: Annualised | CU109: Annualised | CW109: Unit rate | CX109: Number | CY109: Hours | CZ109: Cost | DA109: Annualised | DB109: Annualised | DD109: Unit rate | DE109: Number | DF109: Hours | DG109: Cost | DH109: Annualised | DI109: Annualised
F110: cost | G110: unit cost | M110: cost | N110: unit cost | T110: cost | U110: unit cost | AC110: cost | AD110: unit cost | AJ110: cost | AK110: unit cost | AQ110: cost | AR110: unit cost | AZ110: cost | BA110: unit cost | BG110: cost | BH110: unit cost | BN110: cost | BO110: unit cost | BW110: cost | BX110: unit cost | CD110: cost | CE110: unit cost | CK110: cost | CL110: unit cost | CT110: cost | CU110: unit cost | DA110: cost | DB110: unit cost | DH110: cost | DI110: unit cost
A111: S-HP 150
A112: Patrols and repairs
A113: Materials
A114: Lamp | B114: ='DNSP Inputs O & M'!$D$65 -> 41.30439954 | C114: ='DNSP Inputs O & M'!$D$73 -> 19.2 | E114: =B114*C114 -> 793.0444711 | F114: =(E114+E115+E116)/'DNSP Inputs O & M'!$D$73 -> 55.0204596 | G114: =F114/'DNSP Inputs O & M'!$D$63 -> 11.00409192 | I114: ='DNSP Inputs O & M'!$D$65*(1+'DNSP Inputs O & M'!$D$11) -> 43.36961951 | J114: ='DNSP Inputs O & M'!$D$74 -> 15.36 | L114: =I114*J114 -> 666.1573557 | M114: =(L114+L115+L116)/'DNSP Inputs O & M'!$D$74 -> 57.77148258 | N114: =M114/'DNSP Inputs O & M'!$D$63 -> 11.55429652 | P114: ='DNSP Inputs O & M'!$D$65*(1+'DNSP Inputs O & M'!$D$11) -> 43.36961951 | Q114: ='DNSP Inputs O & M'!$D$75 -> 11.52 | S114: =P114*Q114 -> 499.6180168 | T114: =(S114+S115+S116)/'DNSP Inputs O & M'!$D$75 -> 57.77148258 | U114: =T114/'DNSP Inputs O & M'!$D$63 -> 11.55429652 | Y114: ='DNSP Inputs O & M'!$E$65 -> 41.30439954 | Z114: ='DNSP Inputs O & M'!$E$73 -> 19.2 | AB114: =Y114*Z114 -> 793.0444711 | AC114: =(AB114+AB115+AB116)/'DNSP Inputs O & M'!$E$73 -> 55.0204596 | AD114: =AC114/'DNSP Inputs O & M'!$E$63 -> 11.00409192 | AF114: ='DNSP Inputs O & M'!$E$65*(1+'DNSP Inputs O & M'!$E$11) -> 43.36961951 | AG114: ='DNSP Inputs O & M'!$E$74 -> 15.36 | AI114: =AF114*AG114 -> 666.1573557 | AJ114: =(AI114+AI115+AI116)/'DNSP Inputs O & M'!$E$74 -> 57.77148258 | AK114: =AJ114/'DNSP Inputs O & M'!$E$63 -> 11.55429652 | AM114: ='DNSP Inputs O & M'!$E$65*(1+'DNSP Inputs O & M'!$E$11) -> 43.36961951 | AN114: ='DNSP Inputs O & M'!$E$75 -> 11.52 | AP114: =AM114*AN114 -> 499.6180168 | AQ114: =(AP114+AP115+AP116)/'DNSP Inputs O & M'!$E$75 -> 57.77148258 | AR114: =AQ114/'DNSP Inputs O & M'!$E$63 -> 11.55429652 | AV114: ='DNSP Inputs O & M'!$F$65 -> 41.30439954 | AW114: ='DNSP Inputs O & M'!$F$73 -> 19.2 | AY114: =AV114*AW114 -> 793.0444711 | AZ114: =(AY114+AY115+AY116)/'DNSP Inputs O & M'!$F$73 -> 55.0204596 | BA114: =AZ114/'DNSP Inputs O & M'!$F$63 -> 11.00409192 | BC114: ='DNSP Inputs O & M'!$F$65*(1+'DNSP Inputs O & M'!$F$11) -> 43.36961951 | BD114: ='DNSP Inputs O & M'!$F$74 -> 15.36 | BF114: =BC114*BD114 -> 666.1573557 | BG114: =(BF114+BF115+BF116)/'DNSP Inputs O & M'!$F$74 -> 57.77148258 | BH114: =BG114/'DNSP Inputs O & M'!$F$63 -> 11.55429652 | BJ114: ='DNSP Inputs O & M'!$F$65*(1+'DNSP Inputs O & M'!$F$11) -> 43.36961951 | BK114: ='DNSP Inputs O & M'!$F$75 -> 11.52 | BM114: =BJ114*BK114 -> 499.6180168 | BN114: =(BM114+BM115+BM116)/'DNSP Inputs O & M'!$F$75 -> 57.77148258 | BO114: =BN114/'DNSP Inputs O & M'!$F$63 -> 11.55429652 | BS114: ='DNSP Inputs O & M'!$G$65 -> 41.30439954 | BT114: ='DNSP Inputs O & M'!$G$73 -> 19.2 | BV114: =BS114*BT114 -> 793.0444711 | BW114: =(BV114+BV115+BV116)/'DNSP Inputs O & M'!$G$73 -> 55.0204596 | BX114: =BW114/'DNSP Inputs O & M'!$G$63 -> 11.00409192 | BZ114: ='DNSP Inputs O & M'!$G$65*(1+'DNSP Inputs O & M'!$G$11) -> 43.36961951 | CA114: ='DNSP Inputs O & M'!$G$74 -> 15.36 | CC114: =BZ114*CA114 -> 666.1573557 | CD114: =(CC114+CC115+CC116)/'DNSP Inputs O & M'!$G$74 -> 57.77148258 | CE114: =CD114/'DNSP Inputs O & M'!$G$63 -> 11.55429652 | CG114: ='DNSP Inputs O & M'!$G$65*(1+'DNSP Inputs O & M'!$G$11) -> 43.36961951 | CH114: ='DNSP Inputs O & M'!$G$75 -> 11.52 | CJ114: =CG114*CH114 -> 499.6180168 | CK114: =(CJ114+CJ115+CJ116)/'DNSP Inputs O & M'!$G$75 -> 57.77148258 | CL114: =CK114/'DNSP Inputs O & M'!$G$63 -> 11.55429652 | CP114: ='DNSP Inputs O & M'!$H$65 -> 41.30439954 | CQ114: ='DNSP Inputs O & M'!$H$73 -> 19.2 | CS114: =CP114*CQ114 -> 793.0444711 | CT114: =(CS114+CS115+CS116)/'DNSP Inputs O & M'!$H$73 -> 55.0204596 | CU114: =CT114/'DNSP Inputs O & M'!$H$63 -> 11.00409192 | CW114: ='DNSP Inputs O & M'!$H$65*(1+'DNSP Inputs O & M'!$H$11) -> 43.36961951 | CX114: ='DNSP Inputs O & M'!$H$74 -> 15.36 | CZ114: =CW114*CX114 -> 666.1573557 | DA114: =(CZ114+CZ115+CZ116)/'DNSP Inputs O & M'!$H$74 -> 57.77148258 | DB114: =DA114/'DNSP Inputs O & M'!$H$63 -> 11.55429652 | DD114: ='DNSP Inputs O & M'!$H$65*(1+'DNSP Inputs O & M'!$H$11) -> 43.36961951 | DE114: ='DNSP Inputs O & M'!$H$75 -> 11.52 | DG114: =DD114*DE114 -> 499.6180168 | DH114: =(DG114+DG115+DG116)/'DNSP Inputs O & M'!$H$75 -> 57.77148258 | DI114: =DH114/'DNSP Inputs O & M'!$H$63 -> 11.55429652
A115: PE cell | B115: ='DNSP Inputs O & M'!$D$66 -> 22.43310051 | C115: =C114*'DNSP Inputs O & M'!$D$63/'DNSP Inputs O & M'!$D$64 -> 9.6 | E115: =B115*C115 -> 215.3577649 | I115: ='DNSP Inputs O & M'!$D$66*(1+'DNSP Inputs O & M'!$D$11) -> 23.55475553 | J115: =J114*'DNSP Inputs O & M'!$D$63/'DNSP Inputs O & M'!$D$64 -> 7.68 | L115: =I115*J115 -> 180.9005225 | P115: ='DNSP Inputs O & M'!$D$66*(1+'DNSP Inputs O & M'!$D$11) -> 23.55475553 | Q115: =Q114*'DNSP Inputs O & M'!$D$63/'DNSP Inputs O & M'!$D$64 -> 5.76 | S115: =P115*Q115 -> 135.6753919 | Y115: ='DNSP Inputs O & M'!$E$66 -> 22.43310051 | Z115: =Z114*'DNSP Inputs O & M'!$E$63/'DNSP Inputs O & M'!$E$64 -> 9.6 | AB115: =Y115*Z115 -> 215.3577649 | AF115: ='DNSP Inputs O & M'!$E$66*(1+'DNSP Inputs O & M'!$E$11) -> 23.55475553 | AG115: =AG114*'DNSP Inputs O & M'!$E$63/'DNSP Inputs O & M'!$E$64 -> 7.68 | AI115: =AF115*AG115 -> 180.9005225 | AM115: ='DNSP Inputs O & M'!$E$66*(1+'DNSP Inputs O & M'!$E$11) -> 23.55475553 | AN115: =AN114*'DNSP Inputs O & M'!$E$63/'DNSP Inputs O & M'!$E$64 -> 5.76 | AP115: =AM115*AN115 -> 135.6753919 | AV115: ='DNSP Inputs O & M'!$F$66 -> 22.43310051 | AW115: =AW114*'DNSP Inputs O & M'!$F$63/'DNSP Inputs O & M'!$F$64 -> 9.6 | AY115: =AV115*AW115 -> 215.3577649 | BC115: ='DNSP Inputs O & M'!$F$66*(1+'DNSP Inputs O & M'!$F$11) -> 23.55475553 | BD115: =BD114*'DNSP Inputs O & M'!$F$63/'DNSP Inputs O & M'!$F$64 -> 7.68 | BF115: =BC115*BD115 -> 180.9005225 | BJ115: ='DNSP Inputs O & M'!$F$66*(1+'DNSP Inputs O & M'!$F$11) -> 23.55475553 | BK115: =BK114*'DNSP Inputs O & M'!$F$63/'DNSP Inputs O & M'!$F$64 -> 5.76 | BM115: =BJ115*BK115 -> 135.6753919 | BS115: ='DNSP Inputs O & M'!$G$66 -> 22.43310051 | BT115: =BT114*'DNSP Inputs O & M'!$G$63/'DNSP Inputs O & M'!$G$64 -> 9.6 | BV115: =BS115*BT115 -> 215.3577649 | BZ115: ='DNSP Inputs O & M'!$G$66*(1+'DNSP Inputs O & M'!$G$11) -> 23.55475553 | CA115: =CA114*'DNSP Inputs O & M'!$G$63/'DNSP Inputs O & M'!$G$64 -> 7.68 | CC115: =BZ115*CA115 -> 180.9005225 | CG115: ='DNSP Inputs O & M'!$G$66*(1+'DNSP Inputs O & M'!$G$11) -> 23.55475553 | CH115: =CH114*'DNSP Inputs O & M'!$G$63/'DNSP Inputs O & M'!$G$64 -> 5.76 | CJ115: =CG115*CH115 -> 135.6753919 | CP115: ='DNSP Inputs O & M'!$H$66 -> 22.43310051 | CQ115: =CQ114*'DNSP Inputs O & M'!$H$63/'DNSP Inputs O & M'!$H$64 -> 9.6 | CS115: =CP115*CQ115 -> 215.3577649 | CW115: ='DNSP Inputs O & M'!$H$66*(1+'DNSP Inputs O & M'!$H$11) -> 23.55475553 | CX115: =CX114*'DNSP Inputs O & M'!$H$63/'DNSP Inputs O & M'!$H$64 -> 7.68 | CZ115: =CW115*CX115 -> 180.9005225 | DD115: ='DNSP Inputs O & M'!$H$66*(1+'DNSP Inputs O & M'!$H$11) -> 23.55475553 | DE115: =DE114*'DNSP Inputs O & M'!$H$63/'DNSP Inputs O & M'!$H$64 -> 5.76 | DG115: =DD115*DE115 -> 135.6753919
A116: Miscellaneous | B116: ='DNSP Inputs O & M'!$D$67 -> 2.499509806 | C116: ='DNSP Inputs O & M'!$D$73 -> 19.2 | E116: =B116*C116 -> 47.99058827 | I116: ='DNSP Inputs O & M'!$D$67*(1+'DNSP Inputs O & M'!$D$11) -> 2.624485296 | J116: ='DNSP Inputs O & M'!$D$74 -> 15.36 | L116: =I116*J116 -> 40.31209415 | P116: ='DNSP Inputs O & M'!$D$67*(1+'DNSP Inputs O & M'!$D$11) -> 2.624485296 | Q116: ='DNSP Inputs O & M'!$D$75 -> 11.52 | S116: =P116*Q116 -> 30.23407061 | Y116: ='DNSP Inputs O & M'!$E$67 -> 2.499509806 | Z116: ='DNSP Inputs O & M'!$E$73 -> 19.2 | AB116: =Y116*Z116 -> 47.99058827 | AF116: ='DNSP Inputs O & M'!$E$67*(1+'DNSP Inputs O & M'!$E$11) -> 2.624485296 | AG116: ='DNSP Inputs O & M'!$E$74 -> 15.36 | AI116: =AF116*AG116 -> 40.31209415 | AM116: ='DNSP Inputs O & M'!$E$67*(1+'DNSP Inputs O & M'!$E$11) -> 2.624485296 | AN116: ='DNSP Inputs O & M'!$E$75 -> 11.52 | AP116: =AM116*AN116 -> 30.23407061 | AV116: ='DNSP Inputs O & M'!$F$67 -> 2.499509806 | AW116: ='DNSP Inputs O & M'!$F$73 -> 19.2 | AY116: =AV116*AW116 -> 47.99058827 | BC116: ='DNSP Inputs O & M'!$F$67*(1+'DNSP Inputs O & M'!$F$11) -> 2.624485296 | BD116: ='DNSP Inputs O & M'!$F$74 -> 15.36 | BF116: =BC116*BD116 -> 40.31209415 | BJ116: ='DNSP Inputs O & M'!$F$67*(1+'DNSP Inputs O & M'!$F$11) -> 2.624485296 | BK116: ='DNSP Inputs O & M'!$F$75 -> 11.52 | BM116: =BJ116*BK116 -> 30.23407061 | BS116: ='DNSP Inputs O & M'!$G$67 -> 2.499509806 | BT116: ='DNSP Inputs O & M'!$G$73 -> 19.2 | BV116: =BS116*BT116 -> 47.99058827 | BZ116: ='DNSP Inputs O & M'!$G$67*(1+'DNSP Inputs O & M'!$G$11) -> 2.624485296 | CA116: ='DNSP Inputs O & M'!$G$74 -> 15.36 | CC116: =BZ116*CA116 -> 40.31209415 | CG116: ='DNSP Inputs O & M'!$G$67*(1+'DNSP Inputs O & M'!$G$11) -> 2.624485296 | CH116: ='DNSP Inputs O & M'!$G$75 -> 11.52 | CJ116: =CG116*CH116 -> 30.23407061 | CP116: ='DNSP Inputs O & M'!$H$67 -> 2.499509806 | CQ116: ='DNSP Inputs O & M'!$H$73 -> 19.2 | CS116: =CP116*CQ116 -> 47.99058827 | CW116: ='DNSP Inputs O & M'!$H$67*(1+'DNSP Inputs O & M'!$H$11) -> 2.624485296 | CX116: ='DNSP Inputs O & M'!$H$74 -> 15.36 | CZ116: =CW116*CX116 -> 40.31209415 | DD116: ='DNSP Inputs O & M'!$H$67*(1+'DNSP Inputs O & M'!$H$11) -> 2.624485296 | DE116: ='DNSP Inputs O & M'!$H$75 -> 11.52 | DG116: =DD116*DE116 -> 30.23407061
A117: Labour - Patrol
A118: Crew costs | B118: ='DNSP Inputs O & M'!$D$13 -> 145.3495434 | C118: ='DNSP Inputs O & M'!$D$68 -> 2 | D118: ='DNSP Inputs O & M'!$D$17 -> 8 | E118: =B118*C118*D118 -> 2325.592694 | F118: =(E118+E119)/'DNSP Inputs O & M'!$D$70 -> 0.889626099 | G118: =F118*'DNSP Inputs O & M'!$D$62 -> 2.668878297 | I118: ='DNSP Inputs O & M'!$D$13 -> 145.3495434 | J118: ='DNSP Inputs O & M'!$D$68 -> 2 | K118: ='DNSP Inputs O & M'!$D$17 -> 8 | L118: =I118*J118*K118 -> 2325.592694 | M118: =(L118+L119)/'DNSP Inputs O & M'!$D$71 -> 1.334439149 | N118: =M118*'DNSP Inputs O & M'!$D$62 -> 4.003317446 | P118: ='DNSP Inputs O & M'!$D$13 -> 145.3495434 | Q118: ='DNSP Inputs O & M'!$D$68 -> 2 | R118: ='DNSP Inputs O & M'!$D$17 -> 8 | S118: =P118*Q118*R118 -> 2325.592694 | T118: =(S118+S119)/'DNSP Inputs O & M'!$D$72 -> 2.668878297 | U118: =T118*'DNSP Inputs O & M'!$D$62 -> 8.006634891 | Y118: ='DNSP Inputs O & M'!$E$13 -> 147.7977724 | Z118: ='DNSP Inputs O & M'!$E$68 -> 2 | AA118: ='DNSP Inputs O & M'!$E$17 -> 8 | AB118: =Y118*Z118*AA118 -> 2364.764359 | AC118: =(AB118+AB119)/'DNSP Inputs O & M'!$E$70 -> 0.9051481068 | AD118: =AC118*'DNSP Inputs O & M'!$E$62 -> 2.71544432 | AF118: ='DNSP Inputs O & M'!$E$13 -> 147.7977724 | AG118: ='DNSP Inputs O & M'!$E$68 -> 2 | AH118: ='DNSP Inputs O & M'!$E$17 -> 8 | AI118: =AF118*AG118*AH118 -> 2364.764359 | AJ118: =(AI118+AI119)/'DNSP Inputs O & M'!$E$71 -> 1.35772216 | AK118: =AJ118*'DNSP Inputs O & M'!$E$62 -> 4.073166481 | AM118: ='DNSP Inputs O & M'!$E$13 -> 147.7977724 | AN118: ='DNSP Inputs O & M'!$E$68 -> 2 | AO118: ='DNSP Inputs O & M'!$E$17 -> 8 | AP118: =AM118*AN118*AO118 -> 2364.764359 | AQ118: =(AP118+AP119)/'DNSP Inputs O & M'!$E$72 -> 2.71544432 | AR118: =AQ118*'DNSP Inputs O & M'!$E$62 -> 8.146332961 | AV118: ='DNSP Inputs O & M'!$F$13 -> 150.2872388 | AW118: ='DNSP Inputs O & M'!$F$68 -> 2 | AX118: ='DNSP Inputs O & M'!$F$17 -> 8 | AY118: =AV118*AW118*AX118 -> 2404.595821 | AZ118: =(AY118+AY119)/'DNSP Inputs O & M'!$F$70 -> 0.9204532346 | BA118: =AZ118*'DNSP Inputs O & M'!$F$62 -> 2.761359704 | BC118: ='DNSP Inputs O & M'!$F$13 -> 150.2872388 | BD118: ='DNSP Inputs O & M'!$F$68 -> 2 | BE118: ='DNSP Inputs O & M'!$F$17 -> 8 | BF118: =BC118*BD118*BE118 -> 2404.595821 | BG118: =(BF118+BF119)/'DNSP Inputs O & M'!$F$71 -> 1.380679852 | BH118: =BG118*'DNSP Inputs O & M'!$F$62 -> 4.142039556 | BJ118: ='DNSP Inputs O & M'!$F$13 -> 150.2872388 | BK118: ='DNSP Inputs O & M'!$F$68 -> 2 | BL118: ='DNSP Inputs O & M'!$F$17 -> 8 | BM118: =BJ118*BK118*BL118 -> 2404.595821 | BN118: =(BM118+BM119)/'DNSP Inputs O & M'!$F$72 -> 2.761359704 | BO118: =BN118*'DNSP Inputs O & M'!$F$62 -> 8.284079111 | BS118: ='DNSP Inputs O & M'!$G$13 -> 152.8186371 | BT118: ='DNSP Inputs O & M'!$G$68 -> 2 | BU118: ='DNSP Inputs O & M'!$G$17 -> 8 | BV118: =BS118*BT118*BU118 -> 2445.098194 | BW118: =(BV118+BV119)/'DNSP Inputs O & M'!$G$70 -> 0.9359940008 | BX118: =BW118*'DNSP Inputs O & M'!$G$62 -> 2.807982003 | BZ118: ='DNSP Inputs O & M'!$G$13 -> 152.8186371 | CA118: ='DNSP Inputs O & M'!$G$68 -> 2 | CB118: ='DNSP Inputs O & M'!$G$17 -> 8 | CC118: =BZ118*CA118*CB118 -> 2445.098194 | CD118: =(CC118+CC119)/'DNSP Inputs O & M'!$G$71 -> 1.403991001 | CE118: =CD118*'DNSP Inputs O & M'!$G$62 -> 4.211973004 | CG118: ='DNSP Inputs O & M'!$G$13 -> 152.8186371 | CH118: ='DNSP Inputs O & M'!$G$68 -> 2 | CI118: ='DNSP Inputs O & M'!$G$17 -> 8 | CJ118: =CG118*CH118*CI118 -> 2445.098194 | CK118: =(CJ118+CJ119)/'DNSP Inputs O & M'!$G$72 -> 2.807982003 | CL118: =CK118*'DNSP Inputs O & M'!$G$62 -> 8.423946008 | CP118: ='DNSP Inputs O & M'!$H$13 -> 155.3926736 | CQ118: ='DNSP Inputs O & M'!$H$68 -> 2 | CR118: ='DNSP Inputs O & M'!$H$17 -> 8 | CS118: =CP118*CQ118*CR118 -> 2486.282777 | CT118: =(CS118+CS119)/'DNSP Inputs O & M'!$H$70 -> 0.9518325333 | CU118: =CT118*'DNSP Inputs O & M'!$H$62 -> 2.8554976 | CW118: ='DNSP Inputs O & M'!$H$13 -> 155.3926736 | CX118: ='DNSP Inputs O & M'!$H$68 -> 2 | CY118: ='DNSP Inputs O & M'!$H$17 -> 8 | CZ118: =CW118*CX118*CY118 -> 2486.282777 | DA118: =(CZ118+CZ119)/'DNSP Inputs O & M'!$H$71 -> 1.4277488 | DB118: =DA118*'DNSP Inputs O & M'!$H$62 -> 4.2832464 | DD118: ='DNSP Inputs O & M'!$H$13 -> 155.3926736 | DE118: ='DNSP Inputs O & M'!$H$68 -> 2 | DF118: ='DNSP Inputs O & M'!$H$17 -> 8 | DG118: =DD118*DE118*DF118 -> 2486.282777 | DH118: =(DG118+DG119)/'DNSP Inputs O & M'!$H$72 -> 2.8554976 | DI118: =DH118*'DNSP Inputs O & M'!$H$62 -> 8.5664928
A119: Vehicle costs | B119: ='DNSP Inputs O & M'!$D$16 -> 42.91070035 | C119: 1 | D119: ='DNSP Inputs O & M'!$D$17 -> 8 | E119: =B119*C119*D119 -> 343.2856028 | I119: ='DNSP Inputs O & M'!$D$16 -> 42.91070035 | J119: 1 | K119: ='DNSP Inputs O & M'!$D$17 -> 8 | L119: =I119*J119*K119 -> 343.2856028 | P119: ='DNSP Inputs O & M'!$D$16 -> 42.91070035 | Q119: 1 | R119: ='DNSP Inputs O & M'!$D$17 -> 8 | S119: =P119*Q119*R119 -> 343.2856028 | Y119: ='DNSP Inputs O & M'!$E$16 -> 43.83499516 | Z119: 1 | AA119: ='DNSP Inputs O & M'!$E$17 -> 8 | AB119: =Y119*Z119*AA119 -> 350.6799613 | AF119: ='DNSP Inputs O & M'!$E$16 -> 43.83499516 | AG119: 1 | AH119: ='DNSP Inputs O & M'!$E$17 -> 8 | AI119: =AF119*AG119*AH119 -> 350.6799613 | AM119: ='DNSP Inputs O & M'!$E$16 -> 43.83499516 | AN119: 1 | AO119: ='DNSP Inputs O & M'!$E$17 -> 8 | AP119: =AM119*AN119*AO119 -> 350.6799613 | AV119: ='DNSP Inputs O & M'!$F$16 -> 44.59548533 | AW119: 1 | AX119: ='DNSP Inputs O & M'!$F$17 -> 8 | AY119: =AV119*AW119*AX119 -> 356.7638826 | BC119: ='DNSP Inputs O & M'!$F$16 -> 44.59548533 | BD119: 1 | BE119: ='DNSP Inputs O & M'!$F$17 -> 8 | BF119: =BC119*BD119*BE119 -> 356.7638826 | BJ119: ='DNSP Inputs O & M'!$F$16 -> 44.59548533 | BK119: 1 | BL119: ='DNSP Inputs O & M'!$F$17 -> 8 | BM119: =BJ119*BK119*BL119 -> 356.7638826 | BS119: ='DNSP Inputs O & M'!$G$16 -> 45.36047611 | BT119: 1 | BU119: ='DNSP Inputs O & M'!$G$17 -> 8 | BV119: =BS119*BT119*BU119 -> 362.8838089 | BZ119: ='DNSP Inputs O & M'!$G$16 -> 45.36047611 | CA119: 1 | CB119: ='DNSP Inputs O & M'!$G$17 -> 8 | CC119: =BZ119*CA119*CB119 -> 362.8838089 | CG119: ='DNSP Inputs O & M'!$G$16 -> 45.36047611 | CH119: 1 | CI119: ='DNSP Inputs O & M'!$G$17 -> 8 | CJ119: =CG119*CH119*CI119 -> 362.8838089 | CP119: ='DNSP Inputs O & M'!$H$16 -> 46.15185284 | CQ119: 1 | CR119: ='DNSP Inputs O & M'!$H$17 -> 8 | CS119: =CP119*CQ119*CR119 -> 369.2148227 | CW119: ='DNSP Inputs O & M'!$H$16 -> 46.15185284 | CX119: 1 | CY119: ='DNSP Inputs O & M'!$H$17 -> 8 | CZ119: =CW119*CX119*CY119 -> 369.2148227 | DD119: ='DNSP Inputs O & M'!$H$16 -> 46.15185284 | DE119: 1 | DF119: ='DNSP Inputs O & M'!$H$17 -> 8 | DG119: =DD119*DE119*DF119 -> 369.2148227
A120: Labour - Repair of faults
A121: Crew costs | B121: ='DNSP Inputs O & M'!$D$12 -> 123.7674125 | C121: ='DNSP Inputs O & M'!$D$69 -> 2 | D121: ='DNSP Inputs O & M'!$D$17 -> 8 | E121: =B121*C121*D121 -> 1980.278601 | F121: =(E121+E122)/'DNSP Inputs O & M'!$D$73*(C114+C115)/C114 -> 190.6801754 | G121: =F121/'DNSP Inputs O & M'!$D$63 -> 38.13603508 | I121: ='DNSP Inputs O & M'!$D$12 -> 123.7674125 | J121: ='DNSP Inputs O & M'!$D$69 -> 2 | K121: ='DNSP Inputs O & M'!$D$17 -> 8 | L121: =I121*J121*K121 -> 1980.278601 | M121: =(L121+L122)/'DNSP Inputs O & M'!$D$74*(J114+J115)/J114 -> 238.3502192 | N121: =M121/'DNSP Inputs O & M'!$D$63 -> 47.67004384 | P121: ='DNSP Inputs O & M'!$D$12 -> 123.7674125 | Q121: ='DNSP Inputs O & M'!$D$69 -> 2 | R121: ='DNSP Inputs O & M'!$D$17 -> 8 | S121: =P121*Q121*R121 -> 1980.278601 | T121: =(S121+S122)/'DNSP Inputs O & M'!$D$75*(Q114+Q115)/Q114 -> 317.8002923 | U121: =T121/'DNSP Inputs O & M'!$D$63 -> 63.56005846 | Y121: ='DNSP Inputs O & M'!$E$12 -> 125.8521179 | Z121: ='DNSP Inputs O & M'!$E$69 -> 2 | AA121: ='DNSP Inputs O & M'!$E$17 -> 8 | AB121: =Y121*Z121*AA121 -> 2013.633887 | AC121: =(AB121+AB122)/'DNSP Inputs O & M'!$E$73*(Z114+Z115)/Z114 -> 194.0608691 | AD121: =AC121/'DNSP Inputs O & M'!$E$63 -> 38.81217382 | AF121: ='DNSP Inputs O & M'!$E$12 -> 125.8521179 | AG121: ='DNSP Inputs O & M'!$E$69 -> 2 | AH121: ='DNSP Inputs O & M'!$E$17 -> 8 | AI121: =AF121*AG121*AH121 -> 2013.633887 | AJ121: =(AI121+AI122)/'DNSP Inputs O & M'!$E$74*(AG114+AG115)/AG114 -> 242.5760864 | AK121: =AJ121/'DNSP Inputs O & M'!$E$63 -> 48.51521727 | AM121: ='DNSP Inputs O & M'!$E$12 -> 125.8521179 | AN121: ='DNSP Inputs O & M'!$E$69 -> 2 | AO121: ='DNSP Inputs O & M'!$E$17 -> 8 | AP121: =AM121*AN121*AO121 -> 2013.633887 | AQ121: =(AP121+AP122)/'DNSP Inputs O & M'!$E$75*(AN114+AN115)/AN114 -> 323.4347818 | AR121: =AQ121/'DNSP Inputs O & M'!$E$63 -> 64.68695637 | AV121: ='DNSP Inputs O & M'!$F$12 -> 127.9719375 | AW121: ='DNSP Inputs O & M'!$F$69 -> 2 | AX121: ='DNSP Inputs O & M'!$F$17 -> 8 | AY121: =AV121*AW121*AX121 -> 2047.551 | AZ121: =(AY121+AY122)/'DNSP Inputs O & M'!$F$73*(AW114+AW115)/AW114 -> 197.3481425 | BA121: =AZ121/'DNSP Inputs O & M'!$F$63 -> 39.4696285 | BC121: ='DNSP Inputs O & M'!$F$12 -> 127.9719375 | BD121: ='DNSP Inputs O & M'!$F$69 -> 2 | BE121: ='DNSP Inputs O & M'!$F$17 -> 8 | BF121: =BC121*BD121*BE121 -> 2047.551 | BG121: =(BF121+BF122)/'DNSP Inputs O & M'!$F$74*(BD114+BD115)/BD114 -> 246.6851781 | BH121: =BG121/'DNSP Inputs O & M'!$F$63 -> 49.33703562 | BJ121: ='DNSP Inputs O & M'!$F$12 -> 127.9719375 | BK121: ='DNSP Inputs O & M'!$F$69 -> 2 | BL121: ='DNSP Inputs O & M'!$F$17 -> 8 | BM121: =BJ121*BK121*BL121 -> 2047.551 | BN121: =(BM121+BM122)/'DNSP Inputs O & M'!$F$75*(BK114+BK115)/BK114 -> 328.9135708 | BO121: =BN121/'DNSP Inputs O & M'!$F$63 -> 65.78271416 | BS121: ='DNSP Inputs O & M'!$G$12 -> 130.1274628 | BT121: ='DNSP Inputs O & M'!$G$69 -> 2 | BU121: ='DNSP Inputs O & M'!$G$17 -> 8 | BV121: =BS121*BT121*BU121 -> 2082.039405 | BW121: =(BV121+BV122)/'DNSP Inputs O & M'!$G$73*(BT114+BT115)/BT114 -> 200.6838207 | BX121: =BW121/'DNSP Inputs O & M'!$G$63 -> 40.13676414 | BZ121: ='DNSP Inputs O & M'!$G$12 -> 130.1274628 | CA121: ='DNSP Inputs O & M'!$G$69 -> 2 | CB121: ='DNSP Inputs O & M'!$G$17 -> 8 | CC121: =BZ121*CA121*CB121 -> 2082.039405 | CD121: =(CC121+CC122)/'DNSP Inputs O & M'!$G$74*(CA114+CA115)/CA114 -> 250.8547759 | CE121: =CD121/'DNSP Inputs O & M'!$G$63 -> 50.17095518 | CG121: ='DNSP Inputs O & M'!$G$12 -> 130.1274628 | CH121: ='DNSP Inputs O & M'!$G$69 -> 2 | CI121: ='DNSP Inputs O & M'!$G$17 -> 8 | CJ121: =CG121*CH121*CI121 -> 2082.039405 | CK121: =(CJ121+CJ122)/'DNSP Inputs O & M'!$G$75*(CH114+CH115)/CH114 -> 334.4730345 | CL121: =CK121/'DNSP Inputs O & M'!$G$63 -> 66.8946069 | CP121: ='DNSP Inputs O & M'!$H$12 -> 132.3192952 | CQ121: ='DNSP Inputs O & M'!$H$69 -> 2 | CR121: ='DNSP Inputs O & M'!$H$17 -> 8 | CS121: =CP121*CQ121*CR121 -> 2117.108723 | CT121: =(CS121+CS122)/'DNSP Inputs O & M'!$H$73*(CQ114+CQ115)/CQ114 -> 204.0870014 | CU121: =CT121/'DNSP Inputs O & M'!$H$63 -> 40.81740029 | CW121: ='DNSP Inputs O & M'!$H$12 -> 132.3192952 | CX121: ='DNSP Inputs O & M'!$H$69 -> 2 | CY121: ='DNSP Inputs O & M'!$H$17 -> 8 | CZ121: =CW121*CX121*CY121 -> 2117.108723 | DA121: =(CZ121+CZ122)/'DNSP Inputs O & M'!$H$74*(CX114+CX115)/CX114 -> 255.1087518 | DB121: =DA121/'DNSP Inputs O & M'!$H$63 -> 51.02175036 | DD121: ='DNSP Inputs O & M'!$H$12 -> 132.3192952 | DE121: ='DNSP Inputs O & M'!$H$69 -> 2 | DF121: ='DNSP Inputs O & M'!$H$17 -> 8 | DG121: =DD121*DE121*DF121 -> 2117.108723 | DH121: =(DG121+DG122)/'DNSP Inputs O & M'!$H$75*(DE114+DE115)/DE114 -> 340.1450024 | DI121: =DH121/'DNSP Inputs O & M'!$H$63 -> 68.02900048
A122: Elevated platform vehicle costs | B122: ='DNSP Inputs O & M'!$D$15 -> 57.55345553 | C122: 1 | D122: ='DNSP Inputs O & M'!$D$17 -> 8 | E122: =B122*C122*D122 -> 460.4276442 | I122: ='DNSP Inputs O & M'!$D$15 -> 57.55345553 | J122: 1 | K122: ='DNSP Inputs O & M'!$D$17 -> 8 | L122: =I122*J122*K122 -> 460.4276442 | P122: ='DNSP Inputs O & M'!$D$15 -> 57.55345553 | Q122: 1 | R122: ='DNSP Inputs O & M'!$D$17 -> 8 | S122: =P122*Q122*R122 -> 460.4276442 | Y122: ='DNSP Inputs O & M'!$E$15 -> 58.79315472 | Z122: 1 | AA122: ='DNSP Inputs O & M'!$E$17 -> 8 | AB122: =Y122*Z122*AA122 -> 470.3452378 | AF122: ='DNSP Inputs O & M'!$E$15 -> 58.79315472 | AG122: 1 | AH122: ='DNSP Inputs O & M'!$E$17 -> 8 | AI122: =AF122*AG122*AH122 -> 470.3452378 | AM122: ='DNSP Inputs O & M'!$E$15 -> 58.79315472 | AN122: 1 | AO122: ='DNSP Inputs O & M'!$E$17 -> 8 | AP122: =AM122*AN122*AO122 -> 470.3452378 | AV122: ='DNSP Inputs O & M'!$F$15 -> 59.81315292 | AW122: 1 | AX122: ='DNSP Inputs O & M'!$F$17 -> 8 | AY122: =AV122*AW122*AX122 -> 478.5052234 | BC122: ='DNSP Inputs O & M'!$F$15 -> 59.81315292 | BD122: 1 | BE122: ='DNSP Inputs O & M'!$F$17 -> 8 | BF122: =BC122*BD122*BE122 -> 478.5052234 | BJ122: ='DNSP Inputs O & M'!$F$15 -> 59.81315292 | BK122: 1 | BL122: ='DNSP Inputs O & M'!$F$17 -> 8 | BM122: =BJ122*BK122*BL122 -> 478.5052234 | BS122: ='DNSP Inputs O & M'!$G$15 -> 60.83918751 | BT122: 1 | BU122: ='DNSP Inputs O & M'!$G$17 -> 8 | BV122: =BS122*BT122*BU122 -> 486.7135001 | BZ122: ='DNSP Inputs O & M'!$G$15 -> 60.83918751 | CA122: 1 | CB122: ='DNSP Inputs O & M'!$G$17 -> 8 | CC122: =BZ122*CA122*CB122 -> 486.7135001 | CG122: ='DNSP Inputs O & M'!$G$15 -> 60.83918751 | CH122: 1 | CI122: ='DNSP Inputs O & M'!$G$17 -> 8 | CJ122: =CG122*CH122*CI122 -> 486.7135001 | CP122: ='DNSP Inputs O & M'!$H$15 -> 61.90061193 | CQ122: 1 | CR122: ='DNSP Inputs O & M'!$H$17 -> 8 | CS122: =CP122*CQ122*CR122 -> 495.2048955 | CW122: ='DNSP Inputs O & M'!$H$15 -> 61.90061193 | CX122: 1 | CY122: ='DNSP Inputs O & M'!$H$17 -> 8 | CZ122: =CW122*CX122*CY122 -> 495.2048955 | DD122: ='DNSP Inputs O & M'!$H$15 -> 61.90061193 | DE122: 1 | DF122: ='DNSP Inputs O & M'!$H$17 -> 8 | DG122: =DD122*DE122*DF122 -> 495.2048955
A124: Other Maintenance and Repair costs | G124: ='DNSP Inputs O & M'!$D$82 -> 2.128177009 | N124: ='DNSP Inputs O & M'!$D$82 -> 2.128177009 | U124: ='DNSP Inputs O & M'!$D$82 -> 2.128177009 | AD124: ='DNSP Inputs O & M'!$E$82 -> 2.100548096 | AK124: ='DNSP Inputs O & M'!$E$82 -> 2.100548096 | AR124: ='DNSP Inputs O & M'!$E$82 -> 2.100548096 | BA124: ='DNSP Inputs O & M'!$F$82 -> 2.111753691 | BH124: ='DNSP Inputs O & M'!$F$82 -> 2.111753691 | BO124: ='DNSP Inputs O & M'!$F$82 -> 2.111753691 | BX124: ='DNSP Inputs O & M'!$G$82 -> 2.113233156 | CE124: ='DNSP Inputs O & M'!$G$82 -> 2.113233156 | CL124: ='DNSP Inputs O & M'!$G$82 -> 2.113233156 | CU124: ='DNSP Inputs O & M'!$H$82 -> 2.106353096 | DB124: ='DNSP Inputs O & M'!$H$82 -> 2.106353096 | DI124: ='DNSP Inputs O & M'!$H$82 -> 2.106353096
A126: Overheads | B126: ='DNSP Inputs O & M'!$D$18 -> 0.31358336 | G126: =B126*(G114+G118+G121+G124) -> 16.91380285 | I126: ='DNSP Inputs O & M'!$D$18 -> 0.31358336 | N126: =I126*(N114+N118+N121+N124) -> 20.49450228 | P126: ='DNSP Inputs O & M'!$D$18 -> 0.31358336 | U126: =P126*(U114+U118+U121+U124) -> 26.73272019 | Y126: ='DNSP Inputs O & M'!$E$18 -> 0.31358336 | AD126: =Y126*(AD114+AD118+AD121+AD124) -> 17.13176708 | AF126: ='DNSP Inputs O & M'!$E$18 -> 0.31358336 | AK126: =AF126*(AK114+AK118+AK121+AK124) -> 20.77277413 | AM126: ='DNSP Inputs O & M'!$E$18 -> 0.31358336 | AR126: =AM126*(AR114+AR118+AR121+AR124) -> 27.12123964 | AV126: ='DNSP Inputs O & M'!$F$18 -> 0.31358336 | BA126: =AV126*(BA114+BA118+BA121+BA124) -> 17.35584611 | BC126: ='DNSP Inputs O & M'!$F$18 -> 0.31358336 | BH126: =BC126*(BH114+BH118+BH121+BH124) -> 21.05559402 | BJ126: ='DNSP Inputs O & M'!$F$18 -> 0.31358336 | BO126: =BJ126*(BO114+BO118+BO121+BO124) -> 27.51155984 | BS126: ='DNSP Inputs O & M'!$G$18 -> 0.31358336 | BX126: =BS126*(BX114+BX118+BX121+BX124) -> 17.58013266 | BZ126: ='DNSP Inputs O & M'!$G$18 -> 0.31358336 | CE126: =BZ126*(CE114+CE118+CE121+CE124) -> 21.33949122 | CG126: ='DNSP Inputs O & M'!$G$18 -> 0.31358336 | CL126: =CG126*(CL114+CL118+CL121+CL124) -> 27.90455477 | CP126: ='DNSP Inputs O & M'!$H$18 -> 0.31358336 | CU126: =CP126*(CU114+CU118+CU121+CU124) -> 17.80631146 | CW126: ='DNSP Inputs O & M'!$H$18 -> 0.31358336 | DB126: =CW126*(DB114+DB118+DB121+DB124) -> 21.62647911 | DD126: ='DNSP Inputs O & M'!$H$18 -> 0.31358336 | DI126: =DD126*(DI114+DI118+DI121+DI124) -> 28.30282455
G128: =SUM(G114,G118,G121,G124,G126) -> 70.85098516 | N128: =SUM(N114,N118,N121,N124,N126) -> 85.85033709 | U128: =SUM(U114,U118,U121,U124,U126) -> 111.9818871 | AD128: =SUM(AD114,AD118,AD121,AD124,AD126) -> 71.76402523 | AK128: =SUM(AK114,AK118,AK121,AK124,AK126) -> 87.0160025 | AR128: =SUM(AR114,AR118,AR121,AR124,AR126) -> 113.6093736 | BA128: =SUM(BA114,BA118,BA121,BA124,BA126) -> 72.70267992 | BH128: =SUM(BH114,BH118,BH121,BH124,BH126) -> 88.20071941 | BO128: =SUM(BO114,BO118,BO121,BO124,BO126) -> 115.2444033 | BX128: =SUM(BX114,BX118,BX121,BX124,BX126) -> 73.64220388 | CE128: =SUM(CE114,CE118,CE121,CE124,CE126) -> 89.38994907 | CL128: =SUM(CL114,CL118,CL121,CL124,CL126) -> 116.8906373 | CU128: =SUM(CU114,CU118,CU121,CU124,CU126) -> 74.58965436 | DB128: =SUM(DB114,DB118,DB121,DB124,DB126) -> 90.59212548 | DI128: =SUM(DI114,DI118,DI121,DI124,DI126) -> 118.5589674
A133: Sodium High Pressure 250 Watt Standard Light Type - Cost build-up
A135: Addiitonal assumptions
A136: Overheads are applied to material and labour components
A137: All costs and charges are exclusive of GST
B139: Urban | I139: Rural | P139: Remote | Y139: Urban | AF139: Rural | AM139: Remote | AV139: Urban | BC139: Rural | BJ139: Remote | BS139: Urban | BZ139: Rural | CG139: Remote | CP139: Urban | CW139: Rural | DD139: Remote
B141: Unit rate | C141: Number | D141: Hours | E141: Cost | F141: Annualised | G141: Annualised | I141: Unit rate | J141: Number | K141: Hours | L141: Cost | M141: Annualised | N141: Annualised | P141: Unit rate | Q141: Number | R141: Hours | S141: Cost | T141: Annualised | U141: Annualised | Y141: Unit rate | Z141: Number | AA141: Hours | AB141: Cost | AC141: Annualised | AD141: Annualised | AF141: Unit rate | AG141: Number | AH141: Hours | AI141: Cost | AJ141: Annualised | AK141: Annualised | AM141: Unit rate | AN141: Number | AO141: Hours | AP141: Cost | AQ141: Annualised | AR141: Annualised | AV141: Unit rate | AW141: Number | AX141: Hours | AY141: Cost | AZ141: Annualised | BA141: Annualised | BC141: Unit rate | BD141: Number | BE141: Hours | BF141: Cost | BG141: Annualised | BH141: Annualised | BJ141: Unit rate | BK141: Number | BL141: Hours | BM141: Cost | BN141: Annualised | BO141: Annualised | BS141: Unit rate | BT141: Number | BU141: Hours | BV141: Cost | BW141: Annualised | BX141: Annualised | BZ141: Unit rate | CA141: Number | CB141: Hours | CC141: Cost | CD141: Annualised | CE141: Annualised | CG141: Unit rate | CH141: Number | CI141: Hours | CJ141: Cost | CK141: Annualised | CL141: Annualised | CP141: Unit rate | CQ141: Number | CR141: Hours | CS141: Cost | CT141: Annualised | CU141: Annualised | CW141: Unit rate | CX141: Number | CY141: Hours | CZ141: Cost | DA141: Annualised | DB141: Annualised | DD141: Unit rate | DE141: Number | DF141: Hours | DG141: Cost | DH141: Annualised | DI141: Annualised
F142: cost | G142: unit cost | M142: cost | N142: unit cost | T142: cost | U142: unit cost | AC142: cost | AD142: unit cost | AJ142: cost | AK142: unit cost | AQ142: cost | AR142: unit cost | AZ142: cost | BA142: unit cost | BG142: cost | BH142: unit cost | BN142: cost | BO142: unit cost | BW142: cost | BX142: unit cost | CD142: cost | CE142: unit cost | CK142: cost | CL142: unit cost | CT142: cost | CU142: unit cost | DA142: cost | DB142: unit cost | DH142: cost | DI142: unit cost
A143: S-HP 250
A144: Patrols and repairs
A145: Materials
A146: Lamp | B146: ='DNSP Inputs O & M'!$D$97 -> 41.30439954 | C146: ='DNSP Inputs O & M'!$D$105 -> 19.2 | E146: =B146*C146 -> 793.0444711 | F146: =(E146+E147+E148)/'DNSP Inputs O & M'!$D$105 -> 55.0204596 | G146: =F146/'DNSP Inputs O & M'!$D$95 -> 11.00409192 | I146: ='DNSP Inputs O & M'!$D$97*(1+'DNSP Inputs O & M'!$D$11) -> 43.36961951 | J146: ='DNSP Inputs O & M'!$D$106 -> 15.36 | L146: =I146*J146 -> 666.1573557 | M146: =(L146+L147+L148)/'DNSP Inputs O & M'!$D$106 -> 57.77148258 | N146: =M146/'DNSP Inputs O & M'!$D$95 -> 11.55429652 | P146: ='DNSP Inputs O & M'!$D$97*(1+'DNSP Inputs O & M'!$D$11) -> 43.36961951 | Q146: ='DNSP Inputs O & M'!$D$107 -> 11.52 | S146: =P146*Q146 -> 499.6180168 | T146: =(S146+S147+S148)/'DNSP Inputs O & M'!$D$107 -> 57.77148258 | U146: =T146/'DNSP Inputs O & M'!$D$95 -> 11.55429652 | Y146: ='DNSP Inputs O & M'!$E$97 -> 41.30439954 | Z146: ='DNSP Inputs O & M'!$E$105 -> 19.2 | AB146: =Y146*Z146 -> 793.0444711 | AC146: =(AB146+AB147+AB148)/'DNSP Inputs O & M'!$E$105 -> 55.0204596 | AD146: =AC146/'DNSP Inputs O & M'!$E$95 -> 11.00409192 | AF146: ='DNSP Inputs O & M'!$E$97*(1+'DNSP Inputs O & M'!$E$11) -> 43.36961951 | AG146: ='DNSP Inputs O & M'!$E$106 -> 15.36 | AI146: =AF146*AG146 -> 666.1573557 | AJ146: =(AI146+AI147+AI148)/'DNSP Inputs O & M'!$E$106 -> 57.77148258 | AK146: =AJ146/'DNSP Inputs O & M'!$E$95 -> 11.55429652 | AM146: ='DNSP Inputs O & M'!$E$97*(1+'DNSP Inputs O & M'!$E$11) -> 43.36961951 | AN146: ='DNSP Inputs O & M'!$E$107 -> 11.52 | AP146: =AM146*AN146 -> 499.6180168 | AQ146: =(AP146+AP147+AP148)/'DNSP Inputs O & M'!$E$107 -> 57.77148258 | AR146: =AQ146/'DNSP Inputs O & M'!$E$95 -> 11.55429652 | AV146: ='DNSP Inputs O & M'!$F$97 -> 41.30439954 | AW146: ='DNSP Inputs O & M'!$F$105 -> 19.2 | AY146: =AV146*AW146 -> 793.0444711 | AZ146: =(AY146+AY147+AY148)/'DNSP Inputs O & M'!$F$105 -> 55.0204596 | BA146: =AZ146/'DNSP Inputs O & M'!$F$95 -> 11.00409192 | BC146: ='DNSP Inputs O & M'!$F$97*(1+'DNSP Inputs O & M'!$F$11) -> 43.36961951 | BD146: ='DNSP Inputs O & M'!$F$106 -> 15.36 | BF146: =BC146*BD146 -> 666.1573557 | BG146: =(BF146+BF147+BF148)/'DNSP Inputs O & M'!$F$106 -> 57.77148258 | BH146: =BG146/'DNSP Inputs O & M'!$F$95 -> 11.55429652 | BJ146: ='DNSP Inputs O & M'!$F$97*(1+'DNSP Inputs O & M'!$F$11) -> 43.36961951 | BK146: ='DNSP Inputs O & M'!$F$107 -> 11.52 | BM146: =BJ146*BK146 -> 499.6180168 | BN146: =(BM146+BM147+BM148)/'DNSP Inputs O & M'!$F$107 -> 57.77148258 | BO146: =BN146/'DNSP Inputs O & M'!$F$95 -> 11.55429652 | BS146: ='DNSP Inputs O & M'!$G$97 -> 41.30439954 | BT146: ='DNSP Inputs O & M'!$G$105 -> 19.2 | BV146: =BS146*BT146 -> 793.0444711 | BW146: =(BV146+BV147+BV148)/'DNSP Inputs O & M'!$G$105 -> 55.0204596 | BX146: =BW146/'DNSP Inputs O & M'!$G$95 -> 11.00409192 | BZ146: ='DNSP Inputs O & M'!$G$97*(1+'DNSP Inputs O & M'!$G$11) -> 43.36961951 | CA146: ='DNSP Inputs O & M'!$G$106 -> 15.36 | CC146: =BZ146*CA146 -> 666.1573557 | CD146: =(CC146+CC147+CC148)/'DNSP Inputs O & M'!$G$106 -> 57.77148258 | CE146: =CD146/'DNSP Inputs O & M'!$G$95 -> 11.55429652 | CG146: ='DNSP Inputs O & M'!$G$97*(1+'DNSP Inputs O & M'!$G$11) -> 43.36961951 | CH146: ='DNSP Inputs O & M'!$G$107 -> 11.52 | CJ146: =CG146*CH146 -> 499.6180168 | CK146: =(CJ146+CJ147+CJ148)/'DNSP Inputs O & M'!$G$107 -> 57.77148258 | CL146: =CK146/'DNSP Inputs O & M'!$G$95 -> 11.55429652 | CP146: ='DNSP Inputs O & M'!$H$97 -> 41.30439954 | CQ146: ='DNSP Inputs O & M'!$H$105 -> 19.2 | CS146: =CP146*CQ146 -> 793.0444711 | CT146: =(CS146+CS147+CS148)/'DNSP Inputs O & M'!$H$105 -> 55.0204596 | CU146: =CT146/'DNSP Inputs O & M'!$H$95 -> 11.00409192 | CW146: ='DNSP Inputs O & M'!$H$97*(1+'DNSP Inputs O & M'!$H$11) -> 43.36961951 | CX146: ='DNSP Inputs O & M'!$H$106 -> 15.36 | CZ146: =CW146*CX146 -> 666.1573557 | DA146: =(CZ146+CZ147+CZ148)/'DNSP Inputs O & M'!$H$106 -> 57.77148258 | DB146: =DA146/'DNSP Inputs O & M'!$H$95 -> 11.55429652 | DD146: ='DNSP Inputs O & M'!$H$97*(1+'DNSP Inputs O & M'!$H$11) -> 43.36961951 | DE146: ='DNSP Inputs O & M'!$H$106 -> 15.36 | DG146: =DD146*DE146 -> 666.1573557 | DH146: =(DG146+DG147+DG148)/'DNSP Inputs O & M'!$H$107 -> 76.153815 | DI146: =DH146/'DNSP Inputs O & M'!$H$95 -> 15.230763
A147: PE cell | B147: ='DNSP Inputs O & M'!$D$98 -> 22.43310051 | C147: =C146*'DNSP Inputs O & M'!$D$95/'DNSP Inputs O & M'!$D$96 -> 9.6 | E147: =B147*C147 -> 215.3577649 | I147: ='DNSP Inputs O & M'!$D$98*(1+'DNSP Inputs O & M'!$D$11) -> 23.55475553 | J147: =J146*'DNSP Inputs O & M'!$D$95/'DNSP Inputs O & M'!$D$96 -> 7.68 | L147: =I147*J147 -> 180.9005225 | P147: ='DNSP Inputs O & M'!$D$98*(1+'DNSP Inputs O & M'!$D$11) -> 23.55475553 | Q147: =Q146*'DNSP Inputs O & M'!$D$95/'DNSP Inputs O & M'!$D$96 -> 5.76 | S147: =P147*Q147 -> 135.6753919 | Y147: ='DNSP Inputs O & M'!$E$98 -> 22.43310051 | Z147: =Z146*'DNSP Inputs O & M'!$E$95/'DNSP Inputs O & M'!$E$96 -> 9.6 | AB147: =Y147*Z147 -> 215.3577649 | AF147: ='DNSP Inputs O & M'!$E$98*(1+'DNSP Inputs O & M'!$E$11) -> 23.55475553 | AG147: =AG146*'DNSP Inputs O & M'!$E$95/'DNSP Inputs O & M'!$E$96 -> 7.68 | AI147: =AF147*AG147 -> 180.9005225 | AM147: ='DNSP Inputs O & M'!$E$98*(1+'DNSP Inputs O & M'!$E$11) -> 23.55475553 | AN147: =AN146*'DNSP Inputs O & M'!$E$95/'DNSP Inputs O & M'!$E$96 -> 5.76 | AP147: =AM147*AN147 -> 135.6753919 | AV147: ='DNSP Inputs O & M'!$F$98 -> 22.43310051 | AW147: =AW146*'DNSP Inputs O & M'!$F$95/'DNSP Inputs O & M'!$F$96 -> 9.6 | AY147: =AV147*AW147 -> 215.3577649 | BC147: ='DNSP Inputs O & M'!$F$98*(1+'DNSP Inputs O & M'!$F$11) -> 23.55475553 | BD147: =BD146*'DNSP Inputs O & M'!$F$95/'DNSP Inputs O & M'!$F$96 -> 7.68 | BF147: =BC147*BD147 -> 180.9005225 | BJ147: ='DNSP Inputs O & M'!$F$98*(1+'DNSP Inputs O & M'!$F$11) -> 23.55475553 | BK147: =BK146*'DNSP Inputs O & M'!$F$95/'DNSP Inputs O & M'!$F$96 -> 5.76 | BM147: =BJ147*BK147 -> 135.6753919 | BS147: ='DNSP Inputs O & M'!$G$98 -> 22.43310051 | BT147: =BT146*'DNSP Inputs O & M'!$G$95/'DNSP Inputs O & M'!$G$96 -> 9.6 | BV147: =BS147*BT147 -> 215.3577649 | BZ147: ='DNSP Inputs O & M'!$G$98*(1+'DNSP Inputs O & M'!$G$11) -> 23.55475553 | CA147: =CA146*'DNSP Inputs O & M'!$G$95/'DNSP Inputs O & M'!$G$96 -> 7.68 | CC147: =BZ147*CA147 -> 180.9005225 | CG147: ='DNSP Inputs O & M'!$G$98*(1+'DNSP Inputs O & M'!$G$11) -> 23.55475553 | CH147: =CH146*'DNSP Inputs O & M'!$G$95/'DNSP Inputs O & M'!$G$96 -> 5.76 | CJ147: =CG147*CH147 -> 135.6753919 | CP147: ='DNSP Inputs O & M'!$H$98 -> 22.43310051 | CQ147: =CQ146*'DNSP Inputs O & M'!$H$95/'DNSP Inputs O & M'!$H$96 -> 9.6 | CS147: =CP147*CQ147 -> 215.3577649 | CW147: ='DNSP Inputs O & M'!$H$98*(1+'DNSP Inputs O & M'!$H$11) -> 23.55475553 | CX147: =CX146*'DNSP Inputs O & M'!$H$95/'DNSP Inputs O & M'!$H$96 -> 7.68 | CZ147: =CW147*CX147 -> 180.9005225 | DD147: ='DNSP Inputs O & M'!$H$98*(1+'DNSP Inputs O & M'!$H$11) -> 23.55475553 | DE147: =DE146*'DNSP Inputs O & M'!$H$95/'DNSP Inputs O & M'!$H$96 -> 7.68 | DG147: =DD147*DE147 -> 180.9005225
